{"text_format":"1","workbook":"xlsx","n_sheets":18,"sheets":["TYT+AYT Soru","AYT Soru","AYT Konu","TYT+AYT Konu","TYT Çalışma P","AYT ÇAlışma P","Klup Listesi","AYT Konuları Yatay","Giriş ve Ön Plânlama","Çalışpa Plânı","Takvim","TYT AYT Konuları ve Takip Formu","TYT Soru Dağılımı","AYT Soru Dağılımı","Form10","Form11","Form12","Kültür Edb. Liste"],"not_rendered":{"charts":0,"images":1,"macros":1,"external_links":2,"defined_names":10,"comments":4,"pivot_tables":0},"unopened":[],"bounds":{"document_bytes":16777216,"sheet_cells":100000,"rows_first":2000,"rows_last":500,"rows_between":2000,"halvings":0,"cell_chars":16384,"cell_head_chars":4096},"cells_cut":0,"cells_raw":0,"read":"whole","date_system":"1900"}

{"sheet":"TYT+AYT Soru","index":0,"n_rows":162,"n_cols":29,"rows_kept":162,"cut":false,"hidden":true,"merged":[[77,17,77,28],[96,17,96,28],[117,17,117,28],[1,2,1,15],[1,17,1,28],[2,17,2,28],[4,17,4,28],[34,17,34,28],[51,17,51,28],[42,2,42,15],[2,2,2,15],[3,2,3,15],[4,2,4,15],[29,2,29,15],[150,2,150,15],[57,2,57,15],[74,2,74,15],[89,2,89,15],[103,2,103,15],[119,2,119,15],[137,2,137,15]]}
[]
[null,null,"Fetullah Bayır Fen Lisesi",null,null,null,null,null,null,null,null,null,null,null,null,null,null,"Fetullah Bayır Fen Lisesi"]
[null,null,"TYT Çıkan SORU SAYILARI",null,null,null,null,null,null,null,null,null,null,null,null,null,null,"AYT Çıkan SORU SAYILARI"]
[]
[null,null,"TYT Matematik En Çok Çıkan Konular",null,null,null,null,null,null,null,null,null,null,null,null,null,null,"YKS AYT Matematik Soru Dağılımı"]
[null,null,"SORU DAĞILIMI",2022,2021,2020,2019,2018,2017,2016,2015,2014,2013,2012,2011,null,null,"SORU DAĞILIMI",2022,2021,2020,2019,2018,2017,2016,2015,2013,2012]
[null,null,"Temel Kavramlar",3,3,1,4,4,4,3,"–",4,2,"–","–",null,null,"Temel Kavramlar",2,3,2,2,1,3,3,6,3,"–"]
[null,null,"Sayı Basamakları",1,2,1,2,1,2,2,1,"–",2,2,1,null,null,"Sayı Basamakları","–","–",3,"–","–",1,"–","–","–",1]
[null,null,"Bölünebilme Kuralları",1,1,1,1,"–","–","–",1,2,"–","–",1,null,null,"Bölme ve Bölünebilme","–","–","–",1,"–",1,1,"–","–",1]
[null,null,"OBEB-OKEK","–","–","–","–","–","–","–",2,1,2,5,"–",null,null,"EBOB – EKOK",1,1,"–","–","–",1,1,1,1,1]
[null,null,"Rasyonel Sayılar",2,"–",3,1,"–",1,1,1,2,1,2,4,null,null,"Rasyonel Sayılar","–","–","–","–","–",1,1,1,"–","–"]
[null,null,"Basit Eşitsizlikler",1,1,1,"–",1,1,1,2,"–",1,1,"–",null,null,"Basit Eşitsizlikler","–",1,1,1,"–",2,1,null,1,1]
[null,null,"Mutlak Değer",1,1,1,1,1,1,1,1,1,1,1,1,null,null,"Mutlak Değer","–","–",1,1,"–",1,1,null,"–","–"]
[null,null,"Üslü Sayılar",1,1,1,1,"–",2,2,2,2,1,3,3,null,null,"Üslü Sayılar","–",1,1,"–","–",1,2,1,2,"–"]
[null,null,"Köklü Sayılar",1,1,1,1,1,2,3,1,0,"–",2,1,null,null,"Köklü Sayılar","–","–","–","–","–",2,1,1,1,2]
[null,null,"Çarpanlara Ayırma","–","–","–","–",1,1,1,"–",2,1,"–",3,null,null,"Çarpanlara Ayırma",1,"–","–","–","–",1,1,1,2,2]
[null,null,"Oran-Orantı",1,1,1,"–","–",null,2,"–",2,2,3,3,null,null,"Oran Orantı","–","–","–","–","–","–",1,1,"–","–"]
[null,null,"Denklem Çözme","–",2,"–",1,2,1,"–",2,2,3,4,"–",null,null,"Kümeler",1,1,2,1,"–",2,2,2,1,1]
[null,null,"Problemler",13,11,13,12,11,11,13,10,8,10,5,10,null,null,"Mantık",1,1,"–",1,4,1,1,"–",1,3]
[null,null,"Kümeler – Kartezyen Çarpım",1,1,1,1,2,2,1,2,1,"–",1,"–",null,null,"Fonksiyonlar",2,2,2,2,2,2,2,"–",3,2]
[null,null,"Mantık",1,1,"–","–","–",1,null,1,1,1,"–",1,null,null,"Polinomlar",1,1,2,2,1,3,1,2,2,2]
[null,null,"Fonksiyonlar",1,1,2,2,1,1,1,2,2,2,1,2,null,null,"2.Dereceden Denklemler ve Eşitsizlikler",2,1,1,"–",1,1,"–",1,1,"–"]
[null,null,"Polinomlar","–",1,"–","–",1,"–","–","–","–","–","–","–",null,null,"Parabol","–",1,1,1,1,"–",1,"–",1,1]
[null,null,"Permütasyon-Kombinasyon","–","–",2,1,1,1,"–",1,1,1,"–","–",null,null,"Permütasyon-Kombinasyon-Olasılık – Binom",3,2,3,2,2,2,3,2,2,2]
[null,null,"Olasılık",1,1,1,1,2,1,1,1,1,1,1,1,null,null,"Trigonometri",4,5,4,3,3,2,4,2,3,4]
[null,null,"Veri – İstatistik",1,1,"–",1,"–","–",1,1,"–",1,1,2,null,null,"Karmaşık Sayılar","–","–",2,1,1,2,3,3,3,3]
[null,null,"SORU SAYISI",30,30,30,30,29,32,33,32,32,32,32,33,null,null,"Logaritma",2,1,3,3,2,3,1,2,3,2]
[null,null,null,null,null,null,null,null,null,null,null,null,null,null,null,null,null,"Diziler",1,1,2,1,1,2,2,2,2,2]
[null,null,null,null,null,null,null,null,null,null,null,null,null,null,null,null,null,"Limit",2,2,"–",2,2,2,2,1,1,4]
[null,null,"TYT Türkçe En Çok Çıkan Konular",null,null,null,null,null,null,null,null,null,null,null,null,null,null,"Türev",4,3,"–",4,4,5,5,7,6,6]
[null,null,"SORU DAĞILIMI",2022,2021,2020,2019,2018,2017,2016,2015,2014,2013,2012,2011,2010,null,"İntegral",4,4,"–",4,4,5,6,7,7,4]
[null,null,"Ses Bilgisi","–",1,"–",1,3,3,1,1,1,1,1,1,"–",null,"SORU SAYISI",31,31,30,32,29,50,50,50,50,50]
[null,null,"Dil Bilgisi",3,2,3,8,1,1,3,2,5,5,6,5,5]
[null,null,"Noktalama İşaretleri",2,2,2,1,1,1,1,1,1,1,1,2,2]
[null,null,"Yazım Kuralları",2,2,2,2,2,2,1,1,1,2,"–",2,2,null,"YKS AYT Geometri Soru Dağılımı"]
[null,null,"Anlatım Bozukluğu","–","–","–","–",1,1,2,"–","–",1,"–",1,1,null,"SORU DAĞILIMI",2022,2021,2020,2019,2018,2017,2016,2015,2013,2012]
[null,null,"Paragraf",26,25,26,22,22,22,22,26,23,20,23,20,20,null,"Doğruda ve Üçgende Açı",1,"–",1,"–",1,2,2,1,"–",1]
[null,null,"Cümlede Anlamı",3,3,6,3,7,7,7,6,6,7,7,6,7,null,"Özel Üçgenler","–","–",2,"–",2,2,6,"–",1,1]
[null,null,"Sözcükte Anlamı",4,5,1,3,3,3,3,3,3,3,2,3,3,null,"Açıortay – Kenarortay","–","–","–","–","–","–","–","–",1,1]
[null,null,"SORU SAYISI",40,40," 40"," 40",40,40,40,40,40,40,40,40,40,null,"Üçgende Alan Benzerlik","–","–","–","–","–",3,1,2,1,"–"]
[null,null,null,null,null,null,null,null,null,null,null,null,null,null,null,null,null,"Açı Kenar Bağıntıları","–","–","–",1,"–","–","–","–",1,"–"]
[null,null,null,null,null,null,null,null,null,null,null,null,null,null,null,null,null,"Çokgenler","–","–",1,2,1,"–",1,3,1,2]
[null,null,"TYT Geometri En Çok Çıkan Konular",null,null,null,null,null,null,null,null,null,null,null,null,null,null,"Özel Dörtgenler","–","–","–","–",1,4,6,5,3,5]
[null,null,"SORU DAĞILIMI",2022,2021,2020,2019,2018,2017,2016,2015,2014,2013,2012,2011,null,null,"Çember ve Daire",2,3,2,2,1,3,3,5,8,6]
[null,null,"Açılar ve Üçgenler",4,4,2,2,3,2,1,1,1,"–",1,2,null,null,"Noktanın Analitiği",1,2,1,"–","–","–",1,2,2,1]
[null,null,"Çokgenler",1,1,1,1,1,2,"–",1,1,1,1,"–",null,null,"Doğrunun Analitiği",1,2,1,1,2,2,4,1,3,3]
[null,null,"Yamuk","–","–",2,"–",1,1,"–","–","–",1,"–","–",null,null,"Dönüşüm Geometrisi",1,"–",1,1,1,"–","–","–",1,1]
[null,null,"Eşkenar Dörtgen",1,"–","–","–","–","–","–","–","–",1,1,1,null,null,"Katı Cisimler",2,1,1,1,1,2,2,4,4,4]
[null,null,"Deltoid","–",1,"–","–","–","–","–","–","–","–","–","–",null,null,"Çemberin Analitiği",1,1,"–","–",1,1,2,1,"–",1]
[null,null,"Kare","–","–",1,1,1,1,"–",1,1,"–","–","–",null,null,"TOPLAM",9,9,10,8,11,30,30,30,30,30]
[null,null,"Dikdörtgen",1,1,2,1,1,"–",1,"–","–",1,"–","–"]
[null,null,"Çember ve Daire","–","–","–",2,1,2,1,1,2,1,2,2,null,null,"YKS AYT Fizik Soru Dağılımı"]
[null,null,"Analitik Geometri",1,1,"–",1,1,1,1,2,2,2,2,2,null,null,"SORU DAĞILIMI",2022,2021,2020,2019,2018]
[null,null,"Katı Cisimler",2,2,2,2,2,2,2,2,1,1,1,"–",null,null,"Vektörler",1,"–","–","–","–"]
[null,null,"SORU SAYISI",10,10,10,10,11,11,6,8,8,8,8,7,null,null,"Bağıl Hareket","–","–",1,1,"–"]
[null,null,null,null,null,null,null,null,null,null,null,null,null,null,null,null,null,"Newton’un Hareket Yasaları",1,"–",1,"–",1]
[null,null,null,null,null,null,null,null,null,null,null,null,null,null,null,null,null,"Bir Boyutta Sabit İvmeli Hareket","–","–","–","–","–"]
[null,null,"TYT Fizik En Çok Çıkan Konular",null,null,null,null,null,null,null,null,null,null,null,null,null,null,"Atışlar","–",1,1,1,1]
[null,null,"SORU DAĞILIMI",2022,2021,2020,2019,2018,2017,2016,2015,2014,2013,2012,null,null,null,"İş, Güç ve Enerji II","–",1,1,"–","–"]
[null,null,"Fizik Bilimine Giriş","–","–",1,"–",1,1,1,1,1,1,"–",null,null,null,"İtme ve Momentum",1,"–",1,1,1]
[null,null,"Madde Ve Özellikleri",1,1,"–",1,"–",2,1,1,1,"–",1,null,null,null,"Kuvvet, Tork ve Denge","–",1,1,1,1]
[null,null,"Hareket ve Kuvvet",1,1,1,1,1,2,1,2,1,2,1,null,null,null,"Kütle Merkezi","–","–","–","–","–"]
[null,null,"İş, Güç ve  Enerji I","–","–","–",1,"–",1,3,1,2,1,2,null,null,null,"Basit Makineler",1,"–","–","–","–"]
[null,null,"Isı, Sıcaklık ve Genleşme",1,1,1,1,1,1,2,2,2,2,1,null,null,null,"Elektrik Alan ve Potansiyel","–",2,1,1,1]
[null,null,"Elektrostatik",1,"–","–","–",1,1,1,1,1,"–","–",null,null,null,"Paralel Levhalar ve Sığa","–","–","–","–","–"]
[null,null,"Elektrik Akımı ve Devreler","–",1,1,1,"–",1,1,1,1,3,3,null,null,null,"Manyetik Alan ve Manyetik Kuvvet",1,1,"–","–","–"]
[null,null,"Manyetizma","–","–","–","–","–",1,1,1,1,1,1,null,null,null,"İndüksiyon, Alternatif Akım ve Transformatörler",1,1,2,2,2]
[null,null,"Basınç",1,1,"–","–","–","–",1,1,1,1,1,null,null,null,"Çembersel Hareket",1,1,2,1,1]
[null,null,"Kaldırma Kuvveti","–","–",1,"–",1,1,"–","–","–",1,1,null,null,null,"Dönme, Yuvarlanma ve Açısal Momentum",1,"–",1,1,"–"]
[null,null,"Dalgalar",1,1,1,"–","–","–",1,1,1,1,1,null,null,null,"Kütle Çekim ve Kepler Yasaları","–",1,"–","–",1]
[null,null,"Optik",1,1,1,2,2,3,1,1,1,1,2,null,null,null,"Basit Harmonik Hareket",1,1,1,1,1]
[null,null,"SORU SAYISI",7,7,7," 7",7,14,14,14,14,14,14,null,null,null,"Dalga Mekaniği",1,1,1,1,1]
[null,null,null,null,null,null,null,null,null,null,null,null,null,null,null,null,null,"Atom Fiziğine Giriş ve Radyoaktivite",1,1,"–",1,1]
[null,null,null,null,null,null,null,null,null,null,null,null,null,null,null,null,null,"Modern Fizik",2,1,"—",1,1]
[null,null,"TYT Kimya En Çok Çıkan Konular",null,null,null,null,null,null,null,null,null,null,null,null,null,null,"Modern Fiziğin Teknolojideki Uygulamaları",1,1,"–",1,1]
[null,null,"SORU DAĞILIMI",2022,2021,2020,2019,2018,2017,2016,2015,2014,2013,2012,2011,null,null,"SORU SAYISI",14," 14",14,14,14]
[null,null,"Kimya Bilimi",1,1,1,"–",2,3,3,3,4,4,2,1]
[null,null,"Atomun Yapısı","–","–",1,1,"–",2,"–","–",2,1,1,2,null,null,"YKS AYT Kimya Soru Dağılımı"]
[null,null,"Periyodik Tablo",1,1,"–",1,1,1,2,1,"–",1,"–",4,null,null,"SORU DAĞILIMI",2022,2021,2020,2019,2018,2017,2016,2015,2013,2012]
[null,null,"Maddenin Halleri",1,1,1,1,1,2,1,1,1,1,2,3,null,null,"Kimya Bilimi","–","–","–","–","–",4,2,"–","–",1]
[null,null,"Kimyasal Türler Arası Etkileşimler",1,1,1,1,1,1,3,5,1,3,2,"–",null,null,"Atom ve Yapısı","–","–","–",1,"–",1,2,2,2,4]
[null,null,"Kimyasal Hesaplamalar","–",1,1,"–","–","–",1,"–",2,"–",2,2,null,null,"Periyodik Sistem","–",1,"–","–",1,1,2,2,6,2]
[null,null,"Kimyanın Temel Kanunları",1,"–","–","–",1,1,"–","–","–","–",1,"–",null,null,"Kimyasal Türler Arası Etkileşim","–","–","–","–","–",2,3,2,"–","–"]
[null,null,"Asit, Baz ve Tuz",1,1,1,1,"–","–","–","–","–","–","–","–",null,null,"Kimyasal Hesaplamalar","–","–","–",1,1,2,1,1,2,2]
[null,null,"Karışımlar",1,1,1,1,"–",1,2,2,2,2,2,1,null,null,"Modern Atom Teorisi",1,"–",2,"–","–","–","–","–","–","–"]
[null,null,"Kimya Her Yerde","–","–","–",1,1,2,1,1,1,1,1,"–",null,null,"Gazlar",1,1,1,1,1,2,1,1,1,1]
[null,null,"SORU SAYISI",7,7,7,7,7,13,13,13,13,13,13,13,null,null,"Sıvı Çözeltiler",2,2,2,1,1,3,1,1,1,1]
[null,null,null,null,null,null,null,null,null,null,null,null,null,null,null,null,null,"Kimyasal Tepkimelerde Enerji",1,1,1,1,1,3,2,3,2,2]
[null,null,null,null,null,null,null,null,null,null,null,null,null,null,null,null,null,"Kimyasal Tepkimelerde Hız",1,1,1,1,1,"–","–",1,1,1]
[null,null,"TYT Biyoloji En Çok Çıkan Konular",null,null,null,null,null,null,null,null,null,null,null,null,null,null,"Kimyasal Tepkimelerde Denge",1,1,1,"–","–",1,2,1,1,2]
[null,null,"SORU DAĞILIMI",2022,2021,2020,2019,2018,2017,2016,2015,2014,2013,2012,2011,null,null,"Asit-Baz Dengesi","–",1,1,2,1,1,"–",1,1,2]
[null,null,"Canlıların Ortak Özellikleri",1,"–","–",1,"–","–",1,"–",1,"–","–","–",null,null,"Çözünürlük Dengesi",1,"–","–","–","–",1,1,1,1,1]
[null,null,"Canlıların Temel Bileşenleri","–",1,1,1,1,3,3,1,2,1,1,1,null,null,"Kimya ve Elektrik",2,2,3,2,2,3,2,2,2,1]
[null,null,"Hücre ve Organelleri",1,1,1,"–","–",2,1,2,"–",2,1,2,null,null,"Organik Kimya",3,3,1,3,4,6,11,12,10,10]
[null,null,"Madde Geçişleri","–","–","–","–",1,2,1,1,1,"–",1,1,null,null,"SORU SAYISI",13,13,13,13,13,30,30,30,30,30]
[null,null,"Canlıların Sınıflandırılması",1,1,1,1,1,1,1,2,1,"–",1,"–"]
[null,null,"Hücre Bölünmeleri ve Üreme",1,1,"–",1,1,"–",1,1,1,1,"–",1,null,null,"YKS AYT Biyoloji Soru Dağılımı"]
[null,null,"Kalıtım",1,1,2,1,"–",2,2,1,2,1,2,2,null,null,"SORU DAĞILIMI",2022,2021,2020,2019,2018]
[null,null,"Ekosistem Ekoloji",1,1,1,1,1,"–",1,2,2,2,1,1,null,null,"Sinir Sistemi","–","–","–","–",1]
[null,null,"Bitkiler Biyolojisi","–","–","–","–",1,1,1,2,1,1,2,3,null,null,"Endokrin Sistem","–",1,1,1,"–"]
[null,null,"SORU SAYISI",6,6,6,6,6,13,13,13,13,13,13,13,null,null,"Duyu Organları",1,"–",1,"–","–"]
[null,null,null,null,null,null,null,null,null,null,null,null,null,null,null,null,null,"Destek ve Hareket Sistemi",1,1,"–","–",1]
[null,null,null,null,null,null,null,null,null,null,null,null,null,null,null,null,null,"Sindirim Sistemi","–","–",1,1,"–"]
[null,null,"TYT Tarih En Çok Çıkan Konular",null,null,null,null,null,null,null,null,null,null,null,null,null,null,"Dolaşım ve Bağışıklık Sistemi",1,1,1,1,1]
[null,null,"SORU DAĞILIMI",2022,2021,2020,2019,2018,2017,2016,2015,2014,2013,2012,2011,null,null,"Solunum Sistemi",1,1,1,1,"–"]
[null,null,"Tarih ve Zaman","–","–","–","–","–",1,1,1,1,1,1,1,null,null,"Üriner Sistem","–","–",1,1,1]
[null,null,"İlk ve Orta Çağlarda Türk Dünyası",1,1,1,1,1,1,1,1,1,1,1,1,null,null,"Üreme Sistemi ve Embriyonik Gelişim",1,"–","–","–","–"]
[null,null,"İslam Medeniyetinin Doğuşu","–","–","–","–","–",1,1,1,1,1,1,1,null,null,"Komünite ve Popülasyon Ekolojisi",2,2,2,"–",2]
[null,null,"Türklerin İslamiyet’i Kabulü ve İlk Türk İslam Devletleri",1,1,1,1,1,1,1,1,1,1,1,"–",null,null,"Nükleik Asitler","–","–",1,1,"–"]
[null,null,"Beylikten Devlete Osmanlı",1,"–","–",1,1,2,1,1,1,"–",1,1,null,null,"Genetik Şifre ve Protein Sentezi",2,2,2,1,3]
[null,null,"Dünya Gücü Osmanlı","–","–","–","–","–",1,1,1,1,1,1,1,null,null,"Canlılık ve Enerji",1,"–","–","–","–"]
[null,null,"Değişim Çağında Avrupa ve Osmanlı","–","–","–","–","–","–",1,"–","–",1,"–","–",null,null,"Fotosentez ve Kemosentez",1,1,1,1,1]
[null,null,"Uluslararası İlişkilerde Denge Stratejisi (1774-1914)","–",1,1,"–",1,1,1,2,2,1,1,2,null,null,"Hücresel Solunum","–",1,1,1,"–"]
[null,null,"XX. Yüzyıl Başlarında Osmanlı Devleti ve Dünya","–","–",1,"–",1,2,2,2,1,1,1,3,null,null,"Bitki Biyolojisi",2,2,"–",3,2]
[null,null,"Milli Mücadele",1,1,1,1,"–",1,2,"–",2,3,4,2,null,null,"Canlılar ve Çevre","–",1,"–",1,1]
[null,null,"Atatürkçülük ve Türk İnkılabı",1,1,"–",1,"–",4,3,5,4,4,5,5,null,null,"SORU SAYISI",13,13,13,13,13]
[null,null,"SORU SAYISI",5,5,5,5,5,15,15,15,15,15,17,17]
[null,null,null,null,null,null,null,null,null,null,null,null,null,null,null,null,null,"YKS AYT Edebiyat Soru Dağılımı"]
[null,null,null,null,null,null,null,null,null,null,null,null,null,null,null,null,null,"SORU DAĞILIMI",2022,2021,2020,2019,2018,2017,2016,2015,2013,2012,2011]
[null,null,"TYT Coğrafya En Çok Çıkan Konular",null,null,null,null,null,null,null,null,null,null,null,null,null,null,"Anlam Bilgisi",6,3,6,4,4,20,20,18,15,17,16]
[null,null,"SORU DAĞILIMI",2022,2021,2020,2019,2018,2017,2016,2015,2014,null,null,null,null,null,"Dil Bilgisi","–","–","–","–","–",4,5,5,6,6,5]
[null,null,"Doğa ve İnsan","–","–","–",1,1,1,"–",1,1,null,null,null,null,null,"Metinlerin Sınıflandırılması","–","–","–","–","–","–",2,2,5,5,8]
[null,null,"Dünya’nın Şekli ve Hareketleri","–",1,"–","–","–","–","–",1,"–",null,null,null,null,null,"Şiir Bilgisi",3,2,3,3,3,3,2,2,"–","–","–"]
[null,null,"Coğrafi Konum","–","–","–","–","–","–",1,1,"–",null,null,null,null,null,"Söz Sanatları",2,2,1,1,1,2,1,2,1,1,"–"]
[null,null,"Harita Bilgisi",1,"–",1,"–",1,1,1,"–","–",null,null,null,null,null,"Edebi Akımlar",1,1,1,1,1,1,1,1,1,"–",2]
[null,null,"Atmosfer ve Sıcaklık","–","–",1,"–","–","–","–","–","–",null,null,null,null,null,"İslamiyet Öncesi Türk Edebiyatı ve Geçiş Dönemi",1,1,1,1,"–",1,1,2,"–",3,1]
[null,null,"İklim Bilgisi",1,1,"–",1,1,3,2,1,4,null,null,null,null,null,"Halk Edebiyatı",1,2,2,2,1,3,3,"–",2,2,1]
[null,null,"iç ve Dış Kuvvetler",1,1,1,"–","–",1,1,2,3,null,null,null,null,null,"Divan Edebiyatı",4,6,4,3,5,4,4,5,6,3,4]
[null,null,"Nüfus ve Yerleşme","–",1,1,2,1,2,3,2,"–",null,null,null,null,null,"Tanzimat Edebiyatı",1,2,1,2,3,1,3,2,3,2,5]
[null,null,"Türkiye’nin Yer Şekilleri","–","–","–","–","–",1,"–","–","–",null,null,null,null,null,"Servet-İ Fünun Ve Fecr-İ Ati Edebiyatı",1,1,2,1,1,3,2,4,3,2,2]
[null,null,"Ekonomik Faaliyetler",1,"–","–","–","–",1,"–",1,1,null,null,null,null,null,"Milli Edebiyat",1,1,1,1,1,3,1,1,7,1,4]
[null,null,"Bölgeler","–",1,1,"–","–",1,2,1,2,null,null,null,null,null,"Cumhuriyet Dönemi Edebiyatı",3,3,2,5,4,11,11,12,7,14,8]
[null,null,"Uluslararası Ulaşım Hatları","–","–","–","–","–","–",1,1,1,null,null,null,null,null,"SORU SAYISI",24,24,24,24,24,56,56,56,56,56,56]
[null,null,"Doğal Afetler",1,"–","–",1,1,1,1,1,"–"]
[null,null,"SORU SAYISI",5,5,5,5," 5",12,12,12,12]
[]
[]
[null,null,"TYT Felsefe En Çok Çıkan Konular"]
[null,null,"SORU DAĞILIMI",2022,2021,2020,2019,2018,2017,2016,2015,2014,2013,2012,2011]
[null,null,"Felsefenin Alanı",1,2,"–",1,"–",1,"–",1,1,2,2,2]
[null,null,"Bilgi Felsefesi",2,"–",1,1,2,2,2,1,2,1,2,1]
[null,null,"Bilim Felsefesi","–","–","–",1,"–",1,"–",1,"–",1,1,1]
[null,null,"Varlık Felsefesi",1,1,1,"–",1,1,3,1,1,1,1,2]
[null,null,"Ahlak Felsefesi",1,"–",2,1,1,1,1,1,1,1,1,1]
[null,null,"Siyaset Felsefesi","–",1,"–",1,"–","–",1,1,1,1,1,1]
[null,null,"Din Felsefesi","–","–",1,"–",1,1,1,1,1,"–","–","–"]
[null,null,"Sanat Felsefesi","–",1,"–","–","–",1,"–",1,1,1,1,1]
[null,null,"SORU SAYISI",5,5,5,5,5,8,8,8,8,8,9,9]
[]
[]
[null,null,"TYT Din Kültürü En Çok Çıkan Konular"]
[null,null,"SORU DAĞILIMI",2022,2021,2020,2019,2018,2017,2016]
[null,null,"Bilgi ve İnanç",1,1,1,2,1,"–",2]
[null,null,"Din ve İslam",1,"–","–","–","–","–","–"]
[null,null,"İslam ve İbadet",1,1,"–",1,1,1,1]
[null,null,"Ahlak ve Değerler","–",1,1,1,1,1,"–"]
[null,null,"Allah İnsan İlişkisi",1,"–","–","–","–","–","–"]
[null,null,"Hz. Muhammed (S.A.V)","–","–",1,1,1,1,1]
[null,null,"Vahiy ve Akıl","–",1,2,"–",1,1,"–"]
[null,null,"İslam Düşüncesinde Yorumlar, Mezhepler","–","–","–","–","–",1,"–"]
[null,null,"Din, Kültür ve Medeniyet",1,1,"–","–","–","–",1]
[null,null,"SORU SAYISI",5,5,5,5,5,5,5]

{"sheet":"AYT Soru","index":1,"n_rows":135,"n_cols":14,"rows_kept":135,"cut":false,"hidden":true,"merged":[[98,2,98,13],[119,2,119,13],[2,2,2,13],[3,2,3,13],[6,2,6,13],[36,2,36,13],[53,2,53,13],[79,2,79,13]]}
[]
[]
[null,null,"Fetullah Bayır Fen Lisesi"]
[null,null,"AYT Çıkan SORU SAYILARI"]
[]
[]
[null,null,"YKS AYT Matematik Soru Dağılımı"]
[null,null,"SORU DAĞILIMI",2022,2021,2020,2019,2018,2017,2016,2015,2013,2012]
[null,null,"Temel Kavramlar",2,3,2,2,1,3,3,6,3,"–"]
[null,null,"Sayı Basamakları","–","–",3,"–","–",1,"–","–","–",1]
[null,null,"Bölme ve Bölünebilme","–","–","–",1,"–",1,1,"–","–",1]
[null,null,"EBOB – EKOK",1,1,"–","–","–",1,1,1,1,1]
[null,null,"Rasyonel Sayılar","–","–","–","–","–",1,1,1,"–","–"]
[null,null,"Basit Eşitsizlikler","–",1,1,1,"–",2,1,null,1,1]
[null,null,"Mutlak Değer","–","–",1,1,"–",1,1,null,"–","–"]
[null,null,"Üslü Sayılar","–",1,1,"–","–",1,2,1,2,"–"]
[null,null,"Köklü Sayılar","–","–","–","–","–",2,1,1,1,2]
[null,null,"Çarpanlara Ayırma",1,"–","–","–","–",1,1,1,2,2]
[null,null,"Oran Orantı","–","–","–","–","–","–",1,1,"–","–"]
[null,null,"Kümeler",1,1,2,1,"–",2,2,2,1,1]
[null,null,"Mantık",1,1,"–",1,4,1,1,"–",1,3]
[null,null,"Fonksiyonlar",2,2,2,2,2,2,2,"–",3,2]
[null,null,"Polinomlar",1,1,2,2,1,3,1,2,2,2]
[null,null,"2.Dereceden Denklemler ve Eşitsizlikler",2,1,1,"–",1,1,"–",1,1,"–"]
[null,null,"Parabol","–",1,1,1,1,"–",1,"–",1,1]
[null,null,"Permütasyon-Kombinasyon-Olasılık – Binom",3,2,3,2,2,2,3,2,2,2]
[null,null,"Trigonometri",4,5,4,3,3,2,4,2,3,4]
[null,null,"Karmaşık Sayılar","–","–",2,1,1,2,3,3,3,3]
[null,null,"Logaritma",2,1,3,3,2,3,1,2,3,2]
[null,null,"Diziler",1,1,2,1,1,2,2,2,2,2]
[null,null,"Limit",2,2,"–",2,2,2,2,1,1,4]
[null,null,"Türev",4,3,"–",4,4,5,5,7,6,6]
[null,null,"İntegral",4,4,"–",4,4,5,6,7,7,4]
[null,null,"SORU SAYISI",31,31,30,32,29,50,50,50,50,50]
[]
[]
[null,null,"YKS AYT Geometri Soru Dağılımı"]
[null,null,"SORU DAĞILIMI",2022,2021,2020,2019,2018,2017,2016,2015,2013,2012]
[null,null,"Doğruda ve Üçgende Açı",1,"–",1,"–",1,2,2,1,"–",1]
[null,null,"Özel Üçgenler","–","–",2,"–",2,2,6,"–",1,1]
[null,null,"Açıortay – Kenarortay","–","–","–","–","–","–","–","–",1,1]
[null,null,"Üçgende Alan Benzerlik","–","–","–","–","–",3,1,2,1,"–"]
[null,null,"Açı Kenar Bağıntıları","–","–","–",1,"–","–","–","–",1,"–"]
[null,null,"Çokgenler","–","–",1,2,1,"–",1,3,1,2]
[null,null,"Özel Dörtgenler","–","–","–","–",1,4,6,5,3,5]
[null,null,"Çember ve Daire",2,3,2,2,1,3,3,5,8,6]
[null,null,"Noktanın Analitiği",1,2,1,"–","–","–",1,2,2,1]
[null,null,"Doğrunun Analitiği",1,2,1,1,2,2,4,1,3,3]
[null,null,"Dönüşüm Geometrisi",1,"–",1,1,1,"–","–","–",1,1]
[null,null,"Katı Cisimler",2,1,1,1,1,2,2,4,4,4]
[null,null,"Çemberin Analitiği",1,1,"–","–",1,1,2,1,"–",1]
[null,null,"TOPLAM",9,9,10,8,11,30,30,30,30,30]
[]
[null,null,"YKS AYT Fizik Soru Dağılımı"]
[null,null,"SORU DAĞILIMI",2022,2021,2020,2019,2018]
[null,null,"Vektörler",1,"–","–","–","–"]
[null,null,"Bağıl Hareket","–","–",1,1,"–"]
[null,null,"Newton’un Hareket Yasaları",1,"–",1,"–",1]
[null,null,"Bir Boyutta Sabit İvmeli Hareket","–","–","–","–","–"]
[null,null,"Atışlar","–",1,1,1,1]
[null,null,"İş, Güç ve Enerji II","–",1,1,"–","–"]
[null,null,"İtme ve Momentum",1,"–",1,1,1]
[null,null,"Kuvvet, Tork ve Denge","–",1,1,1,1]
[null,null,"Kütle Merkezi","–","–","–","–","–"]
[null,null,"Basit Makineler",1,"–","–","–","–"]
[null,null,"Elektrik Alan ve Potansiyel","–",2,1,1,1]
[null,null,"Paralel Levhalar ve Sığa","–","–","–","–","–"]
[null,null,"Manyetik Alan ve Manyetik Kuvvet",1,1,"–","–","–"]
[null,null,"İndüksiyon, Alternatif Akım ve Transformatörler",1,1,2,2,2]
[null,null,"Çembersel Hareket",1,1,2,1,1]
[null,null,"Dönme, Yuvarlanma ve Açısal Momentum",1,"–",1,1,"–"]
[null,null,"Kütle Çekim ve Kepler Yasaları","–",1,"–","–",1]
[null,null,"Basit Harmonik Hareket",1,1,1,1,1]
[null,null,"Dalga Mekaniği",1,1,1,1,1]
[null,null,"Atom Fiziğine Giriş ve Radyoaktivite",1,1,"–",1,1]
[null,null,"Modern Fizik",2,1,"—",1,1]
[null,null,"Modern Fiziğin Teknolojideki Uygulamaları",1,1,"–",1,1]
[null,null,"SORU SAYISI",14," 14",14,14,14]
[]
[null,null,"YKS AYT Kimya Soru Dağılımı"]
[null,null,"SORU DAĞILIMI",2022,2021,2020,2019,2018,2017,2016,2015,2013,2012]
[null,null,"Kimya Bilimi","–","–","–","–","–",4,2,"–","–",1]
[null,null,"Atom ve Yapısı","–","–","–",1,"–",1,2,2,2,4]
[null,null,"Periyodik Sistem","–",1,"–","–",1,1,2,2,6,2]
[null,null,"Kimyasal Türler Arası Etkileşim","–","–","–","–","–",2,3,2,"–","–"]
[null,null,"Kimyasal Hesaplamalar","–","–","–",1,1,2,1,1,2,2]
[null,null,"Modern Atom Teorisi",1,"–",2,"–","–","–","–","–","–","–"]
[null,null,"Gazlar",1,1,1,1,1,2,1,1,1,1]
[null,null,"Sıvı Çözeltiler",2,2,2,1,1,3,1,1,1,1]
[null,null,"Kimyasal Tepkimelerde Enerji",1,1,1,1,1,3,2,3,2,2]
[null,null,"Kimyasal Tepkimelerde Hız",1,1,1,1,1,"–","–",1,1,1]
[null,null,"Kimyasal Tepkimelerde Denge",1,1,1,"–","–",1,2,1,1,2]
[null,null,"Asit-Baz Dengesi","–",1,1,2,1,1,"–",1,1,2]
[null,null,"Çözünürlük Dengesi",1,"–","–","–","–",1,1,1,1,1]
[null,null,"Kimya ve Elektrik",2,2,3,2,2,3,2,2,2,1]
[null,null,"Organik Kimya",3,3,1,3,4,6,11,12,10,10]
[null,null,"SORU SAYISI",13,13,13,13,13,30,30,30,30,30]
[]
[null,null,"YKS AYT Biyoloji Soru Dağılımı"]
[null,null,"SORU DAĞILIMI",2022,2021,2020,2019,2018]
[null,null,"Sinir Sistemi","–","–","–","–",1]
[null,null,"Endokrin Sistem","–",1,1,1,"–"]
[null,null,"Duyu Organları",1,"–",1,"–","–"]
[null,null,"Destek ve Hareket Sistemi",1,1,"–","–",1]
[null,null,"Sindirim Sistemi","–","–",1,1,"–"]
[null,null,"Dolaşım ve Bağışıklık Sistemi",1,1,1,1,1]
[null,null,"Solunum Sistemi",1,1,1,1,"–"]
[null,null,"Üriner Sistem","–","–",1,1,1]
[null,null,"Üreme Sistemi ve Embriyonik Gelişim",1,"–","–","–","–"]
[null,null,"Komünite ve Popülasyon Ekolojisi",2,2,2,"–",2]
[null,null,"Nükleik Asitler","–","–",1,1,"–"]
[null,null,"Genetik Şifre ve Protein Sentezi",2,2,2,1,3]
[null,null,"Canlılık ve Enerji",1,"–","–","–","–"]
[null,null,"Fotosentez ve Kemosentez",1,1,1,1,1]
[null,null,"Hücresel Solunum","–",1,1,1,"–"]
[null,null,"Bitki Biyolojisi",2,2,"–",3,2]
[null,null,"Canlılar ve Çevre","–",1,"–",1,1]
[null,null,"SORU SAYISI",13,13,13,13,13]
[]
[null,null,"YKS AYT Edebiyat Soru Dağılımı"]
[null,null,"SORU DAĞILIMI",2022,2021,2020,2019,2018,2017,2016,2015,2013,2012,2011]
[null,null,"Anlam Bilgisi",6,3,6,4,4,20,20,18,15,17,16]
[null,null,"Dil Bilgisi","–","–","–","–","–",4,5,5,6,6,5]
[null,null,"Metinlerin Sınıflandırılması","–","–","–","–","–","–",2,2,5,5,8]
[null,null,"Şiir Bilgisi",3,2,3,3,3,3,2,2,"–","–","–"]
[null,null,"Söz Sanatları",2,2,1,1,1,2,1,2,1,1,"–"]
[null,null,"Edebi Akımlar",1,1,1,1,1,1,1,1,1,"–",2]
[null,null,"İslamiyet Öncesi Türk Edebiyatı ve Geçiş Dönemi",1,1,1,1,"–",1,1,2,"–",3,1]
[null,null,"Halk Edebiyatı",1,2,2,2,1,3,3,"–",2,2,1]
[null,null,"Divan Edebiyatı",4,6,4,3,5,4,4,5,6,3,4]
[null,null,"Tanzimat Edebiyatı",1,2,1,2,3,1,3,2,3,2,5]
[null,null,"Servet-İ Fünun Ve Fecr-İ Ati Edebiyatı",1,1,2,1,1,3,2,4,3,2,2]
[null,null,"Milli Edebiyat",1,1,1,1,1,3,1,1,7,1,4]
[null,null,"Cumhuriyet Dönemi Edebiyatı",3,3,2,5,4,11,11,12,7,14,8]
[null,null,"SORU SAYISI",24,24,24,24,24,56,56,56,56,56,56]

{"sheet":"AYT Konu","index":2,"n_rows":36,"n_cols":18,"rows_kept":36,"cut":false,"hidden":true,"merged":[[1,1,1,17],[2,1,2,17],[3,1,3,17],[4,1,4,2],[4,4,4,5],[4,7,4,8],[4,10,4,11],[4,13,4,14],[4,16,4,17]]}
[]
[null,"Fetullah Bayır Fen Lisesi"]
[null,"2022-2023 (AYT KONULARI)"]
[]
[null,"AYT Sayısal ",null,null,"AYT MATEMATİK",null,null,"AYT GEOMETRİ",null,null,"AYT FİZİK",null,null,"AYT KİMYA",null,null,"AYT BİYOLOJİ"]
[null,"Fen Bilimleri",40,null,1,"Temel Kavramlar",null,1,"Doğruda ve Üçgende Açılar",null,1,"Vektörler",null,1,"Modern Atom Teorisi",null,1,"Sinir Sistemi"]
[null,"Fizik",14,null,2,"Sayı Basamakları",null,2,"Dik ve Özel Üçgenler",null,2,"Kuvvet, Tork ve Denge",null,2,"Gazlar",null,2,"Endokrin Sistem"]
[null,"Kimya",13,null,3,"Bölme ve Bölünebilme",null,3,"Dik Üçgende Trigonemetrik Bağıntılar",null,3,"Kütle Merkezi",null,3,"Sıvı Çözeltiler ve Çözünürlük",null,3,"Duyu Organları"]
[null,"Biyoloji",13,null,4,"EBOB – EKOK",null,4,"İkizkenar ve Eşkenar Üçgen",null,4,"Basit Makineler",null,4,"Kimyasal Tepkimelerde Enerji",null,4,"Destek ve Hareket Sistemi"]
[null,"Matematik",40,null,5,"Rasyonel Sayılar",null,5,"Üçgende Alanlar",null,5,"Hareket",null,5,"Tepkimelerde Hız ve Denge",null,5,"Sindirim Sistemi"]
[null,"Toplam",80,null,6,"Basit Eşitsizlikler",null,6,"Üçgende Açıortay Bağıntıları",null,6,"Newton’un Hareket Yasaları",null,6,"Kimya ve Elektrik",null,6,"Dolaşım ve Bağışıklık Sistemi"]
[null,null,null,null,7,"Mutlak Değer",null,7,"Üçgende Kenarortay Bağıntıları",null,7,"İş, Güç ve Enerji II",null,7,"Karbon Kimyası",null,7,"Solunum Sistemi"]
[null,null,null,null,8,"Üslü Sayılar",null,8,"Üçgende Eşlik ve Benzerlik",null,8,"Atışlar",null,8,"Organik Kimya",null,8,"Üriner Sistem"]
[null,null,null,null,9,"Köklü Sayılar",null,9,"Üçgende Açı-Kenar Bağıntıları",null,9,"İtme ve Momentum",null,9,"Enerji Kaynakları ve Bilimsel Gelişmeler",null,9,"Üreme Sistemi ve Embriyonik Gelişim"]
[null,null,null,null,10,"Çarpanlara Ayırma",null,10,"Çokgenler",null,10,"Elektrik Alan ve Potansiyel",null,null,null,null,10,"Komünite ve Popülasyon Ekolojisi"]
[null,null,null,null,11,"Oran Orantı",null,11,"Dörtgenler",null,11,"Paralel Levhalar ve Sığa",null,null,null,null,11,"Nükleik Asitler"]
[null,null,null,null,12,"Denklem Çözme",null,12,"Yamuk",null,12,"Manyetik Alan ve Manyetik Kuvvet",null,null,null,null,12,"Genetik Şifre ve Protein Sentezi"]
[null,null,null,null,13,"Problemler",null,13,"Paralelkenar",null,13,"İndüksiyon, Alternatif Akım ve Transformatörler",null,null,null,null,13,"Canlılık ve Enerji"]
[null,null,null,null,14,"Kümeler",null,14,"Eşkenar Dörtgen – Deltoid",null,14,"Çembersel Hareket",null,null,null,null,14,"Fotosentez ve Kemosentez"]
[null,null,null,null,15,"Kartezyen Çarpım",null,15,"Dikdörtgen",null,15,"Kütle Çekim ve Kepler Yasaları",null,null,null,null,15,"Hücresel Solunum"]
[null,null,null,null,16,"Mantık",null,16,"Çemberde Açılar",null,16,"Basit Harmonik Hareket",null,null,null,null,16,"Bitki Biyolojisi"]
[null,null,null,null,17,"Fonskiyonlar",null,17,"Çemberde Uzunluk",null,17,"Dalga Mekaniği ve Elektromanyetik Dalgalar",null,null,null,null,17,"Canlılar ve Çevre"]
[null,null,null,null,18,"Polinomlar",null,18,"Daire",null,18,"Atom Modelleri"]
[null,null,null,null,19,"2.Dereceden Denklemler",null,19,"Prizmalar",null,19,"Büyük Patlama ve Radyoaktivite"]
[null,null,null,null,20,"Permütasyon ve Kombinasyon",null,20,"Piramitler",null,20,"Modern Fizik"]
[null,null,null,null,21,"Binom ve Olasılık",null,21,"Küre",null,21,"Modern Fiziğin Teknolojideki Uygulamaları"]
[null,null,null,null,22,"İstatistik",null,22,"Koordinat Düzlemi ve Noktanın Analitiği"]
[null,null,null,null,23,"Karmaşık Sayılar",null,23,"Doğrunun Analitiği"]
[null,null,null,null,24,"2.Dereceden Eşitsizlikler",null,24,"Tekrar Eden, Dönen ve Yansıyan Şekiller"]
[null,null,null,null,25,"Parabol",null,25,"Dönüşümlerle Geometri"]
[null,null,null,null,26,"Trigonometri",null,26,"Trigonometri"]
[null,null,null,null,27,"Logaritma",null,27,"Çemberin Analitiği"]
[null,null,null,null,28,"Diziler"]
[null,null,null,null,29,"Limit"]
[null,null,null,null,30,"Türev"]
[null,null,null,null,31,"İntegral"]

{"sheet":"TYT+AYT Konu","index":3,"n_rows":71,"n_cols":18,"rows_kept":71,"cut":false,"hidden":true,"merged":[[36,1,36,17],[37,1,37,17],[38,1,38,17],[39,1,39,2],[39,4,39,5],[39,7,39,8],[39,10,39,11],[39,13,39,14],[39,16,39,17],[13,16,13,17],[20,1,20,2],[20,13,20,14],[23,16,23,17],[0,1,0,17],[1,1,1,17],[2,1,2,2],[2,4,2,5],[2,7,2,8],[2,10,2,11],[2,13,2,14],[2,16,2,17]]}
[null,"Fetullah Bayır Fen Lisesi"]
[null,"2022-2023   (TYT KONULARI)  .. AYT KONULARI (Aşağıda…)"]
[null,"TYT TÜRKÇE",null,null," TYT MATEMATİK",null,null," TYT GEOMETRİ",null,null," TYT TARİH",null,null," TYT COĞRAFYA",null,null," TYT FİZİK"]
[null,1,"Sözcükte Anlam",null,1,"Temel Kavramlar",null,1,"Doğruda ve Üçgende Açılar",null,1,"Tarih Bilimine Giriş",null,1,"İnsan ve Doğa",null,1,"Fizik Bilimine Giriş"]
[null,2,"Cümlede Anlam",null,2,"Sayı Basamakları",null,2,"Üçgende Açı-Kenar Bağıntıları",null,2,"Uygarlığın Doğuşu ve İlk Uygarlıklar",null,2,"Dünya’nın Şekli ve Hareketleri",null,2,"Madde ve Özellikleri"]
[null,3,"Paragrafta Anlam",null,3,"Bölme ve Bölünebilme",null,3,"Üçgende  Benzerlik",null,3,"İlk Türk Devletleri",null,3,"Coğrafi Konum",null,3,"Kuvvet ve Hareket"]
[null,4,"Anlatım Biçimleri",null,4,"EBOB-EKOK",null,4,"üçgende Açıortay-Kenarortay",null,4,"İslam Tarihi ve Uygarlığı",null,4,"Harita Bilgisi",null,4,"İş, Güç ve Enerji"]
[null,5,"Ses Bilgisi",null,5,"Rasyonel Sayılar-Ondalık Sayılar",null,5,"Dik Üçgen",null,5,"Türk-İslam Devletleri",null,5,"Atmosfer ve Sıcaklık",null,5,"Isı, Sıcaklık ve Genleşme"]
[null,6,"Yazım Kuralları",null,6,"Basit Eşitsizlikler",null,6,"İkizkenar Üçgen",null,6,"Türkler’in İslamiyeti Kabulü",null,6,"İklimler",null,6,"Basınç"]
[null,7,"Noktalama İşaretleri",null,7,"Mutlak Değer",null,7,"Eşkenar Üçgen",null,7,"Türkiye Tarihi",null,7,"Basınç ve Rüzgarlar",null,7,"Kaldırma Kuvveti"]
[null,8,"Sözcükte Yapı",null,8,"Üslü Sayılar",null,8,"Üçgende alan",null,8,"Beylikten Devlete (1300-1453)",null,8,"Nem, Yağış ve Buharlaşma",null,8,"Elektrik ve Manyetizma"]
[null,9,"Sözcük Türleri",null,9,"Köklü Sayılar",null,9,"Çokgenler",null,9,"Dünya Gücü: Osmanlı Devleti",null,9,"İç Kuvvetler / Dış Kuvvetler",null,9,"Dalgalar"]
[null,10,"Edat-Bağlaç-Ünlem",null,10,"Çarpanlara Ayırma",null,10,"Dörtgenler",null,10,"Osmanlı Duraklama Dönemi",null,10,"Su – Toprak ve Bitkiler",null,10,"Optik"]
[null,11,"Filler",null,11,"Oran Orantı",null,11,"Yamuk-Paralelkenar",null,11,"Gerileme Devri (1699 – 1792)",null,11,"Nüfus-Göç-Yerleşme",null," TYT KİMYA"]
[null,12,"Ek Fiil",null,12,"Denklem Çözme",null,12,"Eşkenar Dörtgen",null,12,"Arayış Yılları (17. Yüzyıl)",null,12,"Türkiye’nin Yer Şekilleri",null,1,"Kimya Bilimi"]
[null,13,"Filde Çatı",null,13,"Problemler",null,13,"Dikdörtgen",null,13,"Avrupa ve Osmanlı Devleti (18. Yüzyıl)",null,13,"Ekonomik Faaliyetler",null,2,"Atom ve Periyodik Sistem"]
[null,14,"Fiilimsi",null,14,"Kümeler-Karteszyen Çarpımı",null,14,"Kare",null,14,"En Uzun Yüzyıl (1800-1922)",null,14,"Bölgeler ve Ülkeler",null,3,"Kimyasal Türler Arası Etkileşimler"]
[null,15,"Cümlenin Öğeleri",null,15,"Fonksiyonlar",null,15,"Deltoid",null,15,"20.Yüzyıl Başlarında Osmanlı Devleti",null,15,"Uluslararası Ulaşım Hatları",null,4,"Maddenin Halleri"]
[null,16,"Cümle Türleri",null,16,"Permütasyon",null,16,"Çemberde Açı",null,16,"XIX. YY Osmanlı Devleti",null,16,"Çevre ve Toplum",null,5,"Doğa ve Kimya"]
[null,17,"Anlatım Bozuklukları",null,17,"Kombinasyon",null,17,"Çemberde Uzunluk",null,17,"1.Dünya Savaşı – Milli Mücadeleye Hazırlık D.",null,17,"Doğal Afetler",null,6,"Kimyanın Temel Kanunları ve"]
[null," TYT DİN KÜLTÜRÜ KONULARI",null,null,18,"Binom",null,18,"Dairenin Çevresi ve Alanı",null,18,"Kurtuluş Savaşında Cepheler",null," TYT FELSEFE KONULARI",null,null,7,"Kimsayal Hesaplamalar"]
[null,1,"insan ve Din (İnanç)",null,19,"Olasılık",null,19,"Doğrunun Analitik İncelenmesi",null,19,"Türk İnkılabı",null,1,"Felsefe’nin Alanı",null,8,"Asitler-Bazlar ve Tuzlar"]
[null,2,"İbadet",null,20,"İstatistik",null,20,"Çemberin Analitik İncelenmesi",null,20,"Atatürkçülük ve Atatürk İlkeleri",null,2,"Bilgi Felsefesi",null,9,"Kimya Her Yerde"]
[null,3,"Hz.Muhammed(sav)’in Hayatı",null,21,"2. Dereceden Denklemler",null,21,"Katı Cisimler ",null,21,"Türk Dış Politikası",null,3,"Bilim Felsefesi",null," TYT BİYOLOJİ"]
[null,4,"Vahiy ve Akıl",null,22,"Karmaşık Sayılar",null,null,null,null,null,null,null,4,"Varlık Felsefesi",null,1,"Canlıların Ortak Özellikleri"]
[null,5,"İslam Düşüncesi ve Yorumu",null,23,"Polinomlar",null,null,null,null,null,null,null,5,"Ahlak Felsefesi",null,2,"Canlıların Temel Bileşenleri"]
[null,6,"İslamda Değerler, Sanat ve Laiklik",null,24,"Mantık",null,null,null,null,null,null,null,6,"Siyaset Felsefesi",null,3,"Hücre ve Organelleri"]
[null,7,"Yaşayan Dinler",null,25,"Veri Analizi",null,null,null,null,null,null,null,7,"Sanat Felsefesi",null,4,"Hücre Zarından Madde Geçişi"]
[null,null,null,null,null,null,null,null,null,null,null,null,null,8,"Din Felsefesi",null,5,"Canlıların Sınıflandırılması"]
[null,null,null,null,null,null,null,null,null,null,null,null,null,null,null,null,6,"Mitoz ve Eşeysiz Üreme"]
[null,null,null,null,null,null,null,null,null,null,null,null,null,null,null,null,7,"Mayoz ve Eşeyli Üreme"]
[null,null,null,null,null,null,null,null,null,null,null,null,null,null,null,null,8,"Kalıtım"]
[null,null,null,null,null,null,null,null,null,null,null,null,null,null,null,null,9,"Ekosistem Ekolojisi"]
[null,null,null,null,null,null,null,null,null,null,null,null,null,null,null,null,10,"Güncel Çevre Sorunları"]
[]
[]
[null,"Fetullah Bayır Fen Lisesi"]
[null,"2022-2023 (AYT KONULARI)"]
[]
[null,"AYT Sayısal ",null,null,"AYT MATEMATİK",null,null,"AYT GEOMETRİ",null,null,"AYT FİZİK",null,null,"AYT KİMYA",null,null,"AYT BİYOLOJİ"]
[null,"FenBlm",40,null,1,"Temel Kavramlar",null,1,"Doğruda ve Üçgende Açılar",null,1,"Vektörler",null,1,"Modern Atom Teorisi",null,1,"Sinir Sistemi"]
[null,"Fizik",14,null,2,"Sayı Basamakları",null,2,"Dik ve Özel Üçgenler",null,2,"Kuvvet, Tork ve Denge",null,2,"Gazlar",null,2,"Endokrin Sistem"]
[null,"Kimya",13,null,3,"Bölme ve Bölünebilme",null,3,"Dik Üçgende Trigonemetrik Bağıntılar",null,3,"Kütle Merkezi",null,3,"Sıvı Çözeltiler ve Çözünürlük",null,3,"Duyu Organları"]
[null,"Biyoloji",13,null,4,"EBOB – EKOK",null,4,"İkizkenar ve Eşkenar Üçgen",null,4,"Basit Makineler",null,4,"Kimyasal Tepkimelerde Enerji",null,4,"Destek ve Hareket Sistemi"]
[null,"Mat.",40,null,5,"Rasyonel Sayılar",null,5,"Üçgende Alanlar",null,5,"Hareket",null,5,"Tepkimelerde Hız ve Denge",null,5,"Sindirim Sistemi"]
[null,"Toplam",80,null,6,"Basit Eşitsizlikler",null,6,"Üçgende Açıortay Bağıntıları",null,6,"Newton’un Hareket Yasaları",null,6,"Kimya ve Elektrik",null,6,"Dolaşım ve Bağışıklık Sistemi"]
[null,null,null,null,7,"Mutlak Değer",null,7,"Üçgende Kenarortay Bağıntıları",null,7,"İş, Güç ve Enerji II",null,7,"Karbon Kimyası",null,7,"Solunum Sistemi"]
[null,null,null,null,8,"Üslü Sayılar",null,8,"Üçgende Eşlik ve Benzerlik",null,8,"Atışlar",null,8,"Organik Kimya",null,8,"Üriner Sistem"]
[null,null,null,null,9,"Köklü Sayılar",null,9,"Üçgende Açı-Kenar Bağıntıları",null,9,"İtme ve Momentum",null,9,"Enerji Kaynakları ve Bilimsel Gelişmeler",null,9,"Üreme Sistemi ve Embriyonik Gelişim"]
[null,null,null,null,10,"Çarpanlara Ayırma",null,10,"Çokgenler",null,10,"Elektrik Alan ve Potansiyel",null,null,null,null,10,"Komünite ve Popülasyon Ekolojisi"]
[null,null,null,null,11,"Oran Orantı",null,11,"Dörtgenler",null,11,"Paralel Levhalar ve Sığa",null,null,null,null,11,"Nükleik Asitler"]
[null,null,null,null,12,"Denklem Çözme",null,12,"Yamuk",null,12,"Manyetik Alan ve Manyetik Kuvvet",null,null,null,null,12,"Genetik Şifre ve Protein Sentezi"]
[null,null,null,null,13,"Problemler",null,13,"Paralelkenar",null,13,"İndüksiyon, Alternatif Akım ve Transformatörler",null,null,null,null,13,"Canlılık ve Enerji"]
[null,null,null,null,14,"Kümeler",null,14,"Eşkenar Dörtgen – Deltoid",null,14,"Çembersel Hareket",null,null,null,null,14,"Fotosentez ve Kemosentez"]
[null,null,null,null,15,"Kartezyen Çarpım",null,15,"Dikdörtgen",null,15,"Kütle Çekim ve Kepler Yasaları",null,null,null,null,15,"Hücresel Solunum"]
[null,null,null,null,16,"Mantık",null,16,"Çemberde Açılar",null,16,"Basit Harmonik Hareket",null,null,null,null,16,"Bitki Biyolojisi"]
[null,null,null,null,17,"Fonskiyonlar",null,17,"Çemberde Uzunluk",null,17,"Dalga Mekaniği ve Elektromanyetik Dalgalar",null,null,null,null,17,"Canlılar ve Çevre"]
[null,null,null,null,18,"Polinomlar",null,18,"Daire",null,18,"Atom Modelleri"]
[null,null,null,null,19,"2.Dereceden Denklemler",null,19,"Prizmalar",null,19,"Büyük Patlama ve Radyoaktivite"]
[null,null,null,null,20,"Permütasyon ve Kombinasyon",null,20,"Piramitler",null,20,"Modern Fizik"]
[null,null,null,null,21,"Binom ve Olasılık",null,21,"Küre",null,21,"Modern Fiziğin Teknolojideki Uygulamaları"]
[null,null,null,null,22,"İstatistik",null,22,"Koordinat Düzlemi ve Noktanın Analitiği"]
[null,null,null,null,23,"Karmaşık Sayılar",null,23,"Doğrunun Analitiği"]
[null,null,null,null,24,"2.Dereceden Eşitsizlikler",null,24,"Tekrar Eden, Dönen ve Yansıyan Şekiller"]
[null,null,null,null,25,"Parabol",null,25,"Dönüşümlerle Geometri"]
[null,null,null,null,26,"Trigonometri",null,26,"Trigonometri"]
[null,null,null,null,27,"Logaritma",null,27,"Çemberin Analitiği"]
[null,null,null,null,28,"Diziler"]
[null,null,null,null,29,"Limit"]
[null,null,null,null,30,"Türev"]
[null,null,null,null,31,"İntegral"]

{"sheet":"TYT Çalışma P","index":4,"n_rows":158,"n_cols":8,"rows_kept":158,"cut":false,"hidden":true,"merged":[[101,2,101,3],[123,2,123,3],[141,2,141,3],[150,2,150,3],[3,2,3,3],[21,2,21,3],[47,2,47,3],[69,2,69,3],[80,2,80,3],[90,2,90,3]]}
[]
[]
[]
[null,null,"TYT TÜRKÇE",null,"Hafta","Başlangıç Tarihi","Gün","Bitiş Tarihiç Tarihi"]
[null,null,1,"Sözcükte Anlam",null,"2022-10-10",2,{"$f":"F5+G5","v":"2022-10-12"}]
[null,null,2,"Cümlede Anlam",null,"2022-10-17",2,{"$f":"F6+G6","v":"2022-10-19"}]
[null,null,3,"Paragrafta Anlam",null,null,5,"1900-01-05"]
[null,null,4,"Anlatım Biçimleri",null,null,6,"1900-01-06"]
[null,null,5,"Ses Bilgisi",null,null,7,"1900-01-07"]
[null,null,6,"Yazım Kuralları",null,null,null,"00:00:00"]
[null,null,7,"Noktalama İşaretleri",null,null,null,"00:00:00"]
[null,null,8,"Sözcükte Yapı",null,null,null,"00:00:00"]
[null,null,9,"Sözcük Türleri",null,null,null,"00:00:00"]
[null,null,10,"Edat-Bağlaç-Ünlem",null,null,null,"00:00:00"]
[null,null,11,"Filler",null,null,null,"00:00:00"]
[null,null,12,"Ek Fiil",null,null,null,"00:00:00"]
[null,null,13,"Filde Çatı",null,null,null,"00:00:00"]
[null,null,14,"Fiilimsi",null,"2022-10-10",null,"2022-10-10"]
[null,null,15,"Cümlenin Öğeleri",null,null,null,"00:00:00"]
[null,null,16,"Cümle Türleri",null,null,null,"00:00:00"]
[null,null,17,"Anlatım Bozuklukları",null,null,null,"00:00:00"]
[null,null," TYT MATEMATİK",null,null,null,null,"00:00:00"]
[null,null,1,"Temel Kavramlar",null,"2022-11-15",2,"2022-11-17"]
[null,null,2,"Sayı Basamakları",null,null,null,"00:00:00"]
[null,null,3,"Bölme ve Bölünebilme",null,null,null,"00:00:00"]
[null,null,4,"EBOB-EKOK",null,null,null,"00:00:00"]
[null,null,5,"Rasyonel Sayılar-Ondalık Sayılar",null,null,null,"00:00:00"]
[null,null,6,"Basit Eşitsizlikler",null,null,null,"00:00:00"]
[null,null,7,"Mutlak Değer",null,null,null,"00:00:00"]
[null,null,8,"Üslü Sayılar",null,null,null,"00:00:00"]
[null,null,9,"Köklü Sayılar",null,null,null,"00:00:00"]
[null,null,10,"Çarpanlara Ayırma",null,null,null,"00:00:00"]
[null,null,11,"Oran Orantı",null,"2022-12-12",null,"2022-12-12"]
[null,null,12,"Denklem Çözme",null,null,null,"00:00:00"]
[null,null,13,"Problemler",null,null,null,"00:00:00"]
[null,null,14,"Kümeler-Karteszyen Çarpımı",null,null,null,"00:00:00"]
[null,null,15,"Fonksiyonlar",null,null,null,"00:00:00"]
[null,null,16,"Permütasyon",null,null,null,"00:00:00"]
[null,null,17,"Kombinasyon",null,null,null,"00:00:00"]
[null,null,18,"Binom",null,null,null,"00:00:00"]
[null,null,19,"Olasılık",null,null,null,"00:00:00"]
[null,null,20,"İstatistik",null,null,null,"00:00:00"]
[null,null,21,"2. Dereceden Denklemler",null,null,null,"00:00:00"]
[null,null,22,"Karmaşık Sayılar",null,null,null,"00:00:00"]
[null,null,23,"Polinomlar",null,null,null,"00:00:00"]
[null,null,24,"Mantık",null,null,null,"00:00:00"]
[null,null,25,"Veri Analizi",null,null,null,"00:00:00"]
[null,null," TYT GEOMETRİ",null,null,null,null,"00:00:00"]
[null,null,1,"Doğruda ve Üçgende Açılar",null,null,null,"00:00:00"]
[null,null,2,"Üçgende Açı-Kenar Bağıntıları",null,null,null,"00:00:00"]
[null,null,3,"Üçgende  Benzerlik",null,null,null,"00:00:00"]
[null,null,4,"üçgende Açıortay-Kenarortay",null,null,null,"00:00:00"]
[null,null,5,"Dik Üçgen",null,null,null,"00:00:00"]
[null,null,6,"İkizkenar Üçgen",null,null,null,"00:00:00"]
[null,null,7,"Eşkenar Üçgen",null,null,null,"00:00:00"]
[null,null,8,"Üçgende alan",null,null,null,"00:00:00"]
[null,null,9,"Çokgenler",null,null,null,"00:00:00"]
[null,null,10,"Dörtgenler",null,null,null,"00:00:00"]
[null,null,11,"Yamuk-Paralelkenar",null,null,null,"00:00:00"]
[null,null,12,"Eşkenar Dörtgen",null,null,null,"00:00:00"]
[null,null,13,"Dikdörtgen",null,null,null,"00:00:00"]
[null,null,14,"Kare",null,null,null,"00:00:00"]
[null,null,15,"Deltoid",null,null,null,"00:00:00"]
[null,null,16,"Çemberde Açı",null,null,null,"00:00:00"]
[null,null,17,"Çemberde Uzunluk",null,null,null,"00:00:00"]
[null,null,18,"Dairenin Çevresi ve Alanı",null,null,null,"00:00:00"]
[null,null,19,"Doğrunun Analitik İncelenmesi",null,null,null,"00:00:00"]
[null,null,20,"Çemberin Analitik İncelenmesi",null,null,null,"00:00:00"]
[null,null,21,"Katı Cisimler ",null,null,null,"00:00:00"]
[null,null," TYT FİZİK",null,null,null,null,{"$f":"F70+G70","v":"00:00:00"}]
[null,null,1,"Fizik Bilimine Giriş",null,null,null,"00:00:00"]
[null,null,2,"Madde ve Özellikleri",null,null,null,"00:00:00"]
[null,null,3,"Kuvvet ve Hareket",null,null,null,"00:00:00"]
[null,null,4,"İş, Güç ve Enerji",null,null,null,"00:00:00"]
[null,null,5,"Isı, Sıcaklık ve Genleşme",null,null,null,"00:00:00"]
[null,null,6,"Basınç",null,null,null,"00:00:00"]
[null,null,7,"Kaldırma Kuvveti",null,null,null,"00:00:00"]
[null,null,8,"Elektrik ve Manyetizma",null,null,null,"00:00:00"]
[null,null,9,"Dalgalar",null,null,null,"00:00:00"]
[null,null,10,"Optik",null,null,null,"00:00:00"]
[null,null," TYT KİMYA",null,null,null,null,"00:00:00"]
[null,null,1,"Kimya Bilimi",null,null,null,"00:00:00"]
[null,null,2,"Atom ve Periyodik Sistem",null,null,null,"00:00:00"]
[null,null,3,"Kimyasal Türler Arası Etkileşimler",null,null,null,"00:00:00"]
[null,null,4,"Maddenin Halleri",null,null,null,"00:00:00"]
[null,null,5,"Doğa ve Kimya",null,null,null,"00:00:00"]
[null,null,6,"Kimyanın Temel Kanunları ve",null,null,null,"00:00:00"]
[null,null,7,"Kimsayal Hesaplamalar",null,null,null,"00:00:00"]
[null,null,8,"Asitler-Bazlar ve Tuzlar",null,null,null,"00:00:00"]
[null,null,9,"Kimya Her Yerde",null,null,null,"00:00:00"]
[null,null," TYT BİYOLOJİ",null,null,null,null,"00:00:00"]
[null,null,1,"Canlıların Ortak Özellikleri",null,"2022-10-07",3,"2022-10-10"]
[null,null,2,"Canlıların Temel Bileşenleri",null,null,null,"00:00:00"]
[null,null,3,"Hücre ve Organelleri",null,null,null,"00:00:00"]
[null,null,4,"Hücre Zarından Madde Geçişi",null,null,null,"00:00:00"]
[null,null,5,"Canlıların Sınıflandırılması",null,null,null,"00:00:00"]
[null,null,6,"Mitoz ve Eşeysiz Üreme",null,null,null,"00:00:00"]
[null,null,7,"Mayoz ve Eşeyli Üreme",null,null,null,"00:00:00"]
[null,null,8,"Kalıtım",null,null,null,"00:00:00"]
[null,null,9,"Ekosistem Ekolojisi",null,null,null,"00:00:00"]
[null,null,10,"Güncel Çevre Sorunları",null,null,null,"00:00:00"]
[null,null," TYT TARİH",null,null,null,null,"00:00:00"]
[null,null,1,"Tarih Bilimine Giriş",null,null,null,"00:00:00"]
[null,null,2,"Uygarlığın Doğuşu ve İlk Uygarlıklar",null,null,null,"00:00:00"]
[null,null,3,"İlk Türk Devletleri",null,null,null,"00:00:00"]
[null,null,4,"İslam Tarihi ve Uygarlığı",null,null,null,"00:00:00"]
[null,null,5,"Türk-İslam Devletleri",null,null,null,"00:00:00"]
[null,null,6,"Türkler’in İslamiyeti Kabulü",null,null,null,"00:00:00"]
[null,null,7,"Türkiye Tarihi",null,null,null,"00:00:00"]
[null,null,8,"Beylikten Devlete (1300-1453)",null,null,null,"00:00:00"]
[null,null,9,"Dünya Gücü: Osmanlı Devleti",null,null,null,"00:00:00"]
[null,null,10,"Osmanlı Duraklama Dönemi",null,null,null,"00:00:00"]
[null,null,11,"Gerileme Devri (1699 – 1792)",null,null,null,"00:00:00"]
[null,null,12,"Arayış Yılları (17. Yüzyıl)",null,null,null,"00:00:00"]
[null,null,13,"Avrupa ve Osmanlı Devleti (18. Yüzyıl)",null,null,null,"00:00:00"]
[null,null,14,"En Uzun Yüzyıl (1800-1922)",null,null,null,"00:00:00"]
[null,null,15,"20.Yüzyıl Başlarında Osmanlı Devleti",null,null,null,"00:00:00"]
[null,null,16,"XIX. YY Osmanlı Devleti",null,null,null,"00:00:00"]
[null,null,17,"1.Dünya Savaşı – Milli Mücadeleye Hazırlık D.",null,null,null,"00:00:00"]
[null,null,18,"Kurtuluş Savaşında Cepheler",null,null,null,"00:00:00"]
[null,null,19,"Türk İnkılabı",null,null,null,"00:00:00"]
[null,null,20,"Atatürkçülük ve Atatürk İlkeleri",null,null,null,"00:00:00"]
[null,null,21,"Türk Dış Politikası",null,null,null,"00:00:00"]
[null,null," TYT COĞRAFYA",null,null,null,null,"00:00:00"]
[null,null,1,"İnsan ve Doğa",null,null,null,"00:00:00"]
[null,null,2,"Dünya’nın Şekli ve Hareketleri",null,null,null,"00:00:00"]
[null,null,3,"Coğrafi Konum",null,null,null,"00:00:00"]
[null,null,4,"Harita Bilgisi",null,null,null,"00:00:00"]
[null,null,5,"Atmosfer ve Sıcaklık",null,null,null,"00:00:00"]
[null,null,6,"İklimler",null,null,null,"00:00:00"]
[null,null,7,"Basınç ve Rüzgarlar",null,null,null,"00:00:00"]
[null,null,8,"Nem, Yağış ve Buharlaşma",null,null,null,"00:00:00"]
[null,null,9,"İç Kuvvetler / Dış Kuvvetler",null,null,null,"00:00:00"]
[null,null,10,"Su – Toprak ve Bitkiler",null,null,null,{"$f":"F134+G134","v":"00:00:00"}]
[null,null,11,"Nüfus-Göç-Yerleşme",null,null,null,"00:00:00"]
[null,null,12,"Türkiye’nin Yer Şekilleri",null,null,null,"00:00:00"]
[null,null,13,"Ekonomik Faaliyetler",null,null,null,"00:00:00"]
[null,null,14,"Bölgeler ve Ülkeler",null,null,null,"00:00:00"]
[null,null,15,"Uluslararası Ulaşım Hatları",null,null,null,"00:00:00"]
[null,null,16,"Çevre ve Toplum",null,null,null,"00:00:00"]
[null,null,17,"Doğal Afetler",null,null,null,"00:00:00"]
[null,null," TYT FELSEFE KONULARI",null,null,null,null,"00:00:00"]
[null,null,1,"Felsefe’nin Alanı",null,null,null,"00:00:00"]
[null,null,2,"Bilgi Felsefesi",null,null,null,"00:00:00"]
[null,null,3,"Bilim Felsefesi",null,null,null,"00:00:00"]
[null,null,4,"Varlık Felsefesi",null,null,null,"00:00:00"]
[null,null,5,"Ahlak Felsefesi",null,null,null,"00:00:00"]
[null,null,6,"Siyaset Felsefesi",null,null,null,"00:00:00"]
[null,null,7,"Sanat Felsefesi",null,null,null,"00:00:00"]
[null,null,8,"Din Felsefesi",null,null,null,"00:00:00"]
[null,null," TYT DİN KÜLTÜRÜ KONULARI",null,null,null,null,"00:00:00"]
[null,null,1,"insan ve Din (İnanç)",null,null,null,"00:00:00"]
[null,null,2,"İbadet",null,null,null,"00:00:00"]
[null,null,3,"Hz.Muhammed(sav)’in Hayatı",null,null,null,"00:00:00"]
[null,null,4,"Vahiy ve Akıl",null,null,null,"00:00:00"]
[null,null,5,"İslam Düşüncesi ve Yorumu",null,null,null,"00:00:00"]
[null,null,6,"İslamda Değerler, Sanat ve Laiklik",null,null,null,"00:00:00"]
[null,null,7,"Yaşayan Dinler",null,null,null,"00:00:00"]

{"sheet":"AYT ÇAlışma P","index":5,"n_rows":158,"n_cols":8,"rows_kept":158,"cut":false,"hidden":true,"merged":[[3,2,3,3],[35,2,35,3],[63,2,63,3],[85,2,85,3],[95,2,95,3]]}
[]
[]
[]
[null,null,"AYT MATEMATİK",null,"Hafta","Başlangıç Tarihi","Gün","Bitiş Tarihiç Tarihi"]
[null,null,1,"Temel Kavramlar",null,"2022-10-10",5,{"$f":"F5+G5","v":"2022-10-15"}]
[null,null,2,"Sayı Basamakları",null,"2022-10-17",2,{"$f":"F6+G6","v":"2022-10-19"}]
[null,null,3,"Bölme ve Bölünebilme",null,null,5,"1900-01-05"]
[null,null,4,"EBOB – EKOK",null,null,6,"1900-01-06"]
[null,null,5,"Rasyonel Sayılar",null,null,7,"1900-01-07"]
[null,null,6,"Basit Eşitsizlikler",null,null,null,"00:00:00"]
[null,null,7,"Mutlak Değer",null,null,null,"00:00:00"]
[null,null,8,"Üslü Sayılar",null,null,null,"00:00:00"]
[null,null,9,"Köklü Sayılar",null,null,null,"00:00:00"]
[null,null,10,"Çarpanlara Ayırma",null,null,null,"00:00:00"]
[null,null,11,"Oran Orantı",null,null,null,"00:00:00"]
[null,null,12,"Denklem Çözme",null,null,null,"00:00:00"]
[null,null,13,"Problemler",null,null,null,"00:00:00"]
[null,null,14,"Kümeler",null,"2022-10-10",null,"2022-10-10"]
[null,null,15,"Kartezyen Çarpım",null,null,null,"00:00:00"]
[null,null,16,"Mantık",null,null,null,"00:00:00"]
[null,null,17,"Fonskiyonlar",null,null,null,"00:00:00"]
[null,null,18,"Polinomlar",null,null,null,"00:00:00"]
[null,null,19,"2.Dereceden Denklemler",null,"2022-11-15",5,"2022-11-20"]
[null,null,20,"Permütasyon ve Kombinasyon",null,null,null,"00:00:00"]
[null,null,21,"Binom ve Olasılık",null,null,null,"00:00:00"]
[null,null,22,"İstatistik",null,null,null,"00:00:00"]
[null,null,23,"Karmaşık Sayılar",null,null,null,"00:00:00"]
[null,null,24,"2.Dereceden Eşitsizlikler",null,null,null,"00:00:00"]
[null,null,25,"Parabol",null,null,null,"00:00:00"]
[null,null,26,"Trigonometri",null,null,null,"00:00:00"]
[null,null,27,"Logaritma",null,null,null,"00:00:00"]
[null,null,28,"Diziler",null,null,null,"00:00:00"]
[null,null,29,"Limit",null,null,null,"00:00:00"]
[null,null,30,"Türev",null,null,null,"00:00:00"]
[null,null,31,"İntegral",null,null,null,"00:00:00"]
[null,null,"AYT GEOMETRİ",null,null,null,null,"00:00:00"]
[null,null,1,"Doğruda ve Üçgende Açılar",null,null,null,"00:00:00"]
[null,null,2,"Dik ve Özel Üçgenler",null,null,null,"00:00:00"]
[null,null,3,"Dik Üçgende Trigonemetrik Bağıntılar",null,null,null,"00:00:00"]
[null,null,4,"İkizkenar ve Eşkenar Üçgen",null,null,null,"00:00:00"]
[null,null,5,"Üçgende Alanlar",null,null,null,"00:00:00"]
[null,null,6,"Üçgende Açıortay Bağıntıları",null,null,null,"00:00:00"]
[null,null,7,"Üçgende Kenarortay Bağıntıları",null,null,null,"00:00:00"]
[null,null,8,"Üçgende Eşlik ve Benzerlik",null,null,null,"00:00:00"]
[null,null,9,"Üçgende Açı-Kenar Bağıntıları",null,null,null,"00:00:00"]
[null,null,10,"Çokgenler",null,null,null,"00:00:00"]
[null,null,11,"Dörtgenler",null,null,null,"00:00:00"]
[null,null,12,"Yamuk",null,null,null,"00:00:00"]
[null,null,13,"Paralelkenar",null,null,null,"00:00:00"]
[null,null,14,"Eşkenar Dörtgen – Deltoid",null,null,null,"00:00:00"]
[null,null,15,"Dikdörtgen",null,null,null,"00:00:00"]
[null,null,16,"Çemberde Açılar",null,null,null,"00:00:00"]
[null,null,17,"Çemberde Uzunluk",null,null,null,"00:00:00"]
[null,null,18,"Daire",null,null,null,"00:00:00"]
[null,null,19,"Prizmalar",null,null,null,"00:00:00"]
[null,null,20,"Piramitler",null,null,null,"00:00:00"]
[null,null,21,"Küre",null,null,null,"00:00:00"]
[null,null,22,"Koordinat Düzlemi ve Noktanın Analitiği",null,null,null,"00:00:00"]
[null,null,23,"Doğrunun Analitiği",null,null,null,"00:00:00"]
[null,null,24,"Tekrar Eden, Dönen ve Yansıyan Şekiller",null,null,null,"00:00:00"]
[null,null,25,"Dönüşümlerle Geometri",null,null,null,"00:00:00"]
[null,null,26,"Trigonometri",null,null,null,"00:00:00"]
[null,null,27,"Çemberin Analitiği",null,null,null,"00:00:00"]
[null,null,"AYT FİZİK",null,null,null,null,"00:00:00"]
[null,null,1,"Vektörler",null,null,null,"00:00:00"]
[null,null,2,"Kuvvet, Tork ve Denge",null,null,null,"00:00:00"]
[null,null,3,"Kütle Merkezi",null,null,null,"00:00:00"]
[null,null,4,"Basit Makineler",null,null,null,"00:00:00"]
[null,null,5,"Hareket",null,null,null,"00:00:00"]
[null,null,6,"Newton’un Hareket Yasaları",null,null,null,{"$f":"F70+G70","v":"00:00:00"}]
[null,null,7,"İş, Güç ve Enerji II",null,null,null,"00:00:00"]
[null,null,8,"Atışlar",null,null,null,"00:00:00"]
[null,null,9,"İtme ve Momentum",null,null,null,"00:00:00"]
[null,null,10,"Elektrik Alan ve Potansiyel",null,null,null,"00:00:00"]
[null,null,11,"Paralel Levhalar ve Sığa",null,null,null,"00:00:00"]
[null,null,12,"Manyetik Alan ve Manyetik Kuvvet",null,null,null,"00:00:00"]
[null,null,13,"İndüksiyon, Alternatif Akım ve Transformatörler",null,null,null,"00:00:00"]
[null,null,14,"Çembersel Hareket",null,null,null,"00:00:00"]
[null,null,15,"Kütle Çekim ve Kepler Yasaları",null,null,null,"00:00:00"]
[null,null,16,"Basit Harmonik Hareket",null,null,null,"00:00:00"]
[null,null,17,"Dalga Mekaniği ve Elektromanyetik Dalgalar",null,null,null,"00:00:00"]
[null,null,18,"Atom Modelleri",null,null,null,"00:00:00"]
[null,null,19,"Büyük Patlama ve Radyoaktivite",null,null,null,"00:00:00"]
[null,null,20,"Modern Fizik",null,null,null,"00:00:00"]
[null,null,21,"Modern Fiziğin Teknolojideki Uygulamaları",null,null,null,"00:00:00"]
[null,null,"AYT KİMYA",null,null,null,null,"00:00:00"]
[null,null,1,"Modern Atom Teorisi",null,null,null,"00:00:00"]
[null,null,2,"Gazlar",null,null,null,"00:00:00"]
[null,null,3,"Sıvı Çözeltiler ve Çözünürlük",null,null,null,"00:00:00"]
[null,null,4,"Kimyasal Tepkimelerde Enerji",null,null,null,"00:00:00"]
[null,null,5,"Tepkimelerde Hız ve Denge",null,null,null,"00:00:00"]
[null,null,6,"Kimya ve Elektrik",null,null,null,"00:00:00"]
[null,null,7,"Karbon Kimyası",null,null,null,"00:00:00"]
[null,null,8,"Organik Kimya",null,null,null,"00:00:00"]
[null,null,9,"Enerji Kaynakları ve Bilimsel Gelişmeler",null,null,null,"00:00:00"]
[null,null,"AYT BİYOLOJİ",null,null,null,null,"00:00:00"]
[null,null,1,"Sinir Sistemi",null,null,null,"00:00:00"]
[null,null,2,"Endokrin Sistem",null,null,null,"00:00:00"]
[null,null,3,"Duyu Organları",null,null,null,"00:00:00"]
[null,null,4,"Destek ve Hareket Sistemi",null,null,null,"00:00:00"]
[null,null,5,"Sindirim Sistemi",null,null,null,"00:00:00"]
[null,null,6,"Dolaşım ve Bağışıklık Sistemi",null,null,null,"00:00:00"]
[null,null,7,"Solunum Sistemi",null,null,null,"00:00:00"]
[null,null,8,"Üriner Sistem",null,null,null,"00:00:00"]
[null,null,9,"Üreme Sistemi ve Embriyonik Gelişim",null,null,null,"00:00:00"]
[null,null,10,"Komünite ve Popülasyon Ekolojisi",null,null,null,"00:00:00"]
[null,null,11,"Nükleik Asitler",null,null,null,"00:00:00"]
[null,null,12,"Genetik Şifre ve Protein Sentezi",null,null,null,"00:00:00"]
[null,null,13,"Canlılık ve Enerji",null,null,null,"00:00:00"]
[null,null,14,"Fotosentez ve Kemosentez",null,null,null,"00:00:00"]
[null,null,15,"Hücresel Solunum",null,null,null,"00:00:00"]
[null,null,16,"Bitki Biyolojisi",null,null,null,"00:00:00"]
[null,null,17,"Canlılar ve Çevre",null,null,null,"00:00:00"]
[null,null,null,null,null,null,null,"00:00:00"]
[null,null,null,null,null,null,null,"00:00:00"]
[null,null,null,null,null,null,null,"00:00:00"]
[null,null,null,null,null,null,null,"00:00:00"]
[null,null,null,null,null,null,null,"00:00:00"]
[null,null,null,null,null,null,null,"00:00:00"]
[null,null,null,null,null,null,null,"00:00:00"]
[null,null,null,null,null,null,null,"00:00:00"]
[null,null,null,null,null,null,null,"00:00:00"]
[null,null,null,null,null,null,null,"00:00:00"]
[null,null,null,null,null,null,null,"00:00:00"]
[null,null,null,null,null,null,null,"00:00:00"]
[null,null,null,null,null,null,null,"00:00:00"]
[null,null,null,null,null,null,null,"00:00:00"]
[null,null,null,null,null,null,null,"00:00:00"]
[null,null,null,null,null,null,null,"00:00:00"]
[null,null,null,null,null,null,null,"00:00:00"]
[null,null,null,null,null,null,null,"00:00:00"]
[null,null,null,null,null,null,null,"00:00:00"]
[null,null,null,null,null,null,null,"00:00:00"]
[null,null,null,null,null,null,null,{"$f":"F134+G134","v":"00:00:00"}]
[null,null,null,null,null,null,null,"00:00:00"]
[null,null,null,null,null,null,null,"00:00:00"]
[null,null,null,null,null,null,null,"00:00:00"]
[null,null,null,null,null,null,null,"00:00:00"]
[null,null,null,null,null,null,null,"00:00:00"]
[null,null,null,null,null,null,null,"00:00:00"]
[null,null,null,null,null,null,null,"00:00:00"]
[null,null,null,null,null,null,null,"00:00:00"]
[null,null,null,null,null,null,null,"00:00:00"]
[null,null,null,null,null,null,null,"00:00:00"]
[null,null,null,null,null,null,null,"00:00:00"]
[null,null,null,null,null,null,null,"00:00:00"]
[null,null,null,null,null,null,null,"00:00:00"]
[null,null,null,null,null,null,null,"00:00:00"]
[null,null,null,null,null,null,null,"00:00:00"]
[null,null,null,null,null,null,null,"00:00:00"]
[null,null,null,null,null,null,null,"00:00:00"]
[null,null,null,null,null,null,null,"00:00:00"]
[null,null,null,null,null,null,null,"00:00:00"]
[null,null,null,null,null,null,null,"00:00:00"]
[null,null,null,null,null,null,null,"00:00:00"]
[null,null,null,null,null,null,null,"00:00:00"]
[null,null,null,null,null,null,null,"00:00:00"]
[null,null,null,null,null,null,null,"00:00:00"]

{"sheet":"Klup Listesi","index":6,"n_rows":15,"n_cols":16,"rows_kept":15,"cut":false,"hidden":true,"merged":[]}
[]
[]
[null,null,null,null,null,"1.","2.","3.","4.","5.","6.","7.","8.","9.","10.","11."]
[null,null,null,null,null,{"$f":"D5","v":"e-Twinning"},{"$f":"D6","v":"Gezi, Çevre ve Turizm"},{"$f":"D7","v":"Kültür ve Edb."},{"$f":"D8","v":"Kütüphanecilik"},{"$f":"D9","v":"Medeniyet ve Değerler"},{"$f":"D10","v":"Proje"},{"$f":"D11","v":"Sivil Savunma"},{"$f":"D12","v":"Spor"},{"$f":"D13","v":"Temizlik-Beslenme-Pan"},{"$f":"D14","v":"Yardımlaşma -Engellilerle Dayanışma"},{"$f":"D15","v":"Sosyal Medya ve Okul Tanıtım"}]
[null,null,"1.","e-Twinning"]
[null,null,"2.","Gezi, Çevre ve Turizm"]
[null,null,"3.","Kültür ve Edb."]
[null,null,"4.","Kütüphanecilik"]
[null,null,"5.","Medeniyet ve Değerler"]
[null,null,"6.","Proje"]
[null,null,"7.","Sivil Savunma"]
[null,null,"8.","Spor"]
[null,null,"9.","Temizlik-Beslenme-Pan"]
[null,null,"10.","Yardımlaşma -Engellilerle Dayanışma"]
[null,null,"11.","Sosyal Medya ve Okul Tanıtım"]

{"sheet":"AYT Konuları Yatay","index":7,"n_rows":74,"n_cols":65,"rows_kept":74,"cut":false,"hidden":true,"merged":[[4,1,5,2],[4,3,4,57],[4,58,5,63],[4,64,5,64],[5,3,5,57],[3,35,3,46],[3,47,3,57],[0,12,0,23],[0,28,0,31],[0,36,0,39],[2,1,2,22],[2,23,2,34],[2,35,2,57],[2,58,2,64],[3,3,3,9],[3,10,3,22],[3,23,3,26],[3,27,3,30],[3,31,3,34],[3,58,3,64],[0,2,1,2],[52,63,52,64],[51,1,51,2],[51,63,51,64],[52,24,52,41],[43,36,43,62],[44,36,44,62],[45,36,45,62],[41,3,41,35],[42,3,42,35],[43,3,43,35],[44,3,44,35],[45,3,45,35],[22,1,22,2],[23,1,23,2],[7,63,7,64],[8,63,8,64],[22,63,22,64],[23,63,23,64],[21,29,21,37],[6,1,6,2],[21,1,21,2],[21,63,21,64],[6,63,6,64],[21,3,21,27],[7,1,7,2],[8,1,8,2],[6,3,6,34],[6,36,6,62],[9,63,9,64],[9,1,9,2],[61,24,61,41],[62,24,62,41],[54,42,54,62],[55,42,55,62],[56,42,56,62],[60,3,60,23],[37,1,37,22],[37,23,37,34],[37,35,37,57],[37,58,37,64],[38,3,38,9],[38,10,38,22],[38,23,38,26],[38,27,38,30],[38,31,38,34],[38,58,38,64],[39,3,39,34],[39,36,39,62],[40,1,40,2],[40,63,40,64],[51,3,51,23],[39,1,39,2],[39,63,39,64],[52,1,52,2],[24,1,24,2],[24,63,24,64],[38,35,38,46],[38,47,38,57],[59,24,59,41],[51,24,51,41],[52,3,52,23],[58,3,58,23],[59,3,59,23],[57,42,57,62],[58,42,58,62],[59,42,59,62],[53,3,53,23],[46,36,46,62],[47,36,47,62],[48,36,48,62],[49,36,49,62],[50,36,50,62],[46,3,46,35],[47,3,47,35],[48,3,48,35],[49,3,49,35],[41,36,41,62],[42,36,42,62],[53,24,53,41],[51,42,51,62],[60,42,60,62],[50,3,50,35],[52,42,52,62],[53,42,53,62],[71,3,71,36],[71,37,71,64],[72,3,72,36],[72,37,72,64],[61,42,61,62],[62,42,62,62],[54,24,54,41],[55,24,55,41],[56,24,56,41],[57,24,57,41],[58,24,58,41],[60,24,60,41],[61,3,61,23],[62,3,62,23],[54,3,54,23],[55,3,55,23],[56,3,56,23],[57,3,57,23],[63,1,63,2],[63,3,63,36],[63,37,63,64],[64,3,64,36],[64,37,64,64],[73,3,73,36],[73,37,73,64],[68,3,68,36],[68,37,68,64],[69,3,69,36],[69,37,69,64],[70,3,70,36],[70,37,70,64],[65,3,65,36],[65,37,65,64],[66,3,66,36],[66,37,66,64],[67,3,67,36],[67,37,67,64]]}
[null,null,"12A"]
[]
[null,"Fetullah Bayır Fen Lisesi",null,null,null,null,null,null,null,null,null,null,null,null,null,null,null,null,null,null,null,null,null,"2022-2023",null,null,null,null,null,null,null,null,null,null,null,"ÖĞRENCİ DANIŞMANLIĞI / ÖĞRENCİ TAKİP FORMU",null,null,null,null,null,null,null,null,null,null,null,null,null,null,null,null,null,null,null,null,null,null,"Öğrencinin Hedefi :"]
[null,"No:",211,"Adı ve Soyadı",null,null,null,null,null,null,{"$f":"VLOOKUP(C4,#REF!,4)","v":{"$error":"#REF!"}},null,null,null,null,null,null,null,null,null,null,null,null,"Sınıf ",null,null,null,{"$f":"VLOOKUP(C4,#REF!,14)","v":{"$error":"#REF!"}},null,null,null,"Grubu",null,null,null,"Danışman Öğretmen   :",null,null,null,null,null,null,null,null,null,null,null,{"$f":"VLOOKUP(C4,#REF!,16)","v":{"$error":"#REF!"}},null,null,null,null,null,null,null,null,null,null,{"$f":"IF(#REF!=\"\",\"\",VLOOKUP(C4,#REF!,29))","v":{"$error":"#REF!"}}]
[null,"Yönerge :",null,"Bu form her öğrenci için danışman öğretmenimiz tarafından ayrı ayrı doldurulur. Öğrencinin çalıştığı konular, ertesi hafta en geç Salı gününe kadar tarih yazarak kontrol edilir. E(-): Eksik ; T(+): Tam ;  yazılır. ",null,null,null,null,null,null,null,null,null,null,null,null,null,null,null,null,null,null,null,null,null,null,null,null,null,null,null,null,null,null,null,null,null,null,null,null,null,null,null,null,null,null,null,null,null,null,null,null,null,null,null,null,null,null,"Öğrenci Takip Sayfa No:",null,null,null,null,null,{"$f":"VLOOKUP(C4,#REF!,30)","v":{"$error":"#REF!"}}]
[null,null,null,"Okulda yapılan kazanım değerlendirme sınav analizlerini inceler, 1.;2., 3. öncelikli konulara göre öğrenciyi ödevlendirilir. Gerekirse diğer danışmanlarla işbirliği yaparak konuların öğretmenlerce tamamlanma yoluna gidilir."]
[null,"Ders",null,"AYT MATEMATİK",null,null,null,null,null,null,null,null,null,null,null,null,null,null,null,null,null,null,null,null,null,null,null,null,null,null,null,null,null,null,null,null,"AYT GEOMETRİ",null,null,null,null,null,null,null,null,null,null,null,null,null,null,null,null,null,null,null,null,null,null,null,null,null,null,"Ders"]
[null,"Kontrol Tarihi",null,1,2,3,4,5,6,7,8,9,10,11,12,13,14,15,16,17,18,19,20,21,22,23,24,25,26,27,28,29,30,31,null,null,1,2,3,4,5,6,7,8,9,10,11,12,13,14,15,16,17,18,19,20,21,22,23,24,25,26,27,"Kontrol Tarihi"]
[null,"AYT",null,"Temel Kavramlar","Sayı Basamakları","Bölme ve Bölünebilme","EBOB – EKOK","Rasyonel Sayılar","Basit Eşitsizlikler","Mutlak Değer","Üslü Sayılar","Köklü Sayılar","Çarpanlara Ayırma","Oran Orantı","Denklem Çözme","Problemler","Kümeler","Kartezyen Çarpım","Mantık","Fonskiyonlar","Polinomlar","2.Dereceden Denklemler","Permütasyon ve Kombinasyon","Binom ve Olasılık","İstatistik","Karmaşık Sayılar","2.Dereceden Eşitsizlikler","Parabol","Trigonometri","Logaritma","Diziler","Limit","Türev","İntegral",null,null,"Doğruda ve Üçgende Açılar","Dik ve Özel Üçgenler","Dik Üçgende Trigonemetrik Bağıntılar","İkizkenar ve Eşkenar Üçgen","Üçgende Alanlar","Üçgende Açıortay Bağıntıları","Üçgende Kenarortay Bağıntıları","Üçgende Eşlik ve Benzerlik","Üçgende Açı-Kenar Bağıntıları","Çokgenler","Dörtgenler","Yamuk","Paralelkenar","Eşkenar Dörtgen – Deltoid","Dikdörtgen","Çemberde Açılar","Çemberde Uzunluk","Daire","Prizmalar","Piramitler","Küre","Koordinat Düzlemi ve Noktanın Analitiği","Doğrunun Analitiği","Tekrar Eden, Dönen ve Yansıyan Şekiller","Dönüşümlerle Geometri","Trigonometri","Çemberin Analitiği","AYT"]
[null,"Konu Eksiği var mı?",null,null,null,null,null,null,null,null,null,null,null,null,null,null,null,null,null,null,null,null,null,null,null,null,null,null,null,null,null,null,null,null,null,null,null,null,null,null,null,null,null,null,null,null,null,null,null,null,null,null,null,null,null,null,null,null,null,null,null,null,null,"Bu bölüme eksik varsa (-); yoksa (+) yaz.."]
[null,1,"…/…/202..",null,null,null,null,null,null,null,null,null,null,null,null,null,null,null,null,null,null,null,null,null,null,null,null,null,null,null,null,null,null,null,null,null,null,null,null,null,null,null,null,null,null,null,null,null,null,null,null,null,null,null,null,null,null,null,null,null,null,null,null,{"$f":"B11","v":1},{"$f":"C11","v":"…/…/202.."}]
[null,{"$f":"B11+1","v":2},{"$f":"C11","v":"…/…/202.."},null,null,null,null,null,null,null,null,null,null,null,null,null,null,null,null,null,null,null,null,null,null,null,null,null,null,null,null,null,null,null,null,null,null,null,null,null,null,null,null,null,null,null,null,null,null,null,null,null,null,null,null,null,null,null,null,null,null,null,null,{"$f":"B12","v":2},{"$f":"C12","v":"…/…/202.."}]
[null,{"$f":"B12+1","v":3},{"$f":"C12","v":"…/…/202.."},null,null,null,null,null,null,null,null,null,null,null,null,null,null,null,null,null,null,null,null,null,null,null,null,null,null,null,null,null,null,null,null,null,null,null,null,null,null,null,null,null,null,null,null,null,null,null,null,null,null,null,null,null,null,null,null,null,null,null,null,3,"…/…/202.."]
[null,4,"…/…/202..",null,null,null,null,null,null,null,null,null,null,null,null,null,null,null,null,null,null,null,null,null,null,null,null,null,null,null,null,null,null,null,null,null,null,null,null,null,null,null,null,null,null,null,null,null,null,null,null,null,null,null,null,null,null,null,null,null,null,null,null,4,"…/…/202.."]
[null,5,"…/…/202..",null,null,null,null,null,null,null,null,null,null,null,null,null,null,null,null,null,null,null,null,null,null,null,null,null,null,null,null,null,null,null,null,null,null,null,null,null,null,null,null,null,null,null,null,null,null,null,null,null,null,null,null,null,null,null,null,null,null,null,null,5,"…/…/202.."]
[null,6,"…/…/202..",null,null,null,null,null,null,null,null,null,null,null,null,null,null,null,null,null,null,null,null,null,null,null,null,null,null,null,null,null,null,null,null,null,null,null,null,null,null,null,null,null,null,null,null,null,null,null,null,null,null,null,null,null,null,null,null,null,null,null,null,6,"…/…/202.."]
[null,7,"…/…/202..",null,null,null,null,null,null,null,null,null,null,null,null,null,null,null,null,null,null,null,null,null,null,null,null,null,null,null,null,null,null,null,null,null,null,null,null,null,null,null,null,null,null,null,null,null,null,null,null,null,null,null,null,null,null,null,null,null,null,null,null,7,"…/…/202.."]
[null,8,"…/…/202..",null,null,null,null,null,null,null,null,null,null,null,null,null,null,null,null,null,null,null,null,null,null,null,null,null,null,null,null,null,null,null,null,null,null,null,null,null,null,null,null,null,null,null,null,null,null,null,null,null,null,null,null,null,null,null,null,null,null,null,null,8,"…/…/202.."]
[null,9,"…/…/202..",null,null,null,null,null,null,null,null,null,null,null,null,null,null,null,null,null,null,null,null,null,null,null,null,null,null,null,null,null,null,null,null,null,null,null,null,null,null,null,null,null,null,null,null,null,null,null,null,null,null,null,null,null,null,null,null,null,null,null,null,9,"…/…/202.."]
[null,10,"…/…/202..",null,null,null,null,null,null,null,null,null,null,null,null,null,null,null,null,null,null,null,null,null,null,null,null,null,null,null,null,null,null,null,null,null,null,null,null,null,null,null,null,null,null,null,null,null,null,null,null,null,null,null,null,null,null,null,null,null,null,null,null,10,"…/…/202.."]
[]
[null,"Ders",null,"AYT FİZİK",null,null,null,null,null,null,null,null,null,null,null,null,null,null,null,null,null,null,null,null,null,null,null,null,null,"AYT KİMYA",null,null,null,null,null,null,null,null,null,null,null,null,"AYT BİYOLOJİ",null,null,null,null,null,null,null,null,null,null,null,null,null,null,null,null,null,null,null,null,"Ders"]
[null,"Kontrol Tarihi",null,1,2,3,4,5,6,7,8,9,10,11,12,13,14,15,16,17,18,19,20,21,null,null,null,null,null,1,2,3,4,5,6,7,8,9,null,null,null,null,1,2,3,4,5,6,7,8,9,10,11,12,13,14,15,16,17,null,null,null,null,"Kontrol Tarihi"]
[null,"AYT",null,"Vektörler","Kuvvet, Tork ve Denge","Kütle Merkezi","Basit Makineler","Hareket","Newton’un Hareket Yasaları","İş, Güç ve Enerji II","Atışlar","İtme ve Momentum","Elektrik Alan ve Potansiyel","Paralel Levhalar ve Sığa","Manyetik Alan ve Manyetik Kuvvet","İndüksiyon, Alternatif Akım ve Transformatörler","Çembersel Hareket","Kütle Çekim ve Kepler Yasaları","Basit Harmonik Hareket","Dalga Mekaniği ve Elektromanyetik Dalgalar","Atom Modelleri","Büyük Patlama ve Radyoaktivite","Modern Fizik","Modern Fiziğin Teknolojideki Uygulamaları",null,null,null,null,null,"Modern Atom Teorisi","Gazlar","Sıvı Çözeltiler ve Çözünürlük","Kimyasal Tepkimelerde Enerji","Tepkimelerde Hız ve Denge","Kimya ve Elektrik","Karbon Kimyası","Organik Kimya","Enerji Kaynakları ve Bilimsel Gelişmeler",null,null,null,null,"Sinir Sistemi","Endokrin Sistem","Duyu Organları","Destek ve Hareket Sistemi","Sindirim Sistemi","Dolaşım ve Bağışıklık Sistemi","Solunum Sistemi","Üriner Sistem","Üreme Sistemi ve Embriyonik Gelişim","Komünite ve Popülasyon Ekolojisi","Nükleik Asitler","Genetik Şifre ve Protein Sentezi","Canlılık ve Enerji","Fotosentez ve Kemosentez","Hücresel Solunum","Bitki Biyolojisi","Canlılar ve Çevre",null,null,null,null,"AYT"]
[null,"Konu Eksiği var mı?",null,null,null,null,null,null,null,null,null,null,null,null,null,null,null,null,null,null,null,null,null,null,null,null,null,null,null,null,null,null,null,null,null,null,null,null,null,null,null,null,null,null,null,null,null,null,null,null,null,null,null,null,null,null,null,null,null,null,null,null,null,"Bu bölüme eksik varsa (-); yoksa (+) yaz.."]
[null,1,"…/…/202..",null,null,null,null,null,null,null,null,null,null,null,null,null,null,null,null,null,null,null,null,null,null,null,null,null,null,null,null,null,null,null,null,null,null,null,null,null,null,null,null,null,null,null,null,null,null,null,null,null,null,null,null,null,null,null,null,null,null,null,null,{"$f":"B26","v":1},{"$f":"C26","v":"…/…/202.."}]
[null,{"$f":"B26+1","v":2},{"$f":"C26","v":"…/…/202.."},null,null,null,null,null,null,null,null,null,null,null,null,null,null,null,null,null,null,null,null,null,null,null,null,null,null,null,null,null,null,null,null,null,null,null,null,null,null,null,null,null,null,null,null,null,null,null,null,null,null,null,null,null,null,null,null,null,null,null,null,{"$f":"B27","v":2},{"$f":"C27","v":"…/…/202.."}]
[null,{"$f":"B27+1","v":3},{"$f":"C27","v":"…/…/202.."},null,null,null,null,null,null,null,null,null,null,null,null,null,null,null,null,null,null,null,null,null,null,null,null,null,null,null,null,null,null,null,null,null,null,null,null,null,null,null,null,null,null,null,null,null,null,null,null,null,null,null,null,null,null,null,null,null,null,null,null,3,"…/…/202.."]
[null,4,"…/…/202..",null,null,null,null,null,null,null,null,null,null,null,null,null,null,null,null,null,null,null,null,null,null,null,null,null,null,null,null,null,null,null,null,null,null,null,null,null,null,null,null,null,null,null,null,null,null,null,null,null,null,null,null,null,null,null,null,null,null,null,null,4,"…/…/202.."]
[null,5,"…/…/202..",null,null,null,null,null,null,null,null,null,null,null,null,null,null,null,null,null,null,null,null,null,null,null,null,null,null,null,null,null,null,null,null,null,null,null,null,null,null,null,null,null,null,null,null,null,null,null,null,null,null,null,null,null,null,null,null,null,null,null,null,5,"…/…/202.."]
[null,6,"…/…/202..",null,null,null,null,null,null,null,null,null,null,null,null,null,null,null,null,null,null,null,null,null,null,null,null,null,null,null,null,null,null,null,null,null,null,null,null,null,null,null,null,null,null,null,null,null,null,null,null,null,null,null,null,null,null,null,null,null,null,null,null,6,"…/…/202.."]
[null,7,"…/…/202..",null,null,null,null,null,null,null,null,null,null,null,null,null,null,null,null,null,null,null,null,null,null,null,null,null,null,null,null,null,null,null,null,null,null,null,null,null,null,null,null,null,null,null,null,null,null,null,null,null,null,null,null,null,null,null,null,null,null,null,null,7,"…/…/202.."]
[null,8,"…/…/202..",null,null,null,null,null,null,null,null,null,null,null,null,null,null,null,null,null,null,null,null,null,null,null,null,null,null,null,null,null,null,null,null,null,null,null,null,null,null,null,null,null,null,null,null,null,null,null,null,null,null,null,null,null,null,null,null,null,null,null,null,8,"…/…/202.."]
[null,9,"…/…/202..",null,null,null,null,null,null,null,null,null,null,null,null,null,null,null,null,null,null,null,null,null,null,null,null,null,null,null,null,null,null,null,null,null,null,null,null,null,null,null,null,null,null,null,null,null,null,null,null,null,null,null,null,null,null,null,null,null,null,null,null,9,"…/…/202.."]
[null,10,"…/…/202..",null,null,null,null,null,null,null,null,null,null,null,null,null,null,null,null,null,null,null,null,null,null,null,null,null,null,null,null,null,null,null,null,null,null,null,null,null,null,null,null,null,null,null,null,null,null,null,null,null,null,null,null,null,null,null,null,null,null,null,null,10,"…/…/202.."]
[]
[]
[null,"Fetullah Bayır Fen Lisesi",null,null,null,null,null,null,null,null,null,null,null,null,null,null,null,null,null,null,null,null,null,"2022-2023",null,null,null,null,null,null,null,null,null,null,null,"ÖĞRENCİ DANIŞMANLIĞI / ÖĞRENCİ TAKİP FORMU",null,null,null,null,null,null,null,null,null,null,null,null,null,null,null,null,null,null,null,null,null,null,"Öğrencinin Hedefi :"]
[null,"No:",{"$f":"C4","v":211},"Adı ve Soyadı",null,null,null,null,null,null,{"$f":"K4","v":{"$error":"#REF!"}},null,null,null,null,null,null,null,null,null,null,null,null,"Sınıf ",null,null,null,{"$f":"AB4","v":{"$error":"#REF!"}},null,null,null,"Grubu",null,null,null,"Danışman Öğretmen   :",null,null,null,null,null,null,null,null,null,null,null,{"$f":"VLOOKUP(C39,#REF!,16)","v":{"$error":"#REF!"}},null,null,null,null,null,null,null,null,null,null,{"$f":"BG4","v":{"$error":"#REF!"}}]
[null,"Ders",null,"AYT MATEMATİK",null,null,null,null,null,null,null,null,null,null,null,null,null,null,null,null,null,null,null,null,null,null,null,null,null,null,null,null,null,null,null,null,"AYT GEOMETRİ",null,null,null,null,null,null,null,null,null,null,null,null,null,null,null,null,null,null,null,null,null,null,null,null,null,null,{"$f":"BM5","v":{"$error":"#REF!"}}]
[null,null,null,1,2,3,4,5,6,7,8,9,10,11,12,13,14,15,16,17,18,19,20,21,22,23,24,25,26,27,28,29,30,31,null,null,1,2,3,4,5,6,7,8,9,10,11,12,13,14,15,16,17,18,19,20,21,22,23,24,25,26,27,"Kontrol Tarihi"]
[null,1,"…/…/202..",null,null,null,null,null,null,null,null,null,null,null,null,null,null,null,null,null,null,null,null,null,null,null,null,null,null,null,null,null,null,null,null,null,null,null,null,null,null,null,null,null,null,null,null,null,null,null,null,null,null,null,null,null,null,null,null,null,null,null,null,{"$f":"B42","v":1},{"$f":"C42","v":"…/…/202.."}]
[null,{"$f":"B42+1","v":2},{"$f":"C42","v":"…/…/202.."},null,null,null,null,null,null,null,null,null,null,null,null,null,null,null,null,null,null,null,null,null,null,null,null,null,null,null,null,null,null,null,null,null,null,null,null,null,null,null,null,null,null,null,null,null,null,null,null,null,null,null,null,null,null,null,null,null,null,null,null,{"$f":"B43","v":2},{"$f":"C43","v":"…/…/202.."}]
[null,{"$f":"B43+1","v":3},{"$f":"C43","v":"…/…/202.."},null,null,null,null,null,null,null,null,null,null,null,null,null,null,null,null,null,null,null,null,null,null,null,null,null,null,null,null,null,null,null,null,null,null,null,null,null,null,null,null,null,null,null,null,null,null,null,null,null,null,null,null,null,null,null,null,null,null,null,null,3,"…/…/202.."]
[null,4,"…/…/202..",null,null,null,null,null,null,null,null,null,null,null,null,null,null,null,null,null,null,null,null,null,null,null,null,null,null,null,null,null,null,null,null,null,null,null,null,null,null,null,null,null,null,null,null,null,null,null,null,null,null,null,null,null,null,null,null,null,null,null,null,4,"…/…/202.."]
[null,5,"…/…/202..",null,null,null,null,null,null,null,null,null,null,null,null,null,null,null,null,null,null,null,null,null,null,null,null,null,null,null,null,null,null,null,null,null,null,null,null,null,null,null,null,null,null,null,null,null,null,null,null,null,null,null,null,null,null,null,null,null,null,null,null,5,"…/…/202.."]
[null,6,"…/…/202..",null,null,null,null,null,null,null,null,null,null,null,null,null,null,null,null,null,null,null,null,null,null,null,null,null,null,null,null,null,null,null,null,null,null,null,null,null,null,null,null,null,null,null,null,null,null,null,null,null,null,null,null,null,null,null,null,null,null,null,null,6,"…/…/202.."]
[null,7,"…/…/202..",null,null,null,null,null,null,null,null,null,null,null,null,null,null,null,null,null,null,null,null,null,null,null,null,null,null,null,null,null,null,null,null,null,null,null,null,null,null,null,null,null,null,null,null,null,null,null,null,null,null,null,null,null,null,null,null,null,null,null,null,7,"…/…/202.."]
[null,8,"…/…/202..",null,null,null,null,null,null,null,null,null,null,null,null,null,null,null,null,null,null,null,null,null,null,null,null,null,null,null,null,null,null,null,null,null,null,null,null,null,null,null,null,null,null,null,null,null,null,null,null,null,null,null,null,null,null,null,null,null,null,null,null,8,"…/…/202.."]
[null,9,"…/…/202..",null,null,null,null,null,null,null,null,null,null,null,null,null,null,null,null,null,null,null,null,null,null,null,null,null,null,null,null,null,null,null,null,null,null,null,null,null,null,null,null,null,null,null,null,null,null,null,null,null,null,null,null,null,null,null,null,null,null,null,null,9,"…/…/202.."]
[null,10,"…/…/202..",null,null,null,null,null,null,null,null,null,null,null,null,null,null,null,null,null,null,null,null,null,null,null,null,null,null,null,null,null,null,null,null,null,null,null,null,null,null,null,null,null,null,null,null,null,null,null,null,null,null,null,null,null,null,null,null,null,null,null,null,10,"…/…/202.."]
[null,"Ders",null,"AYT FİZİK",null,null,null,null,null,null,null,null,null,null,null,null,null,null,null,null,null,null,null,null,"AYT KİMYA",null,null,null,null,null,null,null,null,null,null,null,null,null,null,null,null,null,"AYT BİYOLOJİ",null,null,null,null,null,null,null,null,null,null,null,null,null,null,null,null,null,null,null,null,"Ders"]
[null,"Kontrol Tarihi",null,null,null,null,null,null,null,null,null,null,null,null,null,null,null,null,null,null,null,null,null,null,null,null,null,null,null,null,null,null,null,null,null,null,null,null,null,null,null,null,null,null,null,null,null,null,null,null,null,null,null,null,null,null,null,null,null,null,null,null,null,"Kontrol Tarihi"]
[null,1,"…/…/202..",null,null,null,null,null,null,null,null,null,null,null,null,null,null,null,null,null,null,null,null,null,null,null,null,null,null,null,null,null,null,null,null,null,null,null,null,null,null,null,null,null,null,null,null,null,null,null,null,null,null,null,null,null,null,null,null,null,null,null,null,{"$f":"B54","v":1},{"$f":"C54","v":"…/…/202.."}]
[null,{"$f":"B54+1","v":2},{"$f":"C54","v":"…/…/202.."},null,null,null,null,null,null,null,null,null,null,null,null,null,null,null,null,null,null,null,null,null,null,null,null,null,null,null,null,null,null,null,null,null,null,null,null,null,null,null,null,null,null,null,null,null,null,null,null,null,null,null,null,null,null,null,null,null,null,null,null,{"$f":"B55","v":2},{"$f":"C55","v":"…/…/202.."}]
[null,{"$f":"B55+1","v":3},{"$f":"C55","v":"…/…/202.."},null,null,null,null,null,null,null,null,null,null,null,null,null,null,null,null,null,null,null,null,null,null,null,null,null,null,null,null,null,null,null,null,null,null,null,null,null,null,null,null,null,null,null,null,null,null,null,null,null,null,null,null,null,null,null,null,null,null,null,null,3,"…/…/202.."]
[null,4,"…/…/202..",null,null,null,null,null,null,null,null,null,null,null,null,null,null,null,null,null,null,null,null,null,null,null,null,null,null,null,null,null,null,null,null,null,null,null,null,null,null,null,null,null,null,null,null,null,null,null,null,null,null,null,null,null,null,null,null,null,null,null,null,4,"…/…/202.."]
[null,5,"…/…/202..",null,null,null,null,null,null,null,null,null,null,null,null,null,null,null,null,null,null,null,null,null,null,null,null,null,null,null,null,null,null,null,null,null,null,null,null,null,null,null,null,null,null,null,null,null,null,null,null,null,null,null,null,null,null,null,null,null,null,null,null,5,"…/…/202.."]
[null,6,"…/…/202..",null,null,null,null,null,null,null,null,null,null,null,null,null,null,null,null,null,null,null,null,null,null,null,null,null,null,null,null,null,null,null,null,null,null,null,null,null,null,null,null,null,null,null,null,null,null,null,null,null,null,null,null,null,null,null,null,null,null,null,null,6,"…/…/202.."]
[null,7,"…/…/202..",null,null,null,null,null,null,null,null,null,null,null,null,null,null,null,null,null,null,null,null,null,null,null,null,null,null,null,null,null,null,null,null,null,null,null,null,null,null,null,null,null,null,null,null,null,null,null,null,null,null,null,null,null,null,null,null,null,null,null,null,7,"…/…/202.."]
[null,8,"…/…/202..",null,null,null,null,null,null,null,null,null,null,null,null,null,null,null,null,null,null,null,null,null,null,null,null,null,null,null,null,null,null,null,null,null,null,null,null,null,null,null,null,null,null,null,null,null,null,null,null,null,null,null,null,null,null,null,null,null,null,null,null,8,"…/…/202.."]
[null,9,"…/…/202..",null,null,null,null,null,null,null,null,null,null,null,null,null,null,null,null,null,null,null,null,null,null,null,null,null,null,null,null,null,null,null,null,null,null,null,null,null,null,null,null,null,null,null,null,null,null,null,null,null,null,null,null,null,null,null,null,null,null,null,null,9,"…/…/202.."]
[null,10,"…/…/202..",null,null,null,null,null,null,null,null,null,null,null,null,null,null,null,null,null,null,null,null,null,null,null,null,null,null,null,null,null,null,null,null,null,null,null,null,null,null,null,null,null,null,null,null,null,null,null,null,null,null,null,null,null,null,null,null,null,null,null,null,10,"…/…/202.."]
[null,null,null,"Genel Görüşler",null,null,null,null,null,null,null,null,null,null,null,null,null,null,null,null,null,null,null,null,null,null,null,null,null,null,null,null,null,null,null,null,null,"Alınabilecek tedbirler/tavsiyeler"]
[null,"1.","…/…/202.."]
[null,"2.","…/…/202.."]
[null,"3.","…/…/202.."]
[null,"4.","…/…/202.."]
[null,"5.","…/…/202.."]
[null,"6.","…/…/202.."]
[null,"7.","…/…/202.."]
[null,"8.","…/…/202.."]
[null,"9.","…/…/202.."]
[null,"10.","…/…/202.."]

{"sheet":"Giriş ve Ön Plânlama","index":8,"n_rows":26,"n_cols":9,"rows_kept":26,"cut":false,"hidden":false,"merged":[[24,1,24,9],[25,1,25,9],[20,3,22,9],[1,2,1,9],[2,6,7,9],[8,8,19,9],[12,1,12,2],[2,2,2,3],[3,2,3,3],[4,2,4,3],[5,2,5,3],[6,2,6,3],[7,2,7,3],[8,2,8,3],[9,2,9,3],[10,2,10,3],[11,2,11,3],[3,4,11,4],[12,3,19,4]]}
[]
[null,"Okulu","Fetullah Bayır Fen Lisesi (KONYA/BEYŞEHİR)"]
[null,"Öğretim Yılı","2024-2025",null,"Hzrlyn ",null,"    HEDEFİNE ULAŞACAK KADAR VERİMLİ ÇALIŞ! \n\nPLÂN, BAŞARIYA GİDEN YOLUN İLK BASAMAĞIDIR."]
[null,"Program Başlangıç Tarihi","2025-01-01",null,"İrfan KARABACAK"]
[null,"Ayı","Ocak"]
[null,"Öğrencinin;"]
[null,"Adı ve Soyadı","Oğuz Kağan BİLGE"]
[null,"Sınıfı","12A"]
[null,"Numarası",1071,null,null,null,"Matematik",12,"Sol tarafa, yukarıda belirlediğiniz çalışma saatlerini derslere paylaştırınız.\n\nAn'ı, VERİMLİ KULLANALIM. İleride \"KEŞKE!\" dememek için….."]
[null,"Danışman Öğretmeni","…........",null,null,null,"Geometri",4]
[null,"Rehber  Öğretmen","…........",null,null,null,"Fizik",5]
[null,"Hedefi","Yazılım Mühendisliği",null,null,null,"Kimya",4]
[null,"Günlük Çalışma Süresi",null,"Ön plânlama için kullanınız. Buraya yazdığımız saat, çalışma plânına otomatik geçecektir.",null,null,"Biyoloji",4]
[null,"Pazartesi",6,null,null,null,"Tarih",2]
[null,"Salı",6,null,null,null,"Coğr.",2]
[null,"Çarşamba",6,null,null,null,"Din K. Ve .B",1]
[null,"Perşembe",7,null,null,null,"Felsefe",1]
[null,"Cuma",4,null,null,null,"Türkçe",6]
[null,"Cumartesi",6]
[null,"Pazar",6]
[null,"Toplam",{"$f":"SUM(C14:C20)","v":41},{"$f":"IF(C21=C23, \"Ön Plânlama Doğru\",\"!!!YANLIŞ??? Lütfen TEKRAR plânlama yapınız.\")","v":"Ön Plânlama Doğru"}]
[null,null," ="]
[null,"Haftalık Dağıtım",{"$f":"SUM(H9:H22)","v":41}]
[]
[null,"Lütfen! Yukarıda ön plânlamımızı doğru yapalım… Çalışma Plânında detaylandıralım. "]
[null,"Hedefinize kavuşmanız dileklerimizle…. Fetullah Bayır Fen Lisesi Ailesi"]

{"sheet":"Çalışpa Plânı","index":9,"n_rows":42,"n_cols":22,"rows_kept":42,"cut":false,"hidden":false,"merged":[[3,1,3,10],[3,12,3,13],[4,1,4,10],[5,12,5,13],[5,1,5,2],[5,3,5,4],[25,11,25,13],[6,1,6,4],[6,5,6,7],[7,1,7,8],[7,9,7,13],[8,1,8,2],[9,1,9,3],[9,11,9,12],[24,1,24,3],[6,9,6,10],[26,1,26,2],[26,4,26,13],[27,1,27,2],[27,12,27,13],[28,1,28,2],[28,12,28,13],[29,1,29,2],[29,12,29,13],[30,1,30,2],[30,12,30,13],[31,1,31,2],[31,12,31,13],[39,1,40,13],[41,1,41,13],[32,1,38,2],[32,12,32,13],[33,12,33,13],[34,12,34,13],[35,12,35,13],[36,12,36,13],[37,12,37,13],[38,12,38,13]]}
[]
[]
[]
[null,{"$f":"'Giriş ve Ön Plânlama'!C2","v":"Fetullah Bayır Fen Lisesi (KONYA/BEYŞEHİR)"},null,null,null,null,null,null,null,null,null,"Program Sıra No: ……","…......."]
[null,{"$f":"\"Öğrenci Haftalık Ders Çalışma Programı     \"&'Giriş ve Ön Plânlama'!C3&\"\"","v":"Öğrenci Haftalık Ders Çalışma Programı     2024-2025"},null,null,null,null,null,null,null,null,null,{"$f":"'Giriş ve Ön Plânlama'!C5","v":"Ocak"}," Ayı"]
[null,"Adı Soyadı :",null,{"$f":"'Giriş ve Ön Plânlama'!C7","v":"Oğuz Kağan BİLGE"},null,"Sınıf:",{"$f":"'Giriş ve Ön Plânlama'!C8","v":"12A"},"No:",{"$f":"'Giriş ve Ön Plânlama'!C9","v":1071},"Haft.Prog. Baş. Tarihi",{"$f":"'Giriş ve Ön Plânlama'!C4","v":"2025-01-01"},"Haft.Prog. Bitiş Tarihi",{"$f":"K6+7","v":"2025-01-08"}]
[null,"Sorumlu Çalışma Rehber Öğretmeni  :",null,null,null,{"$f":"'Giriş ve Ön Plânlama'!C11","v":"…........"},null,null,"Danışman Öğretmen:",{"$f":"'Giriş ve Ön Plânlama'!C10","v":"…........"},null,"İmza…………"]
[null,"HAFTA İÇİ ",null,null,null,null,null,null,null,"HAFTA SONU"]
[null,"Başla",null,"Bitiş","Pazartesi","Salı","Çarşamba","Perşembe","Cuma","Cumartesi","Pazar","Başla","Bitiş"]
[null,"Günlük Ort. Çalış. Süre  Hedef(Saat)",null,null,{"$f":"'Giriş ve Ön Plânlama'!C14","v":6},{"$f":"'Giriş ve Ön Plânlama'!C15","v":6},{"$f":"'Giriş ve Ön Plânlama'!C16","v":6},{"$f":"'Giriş ve Ön Plânlama'!C17","v":7},{"$f":"'Giriş ve Ön Plânlama'!C18","v":4},{"$f":"'Giriş ve Ön Plânlama'!C19","v":6},{"$f":"'Giriş ve Ön Plânlama'!C20","v":6},"Hedef Haft. Toplam: ………. Saat",null,{"$f":"SUM(E10:K10)","v":41}]
[null,"1.","…...  ……","…...  ……",null,null,null,null,null,null,null,"…...  ……","…...  ……","1."]
[null,"2.","…...  ……","…...  ……",null,null,null,null,null,null,null,"…...  ……","…...  ……","2."]
[null,"3.","…...  ……","…...  ……",null,null,null,null,null,null,null,"…...  ……","…...  ……","3."]
[null,"4.","…...  ……","…...  ……",null,null,null,null,null,null,null,"…...  ……","…...  ……","4."]
[null,"5.","…...  ……","…...  ……",null,null,null,null,null,null,null,"…...  ……","…...  ……","5."]
[null,"6.","…...  ……","…...  ……",null,null,null,null,null,null,null,"…...  ……","…...  ……","6."]
[null,"7.","…...  ……","…...  ……",null,null,null,null,null,null,null,"…...  ……","…...  ……","7."]
[null,"8.","…...  ……","…...  ……",null,null,null,null,null,null,null,"…...  ……","…...  ……","8."]
[null,"9.","…...  ……","…...  ……",null,null,null,null,null,null,null,"…...  ……","…...  ……","9."]
[null,"10.","…...  ……","…...  ……",null,null,null,null,null,null,null,"…...  ……","…...  ……","10."]
[null,"11.","…...  ……","…...  ……",null,null,null,null,null,null,null,"…...  ……","…...  ……","11.",null,null,null,null,null,null,null,"Hedefin %50 si"]
[null,"12.","…...  ……","…...  ……",null,null,null,null,null,null,null,"…...  ……","…...  ……","12.",null,null,null,null,null,null,null,"Hedefin %66"]
[null,"13.","…...  ……","…...  ……",null,null,null,null,null,null,null,"…...  ……","…...  ……","13.",null,null,null,null,null,null,null,"Hedefin %100 "]
[null,"14.","…...  ……","…...  ……",null,null,null,null,null,null,null,"…...  ……","…...  ……","14."]
[null,"Günlük kaç saat çalıştım?",null,null,{"$f":"IF(SUM(E28:E39)<1,\"\",SUM(E28:E39))","v":""},"","","","","","","Toplam Çalışma Süresi:",{"$f":"IF(SUM(E25:K25)<1,\"\",SUM(E25:K25))","v":""}]
[null,null,null,null,{"$f":"E9","v":"Pazartesi"},{"$f":"F9","v":"Salı"},"Çarşamba","Perşembe","Cuma","Cumartesi",{"$f":"K9","v":"Pazar"}]
[null,null,null,"Ders Adı","Günlük Çözülen Soru Sayısı"]
[null,null,null,"Türkçe"]
[null,null,null,"(Parağraf Sorusu)"]
[null,null,null,"Matemetik"]
[null,null,null,"(Problem)"]
[null,null,null,"Geometri"]
[null,"Prog. Excel ort. takip edecekler için… Hedefe ne kadar ulaştığınızı renklerden kontrol edebiliriz..",null,"Fizik"]
[null,null,null,"Kimya"]
[null,null,null,"Biyoloji"]
[null,null,null,"Tarih"]
[null,null,null,"Coğr."]
[null,null,null,"Din K. Ve .B"]
[null,null,null,"Felsefe"]
[null,"Sorumlu Çalışma Rehber Öğretmeni Görüşü : ……."]
[]
[null,"***Bu çalışma programı, en geç her CUMA günü öğleden önce hazırlanarak ilgili \"Sorumlu Çalışma Rehber Öğretmenin\" onayını alarak haftalık uygulamaya konulur. Kontroller program bitişi Pazartesi günleri yapılacaktır."]

{"sheet":"Takvim","index":10,"n_rows":33,"n_cols":95,"rows_kept":33,"cut":false,"hidden":false,"merged":[[4,6,4,11],[4,12,4,17],[4,18,4,23],[4,24,4,29],[4,38,4,43],[1,24,1,25],[1,26,1,27],[1,56,1,57],[1,58,1,59],[3,64,3,94],[4,44,4,49],[4,50,4,55],[4,56,4,61],[4,64,4,94],[5,64,5,70],[5,71,5,76],[6,89,6,94],[7,65,7,70],[7,71,7,76],[7,77,7,82],[7,83,7,88],[7,89,7,94],[14,44,14,49],[6,65,6,70],[6,71,6,76],[6,77,6,82],[6,83,6,88],[14,50,14,55],[14,56,14,61],[14,6,14,11],[14,12,14,17],[14,18,14,23],[14,24,14,29],[14,38,14,43],[16,64,16,67],[16,68,16,76],[19,65,19,70],[19,71,19,76],[19,77,19,82],[19,83,19,88],[19,89,19,94],[20,65,20,70],[20,71,20,76],[20,77,20,82],[20,83,20,88],[20,89,20,94],[24,50,24,55],[24,56,24,61],[24,6,24,11],[24,12,24,17],[24,18,24,23],[24,24,24,29],[24,38,24,43],[24,44,24,49]]}
[]
[null,null,null,null,null,null,null,null,null,null,null,null,null,null,null,null,null,null,null,null,null,null,null,null,"YIL",null,2024,null," ",null,null,null,null,null,null,null,null,null,null,null,null,null,null,null,null,null,null,null,null,null,null,null,null,null,null,null,"YIL",null,{"$f":"yıl+1","v":2025},null," "]
[null,null,null,null,null,null,null,null,null,null,null,null,null,null,null,null,null,null," ",null,null,null,null,null,null,null,null,null,null,null,null,null,null,null,null,null,null,null,null,null,null,null,null,null,null,null,null,null,null,null," "]
[null,null,null,null,null,null,null,null,null,null,null,null,null,null,null,null,null,null,null,null,null,null,null,null,null,null,null,null,null,null,null,null,null,null,null,null,null,null,null,null,null,null,null,null,null,null,null,null,null,null,null,null,null,null,null,null,null,null,null,null,null,null,null,null,"Fetullah Bayır Fen Lisesi (974063)"]
[null,null,null,null,null,null,"OCAK",null,null,null,null,null,"ŞUBAT",null,null,null,null,null,"MART",null,null,null,null,null,"NİSAN",null,null,null,null,null,null,null,null,null,null,null,null,null,"OCAK",null,null,null,null,null,"ŞUBAT",null,null,null,null,null,"MART",null,null,null,null,null,"NİSAN",null,null,null,null,null,null,null,{"$f":"'[1]Veri Giriş'!E2","v":"2024–2025 Öğretim Yılı"}]
[null,null,null,null,null,null,{"$f":"WEEKDAY(\"1/1/\"&yil,2)","v":1},null,null,null,null,null,{"$f":"WEEKDAY(\"1/2/\"&yil,2)","v":4},{"$f":"WEEKDAY(\"29/2/\"&yil,2)","v":4},null,null,null,null,{"$f":"WEEKDAY(\"1/3/\"&yil,2)","v":5},null,null,null,null,null,{"$f":"WEEKDAY(\"1/4/\"&yil,2)","v":1},null,null,null,null,null,null,null,null,null,null,null,null,null,{"$f":"WEEKDAY(\"1/1/\"&Yil2,2)","v":3},null,null,null,null,null,{"$f":"WEEKDAY(\"1/2/\"&Yil2,2)","v":6},null,null,null,null,null,{"$f":"WEEKDAY(\"1/3/\"&Yil2,2)","v":6},null,null,null,null,null,{"$f":"WEEKDAY(\"1/4/\"&Yil2,2)","v":2}]
[null," ","Pazartesi",null,null,null,{"$f":"IF(G6=1,1,0)","v":1},{"$f":"G13+1","v":8},{"$f":"H7+7","v":15},{"$f":"H7+14","v":22},{"$f":"H7+21","v":29},{"$f":"IF(H7+28>31,\"\",H7+28)","v":""},{"$f":"IF(M6=1,1,0)","v":0},{"$f":"M13+1","v":5},{"$f":"N7+7","v":12},{"$f":"N7+14","v":19},{"$f":"IF(P7+7>29,\"\",IF(AND(P7+7=29,ISERR(hata)),\"\",P7+7))","v":26},null,{"$f":"IF(S6=1,1,0)","v":0},{"$f":"S13+1","v":4},{"$f":"T7+7","v":11},{"$f":"T7+14","v":18},{"$f":"T7+21","v":25},{"$f":"IF(T7+28>31,\"\",T7+28)","v":""},{"$f":"IF(Y6=1,1,0)","v":1},{"$f":"Y13+1","v":8},{"$f":"Z7+7","v":15},{"$f":"Z7+14","v":22},{"$f":"Z7+21","v":29},{"$f":"IF(Z7+28>30,\"\",Z7+28)","v":""},null,null,null," ","Pazartesi",null,null,null,{"$f":"IF(AM6=1,1,0)","v":0},{"$f":"AM13+1","v":6},{"$f":"AN7+7","v":13},{"$f":"AN7+14","v":20},{"$f":"AN7+21","v":27},{"$f":"IF(AN7+28>31,\"\",AN7+28)","v":""},{"$f":"IF(AS6=1,1,0)","v":0},{"$f":"AS13+1","v":3},{"$f":"AT7+7","v":10},{"$f":"AT7+14","v":17},{"$f":"IF(AV7+7>29,\"\",IF(AND(AV7+7=29,ISERR(hata)),\"\",AV7+7))","v":24},null,{"$f":"IF(AY6=1,1,0)","v":0},{"$f":"AY13+1","v":3},{"$f":"AZ7+7","v":10},{"$f":"AZ7+14","v":17},{"$f":"AZ7+21","v":24},{"$f":"IF(AZ7+28>31,\"\",AZ7+28)","v":31},{"$f":"IF(BE6=1,1,0)","v":0},{"$f":"BE13+1","v":7},{"$f":"BF7+7","v":14},{"$f":"BF7+14","v":21},{"$f":"BF7+21","v":28},{"$f":"IF(BF7+28>30,\"\",BF7+28)","v":""},null,null,"1.",2024,null,null,null,null,null,{"$f":"BN7","v":2024},null,null,null,null,null,{"$f":"BT7","v":2024},null,null,null,null,null,{"$f":"BZ7","v":2024},null,null,null,null,null,{"$f":"CF7+1","v":2025}]
[null," ","Salı",null,null,null,{"$f":"IF(G7>0,G7+1,IF(G$6=2,1,0))","v":2},{"$f":"H7+1","v":9},{"$f":"H8+7","v":16},{"$f":"H8+14","v":23},{"$f":"H8+21","v":30},{"$f":"IF(H8+28>31,\"\",H8+28)","v":""},{"$f":"IF(M7>0,M7+1,IF(M$6=2,1,0))","v":0},{"$f":"N7+1","v":6},{"$f":"N8+7","v":13},{"$f":"N8+14","v":20},27,null,{"$f":"IF(S7>0,S7+1,IF(S$6=2,1,0))","v":0},{"$f":"T7+1","v":5},{"$f":"T8+7","v":12},{"$f":"T8+14","v":19},{"$f":"T8+21","v":26},{"$f":"IF(T8+28>31,\"\",T8+28)","v":""},{"$f":"IF(Y7>0,Y7+1,IF(Y$6=2,1,0))","v":2},{"$f":"Z7+1","v":9},{"$f":"Z8+7","v":16},{"$f":"Z8+14","v":23},{"$f":"Z8+21","v":30},{"$f":"IF(Z8+28>30,\"\",Z8+28)","v":""},null,null,null," ","Salı",null,null,null,{"$f":"IF(AM7>0,AM7+1,IF(AM$6=2,1,0))","v":0},{"$f":"AN7+1","v":7},{"$f":"AN8+7","v":14},{"$f":"AN8+14","v":21},{"$f":"AN8+21","v":28},{"$f":"IF(AN8+28>31,\"\",AN8+28)","v":""},{"$f":"IF(AS7>0,AS7+1,IF(AS$6=2,1,0))","v":0},{"$f":"AT7+1","v":4},{"$f":"AT8+7","v":11},{"$f":"AT8+14","v":18},25,null,{"$f":"IF(AY7>0,AY7+1,IF(AY$6=2,1,0))","v":0},{"$f":"AZ7+1","v":4},{"$f":"AZ8+7","v":11},{"$f":"AZ8+14","v":18},{"$f":"AZ8+21","v":25},{"$f":"IF(AZ8+28>31,\"\",AZ8+28)","v":""},{"$f":"IF(BE7>0,BE7+1,IF(BE$6=2,1,0))","v":1},{"$f":"BF7+1","v":8},{"$f":"BF8+7","v":15},{"$f":"BF8+14","v":22},{"$f":"BF8+21","v":29},{"$f":"IF(BF8+28>30,\"\",BF8+28)","v":""},null,null,"Dönem","Eylül",null,null,null,null,null,"Ekim",null,null,null,null,null,"Kasım",null,null,null,null,null,"Aralık",null,null,null,null,null,"Ocak"]
[null,null,"Çarşamba",null,null,null,{"$f":"IF(G8>0,G8+1,IF(G$6=3,1,0))","v":3},10,17,24,{"$f":"H9+21","v":31},null,{"$f":"IF(M8>0,M8+1,IF(M$6=3,1,0))","v":0},7,14,21,{"$f":"IF(P9+7>29,\"\",IF(AND(P9+7=29,ISERR(hata)),\"\",P9+7))","v":28},null,{"$f":"IF(S8>0,S8+1,IF(S$6=3,1,0))","v":0},6,13,20,{"$f":"T9+21","v":27},"",{"$f":"IF(Y8>0,Y8+1,IF(Y$6=3,1,0))","v":3},10,17,24,{"$f":"IF(Z9+21>30,\"\",Z9+21)","v":""},{"$f":"IF(Z9+28>30,\"\",Z9+28)","v":""},null,null,null,null,"Çarşamba",null,null,null,{"$f":"IF(AM8>0,AM8+1,IF(AM$6=3,1,0))","v":1},8,15,22,{"$f":"AN9+21","v":29},null,{"$f":"IF(AS8>0,AS8+1,IF(AS$6=3,1,0))","v":0},5,12,19,26,null,{"$f":"IF(AY8>0,AY8+1,IF(AY$6=3,1,0))","v":0},5,12,19,{"$f":"AZ9+21","v":26},"",{"$f":"IF(BE8>0,BE8+1,IF(BE$6=3,1,0))","v":2},9,16,23,{"$f":"IF(BF9+21>30,\"\",BF9+21)","v":30},{"$f":"IF(BF9+28>30,\"\",BF9+28)","v":""},null,null,"Pazartesi",{"$f":"'[1]Ç. Takvim'!G27","v":0},{"$f":"'[1]Ç. Takvim'!H27","v":2},{"$f":"'[1]Ç. Takvim'!I27","v":9},{"$f":"'[1]Ç. Takvim'!J27","v":16},{"$f":"'[1]Ç. Takvim'!K27","v":23},{"$f":"'[1]Ç. Takvim'!L27","v":30},{"$f":"'[1]Ç. Takvim'!M27","v":0},{"$f":"'[1]Ç. Takvim'!N27","v":7},{"$f":"'[1]Ç. Takvim'!O27","v":14},{"$f":"'[1]Ç. Takvim'!P27","v":21},{"$f":"'[1]Ç. Takvim'!Q27","v":28},{"$f":"'[1]Ç. Takvim'!R27","v":""},{"$f":"'[1]Ç. Takvim'!S27","v":0},{"$f":"'[1]Ç. Takvim'!T27","v":4},{"$f":"'[1]Ç. Takvim'!U27","v":11},{"$f":"'[1]Ç. Takvim'!V27","v":18},{"$f":"'[1]Ç. Takvim'!W27","v":25},{"$f":"'[1]Ç. Takvim'!X27","v":""},{"$f":"'[1]Ç. Takvim'!Y27","v":0},{"$f":"'[1]Ç. Takvim'!Z27","v":2},{"$f":"'[1]Ç. Takvim'!AA27","v":9},{"$f":"'[1]Ç. Takvim'!AB27","v":16},{"$f":"'[1]Ç. Takvim'!AC27","v":23},{"$f":"'[1]Ç. Takvim'!AD27","v":30},{"$f":"'[1]Ç. Takvim'!AM7","v":0},{"$f":"'[1]Ç. Takvim'!AN7","v":6},{"$f":"'[1]Ç. Takvim'!AO7","v":13},{"$f":"'[1]Ç. Takvim'!AP7","v":20},{"$f":"'[1]Ç. Takvim'!AQ7","v":27},{"$f":"'[1]Ç. Takvim'!AR7","v":""}]
[null,null,"Perşembe",null,null,null,{"$f":"IF(G9>0,G9+1,IF(G$6=4,1,0))","v":4},11,18,25,{"$f":"IF(H10+21>31,\"\",H10+21)","v":""},null,{"$f":"IF(M9>0,M9+1,IF(M$6=4,1,0))","v":1},8,15,22,29,null,{"$f":"IF(S9>0,S9+1,IF(S$6=4,1,0))","v":0},7,14,21,{"$f":"IF(T10+21>31,\"\",T10+21)","v":28},"",{"$f":"IF(Y9>0,Y9+1,IF(Y$6=4,1,0))","v":4},11,18,25,{"$f":"IF(Z10+21>30,\"\",Z10+21)","v":""},null,null,null,null,null,"Perşembe",null,null,null,{"$f":"IF(AM9>0,AM9+1,IF(AM$6=4,1,0))","v":2},9,16,23,{"$f":"IF(AN10+21>31,\"\",AN10+21)","v":30},null,{"$f":"IF(AS9>0,AS9+1,IF(AS$6=4,1,0))","v":0},6,13,20,27,null,{"$f":"IF(AY9>0,AY9+1,IF(AY$6=4,1,0))","v":0},6,13,20,{"$f":"IF(AZ10+21>31,\"\",AZ10+21)","v":27},"",{"$f":"IF(BE9>0,BE9+1,IF(BE$6=4,1,0))","v":3},10,17,24,{"$f":"IF(BF10+21>30,\"\",BF10+21)","v":""},null,null,null,"Salı",{"$f":"'[1]Ç. Takvim'!G28","v":0},{"$f":"'[1]Ç. Takvim'!H28","v":3},{"$f":"'[1]Ç. Takvim'!I28","v":10},{"$f":"'[1]Ç. Takvim'!J28","v":17},{"$f":"'[1]Ç. Takvim'!K28","v":24},{"$f":"'[1]Ç. Takvim'!L28","v":""},{"$f":"'[1]Ç. Takvim'!M28","v":1},{"$f":"'[1]Ç. Takvim'!N28","v":8},{"$f":"'[1]Ç. Takvim'!O28","v":15},{"$f":"'[1]Ç. Takvim'!P28","v":22},{"$f":"'[1]Ç. Takvim'!Q28","v":29},{"$f":"'[1]Ç. Takvim'!R28","v":""},{"$f":"'[1]Ç. Takvim'!S28","v":0},{"$f":"'[1]Ç. Takvim'!T28","v":5},{"$f":"'[1]Ç. Takvim'!U28","v":12},{"$f":"'[1]Ç. Takvim'!V28","v":19},{"$f":"'[1]Ç. Takvim'!W28","v":26},{"$f":"'[1]Ç. Takvim'!X28","v":""},{"$f":"'[1]Ç. Takvim'!Y28","v":0},{"$f":"'[1]Ç. Takvim'!Z28","v":3},{"$f":"'[1]Ç. Takvim'!AA28","v":10},{"$f":"'[1]Ç. Takvim'!AB28","v":17},{"$f":"'[1]Ç. Takvim'!AC28","v":24},{"$f":"'[1]Ç. Takvim'!AD28","v":31},{"$f":"'[1]Ç. Takvim'!AM8","v":0},{"$f":"'[1]Ç. Takvim'!AN8","v":7},{"$f":"'[1]Ç. Takvim'!AO8","v":14},{"$f":"'[1]Ç. Takvim'!AP8","v":21},{"$f":"'[1]Ç. Takvim'!AQ8","v":28},{"$f":"'[1]Ç. Takvim'!AR8","v":""}]
[null,null,"Cuma",null,null,null,{"$f":"IF(G10>0,G10+1,IF(G$6=5,1,0))","v":5},12,19,26,{"$f":"IF(H11+21>31,\"\",H11+21)","v":""},null,{"$f":"IF(M10>0,M10+1,IF(M$6=5,1,0))","v":2},9,16,23,"",null,{"$f":"IF(S10>0,S10+1,IF(S$6=5,1,0))","v":1},8,15,22,{"$f":"IF(T11+21>31,\"\",T11+21)","v":29},"",{"$f":"IF(Y10>0,Y10+1,IF(Y$6=5,1,0))","v":5},12,19,26,{"$f":"IF(Z11+21>30,\"\",Z11+21)","v":""},null,null,null,null,null,"Cuma",null,null,null,{"$f":"IF(AM10>0,AM10+1,IF(AM$6=5,1,0))","v":3},10,17,24,{"$f":"IF(AN11+21>31,\"\",AN11+21)","v":31},null,{"$f":"IF(AS10>0,AS10+1,IF(AS$6=5,1,0))","v":0},7,14,21,28,null,{"$f":"IF(AY10>0,AY10+1,IF(AY$6=5,1,0))","v":0},7,14,21,{"$f":"IF(AZ11+21>31,\"\",AZ11+21)","v":28},"",{"$f":"IF(BE10>0,BE10+1,IF(BE$6=5,1,0))","v":4},11,18,25,{"$f":"IF(BF11+21>30,\"\",BF11+21)","v":""},null,null,null,"Çarşamba",{"$f":"'[1]Ç. Takvim'!G29","v":0},{"$f":"'[1]Ç. Takvim'!H29","v":4},{"$f":"'[1]Ç. Takvim'!I29","v":11},{"$f":"'[1]Ç. Takvim'!J29","v":18},{"$f":"'[1]Ç. Takvim'!K29","v":25},{"$f":"'[1]Ç. Takvim'!L29","v":""},{"$f":"'[1]Ç. Takvim'!M29","v":2},{"$f":"'[1]Ç. Takvim'!N29","v":9},{"$f":"'[1]Ç. Takvim'!O29","v":16},{"$f":"'[1]Ç. Takvim'!P29","v":23},{"$f":"'[1]Ç. Takvim'!Q29","v":30},{"$f":"'[1]Ç. Takvim'!R29","v":""},{"$f":"'[1]Ç. Takvim'!S29","v":0},{"$f":"'[1]Ç. Takvim'!T29","v":6},{"$f":"'[1]Ç. Takvim'!U29","v":13},{"$f":"'[1]Ç. Takvim'!V29","v":20},{"$f":"'[1]Ç. Takvim'!W29","v":27},{"$f":"'[1]Ç. Takvim'!X29","v":""},{"$f":"'[1]Ç. Takvim'!Y29","v":0},{"$f":"'[1]Ç. Takvim'!Z29","v":4},{"$f":"'[1]Ç. Takvim'!AA29","v":11},{"$f":"'[1]Ç. Takvim'!AB29","v":18},{"$f":"'[1]Ç. Takvim'!AC29","v":25},{"$f":"'[1]Ç. Takvim'!AD29","v":""},{"$f":"'[1]Ç. Takvim'!AM9","v":1},{"$f":"'[1]Ç. Takvim'!AN9","v":8},{"$f":"'[1]Ç. Takvim'!AO9","v":15},{"$f":"'[1]Ç. Takvim'!AP9","v":22},{"$f":"'[1]Ç. Takvim'!AQ9","v":29},{"$f":"'[1]Ç. Takvim'!AR9","v":0}]
[null,null,"Cumartesi",null,null,null,{"$f":"IF(G11>0,G11+1,IF(G$6=6,1,0))","v":6},13,20,27,{"$f":"IF(H12+21>31,\"\",H12+21)","v":""},null,{"$f":"IF(M11>0,M11+1,IF(M$6=6,1,0))","v":3},10,17,24,"",null,{"$f":"IF(S11>0,S11+1,IF(S$6=6,1,0))","v":2},9,16,23,{"$f":"IF(T12+21>31,\"\",T12+21)","v":30},"",{"$f":"IF(Y11>0,Y11+1,IF(Y$6=6,1,0))","v":6},13,20,27,{"$f":"IF(Z12+21>30,\"\",Z12+21)","v":""},null,null,null,null,null,"Cumartesi",null,null,null,{"$f":"IF(AM11>0,AM11+1,IF(AM$6=6,1,0))","v":4},11,18,25,{"$f":"IF(AN12+21>31,\"\",AN12+21)","v":""},null,{"$f":"IF(AS11>0,AS11+1,IF(AS$6=6,1,0))","v":1},8,15,22,29,null,{"$f":"IF(AY11>0,AY11+1,IF(AY$6=6,1,0))","v":1},8,15,22,{"$f":"IF(AZ12+21>31,\"\",AZ12+21)","v":29},"",{"$f":"IF(BE11>0,BE11+1,IF(BE$6=6,1,0))","v":5},12,19,26,{"$f":"IF(BF12+21>30,\"\",BF12+21)","v":""},null,null,null,"Perşembe",{"$f":"'[1]Ç. Takvim'!G30","v":0},{"$f":"'[1]Ç. Takvim'!H30","v":5},{"$f":"'[1]Ç. Takvim'!I30","v":12},{"$f":"'[1]Ç. Takvim'!J30","v":19},{"$f":"'[1]Ç. Takvim'!K30","v":26},{"$f":"'[1]Ç. Takvim'!L30","v":""},{"$f":"'[1]Ç. Takvim'!M30","v":3},{"$f":"'[1]Ç. Takvim'!N30","v":10},{"$f":"'[1]Ç. Takvim'!O30","v":17},{"$f":"'[1]Ç. Takvim'!P30","v":24},{"$f":"'[1]Ç. Takvim'!Q30","v":31},{"$f":"'[1]Ç. Takvim'!R30","v":0},{"$f":"'[1]Ç. Takvim'!S30","v":0},{"$f":"'[1]Ç. Takvim'!T30","v":7},{"$f":"'[1]Ç. Takvim'!U30","v":14},{"$f":"'[1]Ç. Takvim'!V30","v":21},{"$f":"'[1]Ç. Takvim'!W30","v":28},{"$f":"'[1]Ç. Takvim'!X30","v":""},{"$f":"'[1]Ç. Takvim'!Y30","v":0},{"$f":"'[1]Ç. Takvim'!Z30","v":5},{"$f":"'[1]Ç. Takvim'!AA30","v":12},{"$f":"'[1]Ç. Takvim'!AB30","v":19},{"$f":"'[1]Ç. Takvim'!AC30","v":26},{"$f":"'[1]Ç. Takvim'!AD30","v":""},{"$f":"'[1]Ç. Takvim'!AM10","v":2},{"$f":"'[1]Ç. Takvim'!AN10","v":9},{"$f":"'[1]Ç. Takvim'!AO10","v":16},{"$f":"'[1]Ç. Takvim'!AP10","v":23},{"$f":"'[1]Ç. Takvim'!AQ10","v":30},{"$f":"'[1]Ç. Takvim'!AR10","v":0}]
[null,null,"Pazar ",null,null,null,{"$f":"IF(G12>0,G12+1,IF(G$6=7,1,0))","v":7},14,21,28,{"$f":"IF(H13+21>31,\"\",H13+21)","v":""},null,{"$f":"IF(M12>0,M12+1,IF(M$6=7,1,0))","v":4},11,18,25,"",null,{"$f":"IF(S12>0,S12+1,IF(S$6=7,1,0))","v":3},10,17,24,{"$f":"IF(T13+21>31,\"\",T13+21)","v":31},"",{"$f":"IF(Y12>0,Y12+1,IF(Y$6=7,1,0))","v":7},14,21,28,{"$f":"IF(Z13+21>30,\"\",Z13+21)","v":""},null,null,null,null,null,"Pazar ",null,null,null,{"$f":"IF(AM12>0,AM12+1,IF(AM$6=7,1,0))","v":5},12,19,26,{"$f":"IF(AN13+21>31,\"\",AN13+21)","v":""},null,{"$f":"IF(AS12>0,AS12+1,IF(AS$6=7,1,0))","v":2},9,16,23,"",null,{"$f":"IF(AY12>0,AY12+1,IF(AY$6=7,1,0))","v":2},9,16,23,{"$f":"IF(AZ13+21>31,\"\",AZ13+21)","v":30},"",{"$f":"IF(BE12>0,BE12+1,IF(BE$6=7,1,0))","v":6},13,20,27,{"$f":"IF(BF13+21>30,\"\",BF13+21)","v":""},null,null,null,"Cuma",{"$f":"'[1]Ç. Takvim'!G31","v":0},{"$f":"'[1]Ç. Takvim'!H31","v":6},{"$f":"'[1]Ç. Takvim'!I31","v":13},{"$f":"'[1]Ç. Takvim'!J31","v":20},{"$f":"'[1]Ç. Takvim'!K31","v":27},{"$f":"'[1]Ç. Takvim'!L31","v":0},{"$f":"'[1]Ç. Takvim'!M31","v":4},{"$f":"'[1]Ç. Takvim'!N31","v":11},{"$f":"'[1]Ç. Takvim'!O31","v":18},{"$f":"'[1]Ç. Takvim'!P31","v":25},{"$f":"'[1]Ç. Takvim'!Q31","v":""},{"$f":"'[1]Ç. Takvim'!R31","v":0},{"$f":"'[1]Ç. Takvim'!S31","v":1},{"$f":"'[1]Ç. Takvim'!T31","v":8},{"$f":"'[1]Ç. Takvim'!U31","v":15},{"$f":"'[1]Ç. Takvim'!V31","v":22},{"$f":"'[1]Ç. Takvim'!W31","v":29},{"$f":"'[1]Ç. Takvim'!X31","v":""},{"$f":"'[1]Ç. Takvim'!Y31","v":0},{"$f":"'[1]Ç. Takvim'!Z31","v":6},{"$f":"'[1]Ç. Takvim'!AA31","v":13},{"$f":"'[1]Ç. Takvim'!AB31","v":20},{"$f":"'[1]Ç. Takvim'!AC31","v":27},{"$f":"'[1]Ç. Takvim'!AD31","v":""},{"$f":"'[1]Ç. Takvim'!AM11","v":3},{"$f":"'[1]Ç. Takvim'!AN11","v":10},{"$f":"'[1]Ç. Takvim'!AO11","v":17},{"$f":"'[1]Ç. Takvim'!AP11","v":24},{"$f":"'[1]Ç. Takvim'!AQ11","v":31},{"$f":"'[1]Ç. Takvim'!AR11","v":0}]
[null,null,null,null,null,null,null,null,null,null,null,null,null,null,null,null,null,null,null,null,null,null,null,null,null,null,null,null,null,null,null,null,null,null,null,null,null,null,null,null,null,null,null,null,null,null,null,null,null,null,null,null,null,null,null,null,null,null,null,null,null,null,null,null,"Cumartesi",{"$f":"'[1]Ç. Takvim'!G32","v":0},{"$f":"'[1]Ç. Takvim'!H32","v":7},{"$f":"'[1]Ç. Takvim'!I32","v":14},{"$f":"'[1]Ç. Takvim'!J32","v":21},{"$f":"'[1]Ç. Takvim'!K32","v":28},{"$f":"'[1]Ç. Takvim'!L32","v":0},{"$f":"'[1]Ç. Takvim'!M32","v":5},{"$f":"'[1]Ç. Takvim'!N32","v":12},{"$f":"'[1]Ç. Takvim'!O32","v":19},{"$f":"'[1]Ç. Takvim'!P32","v":26},{"$f":"'[1]Ç. Takvim'!Q32","v":""},{"$f":"'[1]Ç. Takvim'!R32","v":0},{"$f":"'[1]Ç. Takvim'!S32","v":2},{"$f":"'[1]Ç. Takvim'!T32","v":9},{"$f":"'[1]Ç. Takvim'!U32","v":16},{"$f":"'[1]Ç. Takvim'!V32","v":23},{"$f":"'[1]Ç. Takvim'!W32","v":30},{"$f":"'[1]Ç. Takvim'!X32","v":0},{"$f":"'[1]Ç. Takvim'!Y32","v":0},{"$f":"'[1]Ç. Takvim'!Z32","v":7},{"$f":"'[1]Ç. Takvim'!AA32","v":14},{"$f":"'[1]Ç. Takvim'!AB32","v":21},{"$f":"'[1]Ç. Takvim'!AC32","v":28},{"$f":"'[1]Ç. Takvim'!AD32","v":""},{"$f":"'[1]Ç. Takvim'!AM12","v":4},{"$f":"'[1]Ç. Takvim'!AN12","v":11},{"$f":"'[1]Ç. Takvim'!AO12","v":18},{"$f":"'[1]Ç. Takvim'!AP12","v":25},{"$f":"'[1]Ç. Takvim'!AQ12","v":""},{"$f":"'[1]Ç. Takvim'!AR12","v":0}]
[null,null,null,null,null,null,"MAYIS",null,null,null,null,null,"HAZİRAN",null,null,null,null,null,"TEMMUZ",null,null,null,null,null,"AĞUSTOS",null,null,null,null,null,null,null,null,null,null,null,null,null,"MAYIS",null,null,null,null,null,"HAZİRAN",null,null,null,null,null,"TEMMUZ",null,null,null,null,null,"AĞUSTOS",null,null,null,null,null,null,null,"Pazar",{"$f":"'[1]Ç. Takvim'!G33","v":1},{"$f":"'[1]Ç. Takvim'!H33","v":8},{"$f":"'[1]Ç. Takvim'!I33","v":15},{"$f":"'[1]Ç. Takvim'!J33","v":22},{"$f":"'[1]Ç. Takvim'!K33","v":29},{"$f":"'[1]Ç. Takvim'!L33","v":0},{"$f":"'[1]Ç. Takvim'!M33","v":6},{"$f":"'[1]Ç. Takvim'!N33","v":13},{"$f":"'[1]Ç. Takvim'!O33","v":20},{"$f":"'[1]Ç. Takvim'!P33","v":27},{"$f":"'[1]Ç. Takvim'!Q33","v":""},{"$f":"'[1]Ç. Takvim'!R33","v":0},{"$f":"'[1]Ç. Takvim'!S33","v":3},{"$f":"'[1]Ç. Takvim'!T33","v":10},{"$f":"'[1]Ç. Takvim'!U33","v":17},{"$f":"'[1]Ç. Takvim'!V33","v":24},{"$f":"'[1]Ç. Takvim'!W33","v":""},{"$f":"'[1]Ç. Takvim'!X33","v":0},{"$f":"'[1]Ç. Takvim'!Y33","v":1},{"$f":"'[1]Ç. Takvim'!Z33","v":8},{"$f":"'[1]Ç. Takvim'!AA33","v":15},{"$f":"'[1]Ç. Takvim'!AB33","v":22},{"$f":"'[1]Ç. Takvim'!AC33","v":29},{"$f":"'[1]Ç. Takvim'!AD33","v":0},{"$f":"'[1]Ç. Takvim'!AM13","v":5},{"$f":"'[1]Ç. Takvim'!AN13","v":12},{"$f":"'[1]Ç. Takvim'!AO13","v":19},{"$f":"'[1]Ç. Takvim'!AP13","v":26},{"$f":"'[1]Ç. Takvim'!AQ13","v":""},{"$f":"'[1]Ç. Takvim'!AR13","v":0}]
[null,null,null,null,null,null,{"$f":"WEEKDAY(\"1/5/\"&yil,2)","v":3},null,null,null,null,null,{"$f":"WEEKDAY(\"1/6/\"&yıl,2)","v":6},null,null,null,null,null,{"$f":"WEEKDAY(\"1/7/\"&yıl,2)","v":1},null,null,null,null,null,{"$f":"WEEKDAY(\"1/8/\"&yıl,2)","v":4},null,null,null,null,null,null,null,null,null,null,null,null,null,{"$f":"WEEKDAY(\"1/5/\"&Yil2,2)","v":4},null,null,null,null,null,{"$f":"WEEKDAY(\"1/6/\"&Yıl2,2)","v":7},null,null,null,null,null,{"$f":"WEEKDAY(\"1/7/\"&Yıl2,2)","v":2},null,null,null,null,null,{"$f":"WEEKDAY(\"1/8/\"&Yıl2,2)","v":5},null,null,null,null,null,null,null,null,null,null,null,null,null,null,null,null,null,null,null,null,null,null,"A.T."]
[null,null,"Pazartesi",null,null,null,{"$f":"IF(G16=1,1,0)","v":0},{"$f":"G23+1","v":6},{"$f":"H17+7","v":13},{"$f":"H17+14","v":20},{"$f":"H17+21","v":27},{"$f":"IF(H17+28>31,\"\",H17+28)","v":""},{"$f":"IF(M16=1,1,0)","v":0},{"$f":"M23+1","v":3},{"$f":"N17+7","v":10},{"$f":"N17+14","v":17},{"$f":"N17+21","v":24},{"$f":"IF(N17+28>30,\"\",N17+28)","v":""},{"$f":"IF(S16=1,1,0)","v":1},{"$f":"S23+1","v":8},{"$f":"T17+7","v":15},{"$f":"T17+14","v":22},{"$f":"T17+21","v":29},{"$f":"IF(T17+28>31,\"\",T17+28)","v":""},{"$f":"IF(Y16=1,1,0)","v":0},{"$f":"Y23+1","v":5},{"$f":"Z17+7","v":12},{"$f":"Z17+14","v":19},{"$f":"Z17+21","v":26},{"$f":"IF(Z17+28>31,\"\",Z17+28)","v":""},null,null,null,null,"Pazartesi",null,null,null,{"$f":"IF(AM16=1,1,0)","v":0},{"$f":"AM23+1","v":5},{"$f":"AN17+7","v":12},{"$f":"AN17+14","v":19},{"$f":"AN17+21","v":26},{"$f":"IF(AN17+28>31,\"\",AN17+28)","v":""},{"$f":"IF(AS16=1,1,0)","v":0},{"$f":"AS23+1","v":2},{"$f":"AT17+7","v":9},{"$f":"AT17+14","v":16},{"$f":"AT17+21","v":23},{"$f":"IF(AT17+28>30,\"\",AT17+28)","v":30},{"$f":"IF(AY16=1,1,0)","v":0},{"$f":"AY23+1","v":7},{"$f":"AZ17+7","v":14},{"$f":"AZ17+14","v":21},{"$f":"AZ17+21","v":28},{"$f":"IF(AZ17+28>31,\"\",AZ17+28)","v":""},{"$f":"IF(BE16=1,1,0)","v":0},{"$f":"BE23+1","v":4},{"$f":"BF17+7","v":11},{"$f":"BF17+14","v":18},{"$f":"BF17+21","v":25},{"$f":"IF(BF17+28>31,\"\",BF17+28)","v":""},null,null,"Öğretmenler Kurulu :",null,null,null,"02 Eylül 2024 ; Saat:10.00",null,null,null,null,null,null,null,null,null,"Cumhuriyet Bayramı : 28 Ekim öğleden sonra başlar…"]
[null,null,"Salı",null,null,null,{"$f":"IF(G17>0,G17+1,IF(G$16=2,1,0))","v":0},{"$f":"H17+1","v":7},{"$f":"H18+7","v":14},{"$f":"H18+14","v":21},{"$f":"H18+21","v":28},{"$f":"IF(H18+28>31,\"\",H18+28)","v":""},{"$f":"IF(M17>0,M17+1,IF(M$16=2,1,0))","v":0},{"$f":"N17+1","v":4},{"$f":"N18+7","v":11},{"$f":"N18+14","v":18},{"$f":"N18+21","v":25},{"$f":"IF(N18+28>30,\"\",N18+28)","v":""},{"$f":"IF(S17>0,S17+1,IF(S$16=2,1,0))","v":2},{"$f":"T17+1","v":9},{"$f":"T18+7","v":16},{"$f":"T18+14","v":23},{"$f":"T18+21","v":30},{"$f":"IF(T18+28>31,\"\",T18+28)","v":""},{"$f":"IF(Y17>0,Y17+1,IF(Y$16=2,1,0))","v":0},{"$f":"Z17+1","v":6},{"$f":"Z18+7","v":13},{"$f":"Z18+14","v":20},{"$f":"Z18+21","v":27},{"$f":"IF(Z18+28>31,\"\",Z18+28)","v":""},null,null,null,null,"Salı",null,null,null,{"$f":"IF(AM17>0,AM17+1,IF(AM$16=2,1,0))","v":0},{"$f":"AN17+1","v":6},{"$f":"AN18+7","v":13},{"$f":"AN18+14","v":20},{"$f":"AN18+21","v":27},{"$f":"IF(AN18+28>31,\"\",AN18+28)","v":""},{"$f":"IF(AS17>0,AS17+1,IF(AS$16=2,1,0))","v":0},{"$f":"AT17+1","v":3},{"$f":"AT18+7","v":10},{"$f":"AT18+14","v":17},{"$f":"AT18+21","v":24},{"$f":"IF(AT18+28>30,\"\",AT18+28)","v":""},{"$f":"IF(AY17>0,AY17+1,IF(AY$16=2,1,0))","v":1},{"$f":"AZ17+1","v":8},{"$f":"AZ18+7","v":15},{"$f":"AZ18+14","v":22},{"$f":"AZ18+21","v":29},{"$f":"IF(AZ18+28>31,\"\",AZ18+28)","v":""},{"$f":"IF(BE17>0,BE17+1,IF(BE$16=2,1,0))","v":0},{"$f":"BF17+1","v":5},{"$f":"BF18+7","v":12},{"$f":"BF18+14","v":19},{"$f":"BF18+21","v":26},{"$f":"IF(BF18+28>31,\"\",BF18+28)","v":""},null,null,"Toplam İş günü",{"$f":"SUM(BP18:CQ18)","v":90},null,{"$f":"[1]Ç.Takvimi!AR18","v":5},{"$f":"[1]Ç.Takvimi!AS18","v":5},{"$f":"[1]Ç.Takvimi!AT18","v":5},1,{"$f":"[1]Ç.Takvimi!AV18","v":4},{"$f":"[1]Ç.Takvimi!AW18","v":5},{"$f":"[1]Ç.Takvimi!AX18","v":5},{"$f":"[1]Ç.Takvimi!AY18","v":5},4,null,{"$f":"[1]Ç.Takvimi!BB18","v":1},{"$f":"[1]Ç.Takvimi!BC18","v":5},0,{"$f":"[1]Ç.Takvimi!BE18","v":5},{"$f":"[1]Ç.Takvimi!BF18","v":5},null,{"$f":"[1]Ç.Takvimi!BH18","v":0},{"$f":"[1]Ç.Takvimi!BI18","v":5},{"$f":"[1]Ç.Takvimi!BJ18","v":5},{"$f":"[1]Ç.Takvimi!BK18","v":5},{"$f":"[1]Ç.Takvimi!BL18","v":5},2,{"$f":"[1]Ç.Takvimi!BN18","v":3},{"$f":"[1]Ç.Takvimi!BO18","v":5},{"$f":"[1]Ç.Takvimi!BP18","v":5}]
[null,null,"Çarşamba",null,null,null,{"$f":"IF(G18>0,G18+1,IF(G$16=3,1,0))","v":1},8,15,22,{"$f":"H19+21","v":29},{"$f":"IF(H19+28>31,\"\",H19+28)","v":""},{"$f":"IF(M18>0,M18+1,IF(M$16=3,1,0))","v":0},5,12,19,{"$f":"IF(N19+21>30,\"\",N19+21)","v":26},{"$f":"IF(N19+28>30,\"\",N19+28)","v":""},{"$f":"IF(S18>0,S18+1,IF(S$16=3,1,0))","v":3},10,17,24,{"$f":"IF(T19+21>31,\"\",T19+21)","v":31},"",{"$f":"IF(Y18>0,Y18+1,IF(Y$16=3,1,0))","v":0},7,14,21,{"$f":"Z19+21","v":28},{"$f":"IF(Z19+28>31,\"\",Z19+28)","v":""},null,null,null,null,"Çarşamba",null,null,null,{"$f":"IF(AM18>0,AM18+1,IF(AM$16=3,1,0))","v":0},7,14,21,{"$f":"AN19+21","v":28},{"$f":"IF(AN19+28>31,\"\",AN19+28)","v":""},{"$f":"IF(AS18>0,AS18+1,IF(AS$16=3,1,0))","v":0},4,11,18,{"$f":"IF(AT19+21>30,\"\",AT19+21)","v":25},{"$f":"IF(AT19+28>30,\"\",AT19+28)","v":""},{"$f":"IF(AY18>0,AY18+1,IF(AY$16=3,1,0))","v":2},9,16,23,{"$f":"IF(AZ19+21>31,\"\",AZ19+21)","v":30},"",{"$f":"IF(BE18>0,BE18+1,IF(BE$16=3,1,0))","v":0},6,13,20,{"$f":"BF19+21","v":27},{"$f":"IF(BF19+28>31,\"\",BF19+28)","v":""}]
[null,null,"Perşembe",null,null,null,{"$f":"IF(G19>0,G19+1,IF(G$16=4,1,0))","v":2},9,16,23,{"$f":"IF(H20+21>31,\"\",H20+21)","v":30},{"$f":"IF(H20+28>31,\"\",H20+28)","v":""},{"$f":"IF(M19>0,M19+1,IF(M$16=4,1,0))","v":0},6,13,20,{"$f":"IF(N20+21>30,\"\",N20+21)","v":27},{"$f":"IF(N20+28>30,\"\",N20+28)","v":""},{"$f":"IF(S19>0,S19+1,IF(S$16=4,1,0))","v":4},11,18,25,{"$f":"IF(T20+21>31,\"\",T20+21)","v":""},"",{"$f":"IF(Y19>0,Y19+1,IF(Y$16=4,1,0))","v":1},8,15,22,{"$f":"IF(Z20+21>31,\"\",Z20+21)","v":29},null,null,null,null,null,"Perşembe",null,null,null,{"$f":"IF(AM19>0,AM19+1,IF(AM$16=4,1,0))","v":1},8,15,22,{"$f":"IF(AN20+21>31,\"\",AN20+21)","v":29},{"$f":"IF(AN20+28>31,\"\",AN20+28)","v":""},{"$f":"IF(AS19>0,AS19+1,IF(AS$16=4,1,0))","v":0},5,12,19,{"$f":"IF(AT20+21>30,\"\",AT20+21)","v":26},{"$f":"IF(AT20+28>30,\"\",AT20+28)","v":""},{"$f":"IF(AY19>0,AY19+1,IF(AY$16=4,1,0))","v":3},10,17,24,{"$f":"IF(AZ20+21>31,\"\",AZ20+21)","v":31},"",{"$f":"IF(BE19>0,BE19+1,IF(BE$16=4,1,0))","v":0},7,14,21,{"$f":"IF(BF20+21>31,\"\",BF20+21)","v":28},null,null,null,"2.",2025,null,null,null,null,null,{"$f":"BN20","v":2025},null,null,null,null,null,{"$f":"BT20","v":2025},null,null,null,null,null,{"$f":"BZ20","v":2025},null,null,null,null,null,{"$f":"CF20","v":2025}]
[null,null,"Cuma",null,null,null,{"$f":"IF(G20>0,G20+1,IF(G$16=5,1,0))","v":3},10,17,24,{"$f":"IF(H21+21>31,\"\",H21+21)","v":31},null,{"$f":"IF(M20>0,M20+1,IF(M$16=5,1,0))","v":0},7,14,21,{"$f":"IF(N21+21>30,\"\",N21+21)","v":28},null,{"$f":"IF(S20>0,S20+1,IF(S$16=5,1,0))","v":5},12,19,26,{"$f":"IF(T21+21>31,\"\",T21+21)","v":""},"",{"$f":"IF(Y20>0,Y20+1,IF(Y$16=5,1,0))","v":2},9,16,23,{"$f":"IF(Z21+21>31,\"\",Z21+21)","v":30},null,null,null,null,null,"Cuma",null,null,null,{"$f":"IF(AM20>0,AM20+1,IF(AM$16=5,1,0))","v":2},9,16,23,{"$f":"IF(AN21+21>31,\"\",AN21+21)","v":30},null,{"$f":"IF(AS20>0,AS20+1,IF(AS$16=5,1,0))","v":0},6,13,20,{"$f":"IF(AT21+21>30,\"\",AT21+21)","v":27},null,{"$f":"IF(AY20>0,AY20+1,IF(AY$16=5,1,0))","v":4},11,18,25,{"$f":"IF(AZ21+21>31,\"\",AZ21+21)","v":""},"",{"$f":"IF(BE20>0,BE20+1,IF(BE$16=5,1,0))","v":1},8,15,22,{"$f":"IF(BF21+21>31,\"\",BF21+21)","v":29},null,null,null,"Dönem","Şubat",null,null,null,null,null,"Mart",null,null,null,null,null,"Nisan",null,null,null,null,null,"Mayıs",null,null,null,null,null,"Haziran"]
[null,null,"Cumartesi",null,null,null,{"$f":"IF(G21>0,G21+1,IF(G$16=6,1,0))","v":4},11,18,25,{"$f":"IF(H22+21>31,\"\",H22+21)","v":""},null,{"$f":"IF(M21>0,M21+1,IF(M$16=6,1,0))","v":1},8,15,22,{"$f":"IF(N22+21>30,\"\",N22+21)","v":29},null,{"$f":"IF(S21>0,S21+1,IF(S$16=6,1,0))","v":6},13,20,27,{"$f":"IF(T22+21>31,\"\",T22+21)","v":""},"",{"$f":"IF(Y21>0,Y21+1,IF(Y$16=6,1,0))","v":3},10,17,24,{"$f":"IF(Z22+21>31,\"\",Z22+21)","v":31},null,null,null,null,null,"Cumartesi",null,null,null,{"$f":"IF(AM21>0,AM21+1,IF(AM$16=6,1,0))","v":3},10,17,24,{"$f":"IF(AN22+21>31,\"\",AN22+21)","v":31},null,{"$f":"IF(AS21>0,AS21+1,IF(AS$16=6,1,0))","v":0},7,14,21,{"$f":"IF(AT22+21>30,\"\",AT22+21)","v":28},null,{"$f":"IF(AY21>0,AY21+1,IF(AY$16=6,1,0))","v":5},12,19,26,{"$f":"IF(AZ22+21>31,\"\",AZ22+21)","v":""},"",{"$f":"IF(BE21>0,BE21+1,IF(BE$16=6,1,0))","v":2},9,16,23,{"$f":"IF(BF22+21>31,\"\",BF22+21)","v":30},null,null,null,"Pazartesi",{"$f":"'[1]Ç. Takvim'!AS7","v":0},{"$f":"'[1]Ç. Takvim'!AT7","v":3},{"$f":"'[1]Ç. Takvim'!AU7","v":10},{"$f":"'[1]Ç. Takvim'!AV7","v":17},{"$f":"'[1]Ç. Takvim'!AW7","v":24},{"$f":"'[1]Ç. Takvim'!AX7","v":0},{"$f":"'[1]Ç. Takvim'!AY7","v":0},{"$f":"'[1]Ç. Takvim'!AZ7","v":3},{"$f":"'[1]Ç. Takvim'!BA7","v":10},{"$f":"'[1]Ç. Takvim'!BB7","v":17},{"$f":"'[1]Ç. Takvim'!BC7","v":24},{"$f":"'[1]Ç. Takvim'!BD7","v":31},{"$f":"'[1]Ç. Takvim'!BE7","v":0},{"$f":"'[1]Ç. Takvim'!BF7","v":7},{"$f":"'[1]Ç. Takvim'!BG7","v":14},{"$f":"'[1]Ç. Takvim'!BH7","v":21},{"$f":"'[1]Ç. Takvim'!BI7","v":28},{"$f":"'[1]Ç. Takvim'!BJ7","v":""},{"$f":"'[1]Ç. Takvim'!AM17","v":0},{"$f":"'[1]Ç. Takvim'!AN17","v":5},{"$f":"'[1]Ç. Takvim'!AO17","v":12},{"$f":"'[1]Ç. Takvim'!AP17","v":19},{"$f":"'[1]Ç. Takvim'!AQ17","v":26},{"$f":"'[1]Ç. Takvim'!AR17","v":""},{"$f":"'[1]Ç. Takvim'!AS17","v":0},{"$f":"'[1]Ç. Takvim'!AT17","v":2},{"$f":"'[1]Ç. Takvim'!AU17","v":9},{"$f":"'[1]Ç. Takvim'!AV17","v":16},{"$f":"'[1]Ç. Takvim'!AW17","v":23},{"$f":"'[1]Ç. Takvim'!AX17","v":30}]
[null,null,"Pazar ",null,null,null,{"$f":"IF(G22>0,G22+1,IF(G$16=7,1,0))","v":5},12,19,26,{"$f":"IF(H23+21>31,\"\",H23+21)","v":""},null,{"$f":"IF(M22>0,M22+1,IF(M$16=7,1,0))","v":2},9,16,23,{"$f":"IF(N23+21>30,\"\",N23+21)","v":30},null,{"$f":"IF(S22>0,S22+1,IF(S$16=7,1,0))","v":7},14,21,28,{"$f":"IF(T23+21>31,\"\",T23+21)","v":""},"",{"$f":"IF(Y22>0,Y22+1,IF(Y$16=7,1,0))","v":4},11,18,25,{"$f":"IF(Z23+21>31,\"\",Z23+21)","v":""},null,null,null,null,null,"Pazar ",null,null,null,{"$f":"IF(AM22>0,AM22+1,IF(AM$16=7,1,0))","v":4},11,18,25,{"$f":"IF(AN23+21>31,\"\",AN23+21)","v":""},null,{"$f":"IF(AS22>0,AS22+1,IF(AS$16=7,1,0))","v":1},8,15,22,{"$f":"IF(AT23+21>30,\"\",AT23+21)","v":29},null,{"$f":"IF(AY22>0,AY22+1,IF(AY$16=7,1,0))","v":6},13,20,27,{"$f":"IF(AZ23+21>31,\"\",AZ23+21)","v":""},"",{"$f":"IF(BE22>0,BE22+1,IF(BE$16=7,1,0))","v":3},10,17,24,{"$f":"IF(BF23+21>31,\"\",BF23+21)","v":31},null,null,null,"Salı",{"$f":"'[1]Ç. Takvim'!AS8","v":0},{"$f":"'[1]Ç. Takvim'!AT8","v":4},{"$f":"'[1]Ç. Takvim'!AU8","v":11},{"$f":"'[1]Ç. Takvim'!AV8","v":18},{"$f":"'[1]Ç. Takvim'!AW8","v":25},{"$f":"'[1]Ç. Takvim'!AX8","v":0},{"$f":"'[1]Ç. Takvim'!AY8","v":0},{"$f":"'[1]Ç. Takvim'!AZ8","v":4},{"$f":"'[1]Ç. Takvim'!BA8","v":11},{"$f":"'[1]Ç. Takvim'!BB8","v":18},{"$f":"'[1]Ç. Takvim'!BC8","v":25},{"$f":"'[1]Ç. Takvim'!BD8","v":""},{"$f":"'[1]Ç. Takvim'!BE8","v":1},{"$f":"'[1]Ç. Takvim'!BF8","v":8},{"$f":"'[1]Ç. Takvim'!BG8","v":15},{"$f":"'[1]Ç. Takvim'!BH8","v":22},{"$f":"'[1]Ç. Takvim'!BI8","v":29},{"$f":"'[1]Ç. Takvim'!BJ8","v":""},{"$f":"'[1]Ç. Takvim'!AM18","v":0},{"$f":"'[1]Ç. Takvim'!AN18","v":6},{"$f":"'[1]Ç. Takvim'!AO18","v":13},{"$f":"'[1]Ç. Takvim'!AP18","v":20},{"$f":"'[1]Ç. Takvim'!AQ18","v":27},{"$f":"'[1]Ç. Takvim'!AR18","v":""},{"$f":"'[1]Ç. Takvim'!AS18","v":0},{"$f":"'[1]Ç. Takvim'!AT18","v":3},{"$f":"'[1]Ç. Takvim'!AU18","v":10},{"$f":"'[1]Ç. Takvim'!AV18","v":17},{"$f":"'[1]Ç. Takvim'!AW18","v":24},{"$f":"'[1]Ç. Takvim'!AX18","v":""}]
[null,null,null,null,null,null,null,null,null,null,null,null,null,null,null,null,null,null,null,null,null,null,null,null,null,null,null,null,null,null,null,null,null,null,null,null,null,null,null,null,null,null,null,null,null,null,null,null,null,null,null,null,null,null,null,null,null,null,null,null,null,null,null,null,"Çarşamba",{"$f":"'[1]Ç. Takvim'!AS9","v":0},{"$f":"'[1]Ç. Takvim'!AT9","v":5},{"$f":"'[1]Ç. Takvim'!AU9","v":12},{"$f":"'[1]Ç. Takvim'!AV9","v":19},{"$f":"'[1]Ç. Takvim'!AW9","v":26},{"$f":"'[1]Ç. Takvim'!AX9","v":0},{"$f":"'[1]Ç. Takvim'!AY9","v":0},{"$f":"'[1]Ç. Takvim'!AZ9","v":5},{"$f":"'[1]Ç. Takvim'!BA9","v":12},{"$f":"'[1]Ç. Takvim'!BB9","v":19},{"$f":"'[1]Ç. Takvim'!BC9","v":26},{"$f":"'[1]Ç. Takvim'!BD9","v":""},{"$f":"'[1]Ç. Takvim'!BE9","v":2},{"$f":"'[1]Ç. Takvim'!BF9","v":9},{"$f":"'[1]Ç. Takvim'!BG9","v":16},{"$f":"'[1]Ç. Takvim'!BH9","v":23},{"$f":"'[1]Ç. Takvim'!BI9","v":30},{"$f":"'[1]Ç. Takvim'!BJ9","v":""},{"$f":"'[1]Ç. Takvim'!AM19","v":0},{"$f":"'[1]Ç. Takvim'!AN19","v":7},{"$f":"'[1]Ç. Takvim'!AO19","v":14},{"$f":"'[1]Ç. Takvim'!AP19","v":21},{"$f":"'[1]Ç. Takvim'!AQ19","v":28},{"$f":"'[1]Ç. Takvim'!AR19","v":""},{"$f":"'[1]Ç. Takvim'!AS19","v":0},{"$f":"'[1]Ç. Takvim'!AT19","v":4},{"$f":"'[1]Ç. Takvim'!AU19","v":11},{"$f":"'[1]Ç. Takvim'!AV19","v":18},{"$f":"'[1]Ç. Takvim'!AW19","v":25},{"$f":"'[1]Ç. Takvim'!AX19","v":""}]
[null,null,null,null,null,null,"EYLÜL",null,null,null,null,null,"EKİM",null,null,null,null,null,"KASIM",null,null,null,null,null,"ARALIK",null,null,null,null,null,null,null,null,null,null,null,null,null,"EYLÜL",null,null,null,null,null,"EKİM",null,null,null,null,null,"KASIM",null,null,null,null,null,"ARALIK",null,null,null,null,null,null,null,"Perşembe",{"$f":"'[1]Ç. Takvim'!AS10","v":0},{"$f":"'[1]Ç. Takvim'!AT10","v":6},{"$f":"'[1]Ç. Takvim'!AU10","v":13},{"$f":"'[1]Ç. Takvim'!AV10","v":20},{"$f":"'[1]Ç. Takvim'!AW10","v":27},{"$f":"'[1]Ç. Takvim'!AX10","v":0},{"$f":"'[1]Ç. Takvim'!AY10","v":0},{"$f":"'[1]Ç. Takvim'!AZ10","v":6},{"$f":"'[1]Ç. Takvim'!BA10","v":13},{"$f":"'[1]Ç. Takvim'!BB10","v":20},{"$f":"'[1]Ç. Takvim'!BC10","v":27},{"$f":"'[1]Ç. Takvim'!BD10","v":""},{"$f":"'[1]Ç. Takvim'!BE10","v":3},{"$f":"'[1]Ç. Takvim'!BF10","v":10},{"$f":"'[1]Ç. Takvim'!BG10","v":17},{"$f":"'[1]Ç. Takvim'!BH10","v":24},{"$f":"'[1]Ç. Takvim'!BI10","v":""},{"$f":"'[1]Ç. Takvim'!BJ10","v":0},{"$f":"'[1]Ç. Takvim'!AM20","v":1},{"$f":"'[1]Ç. Takvim'!AN20","v":8},{"$f":"'[1]Ç. Takvim'!AO20","v":15},{"$f":"'[1]Ç. Takvim'!AP20","v":22},{"$f":"'[1]Ç. Takvim'!AQ20","v":29},{"$f":"'[1]Ç. Takvim'!AR20","v":""},{"$f":"'[1]Ç. Takvim'!AS20","v":0},{"$f":"'[1]Ç. Takvim'!AT20","v":5},{"$f":"'[1]Ç. Takvim'!AU20","v":12},{"$f":"'[1]Ç. Takvim'!AV20","v":19},{"$f":"'[1]Ç. Takvim'!AW20","v":26},{"$f":"'[1]Ç. Takvim'!AX20","v":""}]
[null,null,null,null,null,null,{"$f":"WEEKDAY(\"1/9/\"&yıl,2)","v":7},null,null,null,null,null,{"$f":"WEEKDAY(\"1/10/\"&yıl,2)","v":2},null,null,null,null,null,{"$f":"WEEKDAY(\"1/11/\"&yıl,2)","v":5},null,null,null,null,null,{"$f":"WEEKDAY(\"1/12/\"&yıl,2)","v":7},null,null,null,null,null,null,null,null,null,null,null,null,null,{"$f":"WEEKDAY(\"1/9/\"&Yıl2,2)","v":1},null,null,null,null,null,{"$f":"WEEKDAY(\"1/10/\"&Yıl2,2)","v":3},null,null,null,null,null,{"$f":"WEEKDAY(\"1/11/\"&Yıl2,2)","v":6},null,null,null,null,null,{"$f":"WEEKDAY(\"1/12/\"&Yıl2,2)","v":1},null,null,null,null,null,null,null,"Cuma",{"$f":"'[1]Ç. Takvim'!AS11","v":0},{"$f":"'[1]Ç. Takvim'!AT11","v":7},{"$f":"'[1]Ç. Takvim'!AU11","v":14},{"$f":"'[1]Ç. Takvim'!AV11","v":21},{"$f":"'[1]Ç. Takvim'!AW11","v":28},{"$f":"'[1]Ç. Takvim'!AX11","v":0},{"$f":"'[1]Ç. Takvim'!AY11","v":0},{"$f":"'[1]Ç. Takvim'!AZ11","v":7},{"$f":"'[1]Ç. Takvim'!BA11","v":14},{"$f":"'[1]Ç. Takvim'!BB11","v":21},{"$f":"'[1]Ç. Takvim'!BC11","v":28},{"$f":"'[1]Ç. Takvim'!BD11","v":""},{"$f":"'[1]Ç. Takvim'!BE11","v":4},{"$f":"'[1]Ç. Takvim'!BF11","v":11},{"$f":"'[1]Ç. Takvim'!BG11","v":18},{"$f":"'[1]Ç. Takvim'!BH11","v":25},{"$f":"'[1]Ç. Takvim'!BI11","v":""},{"$f":"'[1]Ç. Takvim'!BJ11","v":0},{"$f":"'[1]Ç. Takvim'!AM21","v":2},{"$f":"'[1]Ç. Takvim'!AN21","v":9},{"$f":"'[1]Ç. Takvim'!AO21","v":16},{"$f":"'[1]Ç. Takvim'!AP21","v":23},{"$f":"'[1]Ç. Takvim'!AQ21","v":30},{"$f":"'[1]Ç. Takvim'!AR21","v":0},{"$f":"'[1]Ç. Takvim'!AS21","v":0},{"$f":"'[1]Ç. Takvim'!AT21","v":6},{"$f":"'[1]Ç. Takvim'!AU21","v":13},{"$f":"'[1]Ç. Takvim'!AV21","v":20},{"$f":"'[1]Ç. Takvim'!AW21","v":27},{"$f":"'[1]Ç. Takvim'!AX21","v":0}]
[null,null,"Pazartesi",null,null,null,{"$f":"IF(G26=1,1,0)","v":0},{"$f":"G33+1","v":2},{"$f":"H27+7","v":9},{"$f":"H27+14","v":16},{"$f":"H27+21","v":23},{"$f":"IF(H27+28>30,\"\",H27+28)","v":30},{"$f":"IF(M26=1,1,0)","v":0},{"$f":"M33+1","v":7},{"$f":"N27+7","v":14},{"$f":"N27+14","v":21},{"$f":"N27+21","v":28},{"$f":"IF(N27+28>31,\"\",N27+28)","v":""},{"$f":"IF(S26=1,1,0)","v":0},{"$f":"S33+1","v":4},{"$f":"T27+7","v":11},{"$f":"T27+14","v":18},{"$f":"T27+21","v":25},{"$f":"IF(T27+28>30,\"\",T27+28)","v":""},{"$f":"IF(Y26=1,1,0)","v":0},{"$f":"Y33+1","v":2},{"$f":"Z27+7","v":9},{"$f":"Z27+14","v":16},{"$f":"Z27+21","v":23},{"$f":"IF(Z27+28>31,\"\",Z27+28)","v":30},null,null,null,null,"Pazartesi",null,null,null,{"$f":"IF(AM26=1,1,0)","v":1},{"$f":"AM33+1","v":8},{"$f":"AN27+7","v":15},{"$f":"AN27+14","v":22},{"$f":"AN27+21","v":29},{"$f":"IF(AN27+28>30,\"\",AN27+28)","v":""},{"$f":"IF(AS26=1,1,0)","v":0},{"$f":"AS33+1","v":6},{"$f":"AT27+7","v":13},{"$f":"AT27+14","v":20},{"$f":"AT27+21","v":27},{"$f":"IF(AT27+28>31,\"\",AT27+28)","v":""},{"$f":"IF(AY26=1,1,0)","v":0},{"$f":"AY33+1","v":3},{"$f":"AZ27+7","v":10},{"$f":"AZ27+14","v":17},{"$f":"AZ27+21","v":24},{"$f":"IF(AZ27+28>30,\"\",AZ27+28)","v":""},{"$f":"IF(BE26=1,1,0)","v":1},{"$f":"BE33+1","v":8},{"$f":"BF27+7","v":15},{"$f":"BF27+14","v":22},{"$f":"BF27+21","v":29},{"$f":"IF(BF27+28>31,\"\",BF27+28)","v":""},null,null,"Cumartesi",{"$f":"'[1]Ç. Takvim'!AS12","v":1},{"$f":"'[1]Ç. Takvim'!AT12","v":8},{"$f":"'[1]Ç. Takvim'!AU12","v":15},{"$f":"'[1]Ç. Takvim'!AV12","v":22},{"$f":"'[1]Ç. Takvim'!AW12","v":29},{"$f":"'[1]Ç. Takvim'!AX12","v":0},{"$f":"'[1]Ç. Takvim'!AY12","v":1},{"$f":"'[1]Ç. Takvim'!AZ12","v":8},{"$f":"'[1]Ç. Takvim'!BA12","v":15},{"$f":"'[1]Ç. Takvim'!BB12","v":22},{"$f":"'[1]Ç. Takvim'!BC12","v":29},{"$f":"'[1]Ç. Takvim'!BD12","v":""},{"$f":"'[1]Ç. Takvim'!BE12","v":5},{"$f":"'[1]Ç. Takvim'!BF12","v":12},{"$f":"'[1]Ç. Takvim'!BG12","v":19},{"$f":"'[1]Ç. Takvim'!BH12","v":26},{"$f":"'[1]Ç. Takvim'!BI12","v":""},{"$f":"'[1]Ç. Takvim'!BJ12","v":0},{"$f":"'[1]Ç. Takvim'!AM22","v":3},{"$f":"'[1]Ç. Takvim'!AN22","v":10},{"$f":"'[1]Ç. Takvim'!AO22","v":17},{"$f":"'[1]Ç. Takvim'!AP22","v":24},{"$f":"'[1]Ç. Takvim'!AQ22","v":31},{"$f":"'[1]Ç. Takvim'!AR22","v":0},{"$f":"'[1]Ç. Takvim'!AS22","v":0},{"$f":"'[1]Ç. Takvim'!AT22","v":7},{"$f":"'[1]Ç. Takvim'!AU22","v":14},{"$f":"'[1]Ç. Takvim'!AV22","v":21},{"$f":"'[1]Ç. Takvim'!AW22","v":28},{"$f":"'[1]Ç. Takvim'!AX22","v":0}]
[null,null,"Salı",null,null,null,{"$f":"IF(G27>0,G27+1,IF(G$26=2,1,0))","v":0},{"$f":"H27+1","v":3},{"$f":"H28+7","v":10},{"$f":"H28+14","v":17},{"$f":"H28+21","v":24},{"$f":"IF(H28+28>30,\"\",H28+28)","v":""},{"$f":"IF(M27>0,M27+1,IF(M$26=2,1,0))","v":1},{"$f":"N27+1","v":8},{"$f":"N28+7","v":15},{"$f":"N28+14","v":22},{"$f":"N28+21","v":29},{"$f":"IF(N28+28>31,\"\",N28+28)","v":""},{"$f":"IF(S27>0,S27+1,IF(S$26=2,1,0))","v":0},{"$f":"T27+1","v":5},{"$f":"T28+7","v":12},{"$f":"T28+14","v":19},{"$f":"T28+21","v":26},{"$f":"IF(T28+28>30,\"\",T28+28)","v":""},{"$f":"IF(Y27>0,Y27+1,IF(Y$26=2,1,0))","v":0},{"$f":"Z27+1","v":3},{"$f":"Z28+7","v":10},{"$f":"Z28+14","v":17},{"$f":"Z28+21","v":24},31,null,null,null,null,"Salı",null,null,null,{"$f":"IF(AM27>0,AM27+1,IF(AM$26=2,1,0))","v":2},{"$f":"AN27+1","v":9},{"$f":"AN28+7","v":16},{"$f":"AN28+14","v":23},{"$f":"AN28+21","v":30},{"$f":"IF(AN28+28>30,\"\",AN28+28)","v":""},{"$f":"IF(AS27>0,AS27+1,IF(AS$26=2,1,0))","v":0},{"$f":"AT27+1","v":7},{"$f":"AT28+7","v":14},{"$f":"AT28+14","v":21},{"$f":"AT28+21","v":28},{"$f":"IF(AT28+28>31,\"\",AT28+28)","v":""},{"$f":"IF(AY27>0,AY27+1,IF(AY$26=2,1,0))","v":0},{"$f":"AZ27+1","v":4},{"$f":"AZ28+7","v":11},{"$f":"AZ28+14","v":18},{"$f":"AZ28+21","v":25},{"$f":"IF(AZ28+28>30,\"\",AZ28+28)","v":""},{"$f":"IF(BE27>0,BE27+1,IF(BE$26=2,1,0))","v":2},{"$f":"BF27+1","v":9},{"$f":"BF28+7","v":16},{"$f":"BF28+14","v":23},{"$f":"BF28+21","v":30},"",null,null,"Pazar",{"$f":"'[1]Ç. Takvim'!AS13","v":2},{"$f":"'[1]Ç. Takvim'!AT13","v":9},{"$f":"'[1]Ç. Takvim'!AU13","v":16},{"$f":"'[1]Ç. Takvim'!AV13","v":23},{"$f":"'[1]Ç. Takvim'!AW13","v":""},{"$f":"'[1]Ç. Takvim'!AX13","v":0},{"$f":"'[1]Ç. Takvim'!AY13","v":2},{"$f":"'[1]Ç. Takvim'!AZ13","v":9},{"$f":"'[1]Ç. Takvim'!BA13","v":16},{"$f":"'[1]Ç. Takvim'!BB13","v":23},{"$f":"'[1]Ç. Takvim'!BC13","v":30},{"$f":"'[1]Ç. Takvim'!BD13","v":""},{"$f":"'[1]Ç. Takvim'!BE13","v":6},{"$f":"'[1]Ç. Takvim'!BF13","v":13},{"$f":"'[1]Ç. Takvim'!BG13","v":20},{"$f":"'[1]Ç. Takvim'!BH13","v":27},{"$f":"'[1]Ç. Takvim'!BI13","v":""},{"$f":"'[1]Ç. Takvim'!BJ13","v":0},{"$f":"'[1]Ç. Takvim'!AM23","v":4},{"$f":"'[1]Ç. Takvim'!AN23","v":11},{"$f":"'[1]Ç. Takvim'!AO23","v":18},{"$f":"'[1]Ç. Takvim'!AP23","v":25},{"$f":"'[1]Ç. Takvim'!AQ23","v":""},{"$f":"'[1]Ç. Takvim'!AR23","v":0},{"$f":"'[1]Ç. Takvim'!AS23","v":1},{"$f":"'[1]Ç. Takvim'!AT23","v":8},{"$f":"'[1]Ç. Takvim'!AU23","v":15},{"$f":"'[1]Ç. Takvim'!AV23","v":22},{"$f":"'[1]Ç. Takvim'!AW23","v":29},{"$f":"'[1]Ç. Takvim'!AX23","v":0}]
[null,null,"Çarşamba",null,null,null,{"$f":"IF(G28>0,G28+1,IF(G$26=3,1,0))","v":0},4,11,18,{"$f":"IF(H29+21>30,\"\",H29+21)","v":25},{"$f":"IF(H29+28>30,\"\",H29+28)","v":""},{"$f":"IF(M28>0,M28+1,IF(M$26=3,1,0))","v":2},9,16,23,{"$f":"N29+21","v":30},{"$f":"IF(N29+28>31,\"\",N29+28)","v":""},{"$f":"IF(S28>0,S28+1,IF(S$26=3,1,0))","v":0},6,13,20,{"$f":"T29+21","v":27},{"$f":"IF(T29+28>30,\"\",T29+28)","v":""},{"$f":"IF(Y28>0,Y28+1,IF(Y$26=3,1,0))","v":0},4,11,18,{"$f":"Z29+21","v":25},"",null,null,null,null,"Çarşamba",null,null,null,{"$f":"IF(AM28>0,AM28+1,IF(AM$26=3,1,0))","v":3},10,17,24,{"$f":"IF(AN29+21>30,\"\",AN29+21)","v":""},{"$f":"IF(AN29+28>30,\"\",AN29+28)","v":""},{"$f":"IF(AS28>0,AS28+1,IF(AS$26=3,1,0))","v":1},8,15,22,{"$f":"AT29+21","v":29},{"$f":"IF(AT29+28>31,\"\",AT29+28)","v":""},{"$f":"IF(AY28>0,AY28+1,IF(AY$26=3,1,0))","v":0},5,12,19,{"$f":"AZ29+21","v":26},{"$f":"IF(AZ29+28>30,\"\",AZ29+28)","v":""},{"$f":"IF(BE28>0,BE28+1,IF(BE$26=3,1,0))","v":3},10,17,24,{"$f":"BF29+21","v":31},"",null,null,null,null,null,null,null,null,null,null,null,null,null,null,null,"A.T."]
[null,null,"Perşembe",null,null,null,{"$f":"IF(G29>0,G29+1,IF(G$26=4,1,0))","v":0},5,12,19,{"$f":"IF(H30+21>30,\"\",H30+21)","v":26},{"$f":"IF(H30+28>30,\"\",H30+28)","v":""},{"$f":"IF(M29>0,M29+1,IF(M$26=4,1,0))","v":3},10,17,24,{"$f":"IF(N30+21>31,\"\",N30+21)","v":31},null,{"$f":"IF(S29>0,S29+1,IF(S$26=4,1,0))","v":0},7,14,21,{"$f":"IF(T30+21>30,\"\",T30+21)","v":28},{"$f":"IF(T30+28>30,\"\",T30+28)","v":""},{"$f":"IF(Y29>0,Y29+1,IF(Y$26=4,1,0))","v":0},5,12,19,{"$f":"IF(Z30+21>31,\"\",Z30+21)","v":26},"",null,null,null,null,"Perşembe",null,null,null,{"$f":"IF(AM29>0,AM29+1,IF(AM$26=4,1,0))","v":4},11,18,25,{"$f":"IF(AN30+21>30,\"\",AN30+21)","v":""},{"$f":"IF(AN30+28>30,\"\",AN30+28)","v":""},{"$f":"IF(AS29>0,AS29+1,IF(AS$26=4,1,0))","v":2},9,16,23,{"$f":"IF(AT30+21>31,\"\",AT30+21)","v":30},null,{"$f":"IF(AY29>0,AY29+1,IF(AY$26=4,1,0))","v":0},6,13,20,{"$f":"IF(AZ30+21>30,\"\",AZ30+21)","v":27},{"$f":"IF(AZ30+28>30,\"\",AZ30+28)","v":""},{"$f":"IF(BE29>0,BE29+1,IF(BE$26=4,1,0))","v":4},11,18,25,{"$f":"IF(BF30+21>31,\"\",BF30+21)","v":""},"",null,null,null,null,null,"Ramazan Bayramı: 29,5+ 30+31 Mart; 01 Nisan",null,null,null,null,null,null,null,null,null,null,null,null,null,null,null,"Kurban Bayramı: 5,5+…9 Haziran"]
[null,null,"Cuma",null,null,null,{"$f":"IF(G30>0,G30+1,IF(G$26=5,1,0))","v":0},6,13,20,{"$f":"IF(H31+21>30,\"\",H31+21)","v":27},null,{"$f":"IF(M30>0,M30+1,IF(M$26=5,1,0))","v":4},11,18,25,{"$f":"IF(N31+21>31,\"\",N31+21)","v":""},null,{"$f":"IF(S30>0,S30+1,IF(S$26=5,1,0))","v":1},8,15,22,{"$f":"IF(T31+21>30,\"\",T31+21)","v":29},{"$f":"IF(T31+28>30,\"\",T31+28)","v":""},{"$f":"IF(Y30>0,Y30+1,IF(Y$26=5,1,0))","v":0},6,13,20,{"$f":"IF(Z31+21>31,\"\",Z31+21)","v":27},"",null,null,null,null,"Cuma",null,null,null,{"$f":"IF(AM30>0,AM30+1,IF(AM$26=5,1,0))","v":5},12,19,26,{"$f":"IF(AN31+21>30,\"\",AN31+21)","v":""},null,{"$f":"IF(AS30>0,AS30+1,IF(AS$26=5,1,0))","v":3},10,17,24,{"$f":"IF(AT31+21>31,\"\",AT31+21)","v":31},null,{"$f":"IF(AY30>0,AY30+1,IF(AY$26=5,1,0))","v":0},7,14,21,{"$f":"IF(AZ31+21>30,\"\",AZ31+21)","v":28},{"$f":"IF(AZ31+28>30,\"\",AZ31+28)","v":""},{"$f":"IF(BE30>0,BE30+1,IF(BE$26=5,1,0))","v":5},12,19,26,{"$f":"IF(BF31+21>31,\"\",BF31+21)","v":""},"",null,null,"Toplam İş günü",{"$f":"SUM(BO31:CQ31)","v":95},{"$f":"[1]Ç.Takvimi!AQ31","v":5},{"$f":"[1]Ç.Takvimi!AR31","v":5},{"$f":"[1]Ç.Takvimi!AS31","v":5},{"$f":"[1]Ç.Takvimi!AT31","v":5},null,{"$f":"[1]Ç.Takvimi!AV31","v":0},{"$f":"[1]Ç.Takvimi!AW31","v":5},{"$f":"[1]Ç.Takvimi!AX31","v":5},{"$f":"[1]Ç.Takvimi!AY31","v":5},{"$f":"[1]Ç.Takvimi!AZ31","v":5},null,null,{"$f":"[1]Ç.Takvimi!BC31","v":5},{"$f":"[1]Ç.Takvimi!BD31","v":5},{"$f":"[1]Ç.Takvimi!BE31","v":5},3,null,{"$f":"[1]Ç.Takvimi!BH31","v":2},{"$f":"[1]Ç.Takvimi!BI31","v":5},{"$f":"[1]Ç.Takvimi!BJ31","v":5},{"$f":"[1]Ç.Takvimi!BK31","v":5},{"$f":"[1]Ç.Takvimi!BL31","v":5},null,{"$f":"[1]Ç.Takvimi!BN31","v":0},{"$f":"[1]Ç.Takvimi!BO31","v":5},{"$f":"[1]Ç.Takvimi!BP31","v":5},{"$f":"[1]Ç.Takvimi!BQ31","v":5}]
[null,null,"Cumartesi",null,null,null,{"$f":"IF(G31>0,G31+1,IF(G$26=6,1,0))","v":0},7,14,21,{"$f":"IF(H32+21>30,\"\",H32+21)","v":28},null,{"$f":"IF(M31>0,M31+1,IF(M$26=6,1,0))","v":5},12,19,26,{"$f":"IF(N32+21>31,\"\",N32+21)","v":""},null,{"$f":"IF(S31>0,S31+1,IF(S$26=6,1,0))","v":2},9,16,23,{"$f":"IF(T32+21>30,\"\",T32+21)","v":30},null,{"$f":"IF(Y31>0,Y31+1,IF(Y$26=6,1,0))","v":0},7,14,21,{"$f":"IF(Z32+21>31,\"\",Z32+21)","v":28},"",null,null,null,null,"Cumartesi",null,null,null,{"$f":"IF(AM31>0,AM31+1,IF(AM$26=6,1,0))","v":6},13,20,27,{"$f":"IF(AN32+21>30,\"\",AN32+21)","v":""},null,{"$f":"IF(AS31>0,AS31+1,IF(AS$26=6,1,0))","v":4},11,18,25,{"$f":"IF(AT32+21>31,\"\",AT32+21)","v":""},null,{"$f":"IF(AY31>0,AY31+1,IF(AY$26=6,1,0))","v":1},8,15,22,{"$f":"IF(AZ32+21>30,\"\",AZ32+21)","v":29},null,{"$f":"IF(BE31>0,BE31+1,IF(BE$26=6,1,0))","v":6},13,20,27,{"$f":"IF(BF32+21>31,\"\",BF32+21)","v":""},""]
[null,null,"Pazar ",null,null,null,{"$f":"IF(G32>0,G32+1,IF(G$26=7,1,0))","v":1},8,15,22,{"$f":"IF(H33+21>30,\"\",H33+21)","v":29},null,{"$f":"IF(M32>0,M32+1,IF(M$26=7,1,0))","v":6},13,20,27,{"$f":"IF(N33+21>31,\"\",N33+21)","v":""},null,{"$f":"IF(S32>0,S32+1,IF(S$26=7,1,0))","v":3},10,17,24,{"$f":"IF(T33+21>30,\"\",T33+21)","v":""},null,{"$f":"IF(Y32>0,Y32+1,IF(Y$26=7,1,0))","v":1},8,15,22,{"$f":"IF(Z33+21>31,\"\",Z33+21)","v":29},null,null,null,null,null,"Pazar ",null,null,null,{"$f":"IF(AM32>0,AM32+1,IF(AM$26=7,1,0))","v":7},14,21,28,{"$f":"IF(AN33+21>30,\"\",AN33+21)","v":""},null,{"$f":"IF(AS32>0,AS32+1,IF(AS$26=7,1,0))","v":5},12,19,26,{"$f":"IF(AT33+21>31,\"\",AT33+21)","v":""},null,{"$f":"IF(AY32>0,AY32+1,IF(AY$26=7,1,0))","v":2},9,16,23,{"$f":"IF(AZ33+21>30,\"\",AZ33+21)","v":30},null,{"$f":"IF(BE32>0,BE32+1,IF(BE$26=7,1,0))","v":7},14,21,28,{"$f":"IF(BF33+21>31,\"\",BF33+21)","v":""}]

{"sheet":"TYT AYT Konuları ve Takip Formu","index":11,"n_rows":169,"n_cols":65,"rows_kept":169,"cut":false,"hidden":false,"merged":[[167,3,167,36],[167,37,167,64],[168,3,168,36],[168,37,168,64],[164,3,164,36],[164,37,164,64],[165,3,165,36],[165,37,165,64],[166,3,166,36],[166,37,166,64],[161,3,161,36],[161,37,161,64],[162,3,162,36],[162,37,162,64],[163,3,163,36],[163,37,163,64],[158,1,158,2],[158,3,158,36],[158,37,158,64],[159,3,159,36],[159,37,159,64],[160,3,160,36],[160,37,160,64],[156,3,156,23],[156,24,156,41],[156,42,156,62],[157,3,157,23],[157,24,157,41],[157,42,157,62],[154,3,154,23],[154,24,154,41],[154,42,154,62],[155,3,155,23],[155,24,155,41],[155,42,155,62],[152,3,152,23],[152,24,152,41],[152,42,152,62],[153,3,153,23],[153,24,153,41],[153,42,153,62],[150,3,150,23],[150,24,150,41],[150,42,150,62],[151,3,151,23],[151,24,151,41],[151,42,151,62],[148,3,148,23],[148,24,148,41],[148,42,148,62],[149,3,149,23],[149,24,149,41],[149,42,149,62],[146,63,146,64],[147,1,147,2],[147,3,147,23],[147,24,147,41],[147,42,147,62],[147,63,147,64],[144,3,144,35],[144,36,144,62],[145,3,145,35],[145,36,145,62],[146,1,146,2],[146,3,146,23],[146,24,146,41],[146,42,146,62],[141,3,141,35],[141,36,141,62],[142,3,142,35],[142,36,142,62],[143,3,143,35],[143,36,143,62],[138,3,138,35],[138,36,138,62],[139,3,139,35],[139,36,139,62],[140,3,140,35],[140,36,140,62],[135,1,135,2],[135,63,135,64],[136,3,136,35],[136,36,136,62],[137,3,137,35],[137,36,137,62],[133,47,133,57],[133,58,133,64],[134,1,134,2],[134,3,134,34],[134,36,134,62],[134,63,134,64],[132,1,132,22],[132,23,132,34],[132,35,132,57],[132,58,132,64],[133,3,133,9],[133,10,133,22],[133,23,133,26],[133,27,133,30],[133,31,133,34],[133,35,133,46],[117,1,117,2],[117,63,117,64],[118,1,118,2],[118,63,118,64],[119,1,119,2],[119,63,119,64],[103,1,103,2],[103,63,103,64],[104,1,104,2],[104,63,104,64],[116,1,116,2],[116,3,116,27],[116,29,116,37],[116,63,116,64],[101,1,101,2],[101,3,101,34],[101,36,101,62],[101,63,101,64],[102,1,102,2],[102,63,102,64],[98,47,98,57],[98,58,98,64],[99,1,100,2],[99,3,99,57],[99,58,100,63],[99,64,100,64],[100,3,100,57],[98,3,98,9],[98,10,98,22],[98,23,98,26],[98,27,98,30],[98,31,98,34],[98,35,98,46],[94,3,94,36],[94,37,94,64],[95,3,95,36],[95,37,95,64],[97,1,97,22],[97,23,97,34],[97,35,97,57],[97,58,97,64],[91,3,91,36],[91,37,91,64],[92,3,92,36],[92,37,92,64],[93,3,93,36],[93,37,93,64],[88,3,88,36],[88,37,88,64],[89,3,89,36],[89,37,89,64],[90,3,90,36],[90,37,90,64],[85,1,85,2],[85,3,85,36],[85,37,85,64],[86,3,86,36],[86,37,86,64],[87,3,87,36],[87,37,87,64],[83,3,83,23],[83,25,83,41],[83,43,83,50],[83,52,83,62],[84,3,84,23],[84,25,84,41],[84,43,84,50],[84,52,84,62],[81,3,81,23],[81,25,81,41],[81,43,81,50],[81,52,81,62],[82,3,82,23],[82,25,82,41],[82,43,82,50],[82,52,82,62],[79,3,79,23],[79,25,79,41],[79,43,79,50],[79,52,79,62],[80,3,80,23],[80,25,80,41],[80,43,80,50],[80,52,80,62],[78,1,78,2],[78,3,78,23],[78,25,78,41],[78,43,78,50],[78,52,78,62],[78,63,78,64],[75,3,75,23],[75,25,75,36],[75,38,75,48],[75,50,75,62],[76,3,76,23],[76,25,76,36],[76,38,76,48],[76,50,76,62],[73,3,73,23],[73,25,73,36],[73,38,73,48],[73,50,73,62],[74,3,74,23],[74,25,74,36],[74,38,74,48],[74,50,74,62],[71,3,71,23],[71,25,71,36],[71,38,71,48],[71,50,71,62],[72,3,72,23],[72,25,72,36],[72,38,72,48],[72,50,72,62],[69,3,69,23],[69,25,69,36],[69,38,69,48],[69,50,69,62],[70,3,70,23],[70,25,70,36],[70,38,70,48],[70,50,70,62],[67,3,67,23],[67,25,67,36],[67,38,67,48],[67,50,67,62],[68,3,68,23],[68,25,68,36],[68,38,68,48],[68,50,68,62],[64,63,64,64],[65,3,65,23],[65,25,65,36],[65,38,65,48],[65,50,65,62],[66,3,66,23],[66,25,66,36],[66,38,66,48],[66,50,66,62],[62,3,62,35],[62,36,62,62],[64,1,64,2],[64,3,64,23],[64,25,64,36],[64,38,64,48],[64,50,64,62],[59,3,59,35],[59,36,59,62],[60,3,60,35],[60,36,60,62],[61,3,61,35],[61,36,61,62],[56,3,56,35],[56,36,56,62],[57,3,57,35],[57,36,57,62],[58,3,58,35],[58,36,58,62],[53,3,53,35],[53,36,53,62],[54,3,54,35],[54,36,54,62],[55,3,55,35],[55,36,55,62],[50,1,50,35],[50,36,50,64],[51,3,51,35],[51,36,51,62],[52,3,52,35],[52,36,52,62],[47,42,47,57],[47,58,47,64],[48,1,49,2],[48,3,48,57],[48,58,49,63],[48,64,49,64],[49,3,49,57],[46,1,46,22],[46,23,46,34],[46,35,46,57],[46,58,46,64],[47,3,47,9],[47,10,47,22],[47,23,47,26],[47,27,47,30],[47,31,47,34],[47,35,47,41],[37,1,37,2],[37,63,37,64],[38,1,38,2],[38,63,38,64],[39,1,39,2],[45,1,45,64],[23,1,23,2],[23,63,23,64],[24,1,24,2],[36,1,36,2],[36,3,36,23],[36,25,36,41],[36,43,36,50],[36,52,36,61],[36,63,36,64],[21,63,21,64],[22,1,22,2],[22,3,22,6],[22,25,22,26],[22,38,22,39],[22,50,22,51],[22,63,22,64],[9,1,9,2],[21,1,21,2],[21,3,21,23],[21,25,21,36],[21,38,21,48],[21,50,21,61],[7,1,7,2],[7,3,7,6],[7,36,7,39],[7,63,7,64],[8,1,8,2],[8,63,8,64],[4,1,5,2],[4,3,4,57],[4,58,5,63],[4,64,5,64],[5,3,5,57],[6,1,6,2],[6,3,6,31],[6,36,6,62],[6,63,6,64],[0,12,0,23],[0,28,0,31],[0,36,0,39],[2,1,2,22],[2,23,2,34],[2,35,2,57],[2,58,2,64],[3,3,3,9],[3,10,3,22],[3,23,3,26],[3,27,3,30],[3,31,3,34],[3,35,3,41],[3,42,3,57],[3,58,3,64]]}
[]
[null,null,null,null,null,null,null,null,null,null,1,{"$f":"K2+1","v":2},{"$f":"L2+1","v":3},4,5,6,7,8,9,10,11,12,13,14,15,16,17,18,19,20,21,22,23,24,25,26,27,28,29,30,31,32,33,34,35,36,37,38,39,40,41,42,43,44,45,46,47,48,49,50,51,52,53]
[null,{"$f":"'Giriş ve Ön Plânlama'!C2","v":"Fetullah Bayır Fen Lisesi (KONYA/BEYŞEHİR)"},null,null,null,null,null,null,null,null,null,null,null,null,null,null,null,null,null,null,null,null,null,{"$f":"'Giriş ve Ön Plânlama'!C3","v":"2024-2025"},null,null,null,null,null,null,null,null,null,null,null,"ÖĞRENCİ DANIŞMANLIĞI / ÖĞRENCİ TAKİP FORMU",null,null,null,null,null,null,null,null,null,null,null,null,null,null,null,null,null,null,null,null,null,null,"Öğrencinin Hedefi :"]
[null,"No:",{"$f":"'Giriş ve Ön Plânlama'!C9","v":1071},"Adı ve Soyadı",null,null,null,null,null,null,{"$f":"'Giriş ve Ön Plânlama'!C7","v":"Oğuz Kağan BİLGE"},null,null,null,null,null,null,null,null,null,null,null,null,"Sınıf ",null,null,null,{"$f":"'Giriş ve Ön Plânlama'!C8","v":"12A"},null,null,null,"Grubu",null,null,null,"Danışman Öğretmen   :",null,null,null,null,null,null,{"$f":"'Giriş ve Ön Plânlama'!C10","v":"…........"},null,null,null,null,null,null,null,null,null,null,null,null,null,null,null,{"$f":"'Giriş ve Ön Plânlama'!C12","v":"Yazılım Mühendisliği"}]
[null,"Yönerge :",null,"Bu form her öğrenci için danışman öğretmenimiz tarafından ayrı ayrı doldurulur. Öğrencinin çalıştığı konular, ertesi hafta en geç Salı gününe kadar tarih yazarak kontrol edilir. E: Eksik ; T: Tam ;             yazılır. ",null,null,null,null,null,null,null,null,null,null,null,null,null,null,null,null,null,null,null,null,null,null,null,null,null,null,null,null,null,null,null,null,null,null,null,null,null,null,null,null,null,null,null,null,null,null,null,null,null,null,null,null,null,null,"Öğrenci Prog Başl. Tarihi:",null,null,null,null,null,{"$f":"'Giriş ve Ön Plânlama'!C4","v":"2025-01-01"}]
[null,null,null,"Okulda yapılan kazanım değerlendirme sınav analizlerini inceler, 1.;2., 3. öncelikli konulara göre öğrenciyi ödevlendirilir. Gerekirse diğer danışmanlarla işbirliği yaparak konuların öğretmenlerce tamamlanma yoluna gidilir."]
[null,"Ders",null," TYT MATEMATİK",null,null,null,null,null,null,null,null,null,null,null,null,null,null,null,null,null,null,null,null,null,null,null,null,null,null,null,null,null,null,null,null," TYT GEOMETRİ",null,null,null,null,null,null,null,null,null,null,null,null,null,null,null,null,null,null,null,null,null,null,null,null,null,null,"Ders"]
[null,"Kontrol Tarihi",null,"Kitap",null,null,null,1,2,3,4,5,6,7,8,9,10,11,12,13,14,15,16,17,18,19,20,21,22,23,24,25,null,null,null,null,"Kitap",null,null,null,1,2,3,4,5,6,7,8,9,10,11,12,13,14,15,16,17,18,19,20,21,null,null,"Kontrol Tarihi"]
[null,"TYT",null,null,null,null,null,"Temel Kavramlar","Sayı Basamakları","Bölme ve Bölünebilme","EBOB-EKOK","Rasyonel Sayılar-Ondalık Sayılar","Basit Eşitsizlikler","Mutlak Değer","Üslü Sayılar","Köklü Sayılar","Çarpanlara Ayırma","Oran Orantı","Denklem Çözme","Problemler","Kümeler-Karteszyen Çarpımı","Fonksiyonlar","Permütasyon","Kombinasyon","Binom","Olasılık","İstatistik","2. Dereceden Denklemler","Karmaşık Sayılar","Polinomlar","Mantık","Veri Analizi",null,null,null,null,null,null,null,null,"Doğruda ve Üçgende Açılar","Üçgende Açı-Kenar Bağıntıları","Üçgende  Benzerlik","üçgende Açıortay-Kenarortay","Dik Üçgen","İkizkenar Üçgen","Eşkenar Üçgen","Üçgende alan","Çokgenler","Dörtgenler","Yamuk-Paralelkenar","Eşkenar Dörtgen","Dikdörtgen","Kare","Deltoid","Çemberde Açı","Çemberde Uzunluk","Dairenin Çevresi ve Alanı","Doğrunun Analitik İncelenmesi","Çemberin Analitik İncelenmesi","Katı Cisimler ",null,null,{"$f":"B9","v":"TYT"}]
[null,"Konu Eksiği var mı?"]
[null,1,"…/…/202..",null,null,null,null,null,null,null,null,null,null,null,null,null,null,null,null,null,null,null,null,null,null,null,null,null,null,null,null,null,null,null,null,null,null,null,null,null,null,null,null,null,null,null,null,null,null,null,null,null,null,null,null,null,null,null,null,null,null,null,null,{"$f":"B20+1","v":11},{"$f":"C11","v":"…/…/202.."}]
[null,{"$f":"B11+1","v":2},{"$f":"C11","v":"…/…/202.."},null,null,null,null,null,null,null,null,null,null,null,null,null,null,null,null,null,null,null,null,null,null,null,null,null,null,null,null,null,null,null,null,null,null,null,null,null,null,null,null,null,null,null,null,null,null,null,null,null,null,null,null,null,null,null,null,null,null,null,null,{"$f":"BL11+1","v":12},{"$f":"C12","v":"…/…/202.."}]
[null,{"$f":"B12+1","v":3},{"$f":"C12","v":"…/…/202.."},null,null,null,null,null,null,null,null,null,null,null,null,null,null,null,null,null,null,null,null,null,null,null,null,null,null,null,null,null,null,null,null,null,null,null,null,null,null,null,null,null,null,null,null,null,null,null,null,null,null,null,null,null,null,null,null,null,null,null,null,{"$f":"BL12+1","v":13},"…/…/202.."]
[null,4,"…/…/202..",null,null,null,null,null,null,null,null,null,null,null,null,null,null,null,null,null,null,null,null,null,null,null,null,null,null,null,null,null,null,null,null,null,null,null,null,null,null,null,null,null,null,null,null,null,null,null,null,null,null,null,null,null,null,null,null,null,null,null,null,14,"…/…/202.."]
[null,5,"…/…/202..",null,null,null,null,null,null,null,null,null,null,null,null,null,null,null,null,null,null,null,null,null,null,null,null,null,null,null,null,null,null,null,null,null,null,null,null,null,null,null,null,null,null,null,null,null,null,null,null,null,null,null,null,null,null,null,null,null,null,null,null,15,"…/…/202.."]
[null,6,"…/…/202..",null,null,null,null,null,null,null,null,null,null,null,null,null,null,null,null,null,null,null,null,null,null,null,null,null,null,null,null,null,null,null,null,null,null,null,null,null,null,null,null,null,null,null,null,null,null,null,null,null,null,null,null,null,null,null,null,null,null,null,null,16,"…/…/202.."]
[null,7,"…/…/202..",null,null,null,null,null,null,null,null,null,null,null,null,null,null,null,null,null,null,null,null,null,null,null,null,null,null,null,null,null,null,null,null,null,null,null,null,null,null,null,null,null,null,null,null,null,null,null,null,null,null,null,null,null,null,null,null,null,null,null,null,17,"…/…/202.."]
[null,8,"…/…/202..",null,null,null,null,null,null,null,null,null,null,null,null,null,null,null,null,null,null,null,null,null,null,null,null,null,null,null,null,null,null,null,null,null,null,null,null,null,null,null,null,null,null,null,null,null,null,null,null,null,null,null,null,null,null,null,null,null,null,null,null,18,"…/…/202.."]
[null,9,"…/…/202..",null,null,null,null,null,null,null,null,null,null,null,null,null,null,null,null,null,null,null,null,null,null,null,null,null,null,null,null,null,null,null,null,null,null,null,null,null,null,null,null,null,null,null,null,null,null,null,null,null,null,null,null,null,null,null,null,null,null,null,null,19,"…/…/202.."]
[null,10,"…/…/202..",null,null,null,null,null,null,null,null,null,null,null,null,null,null,null,null,null,null,null,null,null,null,null,null,null,null,null,null,null,null,null,null,null,null,null,null,null,null,null,null,null,null,null,null,null,null,null,null,null,null,null,null,null,null,null,null,null,null,null,null,20,"…/…/202.."]
[]
[null,"Ders",null,"TYT TÜRKÇE",null,null,null,null,null,null,null,null,null,null,null,null,null,null,null,null,null,null,null,null,null," TYT FİZİK",null,null,null,null,null,null,null,null,null,null,null,null," TYT KİMYA",null,null,null,null,null,null,null,null,null,null,null," TYT BİYOLOJİ",null,null,null,null,null,null,null,null,null,null,null,null,"Ders"]
[null,"Kontrol Tarihi",null,"Kitap",null,null,null,1,2,3,4,5,6,7,8,9,10,11,12,13,14,15,16,17,null,"Kitap",null,1,2,3,4,5,6,7,8,9,10,null,"Kitap",null,1,2,3,4,5,6,7,8,9,null,"Kitap",null,1,2,3,4,5,6,7,8,9,10,null,"Kontrol Tarihi"]
[null,{"$f":"B9","v":"TYT"},null,null,null,null,null,"Sözcükte Anlam","Cümlede Anlam","Paragrafta Anlam","Anlatım Biçimleri","Ses Bilgisi","Yazım Kuralları","Noktalama İşaretleri","Sözcükte Yapı","Sözcük Türleri","Edat-Bağlaç-Ünlem","Filler","Ek Fiil","Filde Çatı","Fiilimsi","Cümlenin Öğeleri","Cümle Türleri","Anlatım Bozuklukları",null,null,null,"Fizik Bilimine Giriş","Madde ve Özellikleri","Kuvvet ve Hareket","İş, Güç ve Enerji","Isı, Sıcaklık ve Genleşme","Basınç","Kaldırma Kuvveti","Elektrik ve Manyetizma","Dalgalar","Optik",null,null,null,"Kimya Bilimi","Atom ve Periyodik Sistem","Kimyasal Türler Arası Etkileşimler","Maddenin Halleri","Doğa ve Kimya","Kimyanın Temel Kanunları ve","Kimsayal Hesaplamalar","Asitler-Bazlar ve Tuzlar","Kimya Her Yerde",null,null,null,"Canlıların Ortak Özellikleri","Canlıların Temel Bileşenleri","Hücre ve Organelleri","Hücre Zarından Madde Geçişi","Canlıların Sınıflandırılması","Mitoz ve Eşeysiz Üreme","Mayoz ve Eşeyli Üreme","Kalıtım","Ekosistem Ekolojisi","Güncel Çevre Sorunları",null,{"$f":"B9","v":"TYT"}]
[null,"Konu Eksiği var mı?"]
[null,1,"…/…/202..",null,null,null,null,null,null,null,null,null,null,null,null,null,null,null,null,null,null,null,null,null,null,null,null,null,null,null,null,null,null,null,null,null,null,null,null,null,null,null,null,null,null,null,null,null,null,null,null,null,null,null,null,null,null,null,null,null,null,null,null,{"$f":"B35+1","v":11},{"$f":"C26","v":"…/…/202.."}]
[null,{"$f":"B26+1","v":2},{"$f":"C26","v":"…/…/202.."},null,null,null,null,null,null,null,null,null,null,null,null,null,null,null,null,null,null,null,null,null,null,null,null,null,null,null,null,null,null,null,null,null,null,null,null,null,null,null,null,null,null,null,null,null,null,null,null,null,null,null,null,null,null,null,null,null,null,null,null,{"$f":"BL26+1","v":12},{"$f":"C27","v":"…/…/202.."}]
[null,{"$f":"B27+1","v":3},{"$f":"C27","v":"…/…/202.."},null,null,null,null,null,null,null,null,null,null,null,null,null,null,null,null,null,null,null,null,null,null,null,null,null,null,null,null,null,null,null,null,null,null,null,null,null,null,null,null,null,null,null,null,null,null,null,null,null,null,null,null,null,null,null,null,null,null,null,null,{"$f":"BL27+1","v":13},"…/…/202.."]
[null,4,"…/…/202..",null,null,null,null,null,null,null,null,null,null,null,null,null,null,null,null,null,null,null,null,null,null,null,null,null,null,null,null,null,null,null,null,null,null,null,null,null,null,null,null,null,null,null,null,null,null,null,null,null,null,null,null,null,null,null,null,null,null,null,null,14,"…/…/202.."]
[null,5,"…/…/202..",null,null,null,null,null,null,null,null,null,null,null,null,null,null,null,null,null,null,null,null,null,null,null,null,null,null,null,null,null,null,null,null,null,null,null,null,null,null,null,null,null,null,null,null,null,null,null,null,null,null,null,null,null,null,null,null,null,null,null,null,15,"…/…/202.."]
[null,6,"…/…/202..",null,null,null,null,null,null,null,null,null,null,null,null,null,null,null,null,null,null,null,null,null,null,null,null,null,null,null,null,null,null,null,null,null,null,null,null,null,null,null,null,null,null,null,null,null,null,null,null,null,null,null,null,null,null,null,null,null,null,null,null,16,"…/…/202.."]
[null,7,"…/…/202..",null,null,null,null,null,null,null,null,null,null,null,null,null,null,null,null,null,null,null,null,null,null,null,null,null,null,null,null,null,null,null,null,null,null,null,null,null,null,null,null,null,null,null,null,null,null,null,null,null,null,null,null,null,null,null,null,null,null,null,null,17,"…/…/202.."]
[null,8,"…/…/202..",null,null,null,null,null,null,null,null,null,null,null,null,null,null,null,null,null,null,null,null,null,null,null,null,null,null,null,null,null,null,null,null,null,null,null,null,null,null,null,null,null,null,null,null,null,null,null,null,null,null,null,null,null,null,null,null,null,null,null,null,18,"…/…/202.."]
[null,9,"…/…/202..",null,null,null,null,null,null,null,null,null,null,null,null,null,null,null,null,null,null,null,null,null,null,null,null,null,null,null,null,null,null,null,null,null,null,null,null,null,null,null,null,null,null,null,null,null,null,null,null,null,null,null,null,null,null,null,null,null,null,null,null,19,"…/…/202.."]
[null,10,"…/…/202..",null,null,null,null,null,null,null,null,null,null,null,null,null,null,null,null,null,null,null,null,null,null,null,null,null,null,null,null,null,null,null,null,null,null,null,null,null,null,null,null,null,null,null,null,null,null,null,null,null,null,null,null,null,null,null,null,null,null,null,null,20,"…/…/202.."]
[]
[null,"Ders",null," TYT TARİH",null,null,null,null,null,null,null,null,null,null,null,null,null,null,null,null,null,null,null,null,null," TYT COĞRAFYA",null,null,null,null,null,null,null,null,null,null,null,null,null,null,null,null,null," TYT FELSEFE KONULARI",null,null,null,null,null,null,null,null," TYT DİN KÜLTÜRÜ KONULARI",null,null,null,null,null,null,null,null,null,null,"Ders"]
[null,"Kontrol Tarihi",null,1,2,3,4,5,6,7,8,9,10,11,12,13,14,15,16,17,18,19,20,21,null,1,2,3,4,5,6,7,8,9,10,11,12,13,14,15,16,17,null,1,2,3,4,5,6,7,8,null,1,2,3,4,5,6,7,null,null,null,null,"Kontrol Tarihi"]
[null,{"$f":"B24","v":"TYT"},null,"Tarih Bilimine Giriş","Uygarlığın Doğuşu ve İlk Uygarlıklar","İlk Türk Devletleri","İslam Tarihi ve Uygarlığı","Türk-İslam Devletleri","Türkler’in İslamiyeti Kabulü","Türkiye Tarihi","Beylikten Devlete (1300-1453)","Dünya Gücü: Osmanlı Devleti","Osmanlı Duraklama Dönemi","Gerileme Devri (1699 – 1792)","Arayış Yılları (17. Yüzyıl)","Avrupa ve Osmanlı Devleti (18. Yüzyıl)","En Uzun Yüzyıl (1800-1922)","20.Yüzyıl Başlarında Osmanlı Devleti","XIX. YY Osmanlı Devleti","1.Dünya Savaşı – Milli Mücadeleye Hazırlık D.","Kurtuluş Savaşında Cepheler","Türk İnkılabı","Atatürkçülük ve Atatürk İlkeleri","Türk Dış Politikası",null,"İnsan ve Doğa","Dünya’nın Şekli ve Hareketleri","Coğrafi Konum","Harita Bilgisi","Atmosfer ve Sıcaklık","İklimler","Basınç ve Rüzgarlar","Nem, Yağış ve Buharlaşma","İç Kuvvetler / Dış Kuvvetler","Su – Toprak ve Bitkiler","Nüfus-Göç-Yerleşme","Türkiye’nin Yer Şekilleri","Ekonomik Faaliyetler","Bölgeler ve Ülkeler","Uluslararası Ulaşım Hatları","Çevre ve Toplum","Doğal Afetler",null,"Felsefe’nin Alanı","Bilgi Felsefesi","Bilim Felsefesi","Varlık Felsefesi","Ahlak Felsefesi","Siyaset Felsefesi","Sanat Felsefesi","Din Felsefesi",null,"insan ve Din (İnanç)","İbadet","Hz.Muhammed(sav)’in Hayatı","Vahiy ve Akıl","İslam Düşüncesi ve Yorumu","İslamda Değerler, Sanat ve Laiklik","Yaşayan Dinler",null,null,null,null,{"$f":"B24","v":"TYT"}]
[null,"Konu Eksiği var mı?"]
[null,1,"…/…/202..",null,null,null,null,null,null,null,null,null,null,null,null,null,null,null,null,null,null,null,null,null,null,null,null,null,null,null,null,null,null,null,null,null,null,null,null,null,null,null,null,null,null,null,null,null,null,null,null,null,null,null,null,null,null,null,null,null,null,null,null,{"$f":"B44+1","v":5},{"$f":"C41","v":"…/…/202.."}]
[null,{"$f":"B41+1","v":2},{"$f":"C41","v":"…/…/202.."},null,null,null,null,null,null,null,null,null,null,null,null,null,null,null,null,null,null,null,null,null,null,null,null,null,null,null,null,null,null,null,null,null,null,null,null,null,null,null,null,null,null,null,null,null,null,null,null,null,null,null,null,null,null,null,null,null,null,null,null,{"$f":"BL41+1","v":6},{"$f":"C42","v":"…/…/202.."}]
[null,{"$f":"B42+1","v":3},{"$f":"C42","v":"…/…/202.."},null,null,null,null,null,null,null,null,null,null,null,null,null,null,null,null,null,null,null,null,null,null,null,null,null,null,null,null,null,null,null,null,null,null,null,null,null,null,null,null,null,null,null,null,null,null,null,null,null,null,null,null,null,null,null,null,null,null,null,null,{"$f":"BL42+1","v":7},"…/…/202.."]
[null,4,"…/…/202..",null,null,null,null,null,null,null,null,null,null,null,null,null,null,null,null,null,null,null,null,null,null,null,null,null,null,null,null,null,null,null,null,null,null,null,null,null,null,null,null,null,null,null,null,null,null,null,null,null,null,null,null,null,null,null,null,null,null,null,null,8,"…/…/202.."]
[]
[null,"Öğrenciyle ilgili ders bazında ve genel görüşler….  Alınabilecek tedbirler…"]
[null,"Fetullah Bayır Fen Lisesi",null,null,null,null,null,null,null,null,null,null,null,null,null,null,null,null,null,null,null,null,null,"2022-2023",null,null,null,null,null,null,null,null,null,null,null,"ÖĞRENCİ DANIŞMANLIĞI / ÖĞRENCİ TAKİP FORMU",null,null,null,null,null,null,null,null,null,null,null,null,null,null,null,null,null,null,null,null,null,null,"Öğrencinin Hedefi :"]
[null,"No:",{"$f":"C4","v":1071},"Adı ve Soyadı",null,null,null,null,null,null,{"$f":"K4","v":"Oğuz Kağan BİLGE"},null,null,null,null,null,null,null,null,null,null,null,null,"Sınıf:",null,null,null,{"$f":"AB4","v":"12A"},null,null,null,"Grubu",null,null,null,"Danışman Öğretmen   :",null,null,null,null,null,null,{"$f":"AQ4","v":"…........"}]
[null,"Yönerge :",null,"Bu form her öğrenci için danışman öğretmenimiz tarafından ayrı ayrı doldurulur. Öğrencinin çalıştığı konular, ertesi hafta en geç Salı gününe kadar tarih yazarak kontrol edilir. E: Eksik ; T: Tam ;             yazılır. ",null,null,null,null,null,null,null,null,null,null,null,null,null,null,null,null,null,null,null,null,null,null,null,null,null,null,null,null,null,null,null,null,null,null,null,null,null,null,null,null,null,null,null,null,null,null,null,null,null,null,null,null,null,null,"Öğrenci Takip Sayfa No:"]
[null,null,null,"Okulda yapılan kazanım değerlendirme sınav analizlerini inceler, 1.;2., 3. öncelikli konulara göre öğrenciyi ödevlendirilir. Gerekirse diğer danışmanlarla işbirliği yaparak konuların öğretmenlerce tamamlanma yoluna gidilir."]
[null," TYT MATEMATİK",null,null,null,null,null,null,null,null,null,null,null,null,null,null,null,null,null,null,null,null,null,null,null,null,null,null,null,null,null,null,null,null,null,null," TYT GEOMETRİ"]
[null,1,"…/…/202..",null,null,null,null,null,null,null,null,null,null,null,null,null,null,null,null,null,null,null,null,null,null,null,null,null,null,null,null,null,null,null,null,null,null,null,null,null,null,null,null,null,null,null,null,null,null,null,null,null,null,null,null,null,null,null,null,null,null,null,null,{"$f":"BL51+1","v":1},{"$f":"C52","v":"…/…/202.."}]
[null,{"$f":"B52+1","v":2},"…/…/202..",null,null,null,null,null,null,null,null,null,null,null,null,null,null,null,null,null,null,null,null,null,null,null,null,null,null,null,null,null,null,null,null,null,null,null,null,null,null,null,null,null,null,null,null,null,null,null,null,null,null,null,null,null,null,null,null,null,null,null,null,2,"…/…/202.."]
[null,3,"…/…/202..",null,null,null,null,null,null,null,null,null,null,null,null,null,null,null,null,null,null,null,null,null,null,null,null,null,null,null,null,null,null,null,null,null,null,null,null,null,null,null,null,null,null,null,null,null,null,null,null,null,null,null,null,null,null,null,null,null,null,null,null,3,{"$f":"C54","v":"…/…/202.."}]
[null,{"$f":"B54+1","v":4},{"$f":"C54","v":"…/…/202.."},null,null,null,null,null,null,null,null,null,null,null,null,null,null,null,null,null,null,null,null,null,null,null,null,null,null,null,null,null,null,null,null,null,null,null,null,null,null,null,null,null,null,null,null,null,null,null,null,null,null,null,null,null,null,null,null,null,null,null,null,{"$f":"BL54+1","v":4},{"$f":"C55","v":"…/…/202.."}]
[null,{"$f":"B55+1","v":5},{"$f":"C55","v":"…/…/202.."},null,null,null,null,null,null,null,null,null,null,null,null,null,null,null,null,null,null,null,null,null,null,null,null,null,null,null,null,null,null,null,null,null,null,null,null,null,null,null,null,null,null,null,null,null,null,null,null,null,null,null,null,null,null,null,null,null,null,null,null,{"$f":"BL55+1","v":5},"…/…/202.."]
[null,6,"…/…/202..",null,null,null,null,null,null,null,null,null,null,null,null,null,null,null,null,null,null,null,null,null,null,null,null,null,null,null,null,null,null,null,null,null,null,null,null,null,null,null,null,null,null,null,null,null,null,null,null,null,null,null,null,null,null,null,null,null,null,null,null,6,"…/…/202.."]
[null,7,"…/…/202..",null,null,null,null,null,null,null,null,null,null,null,null,null,null,null,null,null,null,null,null,null,null,null,null,null,null,null,null,null,null,null,null,null,null,null,null,null,null,null,null,null,null,null,null,null,null,null,null,null,null,null,null,null,null,null,null,null,null,null,null,7,"…/…/202.."]
[null,8,"…/…/202..",null,null,null,null,null,null,null,null,null,null,null,null,null,null,null,null,null,null,null,null,null,null,null,null,null,null,null,null,null,null,null,null,null,null,null,null,null,null,null,null,null,null,null,null,null,null,null,null,null,null,null,null,null,null,null,null,null,null,null,null,8,"…/…/202.."]
[null,9,"…/…/202..",null,null,null,null,null,null,null,null,null,null,null,null,null,null,null,null,null,null,null,null,null,null,null,null,null,null,null,null,null,null,null,null,null,null,null,null,null,null,null,null,null,null,null,null,null,null,null,null,null,null,null,null,null,null,null,null,null,null,null,null,9,"…/…/202.."]
[null,10,"…/…/202..",null,null,null,null,null,null,null,null,null,null,null,null,null,null,null,null,null,null,null,null,null,null,null,null,null,null,null,null,null,null,null,null,null,null,null,null,null,null,null,null,null,null,null,null,null,null,null,null,null,null,null,null,null,null,null,null,null,null,null,null,10,"…/…/202.."]
[null,11,"…/…/202..",null,null,null,null,null,null,null,null,null,null,null,null,null,null,null,null,null,null,null,null,null,null,null,null,null,null,null,null,null,null,null,null,null,null,null,null,null,null,null,null,null,null,null,null,null,null,null,null,null,null,null,null,null,null,null,null,null,null,null,null,11,"…/…/202.."]
[null,12,"…/…/202..",null,null,null,null,null,null,null,null,null,null,null,null,null,null,null,null,null,null,null,null,null,null,null,null,null,null,null,null,null,null,null,null,null,null,null,null,null,null,null,null,null,null,null,null,null,null,null,null,null,null,null,null,null,null,null,null,null,null,null,null,12,"…/…/202.."]
[]
[null,null,null,"TYT TÜRKÇE",null,null,null,null,null,null,null,null,null,null,null,null,null,null,null,null,null,null,null,null,null," TYT FİZİK",null,null,null,null,null,null,null,null,null,null,null,null," TYT KİMYA",null,null,null,null,null,null,null,null,null,null,null," TYT BİYOLOJİ"]
[null,1,"…/…/202..",null,null,null,null,null,null,null,null,null,null,null,null,null,null,null,null,null,null,null,null,null,null,null,null,null,null,null,null,null,null,null,null,null,null,null,null,null,null,null,null,null,null,null,null,null,null,null,null,null,null,null,null,null,null,null,null,null,null,null,null,{"$f":"B66","v":1},{"$f":"C66","v":"…/…/202.."}]
[null,{"$f":"B66+1","v":2},{"$f":"C66","v":"…/…/202.."},null,null,null,null,null,null,null,null,null,null,null,null,null,null,null,null,null,null,null,null,null,null,null,null,null,null,null,null,null,null,null,null,null,null,null,null,null,null,null,null,null,null,null,null,null,null,null,null,null,null,null,null,null,null,null,null,null,null,null,null,{"$f":"B67","v":2},"…/…/202.."]
[null,3,"…/…/202..",null,null,null,null,null,null,null,null,null,null,null,null,null,null,null,null,null,null,null,null,null,null,null,null,null,null,null,null,null,null,null,null,null,null,null,null,null,null,null,null,null,null,null,null,null,null,null,null,null,null,null,null,null,null,null,null,null,null,null,null,3,"…/…/202.."]
[null,{"$f":"B68+1","v":4},{"$f":"C68","v":"…/…/202.."},null,null,null,null,null,null,null,null,null,null,null,null,null,null,null,null,null,null,null,null,null,null,null,null,null,null,null,null,null,null,null,null,null,null,null,null,null,null,null,null,null,null,null,null,null,null,null,null,null,null,null,null,null,null,null,null,null,null,null,null,4,"…/…/202.."]
[null,{"$f":"B69+1","v":5},{"$f":"C69","v":"…/…/202.."},null,null,null,null,null,null,null,null,null,null,null,null,null,null,null,null,null,null,null,null,null,null,null,null,null,null,null,null,null,null,null,null,null,null,null,null,null,null,null,null,null,null,null,null,null,null,null,null,null,null,null,null,null,null,null,null,null,null,null,null,5,"…/…/202.."]
[null,6,"…/…/202..",null,null,null,null,null,null,null,null,null,null,null,null,null,null,null,null,null,null,null,null,null,null,null,null,null,null,null,null,null,null,null,null,null,null,null,null,null,null,null,null,null,null,null,null,null,null,null,null,null,null,null,null,null,null,null,null,null,null,null,null,6,"…/…/202.."]
[null,7,"…/…/202..",null,null,null,null,null,null,null,null,null,null,null,null,null,null,null,null,null,null,null,null,null,null,null,null,null,null,null,null,null,null,null,null,null,null,null,null,null,null,null,null,null,null,null,null,null,null,null,null,null,null,null,null,null,null,null,null,null,null,null,null,7,"…/…/202.."]
[null,8,"…/…/202..",null,null,null,null,null,null,null,null,null,null,null,null,null,null,null,null,null,null,null,null,null,null,null,null,null,null,null,null,null,null,null,null,null,null,null,null,null,null,null,null,null,null,null,null,null,null,null,null,null,null,null,null,null,null,null,null,null,null,null,null,8,"…/…/202.."]
[null,9,"…/…/202..",null,null,null,null,null,null,null,null,null,null,null,null,null,null,null,null,null,null,null,null,null,null,null,null,null,null,null,null,null,null,null,null,null,null,null,null,null,null,null,null,null,null,null,null,null,null,null,null,null,null,null,null,null,null,null,null,null,null,null,null,9,"…/…/202.."]
[null,10,"…/…/202..",null,null,null,null,null,null,null,null,null,null,null,null,null,null,null,null,null,null,null,null,null,null,null,null,null,null,null,null,null,null,null,null,null,null,null,null,null,null,null,null,null,null,null,null,null,null,null,null,null,null,null,null,null,null,null,null,null,null,null,null,10,"…/…/202.."]
[null,11,"…/…/202..",null,null,null,null,null,null,null,null,null,null,null,null,null,null,null,null,null,null,null,null,null,null,null,null,null,null,null,null,null,null,null,null,null,null,null,null,null,null,null,null,null,null,null,null,null,null,null,null,null,null,null,null,null,null,null,null,null,null,null,null,11,"…/…/202.."]
[null,12,"…/…/202..",null,null,null,null,null,null,null,null,null,null,null,null,null,null,null,null,null,null,null,null,null,null,null,null,null,null,null,null,null,null,null,null,null,null,null,null,null,null,null,null,null,null,null,null,null,null,null,null,null,null,null,null,null,null,null,null,null,null,null,null,12,"…/…/202.."]
[]
[null,null,null," TYT TARİH",null,null,null,null,null,null,null,null,null,null,null,null,null,null,null,null,null,null,null,null,null," TYT COĞRAFYA",null,null,null,null,null,null,null,null,null,null,null,null,null,null,null,null,null," TYT FELSEFE KONULARI",null,null,null,null,null,null,null,null," TYT DİN KÜLTÜRÜ KONULARI"]
[null,{"$f":"B66","v":1},"…/…/202..",null,null,null,null,null,null,null,null,null,null,null,null,null,null,null,null,null,null,null,null,null,null,null,null,null,null,null,null,null,null,null,null,null,null,null,null,null,null,null,null,null,null,null,null,null,null,null,null,null,null,null,null,null,null,null,null,null,null,null,null,{"$f":"B80","v":1},{"$f":"C80","v":"…/…/202.."}]
[null,{"$f":"B67","v":2},"…/…/202..",null,null,null,null,null,null,null,null,null,null,null,null,null,null,null,null,null,null,null,null,null,null,null,null,null,null,null,null,null,null,null,null,null,null,null,null,null,null,null,null,null,null,null,null,null,null,null,null,null,null,null,null,null,null,null,null,null,null,null,null,{"$f":"B81","v":2},"…/…/202.."]
[null,3,"…/…/202..",null,null,null,null,null,null,null,null,null,null,null,null,null,null,null,null,null,null,null,null,null,null,null,null,null,null,null,null,null,null,null,null,null,null,null,null,null,null,null,null,null,null,null,null,null,null,null,null,null,null,null,null,null,null,null,null,null,null,null,null,3,"…/…/202.."]
[null,4,"…/…/202..",null,null,null,null,null,null,null,null,null,null,null,null,null,null,null,null,null,null,null,null,null,null,null,null,null,null,null,null,null,null,null,null,null,null,null,null,null,null,null,null,null,null,null,null,null,null,null,null,null,null,null,null,null,null,null,null,null,null,null,null,4,"…/…/202.."]
[null,5,"…/…/202..",null,null,null,null,null,null,null,null,null,null,null,null,null,null,null,null,null,null,null,null,null,null,null,null,null,null,null,null,null,null,null,null,null,null,null,null,null,null,null,null,null,null,null,null,null,null,null,null,null,null,null,null,null,null,null,null,null,null,null,null,5,"…/…/202.."]
[null,6,"…/…/202..",null,null,null,null,null,null,null,null,null,null,null,null,null,null,null,null,null,null,null,null,null,null,null,null,null,null,null,null,null,null,null,null,null,null,null,null,null,null,null,null,null,null,null,null,null,null,null,null,null,null,null,null,null,null,null,null,null,null,null,null,6,"…/…/202.."]
[null,null,null,"Genel Görüşler",null,null,null,null,null,null,null,null,null,null,null,null,null,null,null,null,null,null,null,null,null,null,null,null,null,null,null,null,null,null,null,null,null,"Alınabilecek tedbirler/tavsiyeler"]
[null,"1.","…/…/202.."]
[null,"2.","…/…/202.."]
[null,"3.","…/…/202.."]
[null,"4.","…/…/202.."]
[null,"5.","…/…/202.."]
[null,"6.","…/…/202.."]
[null,"7.","…/…/202.."]
[null,"8.","…/…/202.."]
[null,"9.","…/…/202.."]
[null,"10.","…/…/202.."]
[]
[null,"Fetullah Bayır Fen Lisesi",null,null,null,null,null,null,null,null,null,null,null,null,null,null,null,null,null,null,null,null,null,"2022-2023",null,null,null,null,null,null,null,null,null,null,null,"ÖĞRENCİ DANIŞMANLIĞI / ÖĞRENCİ TAKİP FORMU",null,null,null,null,null,null,null,null,null,null,null,null,null,null,null,null,null,null,null,null,null,null,"Öğrencinin Hedefi :"]
[null,"No:",{"$f":"C4","v":1071},"Adı ve Soyadı",null,null,null,null,null,null,{"$f":"K4","v":"Oğuz Kağan BİLGE"},null,null,null,null,null,null,null,null,null,null,null,null,"Sınıf ",null,null,null,{"$f":"AB4","v":"12A"},null,null,null,"Grubu",null,null,null,"Danışman Öğretmen   :",null,null,null,null,null,null,null,null,null,null,null,{"$f":"AQ4","v":"…........"},null,null,null,null,null,null,null,null,null,null,{"$f":"BG4","v":"Yazılım Mühendisliği"}]
[null,"Yönerge :",null,"Bu form her öğrenci için danışman öğretmenimiz tarafından ayrı ayrı doldurulur. Öğrencinin çalıştığı konular, ertesi hafta en geç Salı gününe kadar tarih yazarak kontrol edilir. E(-): Eksik ; T(+): Tam ;  yazılır. ",null,null,null,null,null,null,null,null,null,null,null,null,null,null,null,null,null,null,null,null,null,null,null,null,null,null,null,null,null,null,null,null,null,null,null,null,null,null,null,null,null,null,null,null,null,null,null,null,null,null,null,null,null,null,"Öğrenci Takip Sayfa No:",null,null,null,null,null,{"$f":"BM5","v":45658}]
[null,null,null,"Okulda yapılan kazanım değerlendirme sınav analizlerini inceler, 1.;2., 3. öncelikli konulara göre öğrenciyi ödevlendirilir. Gerekirse diğer danışmanlarla işbirliği yaparak konuların öğretmenlerce tamamlanma yoluna gidilir."]
[null,"Ders",null,"AYT MATEMATİK",null,null,null,null,null,null,null,null,null,null,null,null,null,null,null,null,null,null,null,null,null,null,null,null,null,null,null,null,null,null,null,null,"AYT GEOMETRİ",null,null,null,null,null,null,null,null,null,null,null,null,null,null,null,null,null,null,null,null,null,null,null,null,null,null,"Ders"]
[null,"Kontrol Tarihi",null,1,2,3,4,5,6,7,8,9,10,11,12,13,14,15,16,17,18,19,20,21,22,23,24,25,26,27,28,29,30,31,null,null,1,2,3,4,5,6,7,8,9,10,11,12,13,14,15,16,17,18,19,20,21,22,23,24,25,26,27,"Kontrol Tarihi"]
[null,"AYT",null,"Temel Kavramlar","Sayı Basamakları","Bölme ve Bölünebilme","EBOB – EKOK","Rasyonel Sayılar","Basit Eşitsizlikler","Mutlak Değer","Üslü Sayılar","Köklü Sayılar","Çarpanlara Ayırma","Oran Orantı","Denklem Çözme","Problemler","Kümeler","Kartezyen Çarpım","Mantık","Fonskiyonlar","Polinomlar","2.Dereceden Denklemler","Permütasyon ve Kombinasyon","Binom ve Olasılık","İstatistik","Karmaşık Sayılar","2.Dereceden Eşitsizlikler","Parabol","Trigonometri","Logaritma","Diziler","Limit","Türev","İntegral",null,null,"Doğruda ve Üçgende Açılar","Dik ve Özel Üçgenler","Dik Üçgende Trigonemetrik Bağıntılar","İkizkenar ve Eşkenar Üçgen","Üçgende Alanlar","Üçgende Açıortay Bağıntıları","Üçgende Kenarortay Bağıntıları","Üçgende Eşlik ve Benzerlik","Üçgende Açı-Kenar Bağıntıları","Çokgenler","Dörtgenler","Yamuk","Paralelkenar","Eşkenar Dörtgen – Deltoid","Dikdörtgen","Çemberde Açılar","Çemberde Uzunluk","Daire","Prizmalar","Piramitler","Küre","Koordinat Düzlemi ve Noktanın Analitiği","Doğrunun Analitiği","Tekrar Eden, Dönen ve Yansıyan Şekiller","Dönüşümlerle Geometri","Trigonometri","Çemberin Analitiği","AYT"]
[null,"Konu Eksiği var mı?",null,null,null,null,null,null,null,null,null,null,null,null,null,null,null,null,null,null,null,null,null,null,null,null,null,null,null,null,null,null,null,null,null,null,null,null,null,null,null,null,null,null,null,null,null,null,null,null,null,null,null,null,null,null,null,null,null,null,null,null,null,"Bu bölüme eksik varsa (-); yoksa (+) yaz.."]
[null,1,"…/…/202..",null,null,null,null,null,null,null,null,null,null,null,null,null,null,null,null,null,null,null,null,null,null,null,null,null,null,null,null,null,null,null,null,null,null,null,null,null,null,null,null,null,null,null,null,null,null,null,null,null,null,null,null,null,null,null,null,null,null,null,null,{"$f":"B106","v":1},{"$f":"C106","v":"…/…/202.."}]
[null,{"$f":"B106+1","v":2},{"$f":"C106","v":"…/…/202.."},null,null,null,null,null,null,null,null,null,null,null,null,null,null,null,null,null,null,null,null,null,null,null,null,null,null,null,null,null,null,null,null,null,null,null,null,null,null,null,null,null,null,null,null,null,null,null,null,null,null,null,null,null,null,null,null,null,null,null,null,{"$f":"B107","v":2},"…/…/202.."]
[null,{"$f":"B107+1","v":3},{"$f":"C107","v":"…/…/202.."},null,null,null,null,null,null,null,null,null,null,null,null,null,null,null,null,null,null,null,null,null,null,null,null,null,null,null,null,null,null,null,null,null,null,null,null,null,null,null,null,null,null,null,null,null,null,null,null,null,null,null,null,null,null,null,null,null,null,null,null,3,"…/…/202.."]
[null,4,"…/…/202..",null,null,null,null,null,null,null,null,null,null,null,null,null,null,null,null,null,null,null,null,null,null,null,null,null,null,null,null,null,null,null,null,null,null,null,null,null,null,null,null,null,null,null,null,null,null,null,null,null,null,null,null,null,null,null,null,null,null,null,null,4,"…/…/202.."]
[null,5,"…/…/202..",null,null,null,null,null,null,null,null,null,null,null,null,null,null,null,null,null,null,null,null,null,null,null,null,null,null,null,null,null,null,null,null,null,null,null,null,null,null,null,null,null,null,null,null,null,null,null,null,null,null,null,null,null,null,null,null,null,null,null,null,5,"…/…/202.."]
[null,6,"…/…/202..",null,null,null,null,null,null,null,null,null,null,null,null,null,null,null,null,null,null,null,null,null,null,null,null,null,null,null,null,null,null,null,null,null,null,null,null,null,null,null,null,null,null,null,null,null,null,null,null,null,null,null,null,null,null,null,null,null,null,null,null,6,"…/…/202.."]
[null,7,"…/…/202..",null,null,null,null,null,null,null,null,null,null,null,null,null,null,null,null,null,null,null,null,null,null,null,null,null,null,null,null,null,null,null,null,null,null,null,null,null,null,null,null,null,null,null,null,null,null,null,null,null,null,null,null,null,null,null,null,null,null,null,null,7,"…/…/202.."]
[null,8,{"$f":"C112","v":"…/…/202.."},null,null,null,null,null,null,null,null,null,null,null,null,null,null,null,null,null,null,null,null,null,null,null,null,null,null,null,null,null,null,null,null,null,null,null,null,null,null,null,null,null,null,null,null,null,null,null,null,null,null,null,null,null,null,null,null,null,null,null,null,8,"…/…/202.."]
[null,9,"…/…/202..",null,null,null,null,null,null,null,null,null,null,null,null,null,null,null,null,null,null,null,null,null,null,null,null,null,null,null,null,null,null,null,null,null,null,null,null,null,null,null,null,null,null,null,null,null,null,null,null,null,null,null,null,null,null,null,null,null,null,null,null,9,"…/…/202.."]
[null,10,"…/…/202..",null,null,null,null,null,null,null,null,null,null,null,null,null,null,null,null,null,null,null,null,null,null,null,null,null,null,null,null,null,null,null,null,null,null,null,null,null,null,null,null,null,null,null,null,null,null,null,null,null,null,null,null,null,null,null,null,null,null,null,null,10,"…/…/202.."]
[]
[null,"Ders",null,"AYT FİZİK",null,null,null,null,null,null,null,null,null,null,null,null,null,null,null,null,null,null,null,null,null,null,null,null,null,"AYT KİMYA",null,null,null,null,null,null,null,null,null,null,null,null,"AYT BİYOLOJİ",null,null,null,null,null,null,null,null,null,null,null,null,null,null,null,null,null,null,null,null,"Ders"]
[null,"Kontrol Tarihi",null,1,2,3,4,5,6,7,8,9,10,11,12,13,14,15,16,17,18,19,20,21,null,null,null,null,null,1,2,3,4,5,6,7,8,9,null,null,null,null,1,2,3,4,5,6,7,8,9,10,11,12,13,14,15,16,17,null,null,null,null,"Kontrol Tarihi"]
[null,"AYT",null,"Vektörler","Kuvvet, Tork ve Denge","Kütle Merkezi","Basit Makineler","Hareket","Newton’un Hareket Yasaları","İş, Güç ve Enerji II","Atışlar","İtme ve Momentum","Elektrik Alan ve Potansiyel","Paralel Levhalar ve Sığa","Manyetik Alan ve Manyetik Kuvvet","İndüksiyon, Alternatif Akım ve Transformatörler","Çembersel Hareket","Kütle Çekim ve Kepler Yasaları","Basit Harmonik Hareket","Dalga Mekaniği ve Elektromanyetik Dalgalar","Atom Modelleri","Büyük Patlama ve Radyoaktivite","Modern Fizik","Modern Fiziğin Teknolojideki Uygulamaları",null,null,null,null,null,"Modern Atom Teorisi","Gazlar","Sıvı Çözeltiler ve Çözünürlük","Kimyasal Tepkimelerde Enerji","Tepkimelerde Hız ve Denge","Kimya ve Elektrik","Karbon Kimyası","Organik Kimya","Enerji Kaynakları ve Bilimsel Gelişmeler",null,null,null,null,"Sinir Sistemi","Endokrin Sistem","Duyu Organları","Destek ve Hareket Sistemi","Sindirim Sistemi","Dolaşım ve Bağışıklık Sistemi","Solunum Sistemi","Üriner Sistem","Üreme Sistemi ve Embriyonik Gelişim","Komünite ve Popülasyon Ekolojisi","Nükleik Asitler","Genetik Şifre ve Protein Sentezi","Canlılık ve Enerji","Fotosentez ve Kemosentez","Hücresel Solunum","Bitki Biyolojisi","Canlılar ve Çevre",null,null,null,null,"AYT"]
[null,"Konu Eksiği var mı?",null,null,null,null,null,null,null,null,null,null,null,null,null,null,null,null,null,null,null,null,null,null,null,null,null,null,null,null,null,null,null,null,null,null,null,null,null,null,null,null,null,null,null,null,null,null,null,null,null,null,null,null,null,null,null,null,null,null,null,null,null,"Bu bölüme eksik varsa (-); yoksa (+) yaz.."]
[null,1,"…/…/202..",null,null,null,null,null,null,null,null,null,null,null,null,null,null,null,null,null,null,null,null,null,null,null,null,null,null,null,null,null,null,null,null,null,null,null,null,null,null,null,null,null,null,null,null,null,null,null,null,null,null,null,null,null,null,null,null,null,null,null,null,{"$f":"B121","v":1},{"$f":"C121","v":"…/…/202.."}]
[null,{"$f":"B121+1","v":2},{"$f":"C121","v":"…/…/202.."},null,null,null,null,null,null,null,null,null,null,null,null,null,null,null,null,null,null,null,null,null,null,null,null,null,null,null,null,null,null,null,null,null,null,null,null,null,null,null,null,null,null,null,null,null,null,null,null,null,null,null,null,null,null,null,null,null,null,null,null,{"$f":"B122","v":2},"…/…/202.."]
[null,{"$f":"B122+1","v":3},{"$f":"C122","v":"…/…/202.."},null,null,null,null,null,null,null,null,null,null,null,null,null,null,null,null,null,null,null,null,null,null,null,null,null,null,null,null,null,null,null,null,null,null,null,null,null,null,null,null,null,null,null,null,null,null,null,null,null,null,null,null,null,null,null,null,null,null,null,null,3,"…/…/202.."]
[null,4,"…/…/202..",null,null,null,null,null,null,null,null,null,null,null,null,null,null,null,null,null,null,null,null,null,null,null,null,null,null,null,null,null,null,null,null,null,null,null,null,null,null,null,null,null,null,null,null,null,null,null,null,null,null,null,null,null,null,null,null,null,null,null,null,4,"…/…/202.."]
[null,5,"…/…/202..",null,null,null,null,null,null,null,null,null,null,null,null,null,null,null,null,null,null,null,null,null,null,null,null,null,null,null,null,null,null,null,null,null,null,null,null,null,null,null,null,null,null,null,null,null,null,null,null,null,null,null,null,null,null,null,null,null,null,null,null,5,"…/…/202.."]
[null,6,"…/…/202..",null,null,null,null,null,null,null,null,null,null,null,null,null,null,null,null,null,null,null,null,null,null,null,null,null,null,null,null,null,null,null,null,null,null,null,null,null,null,null,null,null,null,null,null,null,null,null,null,null,null,null,null,null,null,null,null,null,null,null,null,6,"…/…/202.."]
[null,7,"…/…/202..",null,null,null,null,null,null,null,null,null,null,null,null,null,null,null,null,null,null,null,null,null,null,null,null,null,null,null,null,null,null,null,null,null,null,null,null,null,null,null,null,null,null,null,null,null,null,null,null,null,null,null,null,null,null,null,null,null,null,null,null,7,"…/…/202.."]
[null,8,"…/…/202..",null,null,null,null,null,null,null,null,null,null,null,null,null,null,null,null,null,null,null,null,null,null,null,null,null,null,null,null,null,null,null,null,null,null,null,null,null,null,null,null,null,null,null,null,null,null,null,null,null,null,null,null,null,null,null,null,null,null,null,null,8,"…/…/202.."]
[null,9,"…/…/202..",null,null,null,null,null,null,null,null,null,null,null,null,null,null,null,null,null,null,null,null,null,null,null,null,null,null,null,null,null,null,null,null,null,null,null,null,null,null,null,null,null,null,null,null,null,null,null,null,null,null,null,null,null,null,null,null,null,null,null,null,9,"…/…/202.."]
[null,10,"…/…/202..",null,null,null,null,null,null,null,null,null,null,null,null,null,null,null,null,null,null,null,null,null,null,null,null,null,null,null,null,null,null,null,null,null,null,null,null,null,null,null,null,null,null,null,null,null,null,null,null,null,null,null,null,null,null,null,null,null,null,null,null,10,"…/…/202.."]
[]
[]
[null,"Fetullah Bayır Fen Lisesi",null,null,null,null,null,null,null,null,null,null,null,null,null,null,null,null,null,null,null,null,null,"2022-2023",null,null,null,null,null,null,null,null,null,null,null,"ÖĞRENCİ DANIŞMANLIĞI / ÖĞRENCİ TAKİP FORMU",null,null,null,null,null,null,null,null,null,null,null,null,null,null,null,null,null,null,null,null,null,null,"Öğrencinin Hedefi :"]
[null,"No:",{"$f":"C99","v":1071},"Adı ve Soyadı",null,null,null,null,null,null,{"$f":"K99","v":"Oğuz Kağan BİLGE"},null,null,null,null,null,null,null,null,null,null,null,null,"Sınıf ",null,null,null,{"$f":"AB99","v":"12A"},null,null,null,"Grubu",null,null,null,"Danışman Öğretmen   :",null,null,null,null,null,null,null,null,null,null,null,{"$f":"VLOOKUP(C134,#REF!,16)","v":{"$error":"#REF!"}},null,null,null,null,null,null,null,null,null,null,{"$f":"BG99","v":"Yazılım Mühendisliği"}]
[null,"Ders",null,"AYT MATEMATİK",null,null,null,null,null,null,null,null,null,null,null,null,null,null,null,null,null,null,null,null,null,null,null,null,null,null,null,null,null,null,null,null,"AYT GEOMETRİ",null,null,null,null,null,null,null,null,null,null,null,null,null,null,null,null,null,null,null,null,null,null,null,null,null,null,{"$f":"BM100","v":45658}]
[null,null,null,1,2,3,4,5,6,7,8,9,10,11,12,13,14,15,16,17,18,19,20,21,22,23,24,25,26,27,28,29,30,31,null,null,1,2,3,4,5,6,7,8,9,10,11,12,13,14,15,16,17,18,19,20,21,22,23,24,25,26,27,"Kontrol Tarihi"]
[null,1,"…/…/202..",null,null,null,null,null,null,null,null,null,null,null,null,null,null,null,null,null,null,null,null,null,null,null,null,null,null,null,null,null,null,null,null,null,null,null,null,null,null,null,null,null,null,null,null,null,null,null,null,null,null,null,null,null,null,null,null,null,null,null,null,{"$f":"B137","v":1},{"$f":"C137","v":"…/…/202.."}]
[null,{"$f":"B137+1","v":2},{"$f":"C137","v":"…/…/202.."},null,null,null,null,null,null,null,null,null,null,null,null,null,null,null,null,null,null,null,null,null,null,null,null,null,null,null,null,null,null,null,null,null,null,null,null,null,null,null,null,null,null,null,null,null,null,null,null,null,null,null,null,null,null,null,null,null,null,null,null,{"$f":"B138","v":2},"…/…/202.."]
[null,{"$f":"B138+1","v":3},{"$f":"C138","v":"…/…/202.."},null,null,null,null,null,null,null,null,null,null,null,null,null,null,null,null,null,null,null,null,null,null,null,null,null,null,null,null,null,null,null,null,null,null,null,null,null,null,null,null,null,null,null,null,null,null,null,null,null,null,null,null,null,null,null,null,null,null,null,null,3,"…/…/202.."]
[null,4,"…/…/202..",null,null,null,null,null,null,null,null,null,null,null,null,null,null,null,null,null,null,null,null,null,null,null,null,null,null,null,null,null,null,null,null,null,null,null,null,null,null,null,null,null,null,null,null,null,null,null,null,null,null,null,null,null,null,null,null,null,null,null,null,4,"…/…/202.."]
[null,5,"…/…/202..",null,null,null,null,null,null,null,null,null,null,null,null,null,null,null,null,null,null,null,null,null,null,null,null,null,null,null,null,null,null,null,null,null,null,null,null,null,null,null,null,null,null,null,null,null,null,null,null,null,null,null,null,null,null,null,null,null,null,null,null,5,"…/…/202.."]
[null,6,"…/…/202..",null,null,null,null,null,null,null,null,null,null,null,null,null,null,null,null,null,null,null,null,null,null,null,null,null,null,null,null,null,null,null,null,null,null,null,null,null,null,null,null,null,null,null,null,null,null,null,null,null,null,null,null,null,null,null,null,null,null,null,null,6,"…/…/202.."]
[null,7,"…/…/202..",null,null,null,null,null,null,null,null,null,null,null,null,null,null,null,null,null,null,null,null,null,null,null,null,null,null,null,null,null,null,null,null,null,null,null,null,null,null,null,null,null,null,null,null,null,null,null,null,null,null,null,null,null,null,null,null,null,null,null,null,7,"…/…/202.."]
[null,8,"…/…/202..",null,null,null,null,null,null,null,null,null,null,null,null,null,null,null,null,null,null,null,null,null,null,null,null,null,null,null,null,null,null,null,null,null,null,null,null,null,null,null,null,null,null,null,null,null,null,null,null,null,null,null,null,null,null,null,null,null,null,null,null,8,"…/…/202.."]
[null,9,"…/…/202..",null,null,null,null,null,null,null,null,null,null,null,null,null,null,null,null,null,null,null,null,null,null,null,null,null,null,null,null,null,null,null,null,null,null,null,null,null,null,null,null,null,null,null,null,null,null,null,null,null,null,null,null,null,null,null,null,null,null,null,null,9,"…/…/202.."]
[null,10,"…/…/202..",null,null,null,null,null,null,null,null,null,null,null,null,null,null,null,null,null,null,null,null,null,null,null,null,null,null,null,null,null,null,null,null,null,null,null,null,null,null,null,null,null,null,null,null,null,null,null,null,null,null,null,null,null,null,null,null,null,null,null,null,10,"…/…/202.."]
[null,"Ders",null,"AYT FİZİK",null,null,null,null,null,null,null,null,null,null,null,null,null,null,null,null,null,null,null,null,"AYT KİMYA",null,null,null,null,null,null,null,null,null,null,null,null,null,null,null,null,null,"AYT BİYOLOJİ",null,null,null,null,null,null,null,null,null,null,null,null,null,null,null,null,null,null,null,null,"Ders"]
[null,"Kontrol Tarihi",null,null,null,null,null,null,null,null,null,null,null,null,null,null,null,null,null,null,null,null,null,null,null,null,null,null,null,null,null,null,null,null,null,null,null,null,null,null,null,null,null,null,null,null,null,null,null,null,null,null,null,null,null,null,null,null,null,null,null,null,null,"Kontrol Tarihi"]
[null,1,"…/…/202..",null,null,null,null,null,null,null,null,null,null,null,null,null,null,null,null,null,null,null,null,null,null,null,null,null,null,null,null,null,null,null,null,null,null,null,null,null,null,null,null,null,null,null,null,null,null,null,null,null,null,null,null,null,null,null,null,null,null,null,null,{"$f":"B149","v":1},{"$f":"C149","v":"…/…/202.."}]
[null,{"$f":"B149+1","v":2},{"$f":"C149","v":"…/…/202.."},null,null,null,null,null,null,null,null,null,null,null,null,null,null,null,null,null,null,null,null,null,null,null,null,null,null,null,null,null,null,null,null,null,null,null,null,null,null,null,null,null,null,null,null,null,null,null,null,null,null,null,null,null,null,null,null,null,null,null,null,{"$f":"B150","v":2},"…/…/202.."]
[null,{"$f":"B150+1","v":3},{"$f":"C150","v":"…/…/202.."},null,null,null,null,null,null,null,null,null,null,null,null,null,null,null,null,null,null,null,null,null,null,null,null,null,null,null,null,null,null,null,null,null,null,null,null,null,null,null,null,null,null,null,null,null,null,null,null,null,null,null,null,null,null,null,null,null,null,null,null,3,"…/…/202.."]
[null,4,"…/…/202..",null,null,null,null,null,null,null,null,null,null,null,null,null,null,null,null,null,null,null,null,null,null,null,null,null,null,null,null,null,null,null,null,null,null,null,null,null,null,null,null,null,null,null,null,null,null,null,null,null,null,null,null,null,null,null,null,null,null,null,null,4,"…/…/202.."]
[null,5,"…/…/202..",null,null,null,null,null,null,null,null,null,null,null,null,null,null,null,null,null,null,null,null,null,null,null,null,null,null,null,null,null,null,null,null,null,null,null,null,null,null,null,null,null,null,null,null,null,null,null,null,null,null,null,null,null,null,null,null,null,null,null,null,5,"…/…/202.."]
[null,6,"…/…/202..",null,null,null,null,null,null,null,null,null,null,null,null,null,null,null,null,null,null,null,null,null,null,null,null,null,null,null,null,null,null,null,null,null,null,null,null,null,null,null,null,null,null,null,null,null,null,null,null,null,null,null,null,null,null,null,null,null,null,null,null,6,"…/…/202.."]
[null,7,"…/…/202..",null,null,null,null,null,null,null,null,null,null,null,null,null,null,null,null,null,null,null,null,null,null,null,null,null,null,null,null,null,null,null,null,null,null,null,null,null,null,null,null,null,null,null,null,null,null,null,null,null,null,null,null,null,null,null,null,null,null,null,null,7,"…/…/202.."]
[null,8,"…/…/202..",null,null,null,null,null,null,null,null,null,null,null,null,null,null,null,null,null,null,null,null,null,null,null,null,null,null,null,null,null,null,null,null,null,null,null,null,null,null,null,null,null,null,null,null,null,null,null,null,null,null,null,null,null,null,null,null,null,null,null,null,8,"…/…/202.."]
[null,9,"…/…/202..",null,null,null,null,null,null,null,null,null,null,null,null,null,null,null,null,null,null,null,null,null,null,null,null,null,null,null,null,null,null,null,null,null,null,null,null,null,null,null,null,null,null,null,null,null,null,null,null,null,null,null,null,null,null,null,null,null,null,null,null,9,"…/…/202.."]
[null,10,"…/…/202..",null,null,null,null,null,null,null,null,null,null,null,null,null,null,null,null,null,null,null,null,null,null,null,null,null,null,null,null,null,null,null,null,null,null,null,null,null,null,null,null,null,null,null,null,null,null,null,null,null,null,null,null,null,null,null,null,null,null,null,null,10,"…/…/202.."]
[null,null,null,"Genel Görüşler",null,null,null,null,null,null,null,null,null,null,null,null,null,null,null,null,null,null,null,null,null,null,null,null,null,null,null,null,null,null,null,null,null,"Alınabilecek tedbirler/tavsiyeler"]
[null,"1.","…/…/202.."]
[null,"2.","…/…/202.."]
[null,"3.","…/…/202.."]
[null,"4.","…/…/202.."]
[null,"5.","…/…/202.."]
[null,"6.","…/…/202.."]
[null,"7.","…/…/202.."]
[null,"8.","…/…/202.."]
[null,"9.","…/…/202.."]
[null,"10.","…/…/202.."]

{"sheet":"TYT Soru Dağılımı","index":12,"n_rows":115,"n_cols":25,"rows_kept":115,"cut":false,"hidden":false,"merged":[[54,13,54,21],[71,13,71,21],[90,13,90,21],[104,13,104,21],[0,0,0,8],[0,13,0,21],[14,0,14,8],[21,13,21,21],[38,13,38,21],[40,0,40,8]]}
["TÜRKÇE",null,null,null,null,null,null,null,null,null,null,null,null,"FİZİK"]
["KONULAR",2024,2023,2022,2021,2020,2019,2018,2017,2016,null,"Topl",null,"KONULAR",2024,2023,2022,2021,2020,2019,2018,2017,2016,null,"Topl"]
["Ses Bilgisi",0,1,0,1,0,1,3,3,1,null,{"$f":"SUM(B3:J3)","v":10},null,"Fizik Bilimine Giriş",0,0,0,0,1,0,1,1,1,null,{"$f":"SUM(O3:W3)","v":4}]
["Dil Bilgisi",0,2,3,2,3,8,1,1,3,null,{"$f":"SUM(B4:J4)","v":23},null,"Madde Ve Özellikleri",1,1,1,1,0,1,0,2,1,null,{"$f":"SUM(O4:W4)","v":8}]
["Noktalama İşaretleri",2,2,2,2,2,1,1,1,1,null,14,null,"Kaldırma Kuvveti",1,0,0,0,1,0,1,1,0,null,4]
["Yazım Kuralları",2,2,2,2,2,2,2,2,1,null,17,null,"Basınç",0,0,1,1,0,0,0,0,1,null,3]
["Anlatım Bozukluğu",0,0,0,0,0,0,1,1,2,null,4,null,"Isı, Sıcaklık ve Genleşme",1,1,1,1,1,1,1,1,2,null,10]
["Paragraf",26,26,26,25,26,22,22,22,22,null,217,null,"Hareket ve Kuvvet",0,1,1,1,1,1,1,1,1,null,8]
["Cümlede Anlam",5,4,3,3,6,3,7,7,7,null,45,null,"Dinamik",0,0,0,0,0,0,0,1,0,null,1]
["Sözcükte Anlam",5,3,4,5,1,3,3,3,3,null,30,null,"İş, Güç ve Enerji",0,0,0,0,0,1,0,1,3,null,5]
[null,null,null,null,null,null,null,null,null,null,null,0,null,"Elektrostatik",0,0,0,0,0,0,0,1,1,null,2]
["Toplam Soru Sayısı",40,40,40,40,40,40,40,40,40,null,null,null,"Elektrik Akımı ve Devreler",1,2,0,0,1,1,0,1,1,null,7]
[null,null,null,null,null,null,null,null,null,null,null,null,null,"Elektriksel Enerji ve Güç",0,0,1,1,0,0,0,0,0,null,2]
[null,null,null,null,null,null,null,null,null,null,null,null,null,"Optik",1,2,1,1,1,2,2,3,1,null,14]
["MATEMATİK",null,null,null,null,null,null,null,null,null,null,null,null,"Manyetizma",1,0,0,0,0,0,1,1,1,null,4]
["KONULAR",2024,2023,2022,2021,2020,2019,2018,2017,2016,null,{"$f":"L2","v":"Topl"},null,"Dalgalar",1,0,1,1,1,0,0,0,1,null,5]
["Temel Kavramlar",1,2,3,3,1,4,4,4,3,null,25,null,null,null,null,null,null,null,null,null,null,null,null,0]
["Sayı Basamakları",2,1,1,2,1,2,1,2,2,null,14,null,"Toplam Soru Sayısı",7,7,7,7,7,7,7,14,14]
["Bölünebilme Kuralları",1,1,1,1,1,1,0,0,0,null,6]
["OBEB-OKEK",1,0,0,0,0,0,0,0,0,null,1]
["Rasyonel Sayılar",2,2,2,0,3,1,0,1,1,null,12]
["Basit Eşitsizlikler",0,3,1,1,1,0,1,1,1,null,9,null,"KİMYA"]
["Mutlak Değer",2,1,1,1,1,1,1,1,1,null,10,null,"KONULAR",2024,2023,2022,2021,2020,2019,2018,2017,2016,null,{"$f":"Y2","v":"Topl"}]
["Üslü Sayılar",1,1,1,1,1,1,0,2,2,null,10,null,"Kimya Bilimi",1,1,1,1,1,"–",2,3,3,null,{"$f":"SUM(O24:W24)","v":13}]
["Köklü Sayılar",1,1,1,1,1,1,1,2,3,null,12,null,"Atomun Yapısı",1,"–","–","–",1,1,"–",2,"–",null,5]
["Çarpanlara Ayırma",0,0,0,0,0,0,1,1,1,null,3,null,"Periyodik Tablo","–",1,1,1,"–",1,1,1,2,null,8]
["Oran-Orantı",0,1,1,1,1,0,0,0,2,null,6,null,"Maddenin Halleri",1,1,1,1,1,1,1,2,1,null,10]
["Denklem Çözme",0,1,0,2,0,1,2,1,0,null,7,null,"Kimyasal Türler Arası Etkileşimler",1,1,1,1,1,1,1,1,3,null,11]
["Problemler",11,10,13,11,13,12,11,11,13,null,105,null,"Kimyasal Hesaplamalar",1,"–","–",1,1,"–","–","–",1,null,4]
["Kümeler – Kartezyen Çarpım",1,1,1,1,1,1,2,2,1,null,11,null,"Kimyanın Temel Kanunları","–",1,1,"–","–","–",1,1,"–",null,4]
["Mantık",1,1,1,1,0,0,0,1,1,null,6,null,"Asit, Baz ve Tuz",1,1,1,1,1,1,"–","–","–",null,6]
["Fonksiyonlar",1,1,1,1,2,2,1,1,1,null,11,null,"Karışımlar",1,1,1,1,1,1,"–",1,2,null,9]
["Polinomlar",0,0,0,1,0,0,1,0,0,null,2,null,"Kimya Her Yerde","–","–","–","–","–",1,1,2,1,null,5]
["Permütasyon-Kombinasyon",3,1,0,0,2,1,1,1,null,null,9,null,null,null,null,null,null,null,null,null,null,null,null,0]
["Olasılık",1,1,1,1,1,1,2,1,1,null,10,null,"Toplam Soru Sayısı",7,7,7,7,7,7,7,14,14]
["Veri – İstatistik",1,1,1,1,0,1,0,0,1,null,6]
[null,null,null,null,null,null,null,null,null,null,null,0]
["Toplam Soru Sayısı",30,30,30,30,30,30,29,32,33]
[null,null,null,null,null,null,null,null,null,null,null,null,null,"BİYOLOJİ"]
[null,null,null,null,null,null,null,null,null,null,null,null,null,"KONULAR",2024,2023,2022,2021,2020,2019,2018,2017,2016,null,{"$f":"Y23","v":"Topl"}]
["GEOMETRİ",null,null,null,null,null,null,null,null,null,null,null,null,"Canlıların Ortak Özellikleri","–","–",1,"–","–",1,"–","–",1,null,3]
["KONULAR",2024,2023,2022,2021,2020,2019,2018,2017,2016,null,{"$f":"L16","v":"Topl"},null,"Canlıların Temel Bileşenleri",1,1,"–",1,1,1,1,3,3,null,12]
["Açılar ve Üçgenler",5,5,4,4,2,2,3,2,1,null,{"$f":"SUM(B43:J43)","v":28},null,"Hücre ve Organelleri",1,1,1,1,1,"–","–",2,1,null,8]
["Çokgenler",1,1,1,1,1,1,1,2,0,null,9,null,"Madde Geçişleri","–","–","–","–","–","–",1,2,1,null,4]
["Yamuk",1,1,0,0,2,0,1,1,0,null,6,null,"Canlıların Sınıflandırılması",1,1,1,1,1,1,1,1,1,null,9]
["Eşkenar Dörtgen",0,0,1,0,0,0,0,0,0,null,1,null,"Hücre Bölünmeleri ve Üreme",1,1,1,1,1,1,1,"–",1,null,8]
["Deltoid",0,0,0,1,0,0,0,0,0,null,1,null,"Kalıtım",1,1,1,1,1,1,"–",2,2,null,10]
["Kare",0,0,0,0,1,1,1,1,0,null,4,null,"Ekosistem Ekoloji",1,1,1,1,1,1,1,"–",1,null,8]
["Dikdörtgen",1,1,1,1,2,1,1,0,1,null,9,null,"Bitkiler Biyolojisi","–","–","–","–","–","–",1,1,1,null,3]
["Çember ve Daire",0,0,0,0,0,2,1,2,1,null,6,null,null,null,null,null,null,null,null,null,null,null,null,0]
["Analitik Geometri",0,0,1,1,0,1,1,1,1,null,6,null,"Toplam Soru Sayısı",6,6,6,6,6,6,6,11,12]
["Katı Cisimler",2,2,2,2,2,2,2,2,2,null,18]
[null,null,null,null,null,null,null,null,null,null,null,0]
["Toplam Soru Sayısı",10,10,10,10,10,10,11,11,6]
[null,null,null,null,null,null,null,null,null,null,null,null,null,"TARİH"]
[null,null,null,null,null,null,null,null,null,null,null,null,null,"KONULAR",2024,2023,2022,2021,2020,2019,2018,2017,2016,null,{"$f":"Y23","v":"Topl"}]
[null,null,null,null,null,null,null,null,null,null,null,null,null,"Tarih ve Zaman","–","–","–","–","–","–","–",1,1,null,2]
[null,null,null,null,null,null,null,null,null,null,null,null,null,"İlk ve Orta Çağlarda Türk Dünyası",1,1,1,1,1,1,1,1,1,null,9]
[null,null,null,null,null,null,null,null,null,null,null,null,null,"İslam Medeniyetinin Doğuşu","–","–",null,"–","–","–","–",1,1,null,2]
[null,null,null,null,null,null,null,null,null,null,null,null,null,"Türklerin İslamiyet’i Kabulü ve İlk Türk İslam Devletleri",1,1,1,1,1,1,1,1,1,null,9]
[null,null,null,null,null,null,null,null,null,null,null,null,null,"Beylikten Devlete Osmanlı","–","–",1,"–","–",1,1,2,1,null,6]
[null,null,null,null,null,null,null,null,null,null,null,null,null,"Dünya Gücü Osmanlı",1,"–","–","–","–","–","–",1,1,null,3]
[null,null,null,null,null,null,null,null,null,null,null,null,null,"Değişim Çağında Avrupa ve Osmanlı","–","–","–","–","–","–","–","–",1,null,1]
[null,null,null,null,null,null,null,null,null,null,null,null,null,"Uluslararası İlişkilerde Denge Stratejisi (1774-1914)","–",1,"–",1,1,"–",1,1,1,null,6]
[null,null,null,null,null,null,null,null,null,null,null,null,null,"XX. Yüzyıl Başlarında Osmanlı Devleti ve Dünya","–","–","–","–",1,"–",1,2,2,null,6]
[null,null,null,null,null,null,null,null,null,null,null,null,null,"Milli Mücadele",1,2,1,1,1,1,"–",1,2,null,10]
[null,null,null,null,null,null,null,null,null,null,null,null,null,"Atatürkçülük ve Türk İnkılabı",1,"–",1,1,"–",1,"–",4,3,null,11]
[null,null,null,null,null,null,null,null,null,null,null,null,null,null,null,null,null,null,null,null,null,null,null,null,0]
[null,null,null,null,null,null,null,null,null,null,null,null,null,"Toplam Soru Sayısı",5,5,5,5,5,5,5,15,15,null,65]
[]
[]
[null,null,null,null,null,null,null,null,null,null,null,null,null,"COĞRAFYA"]
[null,null,null,null,null,null,null,null,null,null,null,null,null,"KONULAR",2024,2023,2022,2021,2020,2019,2018,2017,2016,null,{"$f":"Y56","v":"Topl"}]
[null,null,null,null,null,null,null,null,null,null,null,null,null,"Doğa ve İnsan","–","–","–","–","–",1,1,1,"–",null,{"$f":"SUM(O74:W74)","v":3}]
[null,null,null,null,null,null,null,null,null,null,null,null,null,"Dünya’nın Şekli ve Hareketleri","–","–","–",1,"–","–","–","–","–",null,1]
[null,null,null,null,null,null,null,null,null,null,null,null,null,"Coğrafi Konum","–","–","–","–","–","–","–","–",1,null,1]
[null,null,null,null,null,null,null,null,null,null,null,null,null,"Harita Bilgisi",1,"–",1,"–",1,"–",1,1,1,null,6]
[null,null,null,null,null,null,null,null,null,null,null,null,null,"Atmosfer ve Sıcaklık","–",1,"–","–",1,"–","–","–","–",null,2]
[null,null,null,null,null,null,null,null,null,null,null,null,null,"İklim Bilgisi",1,1,1,1,"–",1,1,3,2,null,11]
[null,null,null,null,null,null,null,null,null,null,null,null,null,"iç ve Dış Kuvvetler","–","–",1,1,1,"–","–",1,1,null,5]
[null,null,null,null,null,null,null,null,null,null,null,null,null,"Nüfus ve Yerleşme",1,2,"–",1,1,2,1,2,3,null,13]
[null,null,null,null,null,null,null,null,null,null,null,null,null,"Türkiye’nin Yer Şekilleri","–","–","–","–","–","–","–",1,"–",null,1]
[null,null,null,null,null,null,null,null,null,null,null,null,null,"Ekonomik Faaliyetler","–","–",1,"–","–","–","–",1,"–",null,2]
[null,null,null,null,null,null,null,null,null,null,null,null,null,"Bölgeler",1,"–","–",1,1,"–","–",1,2,null,6]
[null,null,null,null,null,null,null,null,null,null,null,null,null,"Uluslararası Ulaşım Hatları","–","–","–","–","–","–","–","–",1,null,1]
[null,null,null,null,null,null,null,null,null,null,null,null,null,"Doğal Afetler",1,1,1,"–","–",1,1,1,1,null,7]
[null,null,null,null,null,null,null,null,null,null,null,null,null,null,null,null,null,null,null,null,null,null,null,null,0]
[null,null,null,null,null,null,null,null,null,null,null,null,null,"Toplam Soru Sayısı",5,5,5,5,5,5," 5",12,12]
[]
[]
[null,null,null,null,null,null,null,null,null,null,null,null,null,"FELSEFE"]
[null,null,null,null,null,null,null,null,null,null,null,null,null,"KONULAR",2024,2023,2022,2021,2020,2019,2018,2017,2016,null,{"$f":"Y73","v":"Topl"}]
[null,null,null,null,null,null,null,null,null,null,null,null,null,"Felsefenin Alanı",1,2,1,2,"–",1,"–",1,"–",null,{"$f":"SUM(O93:W93)","v":8}]
[null,null,null,null,null,null,null,null,null,null,null,null,null,"Bilgi Felsefesi",1,2,2,"–",1,1,2,2,2,null,13]
[null,null,null,null,null,null,null,null,null,null,null,null,null,"Bilim Felsefesi","–","–","–","–","–",1,"–",1,"–",null,2]
[null,null,null,null,null,null,null,null,null,null,null,null,null,"Varlık Felsefesi",1,"–",1,1,1,"–",1,1,3,null,9]
[null,null,null,null,null,null,null,null,null,null,null,null,null,"Ahlak Felsefesi",1,1,1,"–",2,1,1,1,1,null,9]
[null,null,null,null,null,null,null,null,null,null,null,null,null,"Siyaset Felsefesi","–","–","–",1,"–",1,"–","–",1,null,3]
[null,null,null,null,null,null,null,null,null,null,null,null,null,"Din Felsefesi",1,"–","–","–",1,"–",1,1,1,null,5]
[null,null,null,null,null,null,null,null,null,null,null,null,null,"Sanat Felsefesi","–","–","–",1,"–","–","–",1,"–",null,2]
[null,null,null,null,null,null,null,null,null,null,null,null,null,null,null,null,null,null,null,null,null,null,null,null,0]
[null,null,null,null,null,null,null,null,null,null,null,null,null,"Toplam Soru Sayısı",5,5,5,5,5,5,5,8,8]
[]
[]
[null,null,null,null,null,null,null,null,null,null,null,null,null,"DİN KÜLTÜRÜ"]
[null,null,null,null,null,null,null,null,null,null,null,null,null,"KONULAR",2024,2023,2022,2021,2020,2019,2018,2017,2016,null,{"$f":"Y92","v":"Topl"}]
[null,null,null,null,null,null,null,null,null,null,null,null,null,"Bilgi ve İnanç",1,1,1,1,1,2,1,"–",2,null,{"$f":"SUM(O107:W107)","v":10}]
[null,null,null,null,null,null,null,null,null,null,null,null,null,"Din ve İslam",1,1,1,1,"–",1,1,1,1,null,8]
[null,null,null,null,null,null,null,null,null,null,null,null,null,"Allah İnsan İlişkisi",1,1,1,1,1,1,1,1,"–",null,8]
[null,null,null,null,null,null,null,null,null,null,null,null,null,"Hz. Muhammed (S.A.V)",1,"–","–","–",1,1,1,1,1,null,6]
[null,null,null,null,null,null,null,null,null,null,null,null,null,"Vahiy ve Akıl","–",1,1,1,2,"–",1,1,"–",null,7]
[null,null,null,null,null,null,null,null,null,null,null,null,null,"İslam Düşüncesinde İtikadi, Siyasi ve Fıkhi Yorumlar",1,"–","–","–","–","–","–",1,"–",null,2]
[null,null,null,null,null,null,null,null,null,null,null,null,null,"Din, Kültür ve Medeniyet","–",1,1,1,"–","–","–","–",1,null,4]
[null,null,null,null,null,null,null,null,null,null,null,null,null,null,null,null,null,null,null,null,null,null,null,null,0]
[null,null,null,null,null,null,null,null,null,null,null,null,null,"Toplam Soru Sayısı",5,5,5,5,5,5,5,5,5]

{"sheet":"AYT Soru Dağılımı","index":13,"n_rows":117,"n_cols":23,"rows_kept":117,"cut":false,"hidden":false,"merged":[[73,13,73,20],[76,0,76,8],[98,0,98,8],[98,13,98,20],[0,0,0,8],[0,13,0,20],[19,13,19,20],[30,0,30,8],[45,13,45,20],[48,0,48,8]]}
["MATEMATİK",null,null,null,null,null,null,null,null,null,null,null,null,"EDEBİYAT"]
["KONULAR",2024,2023,2022,2021,2020,2019,2018,2017,2016,null,"Topl",null,"KONULAR",2024,2023,2022,2021,2020,2019,2018,null,"Topl"]
["Temel Kavramlar",2,4,2,3,2,2,1,3,3,null,{"$f":"SUM(B3:J3)","v":22},null,"Anlam Bilgisi",6,6,6,3,6,3,4,null,{"$f":"SUM(M3:U3)","v":34}]
["Sayı Basamakları",1,"–","–","–",3,"–","–",1,"–",null,{"$f":"SUM(B4:J4)","v":5},null,"Dil Bilgisi","–","–","–","–","–","–","–",null,{"$f":"SUM(M4:U4)","v":0}]
["Bölme ve Bölünebilme","–",1,"–","–","–",1,"–",1,1,null,4,null,"Metin Türleri",1,1,"–","–","–",2,"–",null,4]
["EBOB – EKOK","–","–",1,1,"–","–","–",1,1,null,4,null,"Şiir Bilgisi",2,3,2,2,3,3,2,null,17]
["Rasyonel Sayılar","–","–","–","–","–","–","–",1,1,null,2,null,"Edebi Sanatlar",2,1,2,2,1,1,1,null,10]
["Basit Eşitsizlikler",1,1,"–",1,1,1,"–",2,1,null,8,null,"İslamiyet Öncesi Türk Edebiyatı ve Geçiş Dönemi",1,"–",1,1,1,"–","–",null,4]
["Mutlak Değer","–",1,"–","–",1,1,"–",1,1,null,5,null,"Halk Edebiyatı",1,2,1,2,2,1,1,null,10]
["Üslü Sayılar","–",1,"–",1,1,"–","–",1,2,null,6,null,"Divan Edebiyatı",4,5,5,6,4,3,5,null,32]
["Köklü Sayılar","–","–","–","–","–","–","–",2,1,null,3,null,"Tanzimat Edebiyatı",1,1,1,2,1,2,2,null,10]
["Çarpanlara Ayırma",1,"–",1,"–","–","–","–",1,1,null,4,null,"Servet-i Fünun Ve Fecr-i Ati Edebiyatı",1,1,1,1,2,1,1,null,8]
["Oran Orantı","–","–","–","–","–","–","–","–",1,null,1,null,"Milli Edebiyat",1,1,1,1,1,1,3,null,9]
["Kümeler",1,1,1,1,2,1,"–",2,2,null,11,null,"Cumhuriyet Dönemi Edebiyatı",3,2,3,3,2,5,4,null,22]
["Mantık",1,1,1,1,"–",1,4,1,1,null,11,null,"Batı Edebiyat Akımları",1,1,1,1,1,1,1,null,7]
["Fonksiyonlar",2,2,2,2,2,2,2,2,2,null,18,null,"TOPLAM",24,24,24,24,24,24,24]
["Polinomlar","–",2,1,1,2,2,1,3,1,null,13]
["2.Dereceden Denklemler ve Eşitsizlikler",1,2,2,1,1,"–",1,1,"–",null,9]
["Parabol",1,1,"–",1,1,1,1,"–",1,null,7]
["Permütasyon-Kombinasyon-Olasılık – Binom",3,3,3,2,3,2,2,2,3,null,23,null,"COĞRAFYA"]
["Trigonometri",5,5,4,5,4,3,3,2,4,null,35,null,"KONULAR",2024,2023,2022,2021,2020,2019,2018,null,"Topl"]
["Karmaşık Sayılar","–","–","–","–",2,1,1,2,3,null,9,null,"İklim ve Yer Şekilleri","–","–","–","–",2,1,1,null,{"$f":"SUM(M22:U22)","v":4}]
["Logaritma",1,3,2,1,3,3,2,3,1,null,19,null,"Coğrafi Konum","–","–","–","–","–","–",2,null,{"$f":"SUM(M23:U23)","v":2}]
["Diziler",1,2,1,1,2,1,1,2,2,null,13,null,"Dünya’nın Şekli ve Hareketleri","–","–","–","–","–","–","–",null,0]
["Limit",2,"–",2,2,"–",2,2,2,2,null,14,null,"Harita Bilgisi","–","–","–","–","–","–",1,null,1]
["Türev",3,"–",4,3,"–",4,4,5,5,null,28,null,"İç ve Dış Kuvvetler","–","–","–","–","–","–",1,null,1]
["İntegral",5,"–",4,4,"–",4,4,5,6,null,32,null,"Ekosistem",2,6,4,3,3,3,"–",null,21]
["TOPLAM SORU SAYISI",31,30,31,31,30,32,29,50,50,null,null,null,"Nüfus Politikaları",1,1,"–","–",2,1,1,null,6]
[null,null,null,null,null,null,null,null,null,null,null,null,null,"Yerleşmelerin Özellikleri",2,1,1,"–","–",1,4,null,9]
[null,null,null,null,null,null,null,null,null,null,null,null,null,"Uluslararası Ulaşım Hatları",1,"–","–","–","–","–","–",null,1]
["GEOMETRİ",null,null,null,null,null,null,null,null,null,null,null,null,"Ekonomik Faaliyetler ve Doğal Kaynaklar",1,"–",2,1,1,1,1,null,7]
["KONULAR",2024,2023,2022,2021,2020,2019,2018,2017,2016,null,"Topl",null,"Geçmişten Geleceğe Şehir ve Ekonomi",1,"–",1,"–",1,1,"–",null,4]
["Doğruda ve Üçgende Açı",1,3,1,"–",1,"–",1,2,2,null,{"$f":"SUM(B33:J33)","v":11},null,"Türkiye’de Ekonomi","–",5,2,3,1,2,4,null,17]
["Özel Üçgenler","–","–","–","–",2,"–",2,2,6,null,{"$f":"SUM(B34:J34)","v":12},null,"Türkiye’nin İşlevsel Bölgeleri ve Kalkınma Projeleri",1,"–",1,1,1,"–",1,null,5]
["Açıortay – Kenarortay","–","–","–","–","–","–","–","–","–",null,0,null,"Küresel Ticaret",1,"–",1,1,"–","–","–",null,3]
["Üçgende Alan Benzerlik","–",1,"–","–","–","–","–",3,1,null,5,null,"Kültür Bölgeleri",1,1,"–",1,"–",2,"–",null,5]
["Açı Kenar Bağıntıları","–","–","–","–","–",1,"–","–","–",null,1,null,"Uluslararası Örgütler",1,1,"–",1,1,2,"–",null,6]
["Çokgenler","–","–","–","–",1,2,1,"–",1,null,5,null,"Ülkeler Arası Etkileşimler","–","–","–",1,"–",1,"–",null,2]
["Özel Dörtgenler","–",1,"–","–","–","–",1,4,6,null,12,null,"Bölgeler ve Ülkeler",1,"–",4,2,2,1,1,null,11]
["Çember ve Daire",2,2,2,3,2,2,1,3,3,null,20,null,"Çevre ve Toplum",4,1,1,3,3,1,"–",null,13]
["Noktanın Analitiği",1,1,1,2,1,"–","–","–",1,null,7,null,"TOPLAM",17,17,17,17,17,17,17]
["Doğrunun Analitiği",3,"–",1,2,1,1,2,2,4,null,16]
["Dönüşüm Geometrisi","–",1,1,"–",1,1,1,"–","–",null,5]
["Katı Cisimler",1,1,2,1,1,1,1,2,2,null,12]
["Çemberin Analitiği",1,"–",1,1,"–","–",1,1,2,null,7]
["TOPLAM",9,10,9,9,10,8,11,30,30,null,null,null,"TARİH"]
[null,null,null,null,null,null,null,null,null,null,null,null,null,"KONULAR",2024,2023,2022,2021,2020,2019,2018,null,"Topl"]
[null,null,null,null,null,null,null,null,null,null,null,null,null,"Tarih ve Zaman",1,1,1,1,1,1,1,null,{"$f":"SUM(M48:U48)","v":7}]
["FİZİK",null,null,null,null,null,null,null,null,null,null,null,null,"İnsanlığın İlk Dönemleri",1,1,1,1,1,1,1,null,{"$f":"SUM(M49:U49)","v":7}]
["KONULAR",2024,2023,2022,2021,2020,2019,2018,null,null,null,"Topl",null,"Orta Çağ’da Dünya","–","–","–","–","–","–","–",null,0]
["Vektörler","–",1,1,"–","–","–","–",null,null,null,{"$f":"SUM(B51:J51)","v":2},null,"İlk ve Orta Çağlarda Türk Dünyası",2,2,2,1,2,2,3,null,14]
["Hareket",1,1,"–","–",1,1,"–",null,null,null,{"$f":"SUM(B52:J52)","v":4},null,"İslam Medeniyetinin Doğuşu",1,1,1,1,2,1,1,null,8]
["Newton’un Hareket Yasaları",1,1,1,"–",1,"–",1,null,null,null,5,null,"Türklerin İslamiyet’i Kabulü ve İlk Türk İslam Devletleri",2,1,1,3,1,1,1,null,10]
["Atışlar",1,"–","–",1,1,1,1,null,null,null,5,null,"Yerleşme ve Devletleşme Sürecinde Selçuklu Türkiyesi","–","–",1,"–","–",1,"–",null,2]
["İş, Güç ve Enerji",1,1,"–",1,1,"–","–",null,null,null,4,null,"Beylikten Devlete Osmanlı",2,2,3,"–",1,1,2,null,11]
["İtme ve Momentum",1,1,1,"–",1,1,1,null,null,null,6,null,"Devletleşme Sürecinde Savaşçılar ve Askerler","–","–",1,"–",1,"–","–",null,2]
["Kuvvet, Tork ve Denge","–","–","–",1,1,1,1,null,null,null,4,null,"Dünya Gücü Osmanlı","–",2,"–",1,"–",1,2,null,6]
["Kütle Merkezi","–","–","–","–","–","–","–",null,null,null,0,null,"Sultan ve Osmanlı Merkez Teşkilatı","–",1,1,1,"–","–","–",null,3]
["Basit Makineler","–","–",1,"–","–","–","–",null,null,null,1,null,"Değişen Dünya Dengeleri Karşısında Osmanlı Siyaseti","–","–",1,1,1,"–","–",null,3]
["Elektrik Alan ve Potansiyel",1,1,"–",2,1,1,1,null,null,null,7,null,"Değişim Çağında Avrupa ve Osmanlı","–",1,"–",1,2,2,"–",null,6]
["Paralel Levhalar ve Sığa","–","–","–","–","–","–","–",null,null,null,0,null,"Uluslararası İlişkilerde Denge Stratejisi (1774-1914)",2,1,"–",1,"–","–",1,null,5]
["Manyetik Alan ve Manyetik Kuvvet",1,1,1,1,"–","–","–",null,null,null,4,null,"Devrimler Çağında Değişen Devlet-Toplum İlişkileri",1,"–","–",1,"–","–","–",null,2]
["İndüksiyon, Alternatif Akım ve Transformatörler",2,2,1,1,2,2,2,null,null,null,12,null,"Sermaye ve Emek","–","–","–","–",1,1,"–",null,2]
["Düzgün Çembersel Hareket","–",1,1,1,2,1,1,null,null,null,7,null,"XX. Yüzyıl Başlarında Osmanlı Devleti ve Dünya",3,1,"–",1,2,4,3,null,14]
["Dönme, Yuvarlanma ve Açısal Momentum","–",1,1,"–",1,1,"–",null,null,null,4,null,"Milli Mücadele",3,5,5,4,4,3,1,null,25]
["Kütle Çekim ve Kepler Yasaları","–",1,"–",1,"–","–",1,null,null,null,3,null,"Atatürkçülük ve Türk İnkılabı",2,1,1,3,2,2,2,null,13]
["Basit Harmonik Hareket",1,1,1,1,1,1,1,null,null,null,7,null,"İki Savaş Arasındaki Dönemde Türkiye ve Dünya","–",1,"–","–","–","–",1,null,2]
["Dalga Mekaniği",1,1,1,1,1,1,1,null,null,null,7,null,"II. Dünya Savaşı Sürecinde – Sonrasında Türkiye ve Dünya",1,"–",2,"–","–","–",1,null,4]
["Atom Fiziğine Giriş ve Radyoaktivite",1,"–",1,1,"–",1,1,null,null,null,5,null,"XXI. Yüzyılın Eşiğinde Türkiye ve Dünya","–","–","–","–","–","–",1,null,1]
["Modern Fizik",1,"–",2,1,"–",1,1,null,null,null,6,null,"TOPLAM",21,21,21,21,21,21,21]
["Modern Fiziğin Teknolojideki Uygulamaları",1,"–",1,1,"–",1,1,null,null,null,5]
["TOPLAM",14,14,14," 14",14,14,14]
[]
[null,null,null,null,null,null,null,null,null,null,null,null,null,"FELSEFE"]
[null,null,null,null,null,null,null,null,null,null,null,null,null,"KONULAR",2024,2023,2022,2021,2020,2019,2018,null,"Topl"]
[null,null,null,null,null,null,null,null,null,null,null,null,null,"Felsefe ve Bilim","–","–","–","–","–","–",1,null,{"$f":"SUM(M76:U76)","v":1}]
["KİMYA",null,null,null,null,null,null,null,null,null,null,null,null,"Bilgi Felsefesi",1,1,1,1,"–",2,1,null,{"$f":"SUM(M77:U77)","v":7}]
["KONULAR",2024,2023,2022,2021,2020,2019,2018,2017,2016,null,"Topl",null,"Varlık Felsefesi","–","–","–","–",2,1,1,null,4]
["Kimya Bilimi","–","–","–","–","–","–","–",4,2,null,{"$f":"SUM(B79:J79)","v":6},null,"Ahlak Felsefesi","–",1,1,1,"–","–","–",null,3]
["Atom ve Yapısı","–","–","–","–","–",1,"–",1,2,null,{"$f":"SUM(B80:J80)","v":4},null,"Sanat Felsefesi",1,"–","–","–","–","–","–",null,1]
["Periyodik Sistem","–","–","–",1,"–","–",1,1,2,null,5,null,"Din Felsefesi",1,"–","–","–",1,"–","–",null,2]
["Kimyasal Türler Arası Etkileşim","–","–","–","–","–","–","–",2,3,null,5,null,"20. Yüzyıl Felsefesi","–",1,1,1,"–","–","–",null,3]
["Kimyasal Hesaplamalar","–","–","–","–","–",1,1,2,1,null,5,null,"Mantığa Giriş",1,1,1,1,2,1,1,null,8]
["Modern Atom Teorisi",1,1,1,"–",2,"–","–","–","–",null,5,null,"Klasik Mantık",2,1,1,1,1,2,2,null,10]
["Gazlar",1,2,1,1,1,1,1,2,1,null,11,null,"Mantık ve Dil","–",1,1,1,"–","–","–",null,3]
["Sıvı Çözeltiler",2,2,2,2,2,1,1,3,1,null,16,null,"Psikoloji Bilimini Tanıyalım",1,"–","–","–",3,1,"–",null,5]
["Kimyasal Tepkimelerde Enerji",1,1,1,1,1,1,1,3,2,null,12,null,"Psikolojinin Temel Süreçleri","–",1,1,1,"–",1,"–",null,4]
["Kimyasal Tepkimelerde Hız",1,1,1,1,1,1,1,"–","–",null,7,null,"Öğrenme Bellek Düşünme",1,1,1,1,"–",1,2,null,7]
["Kimyasal Tepkimelerde Denge",1,2,1,1,1,"–","–",1,2,null,9,null,"Ruh Sağlığının Temelleri",1,1,1,1,"–","–","–",null,4]
["Asit-Baz Dengesi",1,"–","–",1,1,2,1,1,"–",null,7,null,"Sosyolojiye Giriş",1,1,1,1,"–",1,"–",null,5]
["Çözünürlük Dengesi","–","–",1,"–","–","–","–",1,1,null,3,null,"Birey ve Toplum","–","–","–","–",2,1,1,null,4]
["Kimya ve Elektrik",2,3,2,2,3,2,2,3,2,null,21,null,"Toplumsal Yapı",1,"–","–","–",1,"–",1,null,3]
["Organik Kimya",3,1,3,3,1,3,4,6,11,null,35,null,"Toplumsal Değişme ve Gelişme","–",1,1,1,"–","–",1,null,4]
["TOPLAM",13,13,13,13,13,13,13,30,30,null,null,null,"Toplum ve Kültür",1,"–","–",1,"–",1,"–",null,3]
[null,null,null,null,null,null,null,null,null,null,null,null,null,"Toplumsal Kurumlar","–",1,1,"–","–","–",1,null,3]
[null,null,null,null,null,null,null,null,null,null,null,null,null,"SORU SAYISI",12,12,12," 12",12,12,12]
[]
[]
["BİYOLOJİ",null,null,null,null,null,null,null,null,null,null,null,null,"DİN KÜLTÜRÜ"]
["KONULAR",2024,2023,2022,2021,2020,2019,2018,null,null,null,"Topl",null,"KONULAR",2024,2023,2022,2021,2020,2019,2018,null,"Topl"]
["Sinir Sistemi",1,1,"–","–","–","–",1,null,null,null,{"$f":"SUM(B101:J101)","v":3},null,"İslam’da İbadet",1,"–","–","–","–","–","–",null,{"$f":"SUM(M101:U101)","v":1}]
["Endokrin Sistem",1,2,"–",1,1,1,"–",null,null,null,{"$f":"SUM(B102:J102)","v":6},null,"Allah, İnsan İlişkisi","–","–","–",1,"–","–","–",null,{"$f":"SUM(M102:U102)","v":1}]
["Duyu Organları","–","–",1,"–",1,"–","–",null,null,null,2,null,"Dünya ve Ahiret","–","–","–","–","–","–","–",null,0]
["Destek ve Hareket Sistemi","–","–",1,1,"–","–",1,null,null,null,3,null,"Kur’an’a Göre Hz. Muhammed",2,1,"–","–",1,1,2,null,7]
["Sindirim Sistemi",1,1,"–","–",1,1,"–",null,null,null,4,null,"Kur’an’da Bazı Kavramlar","–",1,1,2,2,1,3,null,10]
["Dolaşım Sistemi",1,1,1,1,1,1,1,null,null,null,7,null,"İnançla İlgili Meseleler",1,"–",1,1,1,"–","–",null,4]
["Solunum Sistemi",1,1,1,1,1,1,"–",null,null,null,6,null,"Yahudilik ve Hristiyanlık","–","–",1,"–","–","–","–",null,1]
["Üriner Sistem","–",1,"–","–",1,1,1,null,null,null,4,null,"İslam ve Bilim",1,1,3,1,2,1,"–",null,9]
["Üreme Sistemi ve Embriyonik Gelişim","–","–",1,"–","–","–","–",null,null,null,1,null,"Anadolu’da İslam","–",2,"–",1,"—","–","–",null,3]
["Komünite ve Popülasyon Ekolojisi",2,2,2,2,2,"–",2,null,null,null,12,null,"İslam Düşüncesinde Tasavvufi Yorumlar ve Mezhepler",1,"–","–",1,"–",2,"–",null,4]
["Genden Proteine",2,1,2,2,3,2,3,null,null,null,15,null,"Güncel Dini Meseleler","–",1,"–","–","–","–","–",null,1]
["Canlılık ve Enerji",1,1,1,"–","–","–","–",null,null,null,3,null,"Hint ve Çin Dinleri","–","–","–","–","–",1,1,null,2]
["Fotosentez ve Kemosentez",1,"–",1,1,1,1,1,null,null,null,6,null,"TOPLAM",6,6,6," 6",6,6,6]
["Hücresel Solunum","–",1,"–",1,1,1,"–",null,null,null,4]
["Bitki Biyolojisi",2,"–",2,2,"–",3,2,null,null,null,11]
["Canlılar ve Çevre","–",1,"–",1,"–",1,1,null,null,null,4]
["TOPLAM",13,13,13,13,13,13,13]

{"sheet":"Form10","index":14,"n_rows":169,"n_cols":65,"rows_kept":169,"cut":false,"hidden":true,"merged":[[167,3,167,36],[167,37,167,64],[168,3,168,36],[168,37,168,64],[164,3,164,36],[164,37,164,64],[165,3,165,36],[165,37,165,64],[166,3,166,36],[166,37,166,64],[161,3,161,36],[161,37,161,64],[162,3,162,36],[162,37,162,64],[163,3,163,36],[163,37,163,64],[158,1,158,2],[158,3,158,36],[158,37,158,64],[159,3,159,36],[159,37,159,64],[160,3,160,36],[160,37,160,64],[156,3,156,23],[156,24,156,41],[156,42,156,62],[157,3,157,23],[157,24,157,41],[157,42,157,62],[154,3,154,23],[154,24,154,41],[154,42,154,62],[155,3,155,23],[155,24,155,41],[155,42,155,62],[152,3,152,23],[152,24,152,41],[152,42,152,62],[153,3,153,23],[153,24,153,41],[153,42,153,62],[150,3,150,23],[150,24,150,41],[150,42,150,62],[151,3,151,23],[151,24,151,41],[151,42,151,62],[148,3,148,23],[148,24,148,41],[148,42,148,62],[149,3,149,23],[149,24,149,41],[149,42,149,62],[146,63,146,64],[147,1,147,2],[147,3,147,23],[147,24,147,41],[147,42,147,62],[147,63,147,64],[144,3,144,35],[144,36,144,62],[145,3,145,35],[145,36,145,62],[146,1,146,2],[146,3,146,23],[146,24,146,41],[146,42,146,62],[141,3,141,35],[141,36,141,62],[142,3,142,35],[142,36,142,62],[143,3,143,35],[143,36,143,62],[138,3,138,35],[138,36,138,62],[139,3,139,35],[139,36,139,62],[140,3,140,35],[140,36,140,62],[135,1,135,2],[135,63,135,64],[136,3,136,35],[136,36,136,62],[137,3,137,35],[137,36,137,62],[133,47,133,57],[133,58,133,64],[134,1,134,2],[134,3,134,34],[134,36,134,62],[134,63,134,64],[132,1,132,22],[132,23,132,34],[132,35,132,57],[132,58,132,64],[133,3,133,9],[133,10,133,22],[133,23,133,26],[133,27,133,30],[133,31,133,34],[133,35,133,46],[117,1,117,2],[117,63,117,64],[118,1,118,2],[118,63,118,64],[119,1,119,2],[119,63,119,64],[103,1,103,2],[103,63,103,64],[104,1,104,2],[104,63,104,64],[116,1,116,2],[116,3,116,27],[116,29,116,37],[116,63,116,64],[101,1,101,2],[101,3,101,34],[101,36,101,62],[101,63,101,64],[102,1,102,2],[102,63,102,64],[98,47,98,57],[98,58,98,64],[99,1,100,2],[99,3,99,57],[99,58,100,63],[99,64,100,64],[100,3,100,57],[98,3,98,9],[98,10,98,22],[98,23,98,26],[98,27,98,30],[98,31,98,34],[98,35,98,46],[94,3,94,36],[94,37,94,64],[95,3,95,36],[95,37,95,64],[97,1,97,22],[97,23,97,34],[97,35,97,57],[97,58,97,64],[91,3,91,36],[91,37,91,64],[92,3,92,36],[92,37,92,64],[93,3,93,36],[93,37,93,64],[88,3,88,36],[88,37,88,64],[89,3,89,36],[89,37,89,64],[90,3,90,36],[90,37,90,64],[85,1,85,2],[85,3,85,36],[85,37,85,64],[86,3,86,36],[86,37,86,64],[87,3,87,36],[87,37,87,64],[83,3,83,23],[83,25,83,41],[83,43,83,50],[83,52,83,62],[84,3,84,23],[84,25,84,41],[84,43,84,50],[84,52,84,62],[81,3,81,23],[81,25,81,41],[81,43,81,50],[81,52,81,62],[82,3,82,23],[82,25,82,41],[82,43,82,50],[82,52,82,62],[79,3,79,23],[79,25,79,41],[79,43,79,50],[79,52,79,62],[80,3,80,23],[80,25,80,41],[80,43,80,50],[80,52,80,62],[78,1,78,2],[78,3,78,23],[78,25,78,41],[78,43,78,50],[78,52,78,62],[78,63,78,64],[75,3,75,23],[75,25,75,36],[75,38,75,48],[75,50,75,62],[76,3,76,23],[76,25,76,36],[76,38,76,48],[76,50,76,62],[73,3,73,23],[73,25,73,36],[73,38,73,48],[73,50,73,62],[74,3,74,23],[74,25,74,36],[74,38,74,48],[74,50,74,62],[71,3,71,23],[71,25,71,36],[71,38,71,48],[71,50,71,62],[72,3,72,23],[72,25,72,36],[72,38,72,48],[72,50,72,62],[69,3,69,23],[69,25,69,36],[69,38,69,48],[69,50,69,62],[70,3,70,23],[70,25,70,36],[70,38,70,48],[70,50,70,62],[67,3,67,23],[67,25,67,36],[67,38,67,48],[67,50,67,62],[68,3,68,23],[68,25,68,36],[68,38,68,48],[68,50,68,62],[64,63,64,64],[65,3,65,23],[65,25,65,36],[65,38,65,48],[65,50,65,62],[66,3,66,23],[66,25,66,36],[66,38,66,48],[66,50,66,62],[62,3,62,35],[62,36,62,62],[64,1,64,2],[64,3,64,23],[64,25,64,36],[64,38,64,48],[64,50,64,62],[59,3,59,35],[59,36,59,62],[60,3,60,35],[60,36,60,62],[61,3,61,35],[61,36,61,62],[56,3,56,35],[56,36,56,62],[57,3,57,35],[57,36,57,62],[58,3,58,35],[58,36,58,62],[53,3,53,35],[53,36,53,62],[54,3,54,35],[54,36,54,62],[55,3,55,35],[55,36,55,62],[50,1,50,35],[50,36,50,64],[51,3,51,35],[51,36,51,62],[52,3,52,35],[52,36,52,62],[47,42,47,57],[47,58,47,64],[48,1,49,2],[48,3,48,57],[48,58,49,63],[48,64,49,64],[49,3,49,57],[46,1,46,22],[46,23,46,34],[46,35,46,57],[46,58,46,64],[47,3,47,9],[47,10,47,22],[47,23,47,26],[47,27,47,30],[47,31,47,34],[47,35,47,41],[37,1,37,2],[37,63,37,64],[38,1,38,2],[38,63,38,64],[39,1,39,2],[45,1,45,64],[23,1,23,2],[23,63,23,64],[24,1,24,2],[36,1,36,2],[36,3,36,23],[36,25,36,41],[36,43,36,50],[36,52,36,61],[36,63,36,64],[21,63,21,64],[22,1,22,2],[22,3,22,6],[22,25,22,26],[22,38,22,39],[22,50,22,51],[22,63,22,64],[9,1,9,2],[21,1,21,2],[21,3,21,23],[21,25,21,36],[21,38,21,48],[21,50,21,61],[7,1,7,2],[7,3,7,6],[7,36,7,39],[7,63,7,64],[8,1,8,2],[8,63,8,64],[4,1,5,2],[4,3,4,57],[4,58,5,63],[4,64,5,64],[5,3,5,57],[6,1,6,2],[6,3,6,31],[6,36,6,62],[6,63,6,64],[0,12,0,23],[0,28,0,31],[0,36,0,39],[2,1,2,22],[2,23,2,34],[2,35,2,57],[2,58,2,64],[3,3,3,9],[3,10,3,22],[3,23,3,26],[3,27,3,30],[3,31,3,34],[3,35,3,41],[3,42,3,57],[3,58,3,64]]}
[]
[null,null,null,null,null,null,null,null,null,null,1,{"$f":"K2+1","v":2},{"$f":"L2+1","v":3},4,5,6,7,8,9,10,11,12,13,14,15,16,17,18,19,20,21,22,23,24,25,26,27,28,29,30,31,32,33,34,35,36,37,38,39,40,41,42,43,44,45,46,47,48,49,50,51,52,53]
[null,{"$f":"'Giriş ve Ön Plânlama'!C2","v":"Fetullah Bayır Fen Lisesi (KONYA/BEYŞEHİR)"},null,null,null,null,null,null,null,null,null,null,null,null,null,null,null,null,null,null,null,null,null,{"$f":"'Giriş ve Ön Plânlama'!C3","v":"2024-2025"},null,null,null,null,null,null,null,null,null,null,null,"ÖĞRENCİ DANIŞMANLIĞI / ÖĞRENCİ TAKİP FORMU",null,null,null,null,null,null,null,null,null,null,null,null,null,null,null,null,null,null,null,null,null,null,"Öğrencinin Hedefi :"]
[null,"No:",{"$f":"'Giriş ve Ön Plânlama'!C9","v":1071},"Adı ve Soyadı",null,null,null,null,null,null,{"$f":"'Giriş ve Ön Plânlama'!C7","v":"Oğuz Kağan BİLGE"},null,null,null,null,null,null,null,null,null,null,null,null,"Sınıf ",null,null,null,{"$f":"'Giriş ve Ön Plânlama'!C8","v":"12A"},null,null,null,"Grubu",null,null,null,"Danışman Öğretmen   :",null,null,null,null,null,null,{"$f":"'Giriş ve Ön Plânlama'!C10","v":"…........"},null,null,null,null,null,null,null,null,null,null,null,null,null,null,null,{"$f":"'Giriş ve Ön Plânlama'!C12","v":"Yazılım Mühendisliği"}]
[null,"Yönerge :",null,"Bu form her öğrenci için danışman öğretmenimiz tarafından ayrı ayrı doldurulur. Öğrencinin çalıştığı konular, ertesi hafta en geç Salı gününe kadar tarih yazarak kontrol edilir. E: Eksik ; T: Tam ;             yazılır. ",null,null,null,null,null,null,null,null,null,null,null,null,null,null,null,null,null,null,null,null,null,null,null,null,null,null,null,null,null,null,null,null,null,null,null,null,null,null,null,null,null,null,null,null,null,null,null,null,null,null,null,null,null,null,"Öğrenci Prog Başl. Tarihi:",null,null,null,null,null,{"$f":"'Giriş ve Ön Plânlama'!C4","v":"2025-01-01"}]
[null,null,null,"Okulda yapılan kazanım değerlendirme sınav analizlerini inceler, 1.;2., 3. öncelikli konulara göre öğrenciyi ödevlendirilir. Gerekirse diğer danışmanlarla işbirliği yaparak konuların öğretmenlerce tamamlanma yoluna gidilir."]
[null,"Ders",null," TYT MATEMATİK",null,null,null,null,null,null,null,null,null,null,null,null,null,null,null,null,null,null,null,null,null,null,null,null,null,null,null,null,null,null,null,null," TYT GEOMETRİ",null,null,null,null,null,null,null,null,null,null,null,null,null,null,null,null,null,null,null,null,null,null,null,null,null,null,"Ders"]
[null,"Kontrol Tarihi",null,"Kitap",null,null,null,1,2,3,4,5,6,7,8,9,10,11,12,13,14,15,16,17,18,19,20,21,22,23,24,25,null,null,null,null,"Kitap",null,null,null,1,2,3,4,5,6,7,8,9,10,11,12,13,14,15,16,17,18,19,20,21,null,null,"Kontrol Tarihi"]
[null,"TYT",null,null,null,null,null,"Temel Kavramlar","Sayı Basamakları","Bölme ve Bölünebilme","EBOB-EKOK","Rasyonel Sayılar-Ondalık Sayılar","Basit Eşitsizlikler","Mutlak Değer","Üslü Sayılar","Köklü Sayılar","Çarpanlara Ayırma","Oran Orantı","Denklem Çözme","Problemler","Kümeler-Karteszyen Çarpımı","Fonksiyonlar","Permütasyon","Kombinasyon","Binom","Olasılık","İstatistik","2. Dereceden Denklemler","Karmaşık Sayılar","Polinomlar","Mantık","Veri Analizi",null,null,null,null,null,null,null,null,"Doğruda ve Üçgende Açılar","Üçgende Açı-Kenar Bağıntıları","Üçgende  Benzerlik","üçgende Açıortay-Kenarortay","Dik Üçgen","İkizkenar Üçgen","Eşkenar Üçgen","Üçgende alan","Çokgenler","Dörtgenler","Yamuk-Paralelkenar","Eşkenar Dörtgen","Dikdörtgen","Kare","Deltoid","Çemberde Açı","Çemberde Uzunluk","Dairenin Çevresi ve Alanı","Doğrunun Analitik İncelenmesi","Çemberin Analitik İncelenmesi","Katı Cisimler ",null,null,{"$f":"B9","v":"TYT"}]
[null,"Konu Eksiği var mı?"]
[null,1,"…/…/202..",null,null,null,null,null,null,null,null,null,null,null,null,null,null,null,null,null,null,null,null,null,null,null,null,null,null,null,null,null,null,null,null,null,null,null,null,null,null,null,null,null,null,null,null,null,null,null,null,null,null,null,null,null,null,null,null,null,null,null,null,{"$f":"B20+1","v":11},{"$f":"C11","v":"…/…/202.."}]
[null,{"$f":"B11+1","v":2},{"$f":"C11","v":"…/…/202.."},null,null,null,null,null,null,null,null,null,null,null,null,null,null,null,null,null,null,null,null,null,null,null,null,null,null,null,null,null,null,null,null,null,null,null,null,null,null,null,null,null,null,null,null,null,null,null,null,null,null,null,null,null,null,null,null,null,null,null,null,{"$f":"BL11+1","v":12},{"$f":"C12","v":"…/…/202.."}]
[null,{"$f":"B12+1","v":3},{"$f":"C12","v":"…/…/202.."},null,null,null,null,null,null,null,null,null,null,null,null,null,null,null,null,null,null,null,null,null,null,null,null,null,null,null,null,null,null,null,null,null,null,null,null,null,null,null,null,null,null,null,null,null,null,null,null,null,null,null,null,null,null,null,null,null,null,null,null,{"$f":"BL12+1","v":13},"…/…/202.."]
[null,4,"…/…/202..",null,null,null,null,null,null,null,null,null,null,null,null,null,null,null,null,null,null,null,null,null,null,null,null,null,null,null,null,null,null,null,null,null,null,null,null,null,null,null,null,null,null,null,null,null,null,null,null,null,null,null,null,null,null,null,null,null,null,null,null,14,"…/…/202.."]
[null,5,"…/…/202..",null,null,null,null,null,null,null,null,null,null,null,null,null,null,null,null,null,null,null,null,null,null,null,null,null,null,null,null,null,null,null,null,null,null,null,null,null,null,null,null,null,null,null,null,null,null,null,null,null,null,null,null,null,null,null,null,null,null,null,null,15,"…/…/202.."]
[null,6,"…/…/202..",null,null,null,null,null,null,null,null,null,null,null,null,null,null,null,null,null,null,null,null,null,null,null,null,null,null,null,null,null,null,null,null,null,null,null,null,null,null,null,null,null,null,null,null,null,null,null,null,null,null,null,null,null,null,null,null,null,null,null,null,16,"…/…/202.."]
[null,7,"…/…/202..",null,null,null,null,null,null,null,null,null,null,null,null,null,null,null,null,null,null,null,null,null,null,null,null,null,null,null,null,null,null,null,null,null,null,null,null,null,null,null,null,null,null,null,null,null,null,null,null,null,null,null,null,null,null,null,null,null,null,null,null,17,"…/…/202.."]
[null,8,"…/…/202..",null,null,null,null,null,null,null,null,null,null,null,null,null,null,null,null,null,null,null,null,null,null,null,null,null,null,null,null,null,null,null,null,null,null,null,null,null,null,null,null,null,null,null,null,null,null,null,null,null,null,null,null,null,null,null,null,null,null,null,null,18,"…/…/202.."]
[null,9,"…/…/202..",null,null,null,null,null,null,null,null,null,null,null,null,null,null,null,null,null,null,null,null,null,null,null,null,null,null,null,null,null,null,null,null,null,null,null,null,null,null,null,null,null,null,null,null,null,null,null,null,null,null,null,null,null,null,null,null,null,null,null,null,19,"…/…/202.."]
[null,10,"…/…/202..",null,null,null,null,null,null,null,null,null,null,null,null,null,null,null,null,null,null,null,null,null,null,null,null,null,null,null,null,null,null,null,null,null,null,null,null,null,null,null,null,null,null,null,null,null,null,null,null,null,null,null,null,null,null,null,null,null,null,null,null,20,"…/…/202.."]
[]
[null,"Ders",null,"TYT TÜRKÇE",null,null,null,null,null,null,null,null,null,null,null,null,null,null,null,null,null,null,null,null,null," TYT FİZİK",null,null,null,null,null,null,null,null,null,null,null,null," TYT KİMYA",null,null,null,null,null,null,null,null,null,null,null," TYT BİYOLOJİ",null,null,null,null,null,null,null,null,null,null,null,null,"Ders"]
[null,"Kontrol Tarihi",null,"Kitap",null,null,null,1,2,3,4,5,6,7,8,9,10,11,12,13,14,15,16,17,null,"Kitap",null,1,2,3,4,5,6,7,8,9,10,null,"Kitap",null,1,2,3,4,5,6,7,8,9,null,"Kitap",null,1,2,3,4,5,6,7,8,9,10,null,"Kontrol Tarihi"]
[null,{"$f":"B9","v":"TYT"},null,null,null,null,null,"Sözcükte Anlam","Cümlede Anlam","Paragrafta Anlam","Anlatım Biçimleri","Ses Bilgisi","Yazım Kuralları","Noktalama İşaretleri","Sözcükte Yapı","Sözcük Türleri","Edat-Bağlaç-Ünlem","Filler","Ek Fiil","Filde Çatı","Fiilimsi","Cümlenin Öğeleri","Cümle Türleri","Anlatım Bozuklukları",null,null,null,"Fizik Bilimine Giriş","Madde ve Özellikleri","Kuvvet ve Hareket","İş, Güç ve Enerji","Isı, Sıcaklık ve Genleşme","Basınç","Kaldırma Kuvveti","Elektrik ve Manyetizma","Dalgalar","Optik",null,null,null,"Kimya Bilimi","Atom ve Periyodik Sistem","Kimyasal Türler Arası Etkileşimler","Maddenin Halleri","Doğa ve Kimya","Kimyanın Temel Kanunları ve","Kimsayal Hesaplamalar","Asitler-Bazlar ve Tuzlar","Kimya Her Yerde",null,null,null,"Canlıların Ortak Özellikleri","Canlıların Temel Bileşenleri","Hücre ve Organelleri","Hücre Zarından Madde Geçişi","Canlıların Sınıflandırılması","Mitoz ve Eşeysiz Üreme","Mayoz ve Eşeyli Üreme","Kalıtım","Ekosistem Ekolojisi","Güncel Çevre Sorunları",null,{"$f":"B9","v":"TYT"}]
[null,"Konu Eksiği var mı?"]
[null,1,"…/…/202..",null,null,null,null,null,null,null,null,null,null,null,null,null,null,null,null,null,null,null,null,null,null,null,null,null,null,null,null,null,null,null,null,null,null,null,null,null,null,null,null,null,null,null,null,null,null,null,null,null,null,null,null,null,null,null,null,null,null,null,null,{"$f":"B35+1","v":11},{"$f":"C26","v":"…/…/202.."}]
[null,{"$f":"B26+1","v":2},{"$f":"C26","v":"…/…/202.."},null,null,null,null,null,null,null,null,null,null,null,null,null,null,null,null,null,null,null,null,null,null,null,null,null,null,null,null,null,null,null,null,null,null,null,null,null,null,null,null,null,null,null,null,null,null,null,null,null,null,null,null,null,null,null,null,null,null,null,null,{"$f":"BL26+1","v":12},{"$f":"C27","v":"…/…/202.."}]
[null,{"$f":"B27+1","v":3},{"$f":"C27","v":"…/…/202.."},null,null,null,null,null,null,null,null,null,null,null,null,null,null,null,null,null,null,null,null,null,null,null,null,null,null,null,null,null,null,null,null,null,null,null,null,null,null,null,null,null,null,null,null,null,null,null,null,null,null,null,null,null,null,null,null,null,null,null,null,{"$f":"BL27+1","v":13},"…/…/202.."]
[null,4,"…/…/202..",null,null,null,null,null,null,null,null,null,null,null,null,null,null,null,null,null,null,null,null,null,null,null,null,null,null,null,null,null,null,null,null,null,null,null,null,null,null,null,null,null,null,null,null,null,null,null,null,null,null,null,null,null,null,null,null,null,null,null,null,14,"…/…/202.."]
[null,5,"…/…/202..",null,null,null,null,null,null,null,null,null,null,null,null,null,null,null,null,null,null,null,null,null,null,null,null,null,null,null,null,null,null,null,null,null,null,null,null,null,null,null,null,null,null,null,null,null,null,null,null,null,null,null,null,null,null,null,null,null,null,null,null,15,"…/…/202.."]
[null,6,"…/…/202..",null,null,null,null,null,null,null,null,null,null,null,null,null,null,null,null,null,null,null,null,null,null,null,null,null,null,null,null,null,null,null,null,null,null,null,null,null,null,null,null,null,null,null,null,null,null,null,null,null,null,null,null,null,null,null,null,null,null,null,null,16,"…/…/202.."]
[null,7,"…/…/202..",null,null,null,null,null,null,null,null,null,null,null,null,null,null,null,null,null,null,null,null,null,null,null,null,null,null,null,null,null,null,null,null,null,null,null,null,null,null,null,null,null,null,null,null,null,null,null,null,null,null,null,null,null,null,null,null,null,null,null,null,17,"…/…/202.."]
[null,8,"…/…/202..",null,null,null,null,null,null,null,null,null,null,null,null,null,null,null,null,null,null,null,null,null,null,null,null,null,null,null,null,null,null,null,null,null,null,null,null,null,null,null,null,null,null,null,null,null,null,null,null,null,null,null,null,null,null,null,null,null,null,null,null,18,"…/…/202.."]
[null,9,"…/…/202..",null,null,null,null,null,null,null,null,null,null,null,null,null,null,null,null,null,null,null,null,null,null,null,null,null,null,null,null,null,null,null,null,null,null,null,null,null,null,null,null,null,null,null,null,null,null,null,null,null,null,null,null,null,null,null,null,null,null,null,null,19,"…/…/202.."]
[null,10,"…/…/202..",null,null,null,null,null,null,null,null,null,null,null,null,null,null,null,null,null,null,null,null,null,null,null,null,null,null,null,null,null,null,null,null,null,null,null,null,null,null,null,null,null,null,null,null,null,null,null,null,null,null,null,null,null,null,null,null,null,null,null,null,20,"…/…/202.."]
[]
[null,"Ders",null," TYT TARİH",null,null,null,null,null,null,null,null,null,null,null,null,null,null,null,null,null,null,null,null,null," TYT COĞRAFYA",null,null,null,null,null,null,null,null,null,null,null,null,null,null,null,null,null," TYT FELSEFE KONULARI",null,null,null,null,null,null,null,null," TYT DİN KÜLTÜRÜ KONULARI",null,null,null,null,null,null,null,null,null,null,"Ders"]
[null,"Kontrol Tarihi",null,1,2,3,4,5,6,7,8,9,10,11,12,13,14,15,16,17,18,19,20,21,null,1,2,3,4,5,6,7,8,9,10,11,12,13,14,15,16,17,null,1,2,3,4,5,6,7,8,null,1,2,3,4,5,6,7,null,null,null,null,"Kontrol Tarihi"]
[null,{"$f":"B24","v":"TYT"},null,"Tarih Bilimine Giriş","Uygarlığın Doğuşu ve İlk Uygarlıklar","İlk Türk Devletleri","İslam Tarihi ve Uygarlığı","Türk-İslam Devletleri","Türkler’in İslamiyeti Kabulü","Türkiye Tarihi","Beylikten Devlete (1300-1453)","Dünya Gücü: Osmanlı Devleti","Osmanlı Duraklama Dönemi","Gerileme Devri (1699 – 1792)","Arayış Yılları (17. Yüzyıl)","Avrupa ve Osmanlı Devleti (18. Yüzyıl)","En Uzun Yüzyıl (1800-1922)","20.Yüzyıl Başlarında Osmanlı Devleti","XIX. YY Osmanlı Devleti","1.Dünya Savaşı – Milli Mücadeleye Hazırlık D.","Kurtuluş Savaşında Cepheler","Türk İnkılabı","Atatürkçülük ve Atatürk İlkeleri","Türk Dış Politikası",null,"İnsan ve Doğa","Dünya’nın Şekli ve Hareketleri","Coğrafi Konum","Harita Bilgisi","Atmosfer ve Sıcaklık","İklimler","Basınç ve Rüzgarlar","Nem, Yağış ve Buharlaşma","İç Kuvvetler / Dış Kuvvetler","Su – Toprak ve Bitkiler","Nüfus-Göç-Yerleşme","Türkiye’nin Yer Şekilleri","Ekonomik Faaliyetler","Bölgeler ve Ülkeler","Uluslararası Ulaşım Hatları","Çevre ve Toplum","Doğal Afetler",null,"Felsefe’nin Alanı","Bilgi Felsefesi","Bilim Felsefesi","Varlık Felsefesi","Ahlak Felsefesi","Siyaset Felsefesi","Sanat Felsefesi","Din Felsefesi",null,"insan ve Din (İnanç)","İbadet","Hz.Muhammed(sav)’in Hayatı","Vahiy ve Akıl","İslam Düşüncesi ve Yorumu","İslamda Değerler, Sanat ve Laiklik","Yaşayan Dinler",null,null,null,null,{"$f":"B24","v":"TYT"}]
[null,"Konu Eksiği var mı?"]
[null,1,"…/…/202..",null,null,null,null,null,null,null,null,null,null,null,null,null,null,null,null,null,null,null,null,null,null,null,null,null,null,null,null,null,null,null,null,null,null,null,null,null,null,null,null,null,null,null,null,null,null,null,null,null,null,null,null,null,null,null,null,null,null,null,null,{"$f":"B44+1","v":5},{"$f":"C41","v":"…/…/202.."}]
[null,{"$f":"B41+1","v":2},{"$f":"C41","v":"…/…/202.."},null,null,null,null,null,null,null,null,null,null,null,null,null,null,null,null,null,null,null,null,null,null,null,null,null,null,null,null,null,null,null,null,null,null,null,null,null,null,null,null,null,null,null,null,null,null,null,null,null,null,null,null,null,null,null,null,null,null,null,null,{"$f":"BL41+1","v":6},{"$f":"C42","v":"…/…/202.."}]
[null,{"$f":"B42+1","v":3},{"$f":"C42","v":"…/…/202.."},null,null,null,null,null,null,null,null,null,null,null,null,null,null,null,null,null,null,null,null,null,null,null,null,null,null,null,null,null,null,null,null,null,null,null,null,null,null,null,null,null,null,null,null,null,null,null,null,null,null,null,null,null,null,null,null,null,null,null,null,{"$f":"BL42+1","v":7},"…/…/202.."]
[null,4,"…/…/202..",null,null,null,null,null,null,null,null,null,null,null,null,null,null,null,null,null,null,null,null,null,null,null,null,null,null,null,null,null,null,null,null,null,null,null,null,null,null,null,null,null,null,null,null,null,null,null,null,null,null,null,null,null,null,null,null,null,null,null,null,8,"…/…/202.."]
[]
[null,"Öğrenciyle ilgili ders bazında ve genel görüşler….  Alınabilecek tedbirler…"]
[null,"Fetullah Bayır Fen Lisesi",null,null,null,null,null,null,null,null,null,null,null,null,null,null,null,null,null,null,null,null,null,"2022-2023",null,null,null,null,null,null,null,null,null,null,null,"ÖĞRENCİ DANIŞMANLIĞI / ÖĞRENCİ TAKİP FORMU",null,null,null,null,null,null,null,null,null,null,null,null,null,null,null,null,null,null,null,null,null,null,"Öğrencinin Hedefi :"]
[null,"No:",{"$f":"C4","v":1071},"Adı ve Soyadı",null,null,null,null,null,null,{"$f":"K4","v":"Oğuz Kağan BİLGE"},null,null,null,null,null,null,null,null,null,null,null,null,"Sınıf:",null,null,null,{"$f":"AB4","v":"12A"},null,null,null,"Grubu",null,null,null,"Danışman Öğretmen   :",null,null,null,null,null,null,{"$f":"AQ4","v":"…........"}]
[null,"Yönerge :",null,"Bu form her öğrenci için danışman öğretmenimiz tarafından ayrı ayrı doldurulur. Öğrencinin çalıştığı konular, ertesi hafta en geç Salı gününe kadar tarih yazarak kontrol edilir. E: Eksik ; T: Tam ;             yazılır. ",null,null,null,null,null,null,null,null,null,null,null,null,null,null,null,null,null,null,null,null,null,null,null,null,null,null,null,null,null,null,null,null,null,null,null,null,null,null,null,null,null,null,null,null,null,null,null,null,null,null,null,null,null,null,"Öğrenci Takip Sayfa No:"]
[null,null,null,"Okulda yapılan kazanım değerlendirme sınav analizlerini inceler, 1.;2., 3. öncelikli konulara göre öğrenciyi ödevlendirilir. Gerekirse diğer danışmanlarla işbirliği yaparak konuların öğretmenlerce tamamlanma yoluna gidilir."]
[null," TYT MATEMATİK",null,null,null,null,null,null,null,null,null,null,null,null,null,null,null,null,null,null,null,null,null,null,null,null,null,null,null,null,null,null,null,null,null,null," TYT GEOMETRİ"]
[null,1,"…/…/202..",null,null,null,null,null,null,null,null,null,null,null,null,null,null,null,null,null,null,null,null,null,null,null,null,null,null,null,null,null,null,null,null,null,null,null,null,null,null,null,null,null,null,null,null,null,null,null,null,null,null,null,null,null,null,null,null,null,null,null,null,{"$f":"BL51+1","v":1},{"$f":"C52","v":"…/…/202.."}]
[null,{"$f":"B52+1","v":2},"…/…/202..",null,null,null,null,null,null,null,null,null,null,null,null,null,null,null,null,null,null,null,null,null,null,null,null,null,null,null,null,null,null,null,null,null,null,null,null,null,null,null,null,null,null,null,null,null,null,null,null,null,null,null,null,null,null,null,null,null,null,null,null,2,"…/…/202.."]
[null,3,"…/…/202..",null,null,null,null,null,null,null,null,null,null,null,null,null,null,null,null,null,null,null,null,null,null,null,null,null,null,null,null,null,null,null,null,null,null,null,null,null,null,null,null,null,null,null,null,null,null,null,null,null,null,null,null,null,null,null,null,null,null,null,null,3,{"$f":"C54","v":"…/…/202.."}]
[null,{"$f":"B54+1","v":4},{"$f":"C54","v":"…/…/202.."},null,null,null,null,null,null,null,null,null,null,null,null,null,null,null,null,null,null,null,null,null,null,null,null,null,null,null,null,null,null,null,null,null,null,null,null,null,null,null,null,null,null,null,null,null,null,null,null,null,null,null,null,null,null,null,null,null,null,null,null,{"$f":"BL54+1","v":4},{"$f":"C55","v":"…/…/202.."}]
[null,{"$f":"B55+1","v":5},{"$f":"C55","v":"…/…/202.."},null,null,null,null,null,null,null,null,null,null,null,null,null,null,null,null,null,null,null,null,null,null,null,null,null,null,null,null,null,null,null,null,null,null,null,null,null,null,null,null,null,null,null,null,null,null,null,null,null,null,null,null,null,null,null,null,null,null,null,null,{"$f":"BL55+1","v":5},"…/…/202.."]
[null,6,"…/…/202..",null,null,null,null,null,null,null,null,null,null,null,null,null,null,null,null,null,null,null,null,null,null,null,null,null,null,null,null,null,null,null,null,null,null,null,null,null,null,null,null,null,null,null,null,null,null,null,null,null,null,null,null,null,null,null,null,null,null,null,null,6,"…/…/202.."]
[null,7,"…/…/202..",null,null,null,null,null,null,null,null,null,null,null,null,null,null,null,null,null,null,null,null,null,null,null,null,null,null,null,null,null,null,null,null,null,null,null,null,null,null,null,null,null,null,null,null,null,null,null,null,null,null,null,null,null,null,null,null,null,null,null,null,7,"…/…/202.."]
[null,8,"…/…/202..",null,null,null,null,null,null,null,null,null,null,null,null,null,null,null,null,null,null,null,null,null,null,null,null,null,null,null,null,null,null,null,null,null,null,null,null,null,null,null,null,null,null,null,null,null,null,null,null,null,null,null,null,null,null,null,null,null,null,null,null,8,"…/…/202.."]
[null,9,"…/…/202..",null,null,null,null,null,null,null,null,null,null,null,null,null,null,null,null,null,null,null,null,null,null,null,null,null,null,null,null,null,null,null,null,null,null,null,null,null,null,null,null,null,null,null,null,null,null,null,null,null,null,null,null,null,null,null,null,null,null,null,null,9,"…/…/202.."]
[null,10,"…/…/202..",null,null,null,null,null,null,null,null,null,null,null,null,null,null,null,null,null,null,null,null,null,null,null,null,null,null,null,null,null,null,null,null,null,null,null,null,null,null,null,null,null,null,null,null,null,null,null,null,null,null,null,null,null,null,null,null,null,null,null,null,10,"…/…/202.."]
[null,11,"…/…/202..",null,null,null,null,null,null,null,null,null,null,null,null,null,null,null,null,null,null,null,null,null,null,null,null,null,null,null,null,null,null,null,null,null,null,null,null,null,null,null,null,null,null,null,null,null,null,null,null,null,null,null,null,null,null,null,null,null,null,null,null,11,"…/…/202.."]
[null,12,"…/…/202..",null,null,null,null,null,null,null,null,null,null,null,null,null,null,null,null,null,null,null,null,null,null,null,null,null,null,null,null,null,null,null,null,null,null,null,null,null,null,null,null,null,null,null,null,null,null,null,null,null,null,null,null,null,null,null,null,null,null,null,null,12,"…/…/202.."]
[]
[null,null,null,"TYT TÜRKÇE",null,null,null,null,null,null,null,null,null,null,null,null,null,null,null,null,null,null,null,null,null," TYT FİZİK",null,null,null,null,null,null,null,null,null,null,null,null," TYT KİMYA",null,null,null,null,null,null,null,null,null,null,null," TYT BİYOLOJİ"]
[null,1,"…/…/202..",null,null,null,null,null,null,null,null,null,null,null,null,null,null,null,null,null,null,null,null,null,null,null,null,null,null,null,null,null,null,null,null,null,null,null,null,null,null,null,null,null,null,null,null,null,null,null,null,null,null,null,null,null,null,null,null,null,null,null,null,{"$f":"B66","v":1},{"$f":"C66","v":"…/…/202.."}]
[null,{"$f":"B66+1","v":2},{"$f":"C66","v":"…/…/202.."},null,null,null,null,null,null,null,null,null,null,null,null,null,null,null,null,null,null,null,null,null,null,null,null,null,null,null,null,null,null,null,null,null,null,null,null,null,null,null,null,null,null,null,null,null,null,null,null,null,null,null,null,null,null,null,null,null,null,null,null,{"$f":"B67","v":2},"…/…/202.."]
[null,3,"…/…/202..",null,null,null,null,null,null,null,null,null,null,null,null,null,null,null,null,null,null,null,null,null,null,null,null,null,null,null,null,null,null,null,null,null,null,null,null,null,null,null,null,null,null,null,null,null,null,null,null,null,null,null,null,null,null,null,null,null,null,null,null,3,"…/…/202.."]
[null,{"$f":"B68+1","v":4},{"$f":"C68","v":"…/…/202.."},null,null,null,null,null,null,null,null,null,null,null,null,null,null,null,null,null,null,null,null,null,null,null,null,null,null,null,null,null,null,null,null,null,null,null,null,null,null,null,null,null,null,null,null,null,null,null,null,null,null,null,null,null,null,null,null,null,null,null,null,4,"…/…/202.."]
[null,{"$f":"B69+1","v":5},{"$f":"C69","v":"…/…/202.."},null,null,null,null,null,null,null,null,null,null,null,null,null,null,null,null,null,null,null,null,null,null,null,null,null,null,null,null,null,null,null,null,null,null,null,null,null,null,null,null,null,null,null,null,null,null,null,null,null,null,null,null,null,null,null,null,null,null,null,null,5,"…/…/202.."]
[null,6,"…/…/202..",null,null,null,null,null,null,null,null,null,null,null,null,null,null,null,null,null,null,null,null,null,null,null,null,null,null,null,null,null,null,null,null,null,null,null,null,null,null,null,null,null,null,null,null,null,null,null,null,null,null,null,null,null,null,null,null,null,null,null,null,6,"…/…/202.."]
[null,7,"…/…/202..",null,null,null,null,null,null,null,null,null,null,null,null,null,null,null,null,null,null,null,null,null,null,null,null,null,null,null,null,null,null,null,null,null,null,null,null,null,null,null,null,null,null,null,null,null,null,null,null,null,null,null,null,null,null,null,null,null,null,null,null,7,"…/…/202.."]
[null,8,"…/…/202..",null,null,null,null,null,null,null,null,null,null,null,null,null,null,null,null,null,null,null,null,null,null,null,null,null,null,null,null,null,null,null,null,null,null,null,null,null,null,null,null,null,null,null,null,null,null,null,null,null,null,null,null,null,null,null,null,null,null,null,null,8,"…/…/202.."]
[null,9,"…/…/202..",null,null,null,null,null,null,null,null,null,null,null,null,null,null,null,null,null,null,null,null,null,null,null,null,null,null,null,null,null,null,null,null,null,null,null,null,null,null,null,null,null,null,null,null,null,null,null,null,null,null,null,null,null,null,null,null,null,null,null,null,9,"…/…/202.."]
[null,10,"…/…/202..",null,null,null,null,null,null,null,null,null,null,null,null,null,null,null,null,null,null,null,null,null,null,null,null,null,null,null,null,null,null,null,null,null,null,null,null,null,null,null,null,null,null,null,null,null,null,null,null,null,null,null,null,null,null,null,null,null,null,null,null,10,"…/…/202.."]
[null,11,"…/…/202..",null,null,null,null,null,null,null,null,null,null,null,null,null,null,null,null,null,null,null,null,null,null,null,null,null,null,null,null,null,null,null,null,null,null,null,null,null,null,null,null,null,null,null,null,null,null,null,null,null,null,null,null,null,null,null,null,null,null,null,null,11,"…/…/202.."]
[null,12,"…/…/202..",null,null,null,null,null,null,null,null,null,null,null,null,null,null,null,null,null,null,null,null,null,null,null,null,null,null,null,null,null,null,null,null,null,null,null,null,null,null,null,null,null,null,null,null,null,null,null,null,null,null,null,null,null,null,null,null,null,null,null,null,12,"…/…/202.."]
[]
[null,null,null," TYT TARİH",null,null,null,null,null,null,null,null,null,null,null,null,null,null,null,null,null,null,null,null,null," TYT COĞRAFYA",null,null,null,null,null,null,null,null,null,null,null,null,null,null,null,null,null," TYT FELSEFE KONULARI",null,null,null,null,null,null,null,null," TYT DİN KÜLTÜRÜ KONULARI"]
[null,{"$f":"B66","v":1},"…/…/202..",null,null,null,null,null,null,null,null,null,null,null,null,null,null,null,null,null,null,null,null,null,null,null,null,null,null,null,null,null,null,null,null,null,null,null,null,null,null,null,null,null,null,null,null,null,null,null,null,null,null,null,null,null,null,null,null,null,null,null,null,{"$f":"B80","v":1},{"$f":"C80","v":"…/…/202.."}]
[null,{"$f":"B67","v":2},"…/…/202..",null,null,null,null,null,null,null,null,null,null,null,null,null,null,null,null,null,null,null,null,null,null,null,null,null,null,null,null,null,null,null,null,null,null,null,null,null,null,null,null,null,null,null,null,null,null,null,null,null,null,null,null,null,null,null,null,null,null,null,null,{"$f":"B81","v":2},"…/…/202.."]
[null,3,"…/…/202..",null,null,null,null,null,null,null,null,null,null,null,null,null,null,null,null,null,null,null,null,null,null,null,null,null,null,null,null,null,null,null,null,null,null,null,null,null,null,null,null,null,null,null,null,null,null,null,null,null,null,null,null,null,null,null,null,null,null,null,null,3,"…/…/202.."]
[null,4,"…/…/202..",null,null,null,null,null,null,null,null,null,null,null,null,null,null,null,null,null,null,null,null,null,null,null,null,null,null,null,null,null,null,null,null,null,null,null,null,null,null,null,null,null,null,null,null,null,null,null,null,null,null,null,null,null,null,null,null,null,null,null,null,4,"…/…/202.."]
[null,5,"…/…/202..",null,null,null,null,null,null,null,null,null,null,null,null,null,null,null,null,null,null,null,null,null,null,null,null,null,null,null,null,null,null,null,null,null,null,null,null,null,null,null,null,null,null,null,null,null,null,null,null,null,null,null,null,null,null,null,null,null,null,null,null,5,"…/…/202.."]
[null,6,"…/…/202..",null,null,null,null,null,null,null,null,null,null,null,null,null,null,null,null,null,null,null,null,null,null,null,null,null,null,null,null,null,null,null,null,null,null,null,null,null,null,null,null,null,null,null,null,null,null,null,null,null,null,null,null,null,null,null,null,null,null,null,null,6,"…/…/202.."]
[null,null,null,"Genel Görüşler",null,null,null,null,null,null,null,null,null,null,null,null,null,null,null,null,null,null,null,null,null,null,null,null,null,null,null,null,null,null,null,null,null,"Alınabilecek tedbirler/tavsiyeler"]
[null,"1.","…/…/202.."]
[null,"2.","…/…/202.."]
[null,"3.","…/…/202.."]
[null,"4.","…/…/202.."]
[null,"5.","…/…/202.."]
[null,"6.","…/…/202.."]
[null,"7.","…/…/202.."]
[null,"8.","…/…/202.."]
[null,"9.","…/…/202.."]
[null,"10.","…/…/202.."]
[]
[null,"Fetullah Bayır Fen Lisesi",null,null,null,null,null,null,null,null,null,null,null,null,null,null,null,null,null,null,null,null,null,"2022-2023",null,null,null,null,null,null,null,null,null,null,null,"ÖĞRENCİ DANIŞMANLIĞI / ÖĞRENCİ TAKİP FORMU",null,null,null,null,null,null,null,null,null,null,null,null,null,null,null,null,null,null,null,null,null,null,"Öğrencinin Hedefi :"]
[null,"No:",{"$f":"C4","v":1071},"Adı ve Soyadı",null,null,null,null,null,null,{"$f":"K4","v":"Oğuz Kağan BİLGE"},null,null,null,null,null,null,null,null,null,null,null,null,"Sınıf ",null,null,null,{"$f":"AB4","v":"12A"},null,null,null,"Grubu",null,null,null,"Danışman Öğretmen   :",null,null,null,null,null,null,null,null,null,null,null,{"$f":"AQ4","v":"…........"},null,null,null,null,null,null,null,null,null,null,{"$f":"IF(#REF!=\"\",\"\",VLOOKUP(C99,#REF!,29))","v":{"$error":"#REF!"}}]
[null,"Yönerge :",null,"Bu form her öğrenci için danışman öğretmenimiz tarafından ayrı ayrı doldurulur. Öğrencinin çalıştığı konular, ertesi hafta en geç Salı gününe kadar tarih yazarak kontrol edilir. E(-): Eksik ; T(+): Tam ;  yazılır. ",null,null,null,null,null,null,null,null,null,null,null,null,null,null,null,null,null,null,null,null,null,null,null,null,null,null,null,null,null,null,null,null,null,null,null,null,null,null,null,null,null,null,null,null,null,null,null,null,null,null,null,null,null,null,"Öğrenci Takip Sayfa No:",null,null,null,null,null,{"$f":"VLOOKUP(C99,#REF!,30)","v":{"$error":"#REF!"}}]
[null,null,null,"Okulda yapılan kazanım değerlendirme sınav analizlerini inceler, 1.;2., 3. öncelikli konulara göre öğrenciyi ödevlendirilir. Gerekirse diğer danışmanlarla işbirliği yaparak konuların öğretmenlerce tamamlanma yoluna gidilir."]
[null,"Ders",null,"AYT MATEMATİK",null,null,null,null,null,null,null,null,null,null,null,null,null,null,null,null,null,null,null,null,null,null,null,null,null,null,null,null,null,null,null,null,"AYT GEOMETRİ",null,null,null,null,null,null,null,null,null,null,null,null,null,null,null,null,null,null,null,null,null,null,null,null,null,null,"Ders"]
[null,"Kontrol Tarihi",null,1,2,3,4,5,6,7,8,9,10,11,12,13,14,15,16,17,18,19,20,21,22,23,24,25,26,27,28,29,30,31,null,null,1,2,3,4,5,6,7,8,9,10,11,12,13,14,15,16,17,18,19,20,21,22,23,24,25,26,27,"Kontrol Tarihi"]
[null,"AYT",null,"Temel Kavramlar","Sayı Basamakları","Bölme ve Bölünebilme","EBOB – EKOK","Rasyonel Sayılar","Basit Eşitsizlikler","Mutlak Değer","Üslü Sayılar","Köklü Sayılar","Çarpanlara Ayırma","Oran Orantı","Denklem Çözme","Problemler","Kümeler","Kartezyen Çarpım","Mantık","Fonskiyonlar","Polinomlar","2.Dereceden Denklemler","Permütasyon ve Kombinasyon","Binom ve Olasılık","İstatistik","Karmaşık Sayılar","2.Dereceden Eşitsizlikler","Parabol","Trigonometri","Logaritma","Diziler","Limit","Türev","İntegral",null,null,"Doğruda ve Üçgende Açılar","Dik ve Özel Üçgenler","Dik Üçgende Trigonemetrik Bağıntılar","İkizkenar ve Eşkenar Üçgen","Üçgende Alanlar","Üçgende Açıortay Bağıntıları","Üçgende Kenarortay Bağıntıları","Üçgende Eşlik ve Benzerlik","Üçgende Açı-Kenar Bağıntıları","Çokgenler","Dörtgenler","Yamuk","Paralelkenar","Eşkenar Dörtgen – Deltoid","Dikdörtgen","Çemberde Açılar","Çemberde Uzunluk","Daire","Prizmalar","Piramitler","Küre","Koordinat Düzlemi ve Noktanın Analitiği","Doğrunun Analitiği","Tekrar Eden, Dönen ve Yansıyan Şekiller","Dönüşümlerle Geometri","Trigonometri","Çemberin Analitiği","AYT"]
[null,"Konu Eksiği var mı?",null,null,null,null,null,null,null,null,null,null,null,null,null,null,null,null,null,null,null,null,null,null,null,null,null,null,null,null,null,null,null,null,null,null,null,null,null,null,null,null,null,null,null,null,null,null,null,null,null,null,null,null,null,null,null,null,null,null,null,null,null,"Bu bölüme eksik varsa (-); yoksa (+) yaz.."]
[null,1,"…/…/202..",null,null,null,null,null,null,null,null,null,null,null,null,null,null,null,null,null,null,null,null,null,null,null,null,null,null,null,null,null,null,null,null,null,null,null,null,null,null,null,null,null,null,null,null,null,null,null,null,null,null,null,null,null,null,null,null,null,null,null,null,{"$f":"B106","v":1},{"$f":"C106","v":"…/…/202.."}]
[null,{"$f":"B106+1","v":2},{"$f":"C106","v":"…/…/202.."},null,null,null,null,null,null,null,null,null,null,null,null,null,null,null,null,null,null,null,null,null,null,null,null,null,null,null,null,null,null,null,null,null,null,null,null,null,null,null,null,null,null,null,null,null,null,null,null,null,null,null,null,null,null,null,null,null,null,null,null,{"$f":"B107","v":2},"…/…/202.."]
[null,{"$f":"B107+1","v":3},{"$f":"C107","v":"…/…/202.."},null,null,null,null,null,null,null,null,null,null,null,null,null,null,null,null,null,null,null,null,null,null,null,null,null,null,null,null,null,null,null,null,null,null,null,null,null,null,null,null,null,null,null,null,null,null,null,null,null,null,null,null,null,null,null,null,null,null,null,null,3,"…/…/202.."]
[null,4,"…/…/202..",null,null,null,null,null,null,null,null,null,null,null,null,null,null,null,null,null,null,null,null,null,null,null,null,null,null,null,null,null,null,null,null,null,null,null,null,null,null,null,null,null,null,null,null,null,null,null,null,null,null,null,null,null,null,null,null,null,null,null,null,4,"…/…/202.."]
[null,5,"…/…/202..",null,null,null,null,null,null,null,null,null,null,null,null,null,null,null,null,null,null,null,null,null,null,null,null,null,null,null,null,null,null,null,null,null,null,null,null,null,null,null,null,null,null,null,null,null,null,null,null,null,null,null,null,null,null,null,null,null,null,null,null,5,"…/…/202.."]
[null,6,"…/…/202..",null,null,null,null,null,null,null,null,null,null,null,null,null,null,null,null,null,null,null,null,null,null,null,null,null,null,null,null,null,null,null,null,null,null,null,null,null,null,null,null,null,null,null,null,null,null,null,null,null,null,null,null,null,null,null,null,null,null,null,null,6,"…/…/202.."]
[null,7,"…/…/202..",null,null,null,null,null,null,null,null,null,null,null,null,null,null,null,null,null,null,null,null,null,null,null,null,null,null,null,null,null,null,null,null,null,null,null,null,null,null,null,null,null,null,null,null,null,null,null,null,null,null,null,null,null,null,null,null,null,null,null,null,7,"…/…/202.."]
[null,8,"…/…/202..",null,null,null,null,null,null,null,null,null,null,null,null,null,null,null,null,null,null,null,null,null,null,null,null,null,null,null,null,null,null,null,null,null,null,null,null,null,null,null,null,null,null,null,null,null,null,null,null,null,null,null,null,null,null,null,null,null,null,null,null,8,"…/…/202.."]
[null,9,"…/…/202..",null,null,null,null,null,null,null,null,null,null,null,null,null,null,null,null,null,null,null,null,null,null,null,null,null,null,null,null,null,null,null,null,null,null,null,null,null,null,null,null,null,null,null,null,null,null,null,null,null,null,null,null,null,null,null,null,null,null,null,null,9,"…/…/202.."]
[null,10,"…/…/202..",null,null,null,null,null,null,null,null,null,null,null,null,null,null,null,null,null,null,null,null,null,null,null,null,null,null,null,null,null,null,null,null,null,null,null,null,null,null,null,null,null,null,null,null,null,null,null,null,null,null,null,null,null,null,null,null,null,null,null,null,10,"…/…/202.."]
[]
[null,"Ders",null,"AYT FİZİK",null,null,null,null,null,null,null,null,null,null,null,null,null,null,null,null,null,null,null,null,null,null,null,null,null,"AYT KİMYA",null,null,null,null,null,null,null,null,null,null,null,null,"AYT BİYOLOJİ",null,null,null,null,null,null,null,null,null,null,null,null,null,null,null,null,null,null,null,null,"Ders"]
[null,"Kontrol Tarihi",null,1,2,3,4,5,6,7,8,9,10,11,12,13,14,15,16,17,18,19,20,21,null,null,null,null,null,1,2,3,4,5,6,7,8,9,null,null,null,null,1,2,3,4,5,6,7,8,9,10,11,12,13,14,15,16,17,null,null,null,null,"Kontrol Tarihi"]
[null,"AYT",null,"Vektörler","Kuvvet, Tork ve Denge","Kütle Merkezi","Basit Makineler","Hareket","Newton’un Hareket Yasaları","İş, Güç ve Enerji II","Atışlar","İtme ve Momentum","Elektrik Alan ve Potansiyel","Paralel Levhalar ve Sığa","Manyetik Alan ve Manyetik Kuvvet","İndüksiyon, Alternatif Akım ve Transformatörler","Çembersel Hareket","Kütle Çekim ve Kepler Yasaları","Basit Harmonik Hareket","Dalga Mekaniği ve Elektromanyetik Dalgalar","Atom Modelleri","Büyük Patlama ve Radyoaktivite","Modern Fizik","Modern Fiziğin Teknolojideki Uygulamaları",null,null,null,null,null,"Modern Atom Teorisi","Gazlar","Sıvı Çözeltiler ve Çözünürlük","Kimyasal Tepkimelerde Enerji","Tepkimelerde Hız ve Denge","Kimya ve Elektrik","Karbon Kimyası","Organik Kimya","Enerji Kaynakları ve Bilimsel Gelişmeler",null,null,null,null,"Sinir Sistemi","Endokrin Sistem","Duyu Organları","Destek ve Hareket Sistemi","Sindirim Sistemi","Dolaşım ve Bağışıklık Sistemi","Solunum Sistemi","Üriner Sistem","Üreme Sistemi ve Embriyonik Gelişim","Komünite ve Popülasyon Ekolojisi","Nükleik Asitler","Genetik Şifre ve Protein Sentezi","Canlılık ve Enerji","Fotosentez ve Kemosentez","Hücresel Solunum","Bitki Biyolojisi","Canlılar ve Çevre",null,null,null,null,"AYT"]
[null,"Konu Eksiği var mı?",null,null,null,null,null,null,null,null,null,null,null,null,null,null,null,null,null,null,null,null,null,null,null,null,null,null,null,null,null,null,null,null,null,null,null,null,null,null,null,null,null,null,null,null,null,null,null,null,null,null,null,null,null,null,null,null,null,null,null,null,null,"Bu bölüme eksik varsa (-); yoksa (+) yaz.."]
[null,1,"…/…/202..",null,null,null,null,null,null,null,null,null,null,null,null,null,null,null,null,null,null,null,null,null,null,null,null,null,null,null,null,null,null,null,null,null,null,null,null,null,null,null,null,null,null,null,null,null,null,null,null,null,null,null,null,null,null,null,null,null,null,null,null,{"$f":"B121","v":1},{"$f":"C121","v":"…/…/202.."}]
[null,{"$f":"B121+1","v":2},{"$f":"C121","v":"…/…/202.."},null,null,null,null,null,null,null,null,null,null,null,null,null,null,null,null,null,null,null,null,null,null,null,null,null,null,null,null,null,null,null,null,null,null,null,null,null,null,null,null,null,null,null,null,null,null,null,null,null,null,null,null,null,null,null,null,null,null,null,null,{"$f":"B122","v":2},"…/…/202.."]
[null,{"$f":"B122+1","v":3},{"$f":"C122","v":"…/…/202.."},null,null,null,null,null,null,null,null,null,null,null,null,null,null,null,null,null,null,null,null,null,null,null,null,null,null,null,null,null,null,null,null,null,null,null,null,null,null,null,null,null,null,null,null,null,null,null,null,null,null,null,null,null,null,null,null,null,null,null,null,3,"…/…/202.."]
[null,4,"…/…/202..",null,null,null,null,null,null,null,null,null,null,null,null,null,null,null,null,null,null,null,null,null,null,null,null,null,null,null,null,null,null,null,null,null,null,null,null,null,null,null,null,null,null,null,null,null,null,null,null,null,null,null,null,null,null,null,null,null,null,null,null,4,"…/…/202.."]
[null,5,"…/…/202..",null,null,null,null,null,null,null,null,null,null,null,null,null,null,null,null,null,null,null,null,null,null,null,null,null,null,null,null,null,null,null,null,null,null,null,null,null,null,null,null,null,null,null,null,null,null,null,null,null,null,null,null,null,null,null,null,null,null,null,null,5,"…/…/202.."]
[null,6,"…/…/202..",null,null,null,null,null,null,null,null,null,null,null,null,null,null,null,null,null,null,null,null,null,null,null,null,null,null,null,null,null,null,null,null,null,null,null,null,null,null,null,null,null,null,null,null,null,null,null,null,null,null,null,null,null,null,null,null,null,null,null,null,6,"…/…/202.."]
[null,7,"…/…/202..",null,null,null,null,null,null,null,null,null,null,null,null,null,null,null,null,null,null,null,null,null,null,null,null,null,null,null,null,null,null,null,null,null,null,null,null,null,null,null,null,null,null,null,null,null,null,null,null,null,null,null,null,null,null,null,null,null,null,null,null,7,"…/…/202.."]
[null,8,"…/…/202..",null,null,null,null,null,null,null,null,null,null,null,null,null,null,null,null,null,null,null,null,null,null,null,null,null,null,null,null,null,null,null,null,null,null,null,null,null,null,null,null,null,null,null,null,null,null,null,null,null,null,null,null,null,null,null,null,null,null,null,null,8,"…/…/202.."]
[null,9,"…/…/202..",null,null,null,null,null,null,null,null,null,null,null,null,null,null,null,null,null,null,null,null,null,null,null,null,null,null,null,null,null,null,null,null,null,null,null,null,null,null,null,null,null,null,null,null,null,null,null,null,null,null,null,null,null,null,null,null,null,null,null,null,9,"…/…/202.."]
[null,10,"…/…/202..",null,null,null,null,null,null,null,null,null,null,null,null,null,null,null,null,null,null,null,null,null,null,null,null,null,null,null,null,null,null,null,null,null,null,null,null,null,null,null,null,null,null,null,null,null,null,null,null,null,null,null,null,null,null,null,null,null,null,null,null,10,"…/…/202.."]
[]
[]
[null,"Fetullah Bayır Fen Lisesi",null,null,null,null,null,null,null,null,null,null,null,null,null,null,null,null,null,null,null,null,null,"2022-2023",null,null,null,null,null,null,null,null,null,null,null,"ÖĞRENCİ DANIŞMANLIĞI / ÖĞRENCİ TAKİP FORMU",null,null,null,null,null,null,null,null,null,null,null,null,null,null,null,null,null,null,null,null,null,null,"Öğrencinin Hedefi :"]
[null,"No:",{"$f":"C99","v":1071},"Adı ve Soyadı",null,null,null,null,null,null,{"$f":"K99","v":"Oğuz Kağan BİLGE"},null,null,null,null,null,null,null,null,null,null,null,null,"Sınıf ",null,null,null,{"$f":"AB99","v":"12A"},null,null,null,"Grubu",null,null,null,"Danışman Öğretmen   :",null,null,null,null,null,null,null,null,null,null,null,{"$f":"VLOOKUP(C134,#REF!,16)","v":{"$error":"#REF!"}},null,null,null,null,null,null,null,null,null,null,{"$f":"BG99","v":{"$error":"#REF!"}}]
[null,"Ders",null,"AYT MATEMATİK",null,null,null,null,null,null,null,null,null,null,null,null,null,null,null,null,null,null,null,null,null,null,null,null,null,null,null,null,null,null,null,null,"AYT GEOMETRİ",null,null,null,null,null,null,null,null,null,null,null,null,null,null,null,null,null,null,null,null,null,null,null,null,null,null,{"$f":"BM100","v":{"$error":"#REF!"}}]
[null,null,null,1,2,3,4,5,6,7,8,9,10,11,12,13,14,15,16,17,18,19,20,21,22,23,24,25,26,27,28,29,30,31,null,null,1,2,3,4,5,6,7,8,9,10,11,12,13,14,15,16,17,18,19,20,21,22,23,24,25,26,27,"Kontrol Tarihi"]
[null,1,"…/…/202..",null,null,null,null,null,null,null,null,null,null,null,null,null,null,null,null,null,null,null,null,null,null,null,null,null,null,null,null,null,null,null,null,null,null,null,null,null,null,null,null,null,null,null,null,null,null,null,null,null,null,null,null,null,null,null,null,null,null,null,null,{"$f":"B137","v":1},{"$f":"C137","v":"…/…/202.."}]
[null,{"$f":"B137+1","v":2},{"$f":"C137","v":"…/…/202.."},null,null,null,null,null,null,null,null,null,null,null,null,null,null,null,null,null,null,null,null,null,null,null,null,null,null,null,null,null,null,null,null,null,null,null,null,null,null,null,null,null,null,null,null,null,null,null,null,null,null,null,null,null,null,null,null,null,null,null,null,{"$f":"B138","v":2},"…/…/202.."]
[null,{"$f":"B138+1","v":3},{"$f":"C138","v":"…/…/202.."},null,null,null,null,null,null,null,null,null,null,null,null,null,null,null,null,null,null,null,null,null,null,null,null,null,null,null,null,null,null,null,null,null,null,null,null,null,null,null,null,null,null,null,null,null,null,null,null,null,null,null,null,null,null,null,null,null,null,null,null,3,"…/…/202.."]
[null,4,"…/…/202..",null,null,null,null,null,null,null,null,null,null,null,null,null,null,null,null,null,null,null,null,null,null,null,null,null,null,null,null,null,null,null,null,null,null,null,null,null,null,null,null,null,null,null,null,null,null,null,null,null,null,null,null,null,null,null,null,null,null,null,null,4,"…/…/202.."]
[null,5,"…/…/202..",null,null,null,null,null,null,null,null,null,null,null,null,null,null,null,null,null,null,null,null,null,null,null,null,null,null,null,null,null,null,null,null,null,null,null,null,null,null,null,null,null,null,null,null,null,null,null,null,null,null,null,null,null,null,null,null,null,null,null,null,5,"…/…/202.."]
[null,6,"…/…/202..",null,null,null,null,null,null,null,null,null,null,null,null,null,null,null,null,null,null,null,null,null,null,null,null,null,null,null,null,null,null,null,null,null,null,null,null,null,null,null,null,null,null,null,null,null,null,null,null,null,null,null,null,null,null,null,null,null,null,null,null,6,"…/…/202.."]
[null,7,"…/…/202..",null,null,null,null,null,null,null,null,null,null,null,null,null,null,null,null,null,null,null,null,null,null,null,null,null,null,null,null,null,null,null,null,null,null,null,null,null,null,null,null,null,null,null,null,null,null,null,null,null,null,null,null,null,null,null,null,null,null,null,null,7,"…/…/202.."]
[null,8,"…/…/202..",null,null,null,null,null,null,null,null,null,null,null,null,null,null,null,null,null,null,null,null,null,null,null,null,null,null,null,null,null,null,null,null,null,null,null,null,null,null,null,null,null,null,null,null,null,null,null,null,null,null,null,null,null,null,null,null,null,null,null,null,8,"…/…/202.."]
[null,9,"…/…/202..",null,null,null,null,null,null,null,null,null,null,null,null,null,null,null,null,null,null,null,null,null,null,null,null,null,null,null,null,null,null,null,null,null,null,null,null,null,null,null,null,null,null,null,null,null,null,null,null,null,null,null,null,null,null,null,null,null,null,null,null,9,"…/…/202.."]
[null,10,"…/…/202..",null,null,null,null,null,null,null,null,null,null,null,null,null,null,null,null,null,null,null,null,null,null,null,null,null,null,null,null,null,null,null,null,null,null,null,null,null,null,null,null,null,null,null,null,null,null,null,null,null,null,null,null,null,null,null,null,null,null,null,null,10,"…/…/202.."]
[null,"Ders",null,"AYT FİZİK",null,null,null,null,null,null,null,null,null,null,null,null,null,null,null,null,null,null,null,null,"AYT KİMYA",null,null,null,null,null,null,null,null,null,null,null,null,null,null,null,null,null,"AYT BİYOLOJİ",null,null,null,null,null,null,null,null,null,null,null,null,null,null,null,null,null,null,null,null,"Ders"]
[null,"Kontrol Tarihi",null,null,null,null,null,null,null,null,null,null,null,null,null,null,null,null,null,null,null,null,null,null,null,null,null,null,null,null,null,null,null,null,null,null,null,null,null,null,null,null,null,null,null,null,null,null,null,null,null,null,null,null,null,null,null,null,null,null,null,null,null,"Kontrol Tarihi"]
[null,1,"…/…/202..",null,null,null,null,null,null,null,null,null,null,null,null,null,null,null,null,null,null,null,null,null,null,null,null,null,null,null,null,null,null,null,null,null,null,null,null,null,null,null,null,null,null,null,null,null,null,null,null,null,null,null,null,null,null,null,null,null,null,null,null,{"$f":"B149","v":1},{"$f":"C149","v":"…/…/202.."}]
[null,{"$f":"B149+1","v":2},{"$f":"C149","v":"…/…/202.."},null,null,null,null,null,null,null,null,null,null,null,null,null,null,null,null,null,null,null,null,null,null,null,null,null,null,null,null,null,null,null,null,null,null,null,null,null,null,null,null,null,null,null,null,null,null,null,null,null,null,null,null,null,null,null,null,null,null,null,null,{"$f":"B150","v":2},"…/…/202.."]
[null,{"$f":"B150+1","v":3},{"$f":"C150","v":"…/…/202.."},null,null,null,null,null,null,null,null,null,null,null,null,null,null,null,null,null,null,null,null,null,null,null,null,null,null,null,null,null,null,null,null,null,null,null,null,null,null,null,null,null,null,null,null,null,null,null,null,null,null,null,null,null,null,null,null,null,null,null,null,3,"…/…/202.."]
[null,4,"…/…/202..",null,null,null,null,null,null,null,null,null,null,null,null,null,null,null,null,null,null,null,null,null,null,null,null,null,null,null,null,null,null,null,null,null,null,null,null,null,null,null,null,null,null,null,null,null,null,null,null,null,null,null,null,null,null,null,null,null,null,null,null,4,"…/…/202.."]
[null,5,"…/…/202..",null,null,null,null,null,null,null,null,null,null,null,null,null,null,null,null,null,null,null,null,null,null,null,null,null,null,null,null,null,null,null,null,null,null,null,null,null,null,null,null,null,null,null,null,null,null,null,null,null,null,null,null,null,null,null,null,null,null,null,null,5,"…/…/202.."]
[null,6,"…/…/202..",null,null,null,null,null,null,null,null,null,null,null,null,null,null,null,null,null,null,null,null,null,null,null,null,null,null,null,null,null,null,null,null,null,null,null,null,null,null,null,null,null,null,null,null,null,null,null,null,null,null,null,null,null,null,null,null,null,null,null,null,6,"…/…/202.."]
[null,7,"…/…/202..",null,null,null,null,null,null,null,null,null,null,null,null,null,null,null,null,null,null,null,null,null,null,null,null,null,null,null,null,null,null,null,null,null,null,null,null,null,null,null,null,null,null,null,null,null,null,null,null,null,null,null,null,null,null,null,null,null,null,null,null,7,"…/…/202.."]
[null,8,"…/…/202..",null,null,null,null,null,null,null,null,null,null,null,null,null,null,null,null,null,null,null,null,null,null,null,null,null,null,null,null,null,null,null,null,null,null,null,null,null,null,null,null,null,null,null,null,null,null,null,null,null,null,null,null,null,null,null,null,null,null,null,null,8,"…/…/202.."]
[null,9,"…/…/202..",null,null,null,null,null,null,null,null,null,null,null,null,null,null,null,null,null,null,null,null,null,null,null,null,null,null,null,null,null,null,null,null,null,null,null,null,null,null,null,null,null,null,null,null,null,null,null,null,null,null,null,null,null,null,null,null,null,null,null,null,9,"…/…/202.."]
[null,10,"…/…/202..",null,null,null,null,null,null,null,null,null,null,null,null,null,null,null,null,null,null,null,null,null,null,null,null,null,null,null,null,null,null,null,null,null,null,null,null,null,null,null,null,null,null,null,null,null,null,null,null,null,null,null,null,null,null,null,null,null,null,null,null,10,"…/…/202.."]
[null,null,null,"Genel Görüşler",null,null,null,null,null,null,null,null,null,null,null,null,null,null,null,null,null,null,null,null,null,null,null,null,null,null,null,null,null,null,null,null,null,"Alınabilecek tedbirler/tavsiyeler"]
[null,"1.","…/…/202.."]
[null,"2.","…/…/202.."]
[null,"3.","…/…/202.."]
[null,"4.","…/…/202.."]
[null,"5.","…/…/202.."]
[null,"6.","…/…/202.."]
[null,"7.","…/…/202.."]
[null,"8.","…/…/202.."]
[null,"9.","…/…/202.."]
[null,"10.","…/…/202.."]

{"sheet":"Form11","index":15,"n_rows":169,"n_cols":65,"rows_kept":169,"cut":false,"hidden":true,"merged":[[167,3,167,36],[167,37,167,64],[168,3,168,36],[168,37,168,64],[164,3,164,36],[164,37,164,64],[165,3,165,36],[165,37,165,64],[166,3,166,36],[166,37,166,64],[161,3,161,36],[161,37,161,64],[162,3,162,36],[162,37,162,64],[163,3,163,36],[163,37,163,64],[158,1,158,2],[158,3,158,36],[158,37,158,64],[159,3,159,36],[159,37,159,64],[160,3,160,36],[160,37,160,64],[156,3,156,23],[156,24,156,41],[156,42,156,62],[157,3,157,23],[157,24,157,41],[157,42,157,62],[154,3,154,23],[154,24,154,41],[154,42,154,62],[155,3,155,23],[155,24,155,41],[155,42,155,62],[152,3,152,23],[152,24,152,41],[152,42,152,62],[153,3,153,23],[153,24,153,41],[153,42,153,62],[150,3,150,23],[150,24,150,41],[150,42,150,62],[151,3,151,23],[151,24,151,41],[151,42,151,62],[148,3,148,23],[148,24,148,41],[148,42,148,62],[149,3,149,23],[149,24,149,41],[149,42,149,62],[146,63,146,64],[147,1,147,2],[147,3,147,23],[147,24,147,41],[147,42,147,62],[147,63,147,64],[144,3,144,35],[144,36,144,62],[145,3,145,35],[145,36,145,62],[146,1,146,2],[146,3,146,23],[146,24,146,41],[146,42,146,62],[141,3,141,35],[141,36,141,62],[142,3,142,35],[142,36,142,62],[143,3,143,35],[143,36,143,62],[138,3,138,35],[138,36,138,62],[139,3,139,35],[139,36,139,62],[140,3,140,35],[140,36,140,62],[135,1,135,2],[135,63,135,64],[136,3,136,35],[136,36,136,62],[137,3,137,35],[137,36,137,62],[133,47,133,57],[133,58,133,64],[134,1,134,2],[134,3,134,34],[134,36,134,62],[134,63,134,64],[132,1,132,22],[132,23,132,34],[132,35,132,57],[132,58,132,64],[133,3,133,9],[133,10,133,22],[133,23,133,26],[133,27,133,30],[133,31,133,34],[133,35,133,46],[117,1,117,2],[117,63,117,64],[118,1,118,2],[118,63,118,64],[119,1,119,2],[119,63,119,64],[103,1,103,2],[103,63,103,64],[104,1,104,2],[104,63,104,64],[116,1,116,2],[116,3,116,27],[116,29,116,37],[116,63,116,64],[101,1,101,2],[101,3,101,34],[101,36,101,62],[101,63,101,64],[102,1,102,2],[102,63,102,64],[98,47,98,57],[98,58,98,64],[99,1,100,2],[99,3,99,57],[99,58,100,63],[99,64,100,64],[100,3,100,57],[98,3,98,9],[98,10,98,22],[98,23,98,26],[98,27,98,30],[98,31,98,34],[98,35,98,46],[94,3,94,36],[94,37,94,64],[95,3,95,36],[95,37,95,64],[97,1,97,22],[97,23,97,34],[97,35,97,57],[97,58,97,64],[91,3,91,36],[91,37,91,64],[92,3,92,36],[92,37,92,64],[93,3,93,36],[93,37,93,64],[88,3,88,36],[88,37,88,64],[89,3,89,36],[89,37,89,64],[90,3,90,36],[90,37,90,64],[85,1,85,2],[85,3,85,36],[85,37,85,64],[86,3,86,36],[86,37,86,64],[87,3,87,36],[87,37,87,64],[83,3,83,23],[83,25,83,41],[83,43,83,50],[83,52,83,62],[84,3,84,23],[84,25,84,41],[84,43,84,50],[84,52,84,62],[81,3,81,23],[81,25,81,41],[81,43,81,50],[81,52,81,62],[82,3,82,23],[82,25,82,41],[82,43,82,50],[82,52,82,62],[79,3,79,23],[79,25,79,41],[79,43,79,50],[79,52,79,62],[80,3,80,23],[80,25,80,41],[80,43,80,50],[80,52,80,62],[78,1,78,2],[78,3,78,23],[78,25,78,41],[78,43,78,50],[78,52,78,62],[78,63,78,64],[75,3,75,23],[75,25,75,36],[75,38,75,48],[75,50,75,62],[76,3,76,23],[76,25,76,36],[76,38,76,48],[76,50,76,62],[73,3,73,23],[73,25,73,36],[73,38,73,48],[73,50,73,62],[74,3,74,23],[74,25,74,36],[74,38,74,48],[74,50,74,62],[71,3,71,23],[71,25,71,36],[71,38,71,48],[71,50,71,62],[72,3,72,23],[72,25,72,36],[72,38,72,48],[72,50,72,62],[69,3,69,23],[69,25,69,36],[69,38,69,48],[69,50,69,62],[70,3,70,23],[70,25,70,36],[70,38,70,48],[70,50,70,62],[67,3,67,23],[67,25,67,36],[67,38,67,48],[67,50,67,62],[68,3,68,23],[68,25,68,36],[68,38,68,48],[68,50,68,62],[64,63,64,64],[65,3,65,23],[65,25,65,36],[65,38,65,48],[65,50,65,62],[66,3,66,23],[66,25,66,36],[66,38,66,48],[66,50,66,62],[62,3,62,35],[62,36,62,62],[64,1,64,2],[64,3,64,23],[64,25,64,36],[64,38,64,48],[64,50,64,62],[59,3,59,35],[59,36,59,62],[60,3,60,35],[60,36,60,62],[61,3,61,35],[61,36,61,62],[56,3,56,35],[56,36,56,62],[57,3,57,35],[57,36,57,62],[58,3,58,35],[58,36,58,62],[53,3,53,35],[53,36,53,62],[54,3,54,35],[54,36,54,62],[55,3,55,35],[55,36,55,62],[50,1,50,35],[50,36,50,64],[51,3,51,35],[51,36,51,62],[52,3,52,35],[52,36,52,62],[47,42,47,57],[47,58,47,64],[48,1,49,2],[48,3,48,57],[48,58,49,63],[48,64,49,64],[49,3,49,57],[46,1,46,22],[46,23,46,34],[46,35,46,57],[46,58,46,64],[47,3,47,9],[47,10,47,22],[47,23,47,26],[47,27,47,30],[47,31,47,34],[47,35,47,41],[37,1,37,2],[37,63,37,64],[38,1,38,2],[38,63,38,64],[39,1,39,2],[45,1,45,64],[23,1,23,2],[23,63,23,64],[24,1,24,2],[36,1,36,2],[36,3,36,23],[36,25,36,41],[36,43,36,50],[36,52,36,61],[36,63,36,64],[21,63,21,64],[22,1,22,2],[22,3,22,6],[22,25,22,26],[22,38,22,39],[22,50,22,51],[22,63,22,64],[9,1,9,2],[21,1,21,2],[21,3,21,23],[21,25,21,36],[21,38,21,48],[21,50,21,61],[7,1,7,2],[7,3,7,6],[7,36,7,39],[7,63,7,64],[8,1,8,2],[8,63,8,64],[4,1,5,2],[4,3,4,57],[4,58,5,63],[4,64,5,64],[5,3,5,57],[6,1,6,2],[6,3,6,31],[6,36,6,62],[6,63,6,64],[0,12,0,23],[0,28,0,31],[0,36,0,39],[2,1,2,22],[2,23,2,34],[2,35,2,57],[2,58,2,64],[3,3,3,9],[3,10,3,22],[3,23,3,26],[3,27,3,30],[3,31,3,34],[3,35,3,41],[3,42,3,57],[3,58,3,64]]}
[]
[null,null,null,null,null,null,null,null,null,null,1,{"$f":"K2+1","v":2},{"$f":"L2+1","v":3},4,5,6,7,8,9,10,11,12,13,14,15,16,17,18,19,20,21,22,23,24,25,26,27,28,29,30,31,32,33,34,35,36,37,38,39,40,41,42,43,44,45,46,47,48,49,50,51,52,53]
[null,{"$f":"'Giriş ve Ön Plânlama'!C2","v":"Fetullah Bayır Fen Lisesi (KONYA/BEYŞEHİR)"},null,null,null,null,null,null,null,null,null,null,null,null,null,null,null,null,null,null,null,null,null,{"$f":"'Giriş ve Ön Plânlama'!C3","v":"2024-2025"},null,null,null,null,null,null,null,null,null,null,null,"ÖĞRENCİ DANIŞMANLIĞI / ÖĞRENCİ TAKİP FORMU",null,null,null,null,null,null,null,null,null,null,null,null,null,null,null,null,null,null,null,null,null,null,"Öğrencinin Hedefi :"]
[null,"No:",{"$f":"'Giriş ve Ön Plânlama'!C9","v":1071},"Adı ve Soyadı",null,null,null,null,null,null,{"$f":"'Giriş ve Ön Plânlama'!C7","v":"Oğuz Kağan BİLGE"},null,null,null,null,null,null,null,null,null,null,null,null,"Sınıf ",null,null,null,{"$f":"'Giriş ve Ön Plânlama'!C8","v":"12A"},null,null,null,"Grubu",null,null,null,"Danışman Öğretmen   :",null,null,null,null,null,null,{"$f":"'Giriş ve Ön Plânlama'!C10","v":"…........"},null,null,null,null,null,null,null,null,null,null,null,null,null,null,null,{"$f":"'Giriş ve Ön Plânlama'!C12","v":"Yazılım Mühendisliği"}]
[null,"Yönerge :",null,"Bu form her öğrenci için danışman öğretmenimiz tarafından ayrı ayrı doldurulur. Öğrencinin çalıştığı konular, ertesi hafta en geç Salı gününe kadar tarih yazarak kontrol edilir. E: Eksik ; T: Tam ;             yazılır. ",null,null,null,null,null,null,null,null,null,null,null,null,null,null,null,null,null,null,null,null,null,null,null,null,null,null,null,null,null,null,null,null,null,null,null,null,null,null,null,null,null,null,null,null,null,null,null,null,null,null,null,null,null,null,"Öğrenci Prog Başl. Tarihi:",null,null,null,null,null,{"$f":"'Giriş ve Ön Plânlama'!C4","v":"2025-01-01"}]
[null,null,null,"Okulda yapılan kazanım değerlendirme sınav analizlerini inceler, 1.;2., 3. öncelikli konulara göre öğrenciyi ödevlendirilir. Gerekirse diğer danışmanlarla işbirliği yaparak konuların öğretmenlerce tamamlanma yoluna gidilir."]
[null,"Ders",null," TYT MATEMATİK",null,null,null,null,null,null,null,null,null,null,null,null,null,null,null,null,null,null,null,null,null,null,null,null,null,null,null,null,null,null,null,null," TYT GEOMETRİ",null,null,null,null,null,null,null,null,null,null,null,null,null,null,null,null,null,null,null,null,null,null,null,null,null,null,"Ders"]
[null,"Kontrol Tarihi",null,"Kitap",null,null,null,1,2,3,4,5,6,7,8,9,10,11,12,13,14,15,16,17,18,19,20,21,22,23,24,25,null,null,null,null,"Kitap",null,null,null,1,2,3,4,5,6,7,8,9,10,11,12,13,14,15,16,17,18,19,20,21,null,null,"Kontrol Tarihi"]
[null,"TYT",null,null,null,null,null,"Temel Kavramlar","Sayı Basamakları","Bölme ve Bölünebilme","EBOB-EKOK","Rasyonel Sayılar-Ondalık Sayılar","Basit Eşitsizlikler","Mutlak Değer","Üslü Sayılar","Köklü Sayılar","Çarpanlara Ayırma","Oran Orantı","Denklem Çözme","Problemler","Kümeler-Karteszyen Çarpımı","Fonksiyonlar","Permütasyon","Kombinasyon","Binom","Olasılık","İstatistik","2. Dereceden Denklemler","Karmaşık Sayılar","Polinomlar","Mantık","Veri Analizi",null,null,null,null,null,null,null,null,"Doğruda ve Üçgende Açılar","Üçgende Açı-Kenar Bağıntıları","Üçgende  Benzerlik","üçgende Açıortay-Kenarortay","Dik Üçgen","İkizkenar Üçgen","Eşkenar Üçgen","Üçgende alan","Çokgenler","Dörtgenler","Yamuk-Paralelkenar","Eşkenar Dörtgen","Dikdörtgen","Kare","Deltoid","Çemberde Açı","Çemberde Uzunluk","Dairenin Çevresi ve Alanı","Doğrunun Analitik İncelenmesi","Çemberin Analitik İncelenmesi","Katı Cisimler ",null,null,{"$f":"B9","v":"TYT"}]
[null,"Konu Eksiği var mı?"]
[null,1,"…/…/202..",null,null,null,null,null,null,null,null,null,null,null,null,null,null,null,null,null,null,null,null,null,null,null,null,null,null,null,null,null,null,null,null,null,null,null,null,null,null,null,null,null,null,null,null,null,null,null,null,null,null,null,null,null,null,null,null,null,null,null,null,{"$f":"B20+1","v":11},{"$f":"C11","v":"…/…/202.."}]
[null,{"$f":"B11+1","v":2},{"$f":"C11","v":"…/…/202.."},null,null,null,null,null,null,null,null,null,null,null,null,null,null,null,null,null,null,null,null,null,null,null,null,null,null,null,null,null,null,null,null,null,null,null,null,null,null,null,null,null,null,null,null,null,null,null,null,null,null,null,null,null,null,null,null,null,null,null,null,{"$f":"BL11+1","v":12},{"$f":"C12","v":"…/…/202.."}]
[null,{"$f":"B12+1","v":3},{"$f":"C12","v":"…/…/202.."},null,null,null,null,null,null,null,null,null,null,null,null,null,null,null,null,null,null,null,null,null,null,null,null,null,null,null,null,null,null,null,null,null,null,null,null,null,null,null,null,null,null,null,null,null,null,null,null,null,null,null,null,null,null,null,null,null,null,null,null,{"$f":"BL12+1","v":13},"…/…/202.."]
[null,4,"…/…/202..",null,null,null,null,null,null,null,null,null,null,null,null,null,null,null,null,null,null,null,null,null,null,null,null,null,null,null,null,null,null,null,null,null,null,null,null,null,null,null,null,null,null,null,null,null,null,null,null,null,null,null,null,null,null,null,null,null,null,null,null,14,"…/…/202.."]
[null,5,"…/…/202..",null,null,null,null,null,null,null,null,null,null,null,null,null,null,null,null,null,null,null,null,null,null,null,null,null,null,null,null,null,null,null,null,null,null,null,null,null,null,null,null,null,null,null,null,null,null,null,null,null,null,null,null,null,null,null,null,null,null,null,null,15,"…/…/202.."]
[null,6,"…/…/202..",null,null,null,null,null,null,null,null,null,null,null,null,null,null,null,null,null,null,null,null,null,null,null,null,null,null,null,null,null,null,null,null,null,null,null,null,null,null,null,null,null,null,null,null,null,null,null,null,null,null,null,null,null,null,null,null,null,null,null,null,16,"…/…/202.."]
[null,7,"…/…/202..",null,null,null,null,null,null,null,null,null,null,null,null,null,null,null,null,null,null,null,null,null,null,null,null,null,null,null,null,null,null,null,null,null,null,null,null,null,null,null,null,null,null,null,null,null,null,null,null,null,null,null,null,null,null,null,null,null,null,null,null,17,"…/…/202.."]
[null,8,"…/…/202..",null,null,null,null,null,null,null,null,null,null,null,null,null,null,null,null,null,null,null,null,null,null,null,null,null,null,null,null,null,null,null,null,null,null,null,null,null,null,null,null,null,null,null,null,null,null,null,null,null,null,null,null,null,null,null,null,null,null,null,null,18,"…/…/202.."]
[null,9,"…/…/202..",null,null,null,null,null,null,null,null,null,null,null,null,null,null,null,null,null,null,null,null,null,null,null,null,null,null,null,null,null,null,null,null,null,null,null,null,null,null,null,null,null,null,null,null,null,null,null,null,null,null,null,null,null,null,null,null,null,null,null,null,19,"…/…/202.."]
[null,10,"…/…/202..",null,null,null,null,null,null,null,null,null,null,null,null,null,null,null,null,null,null,null,null,null,null,null,null,null,null,null,null,null,null,null,null,null,null,null,null,null,null,null,null,null,null,null,null,null,null,null,null,null,null,null,null,null,null,null,null,null,null,null,null,20,"…/…/202.."]
[]
[null,"Ders",null,"TYT TÜRKÇE",null,null,null,null,null,null,null,null,null,null,null,null,null,null,null,null,null,null,null,null,null," TYT FİZİK",null,null,null,null,null,null,null,null,null,null,null,null," TYT KİMYA",null,null,null,null,null,null,null,null,null,null,null," TYT BİYOLOJİ",null,null,null,null,null,null,null,null,null,null,null,null,"Ders"]
[null,"Kontrol Tarihi",null,"Kitap",null,null,null,1,2,3,4,5,6,7,8,9,10,11,12,13,14,15,16,17,null,"Kitap",null,1,2,3,4,5,6,7,8,9,10,null,"Kitap",null,1,2,3,4,5,6,7,8,9,null,"Kitap",null,1,2,3,4,5,6,7,8,9,10,null,"Kontrol Tarihi"]
[null,{"$f":"B9","v":"TYT"},null,null,null,null,null,"Sözcükte Anlam","Cümlede Anlam","Paragrafta Anlam","Anlatım Biçimleri","Ses Bilgisi","Yazım Kuralları","Noktalama İşaretleri","Sözcükte Yapı","Sözcük Türleri","Edat-Bağlaç-Ünlem","Filler","Ek Fiil","Filde Çatı","Fiilimsi","Cümlenin Öğeleri","Cümle Türleri","Anlatım Bozuklukları",null,null,null,"Fizik Bilimine Giriş","Madde ve Özellikleri","Kuvvet ve Hareket","İş, Güç ve Enerji","Isı, Sıcaklık ve Genleşme","Basınç","Kaldırma Kuvveti","Elektrik ve Manyetizma","Dalgalar","Optik",null,null,null,"Kimya Bilimi","Atom ve Periyodik Sistem","Kimyasal Türler Arası Etkileşimler","Maddenin Halleri","Doğa ve Kimya","Kimyanın Temel Kanunları ve","Kimsayal Hesaplamalar","Asitler-Bazlar ve Tuzlar","Kimya Her Yerde",null,null,null,"Canlıların Ortak Özellikleri","Canlıların Temel Bileşenleri","Hücre ve Organelleri","Hücre Zarından Madde Geçişi","Canlıların Sınıflandırılması","Mitoz ve Eşeysiz Üreme","Mayoz ve Eşeyli Üreme","Kalıtım","Ekosistem Ekolojisi","Güncel Çevre Sorunları",null,{"$f":"B9","v":"TYT"}]
[null,"Konu Eksiği var mı?"]
[null,1,"…/…/202..",null,null,null,null,null,null,null,null,null,null,null,null,null,null,null,null,null,null,null,null,null,null,null,null,null,null,null,null,null,null,null,null,null,null,null,null,null,null,null,null,null,null,null,null,null,null,null,null,null,null,null,null,null,null,null,null,null,null,null,null,{"$f":"B35+1","v":11},{"$f":"C26","v":"…/…/202.."}]
[null,{"$f":"B26+1","v":2},{"$f":"C26","v":"…/…/202.."},null,null,null,null,null,null,null,null,null,null,null,null,null,null,null,null,null,null,null,null,null,null,null,null,null,null,null,null,null,null,null,null,null,null,null,null,null,null,null,null,null,null,null,null,null,null,null,null,null,null,null,null,null,null,null,null,null,null,null,null,{"$f":"BL26+1","v":12},{"$f":"C27","v":"…/…/202.."}]
[null,{"$f":"B27+1","v":3},{"$f":"C27","v":"…/…/202.."},null,null,null,null,null,null,null,null,null,null,null,null,null,null,null,null,null,null,null,null,null,null,null,null,null,null,null,null,null,null,null,null,null,null,null,null,null,null,null,null,null,null,null,null,null,null,null,null,null,null,null,null,null,null,null,null,null,null,null,null,{"$f":"BL27+1","v":13},"…/…/202.."]
[null,4,"…/…/202..",null,null,null,null,null,null,null,null,null,null,null,null,null,null,null,null,null,null,null,null,null,null,null,null,null,null,null,null,null,null,null,null,null,null,null,null,null,null,null,null,null,null,null,null,null,null,null,null,null,null,null,null,null,null,null,null,null,null,null,null,14,"…/…/202.."]
[null,5,"…/…/202..",null,null,null,null,null,null,null,null,null,null,null,null,null,null,null,null,null,null,null,null,null,null,null,null,null,null,null,null,null,null,null,null,null,null,null,null,null,null,null,null,null,null,null,null,null,null,null,null,null,null,null,null,null,null,null,null,null,null,null,null,15,"…/…/202.."]
[null,6,"…/…/202..",null,null,null,null,null,null,null,null,null,null,null,null,null,null,null,null,null,null,null,null,null,null,null,null,null,null,null,null,null,null,null,null,null,null,null,null,null,null,null,null,null,null,null,null,null,null,null,null,null,null,null,null,null,null,null,null,null,null,null,null,16,"…/…/202.."]
[null,7,"…/…/202..",null,null,null,null,null,null,null,null,null,null,null,null,null,null,null,null,null,null,null,null,null,null,null,null,null,null,null,null,null,null,null,null,null,null,null,null,null,null,null,null,null,null,null,null,null,null,null,null,null,null,null,null,null,null,null,null,null,null,null,null,17,"…/…/202.."]
[null,8,"…/…/202..",null,null,null,null,null,null,null,null,null,null,null,null,null,null,null,null,null,null,null,null,null,null,null,null,null,null,null,null,null,null,null,null,null,null,null,null,null,null,null,null,null,null,null,null,null,null,null,null,null,null,null,null,null,null,null,null,null,null,null,null,18,"…/…/202.."]
[null,9,"…/…/202..",null,null,null,null,null,null,null,null,null,null,null,null,null,null,null,null,null,null,null,null,null,null,null,null,null,null,null,null,null,null,null,null,null,null,null,null,null,null,null,null,null,null,null,null,null,null,null,null,null,null,null,null,null,null,null,null,null,null,null,null,19,"…/…/202.."]
[null,10,"…/…/202..",null,null,null,null,null,null,null,null,null,null,null,null,null,null,null,null,null,null,null,null,null,null,null,null,null,null,null,null,null,null,null,null,null,null,null,null,null,null,null,null,null,null,null,null,null,null,null,null,null,null,null,null,null,null,null,null,null,null,null,null,20,"…/…/202.."]
[]
[null,"Ders",null," TYT TARİH",null,null,null,null,null,null,null,null,null,null,null,null,null,null,null,null,null,null,null,null,null," TYT COĞRAFYA",null,null,null,null,null,null,null,null,null,null,null,null,null,null,null,null,null," TYT FELSEFE KONULARI",null,null,null,null,null,null,null,null," TYT DİN KÜLTÜRÜ KONULARI",null,null,null,null,null,null,null,null,null,null,"Ders"]
[null,"Kontrol Tarihi",null,1,2,3,4,5,6,7,8,9,10,11,12,13,14,15,16,17,18,19,20,21,null,1,2,3,4,5,6,7,8,9,10,11,12,13,14,15,16,17,null,1,2,3,4,5,6,7,8,null,1,2,3,4,5,6,7,null,null,null,null,"Kontrol Tarihi"]
[null,{"$f":"B24","v":"TYT"},null,"Tarih Bilimine Giriş","Uygarlığın Doğuşu ve İlk Uygarlıklar","İlk Türk Devletleri","İslam Tarihi ve Uygarlığı","Türk-İslam Devletleri","Türkler’in İslamiyeti Kabulü","Türkiye Tarihi","Beylikten Devlete (1300-1453)","Dünya Gücü: Osmanlı Devleti","Osmanlı Duraklama Dönemi","Gerileme Devri (1699 – 1792)","Arayış Yılları (17. Yüzyıl)","Avrupa ve Osmanlı Devleti (18. Yüzyıl)","En Uzun Yüzyıl (1800-1922)","20.Yüzyıl Başlarında Osmanlı Devleti","XIX. YY Osmanlı Devleti","1.Dünya Savaşı – Milli Mücadeleye Hazırlık D.","Kurtuluş Savaşında Cepheler","Türk İnkılabı","Atatürkçülük ve Atatürk İlkeleri","Türk Dış Politikası",null,"İnsan ve Doğa","Dünya’nın Şekli ve Hareketleri","Coğrafi Konum","Harita Bilgisi","Atmosfer ve Sıcaklık","İklimler","Basınç ve Rüzgarlar","Nem, Yağış ve Buharlaşma","İç Kuvvetler / Dış Kuvvetler","Su – Toprak ve Bitkiler","Nüfus-Göç-Yerleşme","Türkiye’nin Yer Şekilleri","Ekonomik Faaliyetler","Bölgeler ve Ülkeler","Uluslararası Ulaşım Hatları","Çevre ve Toplum","Doğal Afetler",null,"Felsefe’nin Alanı","Bilgi Felsefesi","Bilim Felsefesi","Varlık Felsefesi","Ahlak Felsefesi","Siyaset Felsefesi","Sanat Felsefesi","Din Felsefesi",null,"insan ve Din (İnanç)","İbadet","Hz.Muhammed(sav)’in Hayatı","Vahiy ve Akıl","İslam Düşüncesi ve Yorumu","İslamda Değerler, Sanat ve Laiklik","Yaşayan Dinler",null,null,null,null,{"$f":"B24","v":"TYT"}]
[null,"Konu Eksiği var mı?"]
[null,1,"…/…/202..",null,null,null,null,null,null,null,null,null,null,null,null,null,null,null,null,null,null,null,null,null,null,null,null,null,null,null,null,null,null,null,null,null,null,null,null,null,null,null,null,null,null,null,null,null,null,null,null,null,null,null,null,null,null,null,null,null,null,null,null,{"$f":"B44+1","v":5},{"$f":"C41","v":"…/…/202.."}]
[null,{"$f":"B41+1","v":2},{"$f":"C41","v":"…/…/202.."},null,null,null,null,null,null,null,null,null,null,null,null,null,null,null,null,null,null,null,null,null,null,null,null,null,null,null,null,null,null,null,null,null,null,null,null,null,null,null,null,null,null,null,null,null,null,null,null,null,null,null,null,null,null,null,null,null,null,null,null,{"$f":"BL41+1","v":6},{"$f":"C42","v":"…/…/202.."}]
[null,{"$f":"B42+1","v":3},{"$f":"C42","v":"…/…/202.."},null,null,null,null,null,null,null,null,null,null,null,null,null,null,null,null,null,null,null,null,null,null,null,null,null,null,null,null,null,null,null,null,null,null,null,null,null,null,null,null,null,null,null,null,null,null,null,null,null,null,null,null,null,null,null,null,null,null,null,null,{"$f":"BL42+1","v":7},"…/…/202.."]
[null,4,"…/…/202..",null,null,null,null,null,null,null,null,null,null,null,null,null,null,null,null,null,null,null,null,null,null,null,null,null,null,null,null,null,null,null,null,null,null,null,null,null,null,null,null,null,null,null,null,null,null,null,null,null,null,null,null,null,null,null,null,null,null,null,null,8,"…/…/202.."]
[]
[null,"Öğrenciyle ilgili ders bazında ve genel görüşler….  Alınabilecek tedbirler…"]
[null,"Fetullah Bayır Fen Lisesi",null,null,null,null,null,null,null,null,null,null,null,null,null,null,null,null,null,null,null,null,null,"2022-2023",null,null,null,null,null,null,null,null,null,null,null,"ÖĞRENCİ DANIŞMANLIĞI / ÖĞRENCİ TAKİP FORMU",null,null,null,null,null,null,null,null,null,null,null,null,null,null,null,null,null,null,null,null,null,null,"Öğrencinin Hedefi :"]
[null,"No:",{"$f":"C4","v":1071},"Adı ve Soyadı",null,null,null,null,null,null,{"$f":"K4","v":"Oğuz Kağan BİLGE"},null,null,null,null,null,null,null,null,null,null,null,null,"Sınıf:",null,null,null,{"$f":"AB4","v":"12A"},null,null,null,"Grubu",null,null,null,"Danışman Öğretmen   :",null,null,null,null,null,null,{"$f":"AQ4","v":"…........"}]
[null,"Yönerge :",null,"Bu form her öğrenci için danışman öğretmenimiz tarafından ayrı ayrı doldurulur. Öğrencinin çalıştığı konular, ertesi hafta en geç Salı gününe kadar tarih yazarak kontrol edilir. E: Eksik ; T: Tam ;             yazılır. ",null,null,null,null,null,null,null,null,null,null,null,null,null,null,null,null,null,null,null,null,null,null,null,null,null,null,null,null,null,null,null,null,null,null,null,null,null,null,null,null,null,null,null,null,null,null,null,null,null,null,null,null,null,null,"Öğrenci Takip Sayfa No:"]
[null,null,null,"Okulda yapılan kazanım değerlendirme sınav analizlerini inceler, 1.;2., 3. öncelikli konulara göre öğrenciyi ödevlendirilir. Gerekirse diğer danışmanlarla işbirliği yaparak konuların öğretmenlerce tamamlanma yoluna gidilir."]
[null," TYT MATEMATİK",null,null,null,null,null,null,null,null,null,null,null,null,null,null,null,null,null,null,null,null,null,null,null,null,null,null,null,null,null,null,null,null,null,null," TYT GEOMETRİ"]
[null,1,"…/…/202..",null,null,null,null,null,null,null,null,null,null,null,null,null,null,null,null,null,null,null,null,null,null,null,null,null,null,null,null,null,null,null,null,null,null,null,null,null,null,null,null,null,null,null,null,null,null,null,null,null,null,null,null,null,null,null,null,null,null,null,null,{"$f":"BL51+1","v":1},{"$f":"C52","v":"…/…/202.."}]
[null,{"$f":"B52+1","v":2},"…/…/202..",null,null,null,null,null,null,null,null,null,null,null,null,null,null,null,null,null,null,null,null,null,null,null,null,null,null,null,null,null,null,null,null,null,null,null,null,null,null,null,null,null,null,null,null,null,null,null,null,null,null,null,null,null,null,null,null,null,null,null,null,2,"…/…/202.."]
[null,3,"…/…/202..",null,null,null,null,null,null,null,null,null,null,null,null,null,null,null,null,null,null,null,null,null,null,null,null,null,null,null,null,null,null,null,null,null,null,null,null,null,null,null,null,null,null,null,null,null,null,null,null,null,null,null,null,null,null,null,null,null,null,null,null,3,{"$f":"C54","v":"…/…/202.."}]
[null,{"$f":"B54+1","v":4},{"$f":"C54","v":"…/…/202.."},null,null,null,null,null,null,null,null,null,null,null,null,null,null,null,null,null,null,null,null,null,null,null,null,null,null,null,null,null,null,null,null,null,null,null,null,null,null,null,null,null,null,null,null,null,null,null,null,null,null,null,null,null,null,null,null,null,null,null,null,{"$f":"BL54+1","v":4},{"$f":"C55","v":"…/…/202.."}]
[null,{"$f":"B55+1","v":5},{"$f":"C55","v":"…/…/202.."},null,null,null,null,null,null,null,null,null,null,null,null,null,null,null,null,null,null,null,null,null,null,null,null,null,null,null,null,null,null,null,null,null,null,null,null,null,null,null,null,null,null,null,null,null,null,null,null,null,null,null,null,null,null,null,null,null,null,null,null,{"$f":"BL55+1","v":5},"…/…/202.."]
[null,6,"…/…/202..",null,null,null,null,null,null,null,null,null,null,null,null,null,null,null,null,null,null,null,null,null,null,null,null,null,null,null,null,null,null,null,null,null,null,null,null,null,null,null,null,null,null,null,null,null,null,null,null,null,null,null,null,null,null,null,null,null,null,null,null,6,"…/…/202.."]
[null,7,"…/…/202..",null,null,null,null,null,null,null,null,null,null,null,null,null,null,null,null,null,null,null,null,null,null,null,null,null,null,null,null,null,null,null,null,null,null,null,null,null,null,null,null,null,null,null,null,null,null,null,null,null,null,null,null,null,null,null,null,null,null,null,null,7,"…/…/202.."]
[null,8,"…/…/202..",null,null,null,null,null,null,null,null,null,null,null,null,null,null,null,null,null,null,null,null,null,null,null,null,null,null,null,null,null,null,null,null,null,null,null,null,null,null,null,null,null,null,null,null,null,null,null,null,null,null,null,null,null,null,null,null,null,null,null,null,8,"…/…/202.."]
[null,9,"…/…/202..",null,null,null,null,null,null,null,null,null,null,null,null,null,null,null,null,null,null,null,null,null,null,null,null,null,null,null,null,null,null,null,null,null,null,null,null,null,null,null,null,null,null,null,null,null,null,null,null,null,null,null,null,null,null,null,null,null,null,null,null,9,"…/…/202.."]
[null,10,"…/…/202..",null,null,null,null,null,null,null,null,null,null,null,null,null,null,null,null,null,null,null,null,null,null,null,null,null,null,null,null,null,null,null,null,null,null,null,null,null,null,null,null,null,null,null,null,null,null,null,null,null,null,null,null,null,null,null,null,null,null,null,null,10,"…/…/202.."]
[null,11,"…/…/202..",null,null,null,null,null,null,null,null,null,null,null,null,null,null,null,null,null,null,null,null,null,null,null,null,null,null,null,null,null,null,null,null,null,null,null,null,null,null,null,null,null,null,null,null,null,null,null,null,null,null,null,null,null,null,null,null,null,null,null,null,11,"…/…/202.."]
[null,12,"…/…/202..",null,null,null,null,null,null,null,null,null,null,null,null,null,null,null,null,null,null,null,null,null,null,null,null,null,null,null,null,null,null,null,null,null,null,null,null,null,null,null,null,null,null,null,null,null,null,null,null,null,null,null,null,null,null,null,null,null,null,null,null,12,"…/…/202.."]
[]
[null,null,null,"TYT TÜRKÇE",null,null,null,null,null,null,null,null,null,null,null,null,null,null,null,null,null,null,null,null,null," TYT FİZİK",null,null,null,null,null,null,null,null,null,null,null,null," TYT KİMYA",null,null,null,null,null,null,null,null,null,null,null," TYT BİYOLOJİ"]
[null,1,"…/…/202..",null,null,null,null,null,null,null,null,null,null,null,null,null,null,null,null,null,null,null,null,null,null,null,null,null,null,null,null,null,null,null,null,null,null,null,null,null,null,null,null,null,null,null,null,null,null,null,null,null,null,null,null,null,null,null,null,null,null,null,null,{"$f":"B66","v":1},{"$f":"C66","v":"…/…/202.."}]
[null,{"$f":"B66+1","v":2},{"$f":"C66","v":"…/…/202.."},null,null,null,null,null,null,null,null,null,null,null,null,null,null,null,null,null,null,null,null,null,null,null,null,null,null,null,null,null,null,null,null,null,null,null,null,null,null,null,null,null,null,null,null,null,null,null,null,null,null,null,null,null,null,null,null,null,null,null,null,{"$f":"B67","v":2},"…/…/202.."]
[null,3,"…/…/202..",null,null,null,null,null,null,null,null,null,null,null,null,null,null,null,null,null,null,null,null,null,null,null,null,null,null,null,null,null,null,null,null,null,null,null,null,null,null,null,null,null,null,null,null,null,null,null,null,null,null,null,null,null,null,null,null,null,null,null,null,3,"…/…/202.."]
[null,{"$f":"B68+1","v":4},{"$f":"C68","v":"…/…/202.."},null,null,null,null,null,null,null,null,null,null,null,null,null,null,null,null,null,null,null,null,null,null,null,null,null,null,null,null,null,null,null,null,null,null,null,null,null,null,null,null,null,null,null,null,null,null,null,null,null,null,null,null,null,null,null,null,null,null,null,null,4,"…/…/202.."]
[null,{"$f":"B69+1","v":5},{"$f":"C69","v":"…/…/202.."},null,null,null,null,null,null,null,null,null,null,null,null,null,null,null,null,null,null,null,null,null,null,null,null,null,null,null,null,null,null,null,null,null,null,null,null,null,null,null,null,null,null,null,null,null,null,null,null,null,null,null,null,null,null,null,null,null,null,null,null,5,"…/…/202.."]
[null,6,"…/…/202..",null,null,null,null,null,null,null,null,null,null,null,null,null,null,null,null,null,null,null,null,null,null,null,null,null,null,null,null,null,null,null,null,null,null,null,null,null,null,null,null,null,null,null,null,null,null,null,null,null,null,null,null,null,null,null,null,null,null,null,null,6,"…/…/202.."]
[null,7,"…/…/202..",null,null,null,null,null,null,null,null,null,null,null,null,null,null,null,null,null,null,null,null,null,null,null,null,null,null,null,null,null,null,null,null,null,null,null,null,null,null,null,null,null,null,null,null,null,null,null,null,null,null,null,null,null,null,null,null,null,null,null,null,7,"…/…/202.."]
[null,8,"…/…/202..",null,null,null,null,null,null,null,null,null,null,null,null,null,null,null,null,null,null,null,null,null,null,null,null,null,null,null,null,null,null,null,null,null,null,null,null,null,null,null,null,null,null,null,null,null,null,null,null,null,null,null,null,null,null,null,null,null,null,null,null,8,"…/…/202.."]
[null,9,"…/…/202..",null,null,null,null,null,null,null,null,null,null,null,null,null,null,null,null,null,null,null,null,null,null,null,null,null,null,null,null,null,null,null,null,null,null,null,null,null,null,null,null,null,null,null,null,null,null,null,null,null,null,null,null,null,null,null,null,null,null,null,null,9,"…/…/202.."]
[null,10,"…/…/202..",null,null,null,null,null,null,null,null,null,null,null,null,null,null,null,null,null,null,null,null,null,null,null,null,null,null,null,null,null,null,null,null,null,null,null,null,null,null,null,null,null,null,null,null,null,null,null,null,null,null,null,null,null,null,null,null,null,null,null,null,10,"…/…/202.."]
[null,11,"…/…/202..",null,null,null,null,null,null,null,null,null,null,null,null,null,null,null,null,null,null,null,null,null,null,null,null,null,null,null,null,null,null,null,null,null,null,null,null,null,null,null,null,null,null,null,null,null,null,null,null,null,null,null,null,null,null,null,null,null,null,null,null,11,"…/…/202.."]
[null,12,"…/…/202..",null,null,null,null,null,null,null,null,null,null,null,null,null,null,null,null,null,null,null,null,null,null,null,null,null,null,null,null,null,null,null,null,null,null,null,null,null,null,null,null,null,null,null,null,null,null,null,null,null,null,null,null,null,null,null,null,null,null,null,null,12,"…/…/202.."]
[]
[null,null,null," TYT TARİH",null,null,null,null,null,null,null,null,null,null,null,null,null,null,null,null,null,null,null,null,null," TYT COĞRAFYA",null,null,null,null,null,null,null,null,null,null,null,null,null,null,null,null,null," TYT FELSEFE KONULARI",null,null,null,null,null,null,null,null," TYT DİN KÜLTÜRÜ KONULARI"]
[null,{"$f":"B66","v":1},"…/…/202..",null,null,null,null,null,null,null,null,null,null,null,null,null,null,null,null,null,null,null,null,null,null,null,null,null,null,null,null,null,null,null,null,null,null,null,null,null,null,null,null,null,null,null,null,null,null,null,null,null,null,null,null,null,null,null,null,null,null,null,null,{"$f":"B80","v":1},{"$f":"C80","v":"…/…/202.."}]
[null,{"$f":"B67","v":2},"…/…/202..",null,null,null,null,null,null,null,null,null,null,null,null,null,null,null,null,null,null,null,null,null,null,null,null,null,null,null,null,null,null,null,null,null,null,null,null,null,null,null,null,null,null,null,null,null,null,null,null,null,null,null,null,null,null,null,null,null,null,null,null,{"$f":"B81","v":2},"…/…/202.."]
[null,3,"…/…/202..",null,null,null,null,null,null,null,null,null,null,null,null,null,null,null,null,null,null,null,null,null,null,null,null,null,null,null,null,null,null,null,null,null,null,null,null,null,null,null,null,null,null,null,null,null,null,null,null,null,null,null,null,null,null,null,null,null,null,null,null,3,"…/…/202.."]
[null,4,"…/…/202..",null,null,null,null,null,null,null,null,null,null,null,null,null,null,null,null,null,null,null,null,null,null,null,null,null,null,null,null,null,null,null,null,null,null,null,null,null,null,null,null,null,null,null,null,null,null,null,null,null,null,null,null,null,null,null,null,null,null,null,null,4,"…/…/202.."]
[null,5,"…/…/202..",null,null,null,null,null,null,null,null,null,null,null,null,null,null,null,null,null,null,null,null,null,null,null,null,null,null,null,null,null,null,null,null,null,null,null,null,null,null,null,null,null,null,null,null,null,null,null,null,null,null,null,null,null,null,null,null,null,null,null,null,5,"…/…/202.."]
[null,6,"…/…/202..",null,null,null,null,null,null,null,null,null,null,null,null,null,null,null,null,null,null,null,null,null,null,null,null,null,null,null,null,null,null,null,null,null,null,null,null,null,null,null,null,null,null,null,null,null,null,null,null,null,null,null,null,null,null,null,null,null,null,null,null,6,"…/…/202.."]
[null,null,null,"Genel Görüşler",null,null,null,null,null,null,null,null,null,null,null,null,null,null,null,null,null,null,null,null,null,null,null,null,null,null,null,null,null,null,null,null,null,"Alınabilecek tedbirler/tavsiyeler"]
[null,"1.","…/…/202.."]
[null,"2.","…/…/202.."]
[null,"3.","…/…/202.."]
[null,"4.","…/…/202.."]
[null,"5.","…/…/202.."]
[null,"6.","…/…/202.."]
[null,"7.","…/…/202.."]
[null,"8.","…/…/202.."]
[null,"9.","…/…/202.."]
[null,"10.","…/…/202.."]
[]
[null,"Fetullah Bayır Fen Lisesi",null,null,null,null,null,null,null,null,null,null,null,null,null,null,null,null,null,null,null,null,null,"2022-2023",null,null,null,null,null,null,null,null,null,null,null,"ÖĞRENCİ DANIŞMANLIĞI / ÖĞRENCİ TAKİP FORMU",null,null,null,null,null,null,null,null,null,null,null,null,null,null,null,null,null,null,null,null,null,null,"Öğrencinin Hedefi :"]
[null,"No:",{"$f":"C4","v":1071},"Adı ve Soyadı",null,null,null,null,null,null,{"$f":"K4","v":"Oğuz Kağan BİLGE"},null,null,null,null,null,null,null,null,null,null,null,null,"Sınıf ",null,null,null,{"$f":"AB4","v":"12A"},null,null,null,"Grubu",null,null,null,"Danışman Öğretmen   :",null,null,null,null,null,null,null,null,null,null,null,{"$f":"AQ4","v":"…........"},null,null,null,null,null,null,null,null,null,null,{"$f":"IF(#REF!=\"\",\"\",VLOOKUP(C99,#REF!,29))","v":{"$error":"#REF!"}}]
[null,"Yönerge :",null,"Bu form her öğrenci için danışman öğretmenimiz tarafından ayrı ayrı doldurulur. Öğrencinin çalıştığı konular, ertesi hafta en geç Salı gününe kadar tarih yazarak kontrol edilir. E(-): Eksik ; T(+): Tam ;  yazılır. ",null,null,null,null,null,null,null,null,null,null,null,null,null,null,null,null,null,null,null,null,null,null,null,null,null,null,null,null,null,null,null,null,null,null,null,null,null,null,null,null,null,null,null,null,null,null,null,null,null,null,null,null,null,null,"Öğrenci Takip Sayfa No:",null,null,null,null,null,{"$f":"VLOOKUP(C99,#REF!,30)","v":{"$error":"#REF!"}}]
[null,null,null,"Okulda yapılan kazanım değerlendirme sınav analizlerini inceler, 1.;2., 3. öncelikli konulara göre öğrenciyi ödevlendirilir. Gerekirse diğer danışmanlarla işbirliği yaparak konuların öğretmenlerce tamamlanma yoluna gidilir."]
[null,"Ders",null,"AYT MATEMATİK",null,null,null,null,null,null,null,null,null,null,null,null,null,null,null,null,null,null,null,null,null,null,null,null,null,null,null,null,null,null,null,null,"AYT GEOMETRİ",null,null,null,null,null,null,null,null,null,null,null,null,null,null,null,null,null,null,null,null,null,null,null,null,null,null,"Ders"]
[null,"Kontrol Tarihi",null,1,2,3,4,5,6,7,8,9,10,11,12,13,14,15,16,17,18,19,20,21,22,23,24,25,26,27,28,29,30,31,null,null,1,2,3,4,5,6,7,8,9,10,11,12,13,14,15,16,17,18,19,20,21,22,23,24,25,26,27,"Kontrol Tarihi"]
[null,"AYT",null,"Temel Kavramlar","Sayı Basamakları","Bölme ve Bölünebilme","EBOB – EKOK","Rasyonel Sayılar","Basit Eşitsizlikler","Mutlak Değer","Üslü Sayılar","Köklü Sayılar","Çarpanlara Ayırma","Oran Orantı","Denklem Çözme","Problemler","Kümeler","Kartezyen Çarpım","Mantık","Fonskiyonlar","Polinomlar","2.Dereceden Denklemler","Permütasyon ve Kombinasyon","Binom ve Olasılık","İstatistik","Karmaşık Sayılar","2.Dereceden Eşitsizlikler","Parabol","Trigonometri","Logaritma","Diziler","Limit","Türev","İntegral",null,null,"Doğruda ve Üçgende Açılar","Dik ve Özel Üçgenler","Dik Üçgende Trigonemetrik Bağıntılar","İkizkenar ve Eşkenar Üçgen","Üçgende Alanlar","Üçgende Açıortay Bağıntıları","Üçgende Kenarortay Bağıntıları","Üçgende Eşlik ve Benzerlik","Üçgende Açı-Kenar Bağıntıları","Çokgenler","Dörtgenler","Yamuk","Paralelkenar","Eşkenar Dörtgen – Deltoid","Dikdörtgen","Çemberde Açılar","Çemberde Uzunluk","Daire","Prizmalar","Piramitler","Küre","Koordinat Düzlemi ve Noktanın Analitiği","Doğrunun Analitiği","Tekrar Eden, Dönen ve Yansıyan Şekiller","Dönüşümlerle Geometri","Trigonometri","Çemberin Analitiği","AYT"]
[null,"Konu Eksiği var mı?",null,null,null,null,null,null,null,null,null,null,null,null,null,null,null,null,null,null,null,null,null,null,null,null,null,null,null,null,null,null,null,null,null,null,null,null,null,null,null,null,null,null,null,null,null,null,null,null,null,null,null,null,null,null,null,null,null,null,null,null,null,"Bu bölüme eksik varsa (-); yoksa (+) yaz.."]
[null,1,"…/…/202..",null,null,null,null,null,null,null,null,null,null,null,null,null,null,null,null,null,null,null,null,null,null,null,null,null,null,null,null,null,null,null,null,null,null,null,null,null,null,null,null,null,null,null,null,null,null,null,null,null,null,null,null,null,null,null,null,null,null,null,null,{"$f":"B106","v":1},{"$f":"C106","v":"…/…/202.."}]
[null,{"$f":"B106+1","v":2},{"$f":"C106","v":"…/…/202.."},null,null,null,null,null,null,null,null,null,null,null,null,null,null,null,null,null,null,null,null,null,null,null,null,null,null,null,null,null,null,null,null,null,null,null,null,null,null,null,null,null,null,null,null,null,null,null,null,null,null,null,null,null,null,null,null,null,null,null,null,{"$f":"B107","v":2},"…/…/202.."]
[null,{"$f":"B107+1","v":3},{"$f":"C107","v":"…/…/202.."},null,null,null,null,null,null,null,null,null,null,null,null,null,null,null,null,null,null,null,null,null,null,null,null,null,null,null,null,null,null,null,null,null,null,null,null,null,null,null,null,null,null,null,null,null,null,null,null,null,null,null,null,null,null,null,null,null,null,null,null,3,"…/…/202.."]
[null,4,"…/…/202..",null,null,null,null,null,null,null,null,null,null,null,null,null,null,null,null,null,null,null,null,null,null,null,null,null,null,null,null,null,null,null,null,null,null,null,null,null,null,null,null,null,null,null,null,null,null,null,null,null,null,null,null,null,null,null,null,null,null,null,null,4,"…/…/202.."]
[null,5,"…/…/202..",null,null,null,null,null,null,null,null,null,null,null,null,null,null,null,null,null,null,null,null,null,null,null,null,null,null,null,null,null,null,null,null,null,null,null,null,null,null,null,null,null,null,null,null,null,null,null,null,null,null,null,null,null,null,null,null,null,null,null,null,5,"…/…/202.."]
[null,6,"…/…/202..",null,null,null,null,null,null,null,null,null,null,null,null,null,null,null,null,null,null,null,null,null,null,null,null,null,null,null,null,null,null,null,null,null,null,null,null,null,null,null,null,null,null,null,null,null,null,null,null,null,null,null,null,null,null,null,null,null,null,null,null,6,"…/…/202.."]
[null,7,"…/…/202..",null,null,null,null,null,null,null,null,null,null,null,null,null,null,null,null,null,null,null,null,null,null,null,null,null,null,null,null,null,null,null,null,null,null,null,null,null,null,null,null,null,null,null,null,null,null,null,null,null,null,null,null,null,null,null,null,null,null,null,null,7,"…/…/202.."]
[null,8,"…/…/202..",null,null,null,null,null,null,null,null,null,null,null,null,null,null,null,null,null,null,null,null,null,null,null,null,null,null,null,null,null,null,null,null,null,null,null,null,null,null,null,null,null,null,null,null,null,null,null,null,null,null,null,null,null,null,null,null,null,null,null,null,8,"…/…/202.."]
[null,9,"…/…/202..",null,null,null,null,null,null,null,null,null,null,null,null,null,null,null,null,null,null,null,null,null,null,null,null,null,null,null,null,null,null,null,null,null,null,null,null,null,null,null,null,null,null,null,null,null,null,null,null,null,null,null,null,null,null,null,null,null,null,null,null,9,"…/…/202.."]
[null,10,"…/…/202..",null,null,null,null,null,null,null,null,null,null,null,null,null,null,null,null,null,null,null,null,null,null,null,null,null,null,null,null,null,null,null,null,null,null,null,null,null,null,null,null,null,null,null,null,null,null,null,null,null,null,null,null,null,null,null,null,null,null,null,null,10,"…/…/202.."]
[]
[null,"Ders",null,"AYT FİZİK",null,null,null,null,null,null,null,null,null,null,null,null,null,null,null,null,null,null,null,null,null,null,null,null,null,"AYT KİMYA",null,null,null,null,null,null,null,null,null,null,null,null,"AYT BİYOLOJİ",null,null,null,null,null,null,null,null,null,null,null,null,null,null,null,null,null,null,null,null,"Ders"]
[null,"Kontrol Tarihi",null,1,2,3,4,5,6,7,8,9,10,11,12,13,14,15,16,17,18,19,20,21,null,null,null,null,null,1,2,3,4,5,6,7,8,9,null,null,null,null,1,2,3,4,5,6,7,8,9,10,11,12,13,14,15,16,17,null,null,null,null,"Kontrol Tarihi"]
[null,"AYT",null,"Vektörler","Kuvvet, Tork ve Denge","Kütle Merkezi","Basit Makineler","Hareket","Newton’un Hareket Yasaları","İş, Güç ve Enerji II","Atışlar","İtme ve Momentum","Elektrik Alan ve Potansiyel","Paralel Levhalar ve Sığa","Manyetik Alan ve Manyetik Kuvvet","İndüksiyon, Alternatif Akım ve Transformatörler","Çembersel Hareket","Kütle Çekim ve Kepler Yasaları","Basit Harmonik Hareket","Dalga Mekaniği ve Elektromanyetik Dalgalar","Atom Modelleri","Büyük Patlama ve Radyoaktivite","Modern Fizik","Modern Fiziğin Teknolojideki Uygulamaları",null,null,null,null,null,"Modern Atom Teorisi","Gazlar","Sıvı Çözeltiler ve Çözünürlük","Kimyasal Tepkimelerde Enerji","Tepkimelerde Hız ve Denge","Kimya ve Elektrik","Karbon Kimyası","Organik Kimya","Enerji Kaynakları ve Bilimsel Gelişmeler",null,null,null,null,"Sinir Sistemi","Endokrin Sistem","Duyu Organları","Destek ve Hareket Sistemi","Sindirim Sistemi","Dolaşım ve Bağışıklık Sistemi","Solunum Sistemi","Üriner Sistem","Üreme Sistemi ve Embriyonik Gelişim","Komünite ve Popülasyon Ekolojisi","Nükleik Asitler","Genetik Şifre ve Protein Sentezi","Canlılık ve Enerji","Fotosentez ve Kemosentez","Hücresel Solunum","Bitki Biyolojisi","Canlılar ve Çevre",null,null,null,null,"AYT"]
[null,"Konu Eksiği var mı?",null,null,null,null,null,null,null,null,null,null,null,null,null,null,null,null,null,null,null,null,null,null,null,null,null,null,null,null,null,null,null,null,null,null,null,null,null,null,null,null,null,null,null,null,null,null,null,null,null,null,null,null,null,null,null,null,null,null,null,null,null,"Bu bölüme eksik varsa (-); yoksa (+) yaz.."]
[null,1,"…/…/202..",null,null,null,null,null,null,null,null,null,null,null,null,null,null,null,null,null,null,null,null,null,null,null,null,null,null,null,null,null,null,null,null,null,null,null,null,null,null,null,null,null,null,null,null,null,null,null,null,null,null,null,null,null,null,null,null,null,null,null,null,{"$f":"B121","v":1},{"$f":"C121","v":"…/…/202.."}]
[null,{"$f":"B121+1","v":2},{"$f":"C121","v":"…/…/202.."},null,null,null,null,null,null,null,null,null,null,null,null,null,null,null,null,null,null,null,null,null,null,null,null,null,null,null,null,null,null,null,null,null,null,null,null,null,null,null,null,null,null,null,null,null,null,null,null,null,null,null,null,null,null,null,null,null,null,null,null,{"$f":"B122","v":2},"…/…/202.."]
[null,{"$f":"B122+1","v":3},{"$f":"C122","v":"…/…/202.."},null,null,null,null,null,null,null,null,null,null,null,null,null,null,null,null,null,null,null,null,null,null,null,null,null,null,null,null,null,null,null,null,null,null,null,null,null,null,null,null,null,null,null,null,null,null,null,null,null,null,null,null,null,null,null,null,null,null,null,null,3,"…/…/202.."]
[null,4,"…/…/202..",null,null,null,null,null,null,null,null,null,null,null,null,null,null,null,null,null,null,null,null,null,null,null,null,null,null,null,null,null,null,null,null,null,null,null,null,null,null,null,null,null,null,null,null,null,null,null,null,null,null,null,null,null,null,null,null,null,null,null,null,4,"…/…/202.."]
[null,5,"…/…/202..",null,null,null,null,null,null,null,null,null,null,null,null,null,null,null,null,null,null,null,null,null,null,null,null,null,null,null,null,null,null,null,null,null,null,null,null,null,null,null,null,null,null,null,null,null,null,null,null,null,null,null,null,null,null,null,null,null,null,null,null,5,"…/…/202.."]
[null,6,"…/…/202..",null,null,null,null,null,null,null,null,null,null,null,null,null,null,null,null,null,null,null,null,null,null,null,null,null,null,null,null,null,null,null,null,null,null,null,null,null,null,null,null,null,null,null,null,null,null,null,null,null,null,null,null,null,null,null,null,null,null,null,null,6,"…/…/202.."]
[null,7,"…/…/202..",null,null,null,null,null,null,null,null,null,null,null,null,null,null,null,null,null,null,null,null,null,null,null,null,null,null,null,null,null,null,null,null,null,null,null,null,null,null,null,null,null,null,null,null,null,null,null,null,null,null,null,null,null,null,null,null,null,null,null,null,7,"…/…/202.."]
[null,8,"…/…/202..",null,null,null,null,null,null,null,null,null,null,null,null,null,null,null,null,null,null,null,null,null,null,null,null,null,null,null,null,null,null,null,null,null,null,null,null,null,null,null,null,null,null,null,null,null,null,null,null,null,null,null,null,null,null,null,null,null,null,null,null,8,"…/…/202.."]
[null,9,"…/…/202..",null,null,null,null,null,null,null,null,null,null,null,null,null,null,null,null,null,null,null,null,null,null,null,null,null,null,null,null,null,null,null,null,null,null,null,null,null,null,null,null,null,null,null,null,null,null,null,null,null,null,null,null,null,null,null,null,null,null,null,null,9,"…/…/202.."]
[null,10,"…/…/202..",null,null,null,null,null,null,null,null,null,null,null,null,null,null,null,null,null,null,null,null,null,null,null,null,null,null,null,null,null,null,null,null,null,null,null,null,null,null,null,null,null,null,null,null,null,null,null,null,null,null,null,null,null,null,null,null,null,null,null,null,10,"…/…/202.."]
[]
[]
[null,"Fetullah Bayır Fen Lisesi",null,null,null,null,null,null,null,null,null,null,null,null,null,null,null,null,null,null,null,null,null,"2022-2023",null,null,null,null,null,null,null,null,null,null,null,"ÖĞRENCİ DANIŞMANLIĞI / ÖĞRENCİ TAKİP FORMU",null,null,null,null,null,null,null,null,null,null,null,null,null,null,null,null,null,null,null,null,null,null,"Öğrencinin Hedefi :"]
[null,"No:",{"$f":"C99","v":1071},"Adı ve Soyadı",null,null,null,null,null,null,{"$f":"K99","v":"Oğuz Kağan BİLGE"},null,null,null,null,null,null,null,null,null,null,null,null,"Sınıf ",null,null,null,{"$f":"AB99","v":"12A"},null,null,null,"Grubu",null,null,null,"Danışman Öğretmen   :",null,null,null,null,null,null,null,null,null,null,null,{"$f":"VLOOKUP(C134,#REF!,16)","v":{"$error":"#REF!"}},null,null,null,null,null,null,null,null,null,null,{"$f":"BG99","v":{"$error":"#REF!"}}]
[null,"Ders",null,"AYT MATEMATİK",null,null,null,null,null,null,null,null,null,null,null,null,null,null,null,null,null,null,null,null,null,null,null,null,null,null,null,null,null,null,null,null,"AYT GEOMETRİ",null,null,null,null,null,null,null,null,null,null,null,null,null,null,null,null,null,null,null,null,null,null,null,null,null,null,{"$f":"BM100","v":{"$error":"#REF!"}}]
[null,null,null,1,2,3,4,5,6,7,8,9,10,11,12,13,14,15,16,17,18,19,20,21,22,23,24,25,26,27,28,29,30,31,null,null,1,2,3,4,5,6,7,8,9,10,11,12,13,14,15,16,17,18,19,20,21,22,23,24,25,26,27,"Kontrol Tarihi"]
[null,1,"…/…/202..",null,null,null,null,null,null,null,null,null,null,null,null,null,null,null,null,null,null,null,null,null,null,null,null,null,null,null,null,null,null,null,null,null,null,null,null,null,null,null,null,null,null,null,null,null,null,null,null,null,null,null,null,null,null,null,null,null,null,null,null,{"$f":"B137","v":1},{"$f":"C137","v":"…/…/202.."}]
[null,{"$f":"B137+1","v":2},{"$f":"C137","v":"…/…/202.."},null,null,null,null,null,null,null,null,null,null,null,null,null,null,null,null,null,null,null,null,null,null,null,null,null,null,null,null,null,null,null,null,null,null,null,null,null,null,null,null,null,null,null,null,null,null,null,null,null,null,null,null,null,null,null,null,null,null,null,null,{"$f":"B138","v":2},"…/…/202.."]
[null,{"$f":"B138+1","v":3},{"$f":"C138","v":"…/…/202.."},null,null,null,null,null,null,null,null,null,null,null,null,null,null,null,null,null,null,null,null,null,null,null,null,null,null,null,null,null,null,null,null,null,null,null,null,null,null,null,null,null,null,null,null,null,null,null,null,null,null,null,null,null,null,null,null,null,null,null,null,3,"…/…/202.."]
[null,4,"…/…/202..",null,null,null,null,null,null,null,null,null,null,null,null,null,null,null,null,null,null,null,null,null,null,null,null,null,null,null,null,null,null,null,null,null,null,null,null,null,null,null,null,null,null,null,null,null,null,null,null,null,null,null,null,null,null,null,null,null,null,null,null,4,"…/…/202.."]
[null,5,"…/…/202..",null,null,null,null,null,null,null,null,null,null,null,null,null,null,null,null,null,null,null,null,null,null,null,null,null,null,null,null,null,null,null,null,null,null,null,null,null,null,null,null,null,null,null,null,null,null,null,null,null,null,null,null,null,null,null,null,null,null,null,null,5,"…/…/202.."]
[null,6,"…/…/202..",null,null,null,null,null,null,null,null,null,null,null,null,null,null,null,null,null,null,null,null,null,null,null,null,null,null,null,null,null,null,null,null,null,null,null,null,null,null,null,null,null,null,null,null,null,null,null,null,null,null,null,null,null,null,null,null,null,null,null,null,6,"…/…/202.."]
[null,7,"…/…/202..",null,null,null,null,null,null,null,null,null,null,null,null,null,null,null,null,null,null,null,null,null,null,null,null,null,null,null,null,null,null,null,null,null,null,null,null,null,null,null,null,null,null,null,null,null,null,null,null,null,null,null,null,null,null,null,null,null,null,null,null,7,"…/…/202.."]
[null,8,"…/…/202..",null,null,null,null,null,null,null,null,null,null,null,null,null,null,null,null,null,null,null,null,null,null,null,null,null,null,null,null,null,null,null,null,null,null,null,null,null,null,null,null,null,null,null,null,null,null,null,null,null,null,null,null,null,null,null,null,null,null,null,null,8,"…/…/202.."]
[null,9,"…/…/202..",null,null,null,null,null,null,null,null,null,null,null,null,null,null,null,null,null,null,null,null,null,null,null,null,null,null,null,null,null,null,null,null,null,null,null,null,null,null,null,null,null,null,null,null,null,null,null,null,null,null,null,null,null,null,null,null,null,null,null,null,9,"…/…/202.."]
[null,10,"…/…/202..",null,null,null,null,null,null,null,null,null,null,null,null,null,null,null,null,null,null,null,null,null,null,null,null,null,null,null,null,null,null,null,null,null,null,null,null,null,null,null,null,null,null,null,null,null,null,null,null,null,null,null,null,null,null,null,null,null,null,null,null,10,"…/…/202.."]
[null,"Ders",null,"AYT FİZİK",null,null,null,null,null,null,null,null,null,null,null,null,null,null,null,null,null,null,null,null,"AYT KİMYA",null,null,null,null,null,null,null,null,null,null,null,null,null,null,null,null,null,"AYT BİYOLOJİ",null,null,null,null,null,null,null,null,null,null,null,null,null,null,null,null,null,null,null,null,"Ders"]
[null,"Kontrol Tarihi",null,null,null,null,null,null,null,null,null,null,null,null,null,null,null,null,null,null,null,null,null,null,null,null,null,null,null,null,null,null,null,null,null,null,null,null,null,null,null,null,null,null,null,null,null,null,null,null,null,null,null,null,null,null,null,null,null,null,null,null,null,"Kontrol Tarihi"]
[null,1,"…/…/202..",null,null,null,null,null,null,null,null,null,null,null,null,null,null,null,null,null,null,null,null,null,null,null,null,null,null,null,null,null,null,null,null,null,null,null,null,null,null,null,null,null,null,null,null,null,null,null,null,null,null,null,null,null,null,null,null,null,null,null,null,{"$f":"B149","v":1},{"$f":"C149","v":"…/…/202.."}]
[null,{"$f":"B149+1","v":2},{"$f":"C149","v":"…/…/202.."},null,null,null,null,null,null,null,null,null,null,null,null,null,null,null,null,null,null,null,null,null,null,null,null,null,null,null,null,null,null,null,null,null,null,null,null,null,null,null,null,null,null,null,null,null,null,null,null,null,null,null,null,null,null,null,null,null,null,null,null,{"$f":"B150","v":2},"…/…/202.."]
[null,{"$f":"B150+1","v":3},{"$f":"C150","v":"…/…/202.."},null,null,null,null,null,null,null,null,null,null,null,null,null,null,null,null,null,null,null,null,null,null,null,null,null,null,null,null,null,null,null,null,null,null,null,null,null,null,null,null,null,null,null,null,null,null,null,null,null,null,null,null,null,null,null,null,null,null,null,null,3,"…/…/202.."]
[null,4,"…/…/202..",null,null,null,null,null,null,null,null,null,null,null,null,null,null,null,null,null,null,null,null,null,null,null,null,null,null,null,null,null,null,null,null,null,null,null,null,null,null,null,null,null,null,null,null,null,null,null,null,null,null,null,null,null,null,null,null,null,null,null,null,4,"…/…/202.."]
[null,5,"…/…/202..",null,null,null,null,null,null,null,null,null,null,null,null,null,null,null,null,null,null,null,null,null,null,null,null,null,null,null,null,null,null,null,null,null,null,null,null,null,null,null,null,null,null,null,null,null,null,null,null,null,null,null,null,null,null,null,null,null,null,null,null,5,"…/…/202.."]
[null,6,"…/…/202..",null,null,null,null,null,null,null,null,null,null,null,null,null,null,null,null,null,null,null,null,null,null,null,null,null,null,null,null,null,null,null,null,null,null,null,null,null,null,null,null,null,null,null,null,null,null,null,null,null,null,null,null,null,null,null,null,null,null,null,null,6,"…/…/202.."]
[null,7,"…/…/202..",null,null,null,null,null,null,null,null,null,null,null,null,null,null,null,null,null,null,null,null,null,null,null,null,null,null,null,null,null,null,null,null,null,null,null,null,null,null,null,null,null,null,null,null,null,null,null,null,null,null,null,null,null,null,null,null,null,null,null,null,7,"…/…/202.."]
[null,8,"…/…/202..",null,null,null,null,null,null,null,null,null,null,null,null,null,null,null,null,null,null,null,null,null,null,null,null,null,null,null,null,null,null,null,null,null,null,null,null,null,null,null,null,null,null,null,null,null,null,null,null,null,null,null,null,null,null,null,null,null,null,null,null,8,"…/…/202.."]
[null,9,"…/…/202..",null,null,null,null,null,null,null,null,null,null,null,null,null,null,null,null,null,null,null,null,null,null,null,null,null,null,null,null,null,null,null,null,null,null,null,null,null,null,null,null,null,null,null,null,null,null,null,null,null,null,null,null,null,null,null,null,null,null,null,null,9,"…/…/202.."]
[null,10,"…/…/202..",null,null,null,null,null,null,null,null,null,null,null,null,null,null,null,null,null,null,null,null,null,null,null,null,null,null,null,null,null,null,null,null,null,null,null,null,null,null,null,null,null,null,null,null,null,null,null,null,null,null,null,null,null,null,null,null,null,null,null,null,10,"…/…/202.."]
[null,null,null,"Genel Görüşler",null,null,null,null,null,null,null,null,null,null,null,null,null,null,null,null,null,null,null,null,null,null,null,null,null,null,null,null,null,null,null,null,null,"Alınabilecek tedbirler/tavsiyeler"]
[null,"1.","…/…/202.."]
[null,"2.","…/…/202.."]
[null,"3.","…/…/202.."]
[null,"4.","…/…/202.."]
[null,"5.","…/…/202.."]
[null,"6.","…/…/202.."]
[null,"7.","…/…/202.."]
[null,"8.","…/…/202.."]
[null,"9.","…/…/202.."]
[null,"10.","…/…/202.."]

{"sheet":"Form12","index":16,"n_rows":169,"n_cols":65,"rows_kept":169,"cut":false,"hidden":true,"merged":[[84,43,84,50],[80,52,80,62],[81,52,81,62],[82,52,82,62],[83,52,83,62],[84,52,84,62],[84,3,84,23],[81,25,81,41],[80,25,80,41],[82,25,82,41],[83,25,83,41],[84,25,84,41],[83,3,83,23],[80,43,80,50],[81,43,81,50],[82,43,82,50],[83,43,83,50],[86,37,86,64],[87,37,87,64],[85,3,85,36],[86,3,86,36],[87,3,87,36],[85,1,85,2],[91,37,91,64],[92,37,92,64],[93,37,93,64],[85,37,85,64],[94,37,94,64],[95,37,95,64],[91,3,91,36],[88,37,88,64],[89,37,89,64],[90,37,90,64],[88,3,88,36],[89,3,89,36],[90,3,90,36],[92,3,92,36],[93,3,93,36],[94,3,94,36],[95,3,95,36],[65,3,65,23],[65,25,65,36],[65,38,65,48],[65,50,65,62],[75,3,75,23],[75,25,75,36],[75,38,75,48],[75,50,75,62],[76,3,76,23],[76,25,76,36],[76,38,76,48],[76,50,76,62],[73,3,73,23],[79,3,79,23],[79,25,79,41],[79,43,79,50],[79,52,79,62],[78,52,78,62],[73,25,73,36],[71,50,71,62],[72,3,72,23],[72,25,72,36],[72,38,72,48],[72,50,72,62],[45,1,45,64],[81,3,81,23],[80,3,80,23],[82,3,82,23],[64,50,64,62],[51,3,51,35],[51,36,51,62],[50,36,50,64],[50,1,50,35],[73,38,73,48],[73,50,73,62],[67,3,67,23],[66,3,66,23],[67,25,67,36],[66,25,66,36],[67,38,67,48],[66,38,66,48],[67,50,67,62],[66,50,66,62],[61,3,61,35],[62,3,62,35],[64,1,64,2],[64,3,64,23],[64,25,64,36],[64,38,64,48],[64,63,64,64],[52,3,52,35],[53,3,53,35],[54,3,54,35],[55,3,55,35],[56,3,56,35],[57,3,57,35],[58,3,58,35],[59,3,59,35],[60,3,60,35],[61,36,61,62],[62,36,62,62],[52,36,52,62],[54,36,54,62],[55,36,55,62],[56,36,56,62],[57,36,57,62],[58,36,58,62],[59,36,59,62],[60,36,60,62],[78,1,78,2],[78,3,78,23],[78,25,78,41],[78,43,78,50],[78,63,78,64],[68,3,68,23],[68,25,68,36],[68,38,68,48],[68,50,68,62],[69,3,69,23],[69,25,69,36],[69,38,69,48],[69,50,69,62],[70,3,70,23],[70,25,70,36],[70,38,70,48],[70,50,70,62],[74,3,74,23],[74,25,74,36],[74,38,74,48],[74,50,74,62],[71,3,71,23],[71,25,71,36],[71,38,71,48],[48,1,49,2],[48,3,48,57],[48,58,49,63],[53,36,53,62],[48,64,49,64],[49,3,49,57],[46,1,46,22],[46,23,46,34],[46,35,46,57],[46,58,46,64],[47,3,47,9],[47,10,47,22],[47,23,47,26],[47,27,47,30],[47,31,47,34],[47,35,47,41],[47,42,47,57],[47,58,47,64],[4,58,5,63],[4,64,5,64],[4,1,5,2],[4,3,4,57],[5,3,5,57],[2,23,2,34],[2,35,2,57],[3,42,3,57],[2,58,2,64],[3,58,3,64],[3,35,3,41],[3,27,3,30],[3,10,3,22],[23,1,23,2],[23,63,23,64],[38,1,38,2],[38,63,38,64],[36,3,36,23],[36,25,36,41],[36,43,36,50],[36,52,36,61],[36,63,36,64],[37,1,37,2],[37,63,37,64],[36,1,36,2],[24,1,24,2],[22,3,22,6],[8,1,8,2],[8,63,8,64],[21,1,21,2],[21,63,21,64],[21,3,21,23],[6,1,6,2],[6,36,6,62],[6,63,6,64],[7,1,7,2],[7,63,7,64],[21,25,21,36],[21,38,21,48],[21,50,21,61],[22,25,22,26],[22,38,22,39],[22,50,22,51],[22,1,22,2],[22,63,22,64],[9,1,9,2],[0,36,0,39],[0,12,0,23],[3,23,3,26],[0,28,0,31],[3,3,3,9],[3,31,3,34],[2,1,2,22],[6,3,6,31],[7,3,7,6],[7,36,7,39],[97,1,97,22],[97,23,97,34],[97,35,97,57],[97,58,97,64],[98,3,98,9],[98,10,98,22],[98,23,98,26],[98,27,98,30],[98,31,98,34],[98,35,98,46],[98,47,98,57],[98,58,98,64],[99,1,100,2],[99,3,99,57],[99,58,100,63],[99,64,100,64],[100,3,100,57],[101,1,101,2],[101,3,101,34],[101,36,101,62],[101,63,101,64],[102,1,102,2],[102,63,102,64],[103,1,103,2],[103,63,103,64],[104,1,104,2],[104,63,104,64],[116,1,116,2],[116,3,116,27],[116,29,116,37],[116,63,116,64],[117,1,117,2],[117,63,117,64],[118,1,118,2],[118,63,118,64],[119,1,119,2],[119,63,119,64],[132,1,132,22],[132,23,132,34],[132,35,132,57],[132,58,132,64],[133,3,133,9],[133,10,133,22],[133,23,133,26],[133,27,133,30],[133,31,133,34],[133,35,133,46],[133,47,133,57],[133,58,133,64],[134,1,134,2],[134,3,134,34],[134,36,134,62],[134,63,134,64],[135,1,135,2],[135,63,135,64],[136,3,136,35],[136,36,136,62],[137,3,137,35],[137,36,137,62],[138,3,138,35],[138,36,138,62],[139,3,139,35],[139,36,139,62],[140,3,140,35],[140,36,140,62],[141,3,141,35],[141,36,141,62],[142,3,142,35],[142,36,142,62],[143,3,143,35],[143,36,143,62],[144,3,144,35],[144,36,144,62],[145,3,145,35],[145,36,145,62],[146,1,146,2],[146,3,146,23],[146,24,146,41],[146,42,146,62],[146,63,146,64],[147,1,147,2],[147,3,147,23],[147,24,147,41],[147,42,147,62],[147,63,147,64],[148,3,148,23],[148,24,148,41],[148,42,148,62],[149,3,149,23],[149,24,149,41],[149,42,149,62],[150,3,150,23],[150,24,150,41],[150,42,150,62],[151,3,151,23],[151,24,151,41],[151,42,151,62],[152,3,152,23],[152,24,152,41],[152,42,152,62],[153,3,153,23],[153,24,153,41],[153,42,153,62],[159,37,159,64],[160,3,160,36],[160,37,160,64],[154,3,154,23],[154,24,154,41],[154,42,154,62],[155,3,155,23],[155,24,155,41],[155,42,155,62],[156,3,156,23],[156,24,156,41],[156,42,156,62],[39,1,39,2],[166,3,166,36],[166,37,166,64],[167,3,167,36],[167,37,167,64],[168,3,168,36],[168,37,168,64],[161,3,161,36],[161,37,161,64],[162,3,162,36],[162,37,162,64],[163,3,163,36],[163,37,163,64],[164,3,164,36],[164,37,164,64],[165,3,165,36],[165,37,165,64],[157,3,157,23],[157,24,157,41],[157,42,157,62],[158,1,158,2],[158,3,158,36],[158,37,158,64],[159,3,159,36]]}
[]
[null,null,null,null,null,null,null,null,null,null,1,{"$f":"K2+1","v":2},{"$f":"L2+1","v":3},4,5,6,7,8,9,10,11,12,13,{"$f":"W2+1","v":14},{"$f":"X2+1","v":15},{"$f":"Y2+1","v":16},{"$f":"Z2+1","v":17},{"$f":"AA2+1","v":18},{"$f":"AB2+1","v":19},{"$f":"AC2+1","v":20},{"$f":"AD2+1","v":21},{"$f":"AE2+1","v":22},{"$f":"AF2+1","v":23},{"$f":"AG2+1","v":24},{"$f":"AH2+1","v":25},{"$f":"AI2+1","v":26},{"$f":"AJ2+1","v":27},{"$f":"AK2+1","v":28},{"$f":"AL2+1","v":29},{"$f":"AM2+1","v":30},{"$f":"AN2+1","v":31},{"$f":"AO2+1","v":32},{"$f":"AP2+1","v":33},{"$f":"AQ2+1","v":34},{"$f":"AR2+1","v":35},{"$f":"AS2+1","v":36},{"$f":"AT2+1","v":37},{"$f":"AU2+1","v":38},{"$f":"AV2+1","v":39},{"$f":"AW2+1","v":40},{"$f":"AX2+1","v":41},{"$f":"AY2+1","v":42},{"$f":"AZ2+1","v":43},{"$f":"BA2+1","v":44},{"$f":"BB2+1","v":45},{"$f":"BC2+1","v":46},{"$f":"BD2+1","v":47},{"$f":"BE2+1","v":48},{"$f":"BF2+1","v":49},{"$f":"BG2+1","v":50},{"$f":"BH2+1","v":51},{"$f":"BI2+1","v":52},{"$f":"BJ2+1","v":53}]
[null,{"$f":"'Giriş ve Ön Plânlama'!C2","v":"Fetullah Bayır Fen Lisesi (KONYA/BEYŞEHİR)"},null,null,null,null,null,null,null,null,null,null,null,null,null,null,null,null,null,null,null,null,null,{"$f":"'Giriş ve Ön Plânlama'!C3","v":"2024-2025"},null,null,null,null,null,null,null,null,null,null,null,"ÖĞRENCİ DANIŞMANLIĞI / ÖĞRENCİ TAKİP FORMU",null,null,null,null,null,null,null,null,null,null,null,null,null,null,null,null,null,null,null,null,null,null,"Öğrencinin Hedefi :"]
[null,"No:",{"$f":"'Giriş ve Ön Plânlama'!C9","v":1071},"Adı ve Soyadı",null,null,null,null,null,null,{"$f":"'Giriş ve Ön Plânlama'!C7","v":"Oğuz Kağan BİLGE"},null,null,null,null,null,null,null,null,null,null,null,null,"Sınıf ",null,null,null,{"$f":"'Giriş ve Ön Plânlama'!C8","v":"12A"},null,null,null,"Grubu",null,null,null,"Danışman Öğretmen   :",null,null,null,null,null,null,{"$f":"'Giriş ve Ön Plânlama'!C10","v":"…........"},null,null,null,null,null,null,null,null,null,null,null,null,null,null,null,{"$f":"'Giriş ve Ön Plânlama'!C12","v":"Yazılım Mühendisliği"}]
[null,"Yönerge :",null,"Bu form her öğrenci için danışman öğretmenimiz tarafından ayrı ayrı doldurulur. Öğrencinin çalıştığı konular, ertesi hafta en geç Salı gününe kadar tarih yazarak kontrol edilir. E: Eksik ; T: Tam ;             yazılır. ",null,null,null,null,null,null,null,null,null,null,null,null,null,null,null,null,null,null,null,null,null,null,null,null,null,null,null,null,null,null,null,null,null,null,null,null,null,null,null,null,null,null,null,null,null,null,null,null,null,null,null,null,null,null,"Öğrenci Prog Başl. Tarihi:",null,null,null,null,null,{"$f":"'Giriş ve Ön Plânlama'!C4","v":"2025-01-01"}]
[null,null,null,"Okulda yapılan kazanım değerlendirme sınav analizlerini inceler, 1.;2., 3. öncelikli konulara göre öğrenciyi ödevlendirilir. Gerekirse diğer danışmanlarla işbirliği yaparak konuların öğretmenlerce tamamlanma yoluna gidilir."]
[null,"Ders",null," TYT MATEMATİK",null,null,null,null,null,null,null,null,null,null,null,null,null,null,null,null,null,null,null,null,null,null,null,null,null,null,null,null,null,null,null,null," TYT GEOMETRİ",null,null,null,null,null,null,null,null,null,null,null,null,null,null,null,null,null,null,null,null,null,null,null,null,null,null,"Ders"]
[null,"Kontrol Tarihi",null,"Kitap",null,null,null,1,2,3,4,5,6,7,8,9,10,11,12,13,14,15,16,17,18,19,20,21,22,23,24,25,null,null,null,null,"Kitap",null,null,null,1,2,3,4,5,6,7,8,9,10,11,12,13,14,15,16,17,18,19,20,21,null,null,"Kontrol Tarihi"]
[null,"TYT",null,null,null,null,null,"Temel Kavramlar","Sayı Basamakları","Bölme ve Bölünebilme","EBOB-EKOK","Rasyonel Sayılar-Ondalık Sayılar","Basit Eşitsizlikler","Mutlak Değer","Üslü Sayılar","Köklü Sayılar","Çarpanlara Ayırma","Oran Orantı","Denklem Çözme","Problemler","Kümeler-Karteszyen Çarpımı","Fonksiyonlar","Permütasyon","Kombinasyon","Binom","Olasılık","İstatistik","2. Dereceden Denklemler","Karmaşık Sayılar","Polinomlar","Mantık","Veri Analizi",null,null,null,null,null,null,null,null,"Doğruda ve Üçgende Açılar","Üçgende Açı-Kenar Bağıntıları","Üçgende  Benzerlik","üçgende Açıortay-Kenarortay","Dik Üçgen","İkizkenar Üçgen","Eşkenar Üçgen","Üçgende alan","Çokgenler","Dörtgenler","Yamuk-Paralelkenar","Eşkenar Dörtgen","Dikdörtgen","Kare","Deltoid","Çemberde Açı","Çemberde Uzunluk","Dairenin Çevresi ve Alanı","Doğrunun Analitik İncelenmesi","Çemberin Analitik İncelenmesi","Katı Cisimler ",null,null,{"$f":"B9","v":"TYT"}]
[null,"Konu Eksiği var mı?"]
[null,1,"…/…/202..",null,null,null,null,null,null,null,null,null,null,null,null,null,null,null,null,null,null,null,null,null,null,null,null,null,null,null,null,null,null,null,null,null,null,null,null,null,null,null,null,null,null,null,null,null,null,null,null,null,null,null,null,null,null,null,null,null,null,null,null,{"$f":"B20+1","v":11},{"$f":"C11","v":"…/…/202.."}]
[null,{"$f":"B11+1","v":2},{"$f":"C11","v":"…/…/202.."},null,null,null,null,null,null,null,null,null,null,null,null,null,null,null,null,null,null,null,null,null,null,null,null,null,null,null,null,null,null,null,null,null,null,null,null,null,null,null,null,null,null,null,null,null,null,null,null,null,null,null,null,null,null,null,null,null,null,null,null,{"$f":"BL11+1","v":12},{"$f":"C12","v":"…/…/202.."}]
[null,{"$f":"B12+1","v":3},{"$f":"C12","v":"…/…/202.."},null,null,null,null,null,null,null,null,null,null,null,null,null,null,null,null,null,null,null,null,null,null,null,null,null,null,null,null,null,null,null,null,null,null,null,null,null,null,null,null,null,null,null,null,null,null,null,null,null,null,null,null,null,null,null,null,null,null,null,null,{"$f":"BL12+1","v":13},"…/…/202.."]
[null,4,"…/…/202..",null,null,null,null,null,null,null,null,null,null,null,null,null,null,null,null,null,null,null,null,null,null,null,null,null,null,null,null,null,null,null,null,null,null,null,null,null,null,null,null,null,null,null,null,null,null,null,null,null,null,null,null,null,null,null,null,null,null,null,null,14,"…/…/202.."]
[null,5,"…/…/202..",null,null,null,null,null,null,null,null,null,null,null,null,null,null,null,null,null,null,null,null,null,null,null,null,null,null,null,null,null,null,null,null,null,null,null,null,null,null,null,null,null,null,null,null,null,null,null,null,null,null,null,null,null,null,null,null,null,null,null,null,15,"…/…/202.."]
[null,6,"…/…/202..",null,null,null,null,null,null,null,null,null,null,null,null,null,null,null,null,null,null,null,null,null,null,null,null,null,null,null,null,null,null,null,null,null,null,null,null,null,null,null,null,null,null,null,null,null,null,null,null,null,null,null,null,null,null,null,null,null,null,null,null,16,"…/…/202.."]
[null,7,"…/…/202..",null,null,null,null,null,null,null,null,null,null,null,null,null,null,null,null,null,null,null,null,null,null,null,null,null,null,null,null,null,null,null,null,null,null,null,null,null,null,null,null,null,null,null,null,null,null,null,null,null,null,null,null,null,null,null,null,null,null,null,null,17,"…/…/202.."]
[null,8,"…/…/202..",null,null,null,null,null,null,null,null,null,null,null,null,null,null,null,null,null,null,null,null,null,null,null,null,null,null,null,null,null,null,null,null,null,null,null,null,null,null,null,null,null,null,null,null,null,null,null,null,null,null,null,null,null,null,null,null,null,null,null,null,18,"…/…/202.."]
[null,9,"…/…/202..",null,null,null,null,null,null,null,null,null,null,null,null,null,null,null,null,null,null,null,null,null,null,null,null,null,null,null,null,null,null,null,null,null,null,null,null,null,null,null,null,null,null,null,null,null,null,null,null,null,null,null,null,null,null,null,null,null,null,null,null,19,"…/…/202.."]
[null,10,"…/…/202..",null,null,null,null,null,null,null,null,null,null,null,null,null,null,null,null,null,null,null,null,null,null,null,null,null,null,null,null,null,null,null,null,null,null,null,null,null,null,null,null,null,null,null,null,null,null,null,null,null,null,null,null,null,null,null,null,null,null,null,null,20,"…/…/202.."]
[]
[null,"Ders",null,"TYT TÜRKÇE",null,null,null,null,null,null,null,null,null,null,null,null,null,null,null,null,null,null,null,null,null," TYT FİZİK",null,null,null,null,null,null,null,null,null,null,null,null," TYT KİMYA",null,null,null,null,null,null,null,null,null,null,null," TYT BİYOLOJİ",null,null,null,null,null,null,null,null,null,null,null,null,"Ders"]
[null,"Kontrol Tarihi",null,"Kitap",null,null,null,1,2,3,4,5,6,7,8,9,10,11,12,13,14,15,16,17,null,"Kitap",null,1,2,3,4,5,6,7,8,9,10,null,"Kitap",null,1,2,3,4,5,6,7,8,9,null,"Kitap",null,1,2,3,4,5,6,7,8,9,10,null,"Kontrol Tarihi"]
[null,{"$f":"B9","v":"TYT"},null,null,null,null,null,"Sözcükte Anlam","Cümlede Anlam","Paragrafta Anlam","Anlatım Biçimleri","Ses Bilgisi","Yazım Kuralları","Noktalama İşaretleri","Sözcükte Yapı","Sözcük Türleri","Edat-Bağlaç-Ünlem","Filler","Ek Fiil","Filde Çatı","Fiilimsi","Cümlenin Öğeleri","Cümle Türleri","Anlatım Bozuklukları",null,null,null,"Fizik Bilimine Giriş","Madde ve Özellikleri","Kuvvet ve Hareket","İş, Güç ve Enerji","Isı, Sıcaklık ve Genleşme","Basınç","Kaldırma Kuvveti","Elektrik ve Manyetizma","Dalgalar","Optik",null,null,null,"Kimya Bilimi","Atom ve Periyodik Sistem","Kimyasal Türler Arası Etkileşimler","Maddenin Halleri","Doğa ve Kimya","Kimyanın Temel Kanunları ve","Kimsayal Hesaplamalar","Asitler-Bazlar ve Tuzlar","Kimya Her Yerde",null,null,null,"Canlıların Ortak Özellikleri","Canlıların Temel Bileşenleri","Hücre ve Organelleri","Hücre Zarından Madde Geçişi","Canlıların Sınıflandırılması","Mitoz ve Eşeysiz Üreme","Mayoz ve Eşeyli Üreme","Kalıtım","Ekosistem Ekolojisi","Güncel Çevre Sorunları",null,{"$f":"B9","v":"TYT"}]
[null,"Konu Eksiği var mı?"]
[null,1,"…/…/202..",null,null,null,null,null,null,null,null,null,null,null,null,null,null,null,null,null,null,null,null,null,null,null,null,null,null,null,null,null,null,null,null,null,null,null,null,null,null,null,null,null,null,null,null,null,null,null,null,null,null,null,null,null,null,null,null,null,null,null,null,{"$f":"B35+1","v":11},{"$f":"C26","v":"…/…/202.."}]
[null,{"$f":"B26+1","v":2},{"$f":"C26","v":"…/…/202.."},null,null,null,null,null,null,null,null,null,null,null,null,null,null,null,null,null,null,null,null,null,null,null,null,null,null,null,null,null,null,null,null,null,null,null,null,null,null,null,null,null,null,null,null,null,null,null,null,null,null,null,null,null,null,null,null,null,null,null,null,{"$f":"BL26+1","v":12},{"$f":"C27","v":"…/…/202.."}]
[null,{"$f":"B27+1","v":3},{"$f":"C27","v":"…/…/202.."},null,null,null,null,null,null,null,null,null,null,null,null,null,null,null,null,null,null,null,null,null,null,null,null,null,null,null,null,null,null,null,null,null,null,null,null,null,null,null,null,null,null,null,null,null,null,null,null,null,null,null,null,null,null,null,null,null,null,null,null,{"$f":"BL27+1","v":13},"…/…/202.."]
[null,4,"…/…/202..",null,null,null,null,null,null,null,null,null,null,null,null,null,null,null,null,null,null,null,null,null,null,null,null,null,null,null,null,null,null,null,null,null,null,null,null,null,null,null,null,null,null,null,null,null,null,null,null,null,null,null,null,null,null,null,null,null,null,null,null,14,"…/…/202.."]
[null,5,"…/…/202..",null,null,null,null,null,null,null,null,null,null,null,null,null,null,null,null,null,null,null,null,null,null,null,null,null,null,null,null,null,null,null,null,null,null,null,null,null,null,null,null,null,null,null,null,null,null,null,null,null,null,null,null,null,null,null,null,null,null,null,null,15,"…/…/202.."]
[null,6,"…/…/202..",null,null,null,null,null,null,null,null,null,null,null,null,null,null,null,null,null,null,null,null,null,null,null,null,null,null,null,null,null,null,null,null,null,null,null,null,null,null,null,null,null,null,null,null,null,null,null,null,null,null,null,null,null,null,null,null,null,null,null,null,16,"…/…/202.."]
[null,7,"…/…/202..",null,null,null,null,null,null,null,null,null,null,null,null,null,null,null,null,null,null,null,null,null,null,null,null,null,null,null,null,null,null,null,null,null,null,null,null,null,null,null,null,null,null,null,null,null,null,null,null,null,null,null,null,null,null,null,null,null,null,null,null,17,"…/…/202.."]
[null,8,"…/…/202..",null,null,null,null,null,null,null,null,null,null,null,null,null,null,null,null,null,null,null,null,null,null,null,null,null,null,null,null,null,null,null,null,null,null,null,null,null,null,null,null,null,null,null,null,null,null,null,null,null,null,null,null,null,null,null,null,null,null,null,null,18,"…/…/202.."]
[null,9,"…/…/202..",null,null,null,null,null,null,null,null,null,null,null,null,null,null,null,null,null,null,null,null,null,null,null,null,null,null,null,null,null,null,null,null,null,null,null,null,null,null,null,null,null,null,null,null,null,null,null,null,null,null,null,null,null,null,null,null,null,null,null,null,19,"…/…/202.."]
[null,10,"…/…/202..",null,null,null,null,null,null,null,null,null,null,null,null,null,null,null,null,null,null,null,null,null,null,null,null,null,null,null,null,null,null,null,null,null,null,null,null,null,null,null,null,null,null,null,null,null,null,null,null,null,null,null,null,null,null,null,null,null,null,null,null,20,"…/…/202.."]
[]
[null,"Ders",null," TYT TARİH",null,null,null,null,null,null,null,null,null,null,null,null,null,null,null,null,null,null,null,null,null," TYT COĞRAFYA",null,null,null,null,null,null,null,null,null,null,null,null,null,null,null,null,null," TYT FELSEFE KONULARI",null,null,null,null,null,null,null,null," TYT DİN KÜLTÜRÜ KONULARI",null,null,null,null,null,null,null,null,null,null,"Ders"]
[null,"Kontrol Tarihi",null,1,2,3,4,5,6,7,8,9,10,11,12,13,14,15,16,17,18,19,20,21,null,1,2,3,4,5,6,7,8,9,10,11,12,13,14,15,16,17,null,1,2,3,4,5,6,7,8,null,1,2,3,4,5,6,7,null,null,null,null,"Kontrol Tarihi"]
[null,{"$f":"B24","v":"TYT"},null,"Tarih Bilimine Giriş","Uygarlığın Doğuşu ve İlk Uygarlıklar","İlk Türk Devletleri","İslam Tarihi ve Uygarlığı","Türk-İslam Devletleri","Türkler’in İslamiyeti Kabulü","Türkiye Tarihi","Beylikten Devlete (1300-1453)","Dünya Gücü: Osmanlı Devleti","Osmanlı Duraklama Dönemi","Gerileme Devri (1699 – 1792)","Arayış Yılları (17. Yüzyıl)","Avrupa ve Osmanlı Devleti (18. Yüzyıl)","En Uzun Yüzyıl (1800-1922)","20.Yüzyıl Başlarında Osmanlı Devleti","XIX. YY Osmanlı Devleti","1.Dünya Savaşı – Milli Mücadeleye Hazırlık D.","Kurtuluş Savaşında Cepheler","Türk İnkılabı","Atatürkçülük ve Atatürk İlkeleri","Türk Dış Politikası",null,"İnsan ve Doğa","Dünya’nın Şekli ve Hareketleri","Coğrafi Konum","Harita Bilgisi","Atmosfer ve Sıcaklık","İklimler","Basınç ve Rüzgarlar","Nem, Yağış ve Buharlaşma","İç Kuvvetler / Dış Kuvvetler","Su – Toprak ve Bitkiler","Nüfus-Göç-Yerleşme","Türkiye’nin Yer Şekilleri","Ekonomik Faaliyetler","Bölgeler ve Ülkeler","Uluslararası Ulaşım Hatları","Çevre ve Toplum","Doğal Afetler",null,"Felsefe’nin Alanı","Bilgi Felsefesi","Bilim Felsefesi","Varlık Felsefesi","Ahlak Felsefesi","Siyaset Felsefesi","Sanat Felsefesi","Din Felsefesi",null,"insan ve Din (İnanç)","İbadet","Hz.Muhammed(sav)’in Hayatı","Vahiy ve Akıl","İslam Düşüncesi ve Yorumu","İslamda Değerler, Sanat ve Laiklik","Yaşayan Dinler",null,null,null,null,{"$f":"B24","v":"TYT"}]
[null,"Konu Eksiği var mı?"]
[null,1,"…/…/202..",null,null,null,null,null,null,null,null,null,null,null,null,null,null,null,null,null,null,null,null,null,null,null,null,null,null,null,null,null,null,null,null,null,null,null,null,null,null,null,null,null,null,null,null,null,null,null,null,null,null,null,null,null,null,null,null,null,null,null,null,{"$f":"B44+1","v":5},{"$f":"C41","v":"…/…/202.."}]
[null,{"$f":"B41+1","v":2},{"$f":"C41","v":"…/…/202.."},null,null,null,null,null,null,null,null,null,null,null,null,null,null,null,null,null,null,null,null,null,null,null,null,null,null,null,null,null,null,null,null,null,null,null,null,null,null,null,null,null,null,null,null,null,null,null,null,null,null,null,null,null,null,null,null,null,null,null,null,{"$f":"BL41+1","v":6},{"$f":"C42","v":"…/…/202.."}]
[null,{"$f":"B42+1","v":3},{"$f":"C42","v":"…/…/202.."},null,null,null,null,null,null,null,null,null,null,null,null,null,null,null,null,null,null,null,null,null,null,null,null,null,null,null,null,null,null,null,null,null,null,null,null,null,null,null,null,null,null,null,null,null,null,null,null,null,null,null,null,null,null,null,null,null,null,null,null,{"$f":"BL42+1","v":7},"…/…/202.."]
[null,4,"…/…/202..",null,null,null,null,null,null,null,null,null,null,null,null,null,null,null,null,null,null,null,null,null,null,null,null,null,null,null,null,null,null,null,null,null,null,null,null,null,null,null,null,null,null,null,null,null,null,null,null,null,null,null,null,null,null,null,null,null,null,null,null,8,"…/…/202.."]
[]
[null,"Öğrenciyle ilgili ders bazında ve genel görüşler….  Alınabilecek tedbirler…"]
[null,"Fetullah Bayır Fen Lisesi",null,null,null,null,null,null,null,null,null,null,null,null,null,null,null,null,null,null,null,null,null,"2022-2023",null,null,null,null,null,null,null,null,null,null,null,"ÖĞRENCİ DANIŞMANLIĞI / ÖĞRENCİ TAKİP FORMU",null,null,null,null,null,null,null,null,null,null,null,null,null,null,null,null,null,null,null,null,null,null,"Öğrencinin Hedefi :"]
[null,"No:",{"$f":"C4","v":1071},"Adı ve Soyadı",null,null,null,null,null,null,{"$f":"K4","v":"Oğuz Kağan BİLGE"},null,null,null,null,null,null,null,null,null,null,null,null,"Sınıf:",null,null,null,{"$f":"AB4","v":"12A"},null,null,null,"Grubu",null,null,null,"Danışman Öğretmen   :",null,null,null,null,null,null,{"$f":"AQ4","v":"…........"}]
[null,"Yönerge :",null,"Bu form her öğrenci için danışman öğretmenimiz tarafından ayrı ayrı doldurulur. Öğrencinin çalıştığı konular, ertesi hafta en geç Salı gününe kadar tarih yazarak kontrol edilir. E: Eksik ; T: Tam ;             yazılır. ",null,null,null,null,null,null,null,null,null,null,null,null,null,null,null,null,null,null,null,null,null,null,null,null,null,null,null,null,null,null,null,null,null,null,null,null,null,null,null,null,null,null,null,null,null,null,null,null,null,null,null,null,null,null,"Öğrenci Takip Sayfa No:"]
[null,null,null,"Okulda yapılan kazanım değerlendirme sınav analizlerini inceler, 1.;2., 3. öncelikli konulara göre öğrenciyi ödevlendirilir. Gerekirse diğer danışmanlarla işbirliği yaparak konuların öğretmenlerce tamamlanma yoluna gidilir."]
[null," TYT MATEMATİK",null,null,null,null,null,null,null,null,null,null,null,null,null,null,null,null,null,null,null,null,null,null,null,null,null,null,null,null,null,null,null,null,null,null," TYT GEOMETRİ"]
[null,1,"…/…/202..",null,null,null,null,null,null,null,null,null,null,null,null,null,null,null,null,null,null,null,null,null,null,null,null,null,null,null,null,null,null,null,null,null,null,null,null,null,null,null,null,null,null,null,null,null,null,null,null,null,null,null,null,null,null,null,null,null,null,null,null,{"$f":"BL51+1","v":1},{"$f":"C52","v":"…/…/202.."}]
[null,{"$f":"B52+1","v":2},"…/…/202..",null,null,null,null,null,null,null,null,null,null,null,null,null,null,null,null,null,null,null,null,null,null,null,null,null,null,null,null,null,null,null,null,null,null,null,null,null,null,null,null,null,null,null,null,null,null,null,null,null,null,null,null,null,null,null,null,null,null,null,null,2,"…/…/202.."]
[null,3,"…/…/202..",null,null,null,null,null,null,null,null,null,null,null,null,null,null,null,null,null,null,null,null,null,null,null,null,null,null,null,null,null,null,null,null,null,null,null,null,null,null,null,null,null,null,null,null,null,null,null,null,null,null,null,null,null,null,null,null,null,null,null,null,3,{"$f":"C54","v":"…/…/202.."}]
[null,{"$f":"B54+1","v":4},{"$f":"C54","v":"…/…/202.."},null,null,null,null,null,null,null,null,null,null,null,null,null,null,null,null,null,null,null,null,null,null,null,null,null,null,null,null,null,null,null,null,null,null,null,null,null,null,null,null,null,null,null,null,null,null,null,null,null,null,null,null,null,null,null,null,null,null,null,null,{"$f":"BL54+1","v":4},{"$f":"C55","v":"…/…/202.."}]
[null,{"$f":"B55+1","v":5},{"$f":"C55","v":"…/…/202.."},null,null,null,null,null,null,null,null,null,null,null,null,null,null,null,null,null,null,null,null,null,null,null,null,null,null,null,null,null,null,null,null,null,null,null,null,null,null,null,null,null,null,null,null,null,null,null,null,null,null,null,null,null,null,null,null,null,null,null,null,{"$f":"BL55+1","v":5},"…/…/202.."]
[null,6,"…/…/202..",null,null,null,null,null,null,null,null,null,null,null,null,null,null,null,null,null,null,null,null,null,null,null,null,null,null,null,null,null,null,null,null,null,null,null,null,null,null,null,null,null,null,null,null,null,null,null,null,null,null,null,null,null,null,null,null,null,null,null,null,6,"…/…/202.."]
[null,7,"…/…/202..",null,null,null,null,null,null,null,null,null,null,null,null,null,null,null,null,null,null,null,null,null,null,null,null,null,null,null,null,null,null,null,null,null,null,null,null,null,null,null,null,null,null,null,null,null,null,null,null,null,null,null,null,null,null,null,null,null,null,null,null,7,"…/…/202.."]
[null,8,"…/…/202..",null,null,null,null,null,null,null,null,null,null,null,null,null,null,null,null,null,null,null,null,null,null,null,null,null,null,null,null,null,null,null,null,null,null,null,null,null,null,null,null,null,null,null,null,null,null,null,null,null,null,null,null,null,null,null,null,null,null,null,null,8,"…/…/202.."]
[null,9,"…/…/202..",null,null,null,null,null,null,null,null,null,null,null,null,null,null,null,null,null,null,null,null,null,null,null,null,null,null,null,null,null,null,null,null,null,null,null,null,null,null,null,null,null,null,null,null,null,null,null,null,null,null,null,null,null,null,null,null,null,null,null,null,9,"…/…/202.."]
[null,10,"…/…/202..",null,null,null,null,null,null,null,null,null,null,null,null,null,null,null,null,null,null,null,null,null,null,null,null,null,null,null,null,null,null,null,null,null,null,null,null,null,null,null,null,null,null,null,null,null,null,null,null,null,null,null,null,null,null,null,null,null,null,null,null,10,"…/…/202.."]
[null,11,"…/…/202..",null,null,null,null,null,null,null,null,null,null,null,null,null,null,null,null,null,null,null,null,null,null,null,null,null,null,null,null,null,null,null,null,null,null,null,null,null,null,null,null,null,null,null,null,null,null,null,null,null,null,null,null,null,null,null,null,null,null,null,null,11,"…/…/202.."]
[null,12,"…/…/202..",null,null,null,null,null,null,null,null,null,null,null,null,null,null,null,null,null,null,null,null,null,null,null,null,null,null,null,null,null,null,null,null,null,null,null,null,null,null,null,null,null,null,null,null,null,null,null,null,null,null,null,null,null,null,null,null,null,null,null,null,12,"…/…/202.."]
[]
[null,null,null,"TYT TÜRKÇE",null,null,null,null,null,null,null,null,null,null,null,null,null,null,null,null,null,null,null,null,null," TYT FİZİK",null,null,null,null,null,null,null,null,null,null,null,null," TYT KİMYA",null,null,null,null,null,null,null,null,null,null,null," TYT BİYOLOJİ"]
[null,1,"…/…/202..",null,null,null,null,null,null,null,null,null,null,null,null,null,null,null,null,null,null,null,null,null,null,null,null,null,null,null,null,null,null,null,null,null,null,null,null,null,null,null,null,null,null,null,null,null,null,null,null,null,null,null,null,null,null,null,null,null,null,null,null,{"$f":"B66","v":1},{"$f":"C66","v":"…/…/202.."}]
[null,{"$f":"B66+1","v":2},{"$f":"C66","v":"…/…/202.."},null,null,null,null,null,null,null,null,null,null,null,null,null,null,null,null,null,null,null,null,null,null,null,null,null,null,null,null,null,null,null,null,null,null,null,null,null,null,null,null,null,null,null,null,null,null,null,null,null,null,null,null,null,null,null,null,null,null,null,null,{"$f":"B67","v":2},{"$f":"C67","v":"…/…/202.."}]
[null,3,"…/…/202..",null,null,null,null,null,null,null,null,null,null,null,null,null,null,null,null,null,null,null,null,null,null,null,null,null,null,null,null,null,null,null,null,null,null,null,null,null,null,null,null,null,null,null,null,null,null,null,null,null,null,null,null,null,null,null,null,null,null,null,null,3,"…/…/202.."]
[null,{"$f":"B68+1","v":4},{"$f":"C68","v":"…/…/202.."},null,null,null,null,null,null,null,null,null,null,null,null,null,null,null,null,null,null,null,null,null,null,null,null,null,null,null,null,null,null,null,null,null,null,null,null,null,null,null,null,null,null,null,null,null,null,null,null,null,null,null,null,null,null,null,null,null,null,null,null,4,"…/…/202.."]
[null,{"$f":"B69+1","v":5},{"$f":"C69","v":"…/…/202.."},null,null,null,null,null,null,null,null,null,null,null,null,null,null,null,null,null,null,null,null,null,null,null,null,null,null,null,null,null,null,null,null,null,null,null,null,null,null,null,null,null,null,null,null,null,null,null,null,null,null,null,null,null,null,null,null,null,null,null,null,5,"…/…/202.."]
[null,6,"…/…/202..",null,null,null,null,null,null,null,null,null,null,null,null,null,null,null,null,null,null,null,null,null,null,null,null,null,null,null,null,null,null,null,null,null,null,null,null,null,null,null,null,null,null,null,null,null,null,null,null,null,null,null,null,null,null,null,null,null,null,null,null,6,"…/…/202.."]
[null,7,"…/…/202..",null,null,null,null,null,null,null,null,null,null,null,null,null,null,null,null,null,null,null,null,null,null,null,null,null,null,null,null,null,null,null,null,null,null,null,null,null,null,null,null,null,null,null,null,null,null,null,null,null,null,null,null,null,null,null,null,null,null,null,null,7,"…/…/202.."]
[null,8,"…/…/202..",null,null,null,null,null,null,null,null,null,null,null,null,null,null,null,null,null,null,null,null,null,null,null,null,null,null,null,null,null,null,null,null,null,null,null,null,null,null,null,null,null,null,null,null,null,null,null,null,null,null,null,null,null,null,null,null,null,null,null,null,8,"…/…/202.."]
[null,9,"…/…/202..",null,null,null,null,null,null,null,null,null,null,null,null,null,null,null,null,null,null,null,null,null,null,null,null,null,null,null,null,null,null,null,null,null,null,null,null,null,null,null,null,null,null,null,null,null,null,null,null,null,null,null,null,null,null,null,null,null,null,null,null,9,"…/…/202.."]
[null,10,"…/…/202..",null,null,null,null,null,null,null,null,null,null,null,null,null,null,null,null,null,null,null,null,null,null,null,null,null,null,null,null,null,null,null,null,null,null,null,null,null,null,null,null,null,null,null,null,null,null,null,null,null,null,null,null,null,null,null,null,null,null,null,null,10,"…/…/202.."]
[null,11,"…/…/202..",null,null,null,null,null,null,null,null,null,null,null,null,null,null,null,null,null,null,null,null,null,null,null,null,null,null,null,null,null,null,null,null,null,null,null,null,null,null,null,null,null,null,null,null,null,null,null,null,null,null,null,null,null,null,null,null,null,null,null,null,11,"…/…/202.."]
[null,12,"…/…/202..",null,null,null,null,null,null,null,null,null,null,null,null,null,null,null,null,null,null,null,null,null,null,null,null,null,null,null,null,null,null,null,null,null,null,null,null,null,null,null,null,null,null,null,null,null,null,null,null,null,null,null,null,null,null,null,null,null,null,null,null,12,"…/…/202.."]
[]
[null,null,null," TYT TARİH",null,null,null,null,null,null,null,null,null,null,null,null,null,null,null,null,null,null,null,null,null," TYT COĞRAFYA",null,null,null,null,null,null,null,null,null,null,null,null,null,null,null,null,null," TYT FELSEFE KONULARI",null,null,null,null,null,null,null,null," TYT DİN KÜLTÜRÜ KONULARI"]
[null,{"$f":"B66","v":1},"…/…/202..",null,null,null,null,null,null,null,null,null,null,null,null,null,null,null,null,null,null,null,null,null,null,null,null,null,null,null,null,null,null,null,null,null,null,null,null,null,null,null,null,null,null,null,null,null,null,null,null,null,null,null,null,null,null,null,null,null,null,null,null,{"$f":"B80","v":1},{"$f":"C80","v":"…/…/202.."}]
[null,{"$f":"B67","v":2},"…/…/202..",null,null,null,null,null,null,null,null,null,null,null,null,null,null,null,null,null,null,null,null,null,null,null,null,null,null,null,null,null,null,null,null,null,null,null,null,null,null,null,null,null,null,null,null,null,null,null,null,null,null,null,null,null,null,null,null,null,null,null,null,{"$f":"B81","v":2},{"$f":"C81","v":"…/…/202.."}]
[null,3,"…/…/202..",null,null,null,null,null,null,null,null,null,null,null,null,null,null,null,null,null,null,null,null,null,null,null,null,null,null,null,null,null,null,null,null,null,null,null,null,null,null,null,null,null,null,null,null,null,null,null,null,null,null,null,null,null,null,null,null,null,null,null,null,3,"…/…/202.."]
[null,4,"…/…/202..",null,null,null,null,null,null,null,null,null,null,null,null,null,null,null,null,null,null,null,null,null,null,null,null,null,null,null,null,null,null,null,null,null,null,null,null,null,null,null,null,null,null,null,null,null,null,null,null,null,null,null,null,null,null,null,null,null,null,null,null,4,"…/…/202.."]
[null,5,"…/…/202..",null,null,null,null,null,null,null,null,null,null,null,null,null,null,null,null,null,null,null,null,null,null,null,null,null,null,null,null,null,null,null,null,null,null,null,null,null,null,null,null,null,null,null,null,null,null,null,null,null,null,null,null,null,null,null,null,null,null,null,null,5,"…/…/202.."]
[null,6,"…/…/202..",null,null,null,null,null,null,null,null,null,null,null,null,null,null,null,null,null,null,null,null,null,null,null,null,null,null,null,null,null,null,null,null,null,null,null,null,null,null,null,null,null,null,null,null,null,null,null,null,null,null,null,null,null,null,null,null,null,null,null,null,6,"…/…/202.."]
[null,null,null,"Genel Görüşler",null,null,null,null,null,null,null,null,null,null,null,null,null,null,null,null,null,null,null,null,null,null,null,null,null,null,null,null,null,null,null,null,null,"Alınabilecek tedbirler/tavsiyeler"]
[null,"1.","…/…/202.."]
[null,"2.","…/…/202.."]
[null,"3.","…/…/202.."]
[null,"4.","…/…/202.."]
[null,"5.","…/…/202.."]
[null,"6.","…/…/202.."]
[null,"7.","…/…/202.."]
[null,"8.","…/…/202.."]
[null,"9.","…/…/202.."]
[null,"10.","…/…/202.."]
[]
[null,"Fetullah Bayır Fen Lisesi",null,null,null,null,null,null,null,null,null,null,null,null,null,null,null,null,null,null,null,null,null,"2022-2023",null,null,null,null,null,null,null,null,null,null,null,"ÖĞRENCİ DANIŞMANLIĞI / ÖĞRENCİ TAKİP FORMU",null,null,null,null,null,null,null,null,null,null,null,null,null,null,null,null,null,null,null,null,null,null,"Öğrencinin Hedefi :"]
[null,"No:",{"$f":"C4","v":1071},"Adı ve Soyadı",null,null,null,null,null,null,{"$f":"K4","v":"Oğuz Kağan BİLGE"},null,null,null,null,null,null,null,null,null,null,null,null,"Sınıf ",null,null,null,{"$f":"AB4","v":"12A"},null,null,null,"Grubu",null,null,null,"Danışman Öğretmen   :",null,null,null,null,null,null,null,null,null,null,null,{"$f":"AQ4","v":"…........"},null,null,null,null,null,null,null,null,null,null,{"$f":"IF(#REF!=\"\",\"\",VLOOKUP(C99,#REF!,29))","v":{"$error":"#REF!"}}]
[null,"Yönerge :",null,"Bu form her öğrenci için danışman öğretmenimiz tarafından ayrı ayrı doldurulur. Öğrencinin çalıştığı konular, ertesi hafta en geç Salı gününe kadar tarih yazarak kontrol edilir. E(-): Eksik ; T(+): Tam ;  yazılır. ",null,null,null,null,null,null,null,null,null,null,null,null,null,null,null,null,null,null,null,null,null,null,null,null,null,null,null,null,null,null,null,null,null,null,null,null,null,null,null,null,null,null,null,null,null,null,null,null,null,null,null,null,null,null,"Öğrenci Takip Sayfa No:",null,null,null,null,null,{"$f":"VLOOKUP(C99,#REF!,30)","v":{"$error":"#REF!"}}]
[null,null,null,"Okulda yapılan kazanım değerlendirme sınav analizlerini inceler, 1.;2., 3. öncelikli konulara göre öğrenciyi ödevlendirilir. Gerekirse diğer danışmanlarla işbirliği yaparak konuların öğretmenlerce tamamlanma yoluna gidilir."]
[null,"Ders",null,"AYT MATEMATİK",null,null,null,null,null,null,null,null,null,null,null,null,null,null,null,null,null,null,null,null,null,null,null,null,null,null,null,null,null,null,null,null,"AYT GEOMETRİ",null,null,null,null,null,null,null,null,null,null,null,null,null,null,null,null,null,null,null,null,null,null,null,null,null,null,"Ders"]
[null,"Kontrol Tarihi",null,1,2,3,4,5,6,7,8,9,10,11,12,13,14,15,16,17,18,19,20,21,22,23,24,25,26,27,28,29,30,31,null,null,1,2,3,4,5,6,7,8,9,10,11,12,13,14,15,16,17,18,19,20,21,22,23,24,25,26,27,"Kontrol Tarihi"]
[null,"AYT",null,"Temel Kavramlar","Sayı Basamakları","Bölme ve Bölünebilme","EBOB – EKOK","Rasyonel Sayılar","Basit Eşitsizlikler","Mutlak Değer","Üslü Sayılar","Köklü Sayılar","Çarpanlara Ayırma","Oran Orantı","Denklem Çözme","Problemler","Kümeler","Kartezyen Çarpım","Mantık","Fonskiyonlar","Polinomlar","2.Dereceden Denklemler","Permütasyon ve Kombinasyon","Binom ve Olasılık","İstatistik","Karmaşık Sayılar","2.Dereceden Eşitsizlikler","Parabol","Trigonometri","Logaritma","Diziler","Limit","Türev","İntegral",null,null,"Doğruda ve Üçgende Açılar","Dik ve Özel Üçgenler","Dik Üçgende Trigonemetrik Bağıntılar","İkizkenar ve Eşkenar Üçgen","Üçgende Alanlar","Üçgende Açıortay Bağıntıları","Üçgende Kenarortay Bağıntıları","Üçgende Eşlik ve Benzerlik","Üçgende Açı-Kenar Bağıntıları","Çokgenler","Dörtgenler","Yamuk","Paralelkenar","Eşkenar Dörtgen – Deltoid","Dikdörtgen","Çemberde Açılar","Çemberde Uzunluk","Daire","Prizmalar","Piramitler","Küre","Koordinat Düzlemi ve Noktanın Analitiği","Doğrunun Analitiği","Tekrar Eden, Dönen ve Yansıyan Şekiller","Dönüşümlerle Geometri","Trigonometri","Çemberin Analitiği","AYT"]
[null,"Konu Eksiği var mı?",null,null,null,null,null,null,null,null,null,null,null,null,null,null,null,null,null,null,null,null,null,null,null,null,null,null,null,null,null,null,null,null,null,null,null,null,null,null,null,null,null,null,null,null,null,null,null,null,null,null,null,null,null,null,null,null,null,null,null,null,null,"Bu bölüme eksik varsa (-); yoksa (+) yaz.."]
[null,1,"…/…/202..",null,null,null,null,null,null,null,null,null,null,null,null,null,null,null,null,null,null,null,null,null,null,null,null,null,null,null,null,null,null,null,null,null,null,null,null,null,null,null,null,null,null,null,null,null,null,null,null,null,null,null,null,null,null,null,null,null,null,null,null,{"$f":"B106","v":1},{"$f":"C106","v":"…/…/202.."}]
[null,{"$f":"B106+1","v":2},{"$f":"C106","v":"…/…/202.."},null,null,null,null,null,null,null,null,null,null,null,null,null,null,null,null,null,null,null,null,null,null,null,null,null,null,null,null,null,null,null,null,null,null,null,null,null,null,null,null,null,null,null,null,null,null,null,null,null,null,null,null,null,null,null,null,null,null,null,null,{"$f":"B107","v":2},"…/…/202.."]
[null,{"$f":"B107+1","v":3},{"$f":"C107","v":"…/…/202.."},null,null,null,null,null,null,null,null,null,null,null,null,null,null,null,null,null,null,null,null,null,null,null,null,null,null,null,null,null,null,null,null,null,null,null,null,null,null,null,null,null,null,null,null,null,null,null,null,null,null,null,null,null,null,null,null,null,null,null,null,3,"…/…/202.."]
[null,4,"…/…/202..",null,null,null,null,null,null,null,null,null,null,null,null,null,null,null,null,null,null,null,null,null,null,null,null,null,null,null,null,null,null,null,null,null,null,null,null,null,null,null,null,null,null,null,null,null,null,null,null,null,null,null,null,null,null,null,null,null,null,null,null,4,"…/…/202.."]
[null,5,"…/…/202..",null,null,null,null,null,null,null,null,null,null,null,null,null,null,null,null,null,null,null,null,null,null,null,null,null,null,null,null,null,null,null,null,null,null,null,null,null,null,null,null,null,null,null,null,null,null,null,null,null,null,null,null,null,null,null,null,null,null,null,null,5,"…/…/202.."]
[null,6,"…/…/202..",null,null,null,null,null,null,null,null,null,null,null,null,null,null,null,null,null,null,null,null,null,null,null,null,null,null,null,null,null,null,null,null,null,null,null,null,null,null,null,null,null,null,null,null,null,null,null,null,null,null,null,null,null,null,null,null,null,null,null,null,6,"…/…/202.."]
[null,7,"…/…/202..",null,null,null,null,null,null,null,null,null,null,null,null,null,null,null,null,null,null,null,null,null,null,null,null,null,null,null,null,null,null,null,null,null,null,null,null,null,null,null,null,null,null,null,null,null,null,null,null,null,null,null,null,null,null,null,null,null,null,null,null,7,"…/…/202.."]
[null,8,"…/…/202..",null,null,null,null,null,null,null,null,null,null,null,null,null,null,null,null,null,null,null,null,null,null,null,null,null,null,null,null,null,null,null,null,null,null,null,null,null,null,null,null,null,null,null,null,null,null,null,null,null,null,null,null,null,null,null,null,null,null,null,null,8,"…/…/202.."]
[null,9,"…/…/202..",null,null,null,null,null,null,null,null,null,null,null,null,null,null,null,null,null,null,null,null,null,null,null,null,null,null,null,null,null,null,null,null,null,null,null,null,null,null,null,null,null,null,null,null,null,null,null,null,null,null,null,null,null,null,null,null,null,null,null,null,9,"…/…/202.."]
[null,10,"…/…/202..",null,null,null,null,null,null,null,null,null,null,null,null,null,null,null,null,null,null,null,null,null,null,null,null,null,null,null,null,null,null,null,null,null,null,null,null,null,null,null,null,null,null,null,null,null,null,null,null,null,null,null,null,null,null,null,null,null,null,null,null,10,"…/…/202.."]
[]
[null,"Ders",null,"AYT FİZİK",null,null,null,null,null,null,null,null,null,null,null,null,null,null,null,null,null,null,null,null,null,null,null,null,null,"AYT KİMYA",null,null,null,null,null,null,null,null,null,null,null,null,"AYT BİYOLOJİ",null,null,null,null,null,null,null,null,null,null,null,null,null,null,null,null,null,null,null,null,"Ders"]
[null,"Kontrol Tarihi",null,1,2,3,4,5,6,7,8,9,10,11,12,13,14,15,16,17,18,19,20,21,null,null,null,null,null,1,2,3,4,5,6,7,8,9,null,null,null,null,1,2,3,4,5,6,7,8,9,10,11,12,13,14,15,16,17,null,null,null,null,"Kontrol Tarihi"]
[null,"AYT",null,"Vektörler","Kuvvet, Tork ve Denge","Kütle Merkezi","Basit Makineler","Hareket","Newton’un Hareket Yasaları","İş, Güç ve Enerji II","Atışlar","İtme ve Momentum","Elektrik Alan ve Potansiyel","Paralel Levhalar ve Sığa","Manyetik Alan ve Manyetik Kuvvet","İndüksiyon, Alternatif Akım ve Transformatörler","Çembersel Hareket","Kütle Çekim ve Kepler Yasaları","Basit Harmonik Hareket","Dalga Mekaniği ve Elektromanyetik Dalgalar","Atom Modelleri","Büyük Patlama ve Radyoaktivite","Modern Fizik","Modern Fiziğin Teknolojideki Uygulamaları",null,null,null,null,null,"Modern Atom Teorisi","Gazlar","Sıvı Çözeltiler ve Çözünürlük","Kimyasal Tepkimelerde Enerji","Tepkimelerde Hız ve Denge","Kimya ve Elektrik","Karbon Kimyası","Organik Kimya","Enerji Kaynakları ve Bilimsel Gelişmeler",null,null,null,null,"Sinir Sistemi","Endokrin Sistem","Duyu Organları","Destek ve Hareket Sistemi","Sindirim Sistemi","Dolaşım ve Bağışıklık Sistemi","Solunum Sistemi","Üriner Sistem","Üreme Sistemi ve Embriyonik Gelişim","Komünite ve Popülasyon Ekolojisi","Nükleik Asitler","Genetik Şifre ve Protein Sentezi","Canlılık ve Enerji","Fotosentez ve Kemosentez","Hücresel Solunum","Bitki Biyolojisi","Canlılar ve Çevre",null,null,null,null,"AYT"]
[null,"Konu Eksiği var mı?",null,null,null,null,null,null,null,null,null,null,null,null,null,null,null,null,null,null,null,null,null,null,null,null,null,null,null,null,null,null,null,null,null,null,null,null,null,null,null,null,null,null,null,null,null,null,null,null,null,null,null,null,null,null,null,null,null,null,null,null,null,"Bu bölüme eksik varsa (-); yoksa (+) yaz.."]
[null,1,"…/…/202..",null,null,null,null,null,null,null,null,null,null,null,null,null,null,null,null,null,null,null,null,null,null,null,null,null,null,null,null,null,null,null,null,null,null,null,null,null,null,null,null,null,null,null,null,null,null,null,null,null,null,null,null,null,null,null,null,null,null,null,null,{"$f":"B121","v":1},{"$f":"C121","v":"…/…/202.."}]
[null,{"$f":"B121+1","v":2},{"$f":"C121","v":"…/…/202.."},null,null,null,null,null,null,null,null,null,null,null,null,null,null,null,null,null,null,null,null,null,null,null,null,null,null,null,null,null,null,null,null,null,null,null,null,null,null,null,null,null,null,null,null,null,null,null,null,null,null,null,null,null,null,null,null,null,null,null,null,{"$f":"B122","v":2},"…/…/202.."]
[null,{"$f":"B122+1","v":3},{"$f":"C122","v":"…/…/202.."},null,null,null,null,null,null,null,null,null,null,null,null,null,null,null,null,null,null,null,null,null,null,null,null,null,null,null,null,null,null,null,null,null,null,null,null,null,null,null,null,null,null,null,null,null,null,null,null,null,null,null,null,null,null,null,null,null,null,null,null,3,"…/…/202.."]
[null,4,"…/…/202..",null,null,null,null,null,null,null,null,null,null,null,null,null,null,null,null,null,null,null,null,null,null,null,null,null,null,null,null,null,null,null,null,null,null,null,null,null,null,null,null,null,null,null,null,null,null,null,null,null,null,null,null,null,null,null,null,null,null,null,null,4,"…/…/202.."]
[null,5,"…/…/202..",null,null,null,null,null,null,null,null,null,null,null,null,null,null,null,null,null,null,null,null,null,null,null,null,null,null,null,null,null,null,null,null,null,null,null,null,null,null,null,null,null,null,null,null,null,null,null,null,null,null,null,null,null,null,null,null,null,null,null,null,5,"…/…/202.."]
[null,6,"…/…/202..",null,null,null,null,null,null,null,null,null,null,null,null,null,null,null,null,null,null,null,null,null,null,null,null,null,null,null,null,null,null,null,null,null,null,null,null,null,null,null,null,null,null,null,null,null,null,null,null,null,null,null,null,null,null,null,null,null,null,null,null,6,"…/…/202.."]
[null,7,"…/…/202..",null,null,null,null,null,null,null,null,null,null,null,null,null,null,null,null,null,null,null,null,null,null,null,null,null,null,null,null,null,null,null,null,null,null,null,null,null,null,null,null,null,null,null,null,null,null,null,null,null,null,null,null,null,null,null,null,null,null,null,null,7,"…/…/202.."]
[null,8,"…/…/202..",null,null,null,null,null,null,null,null,null,null,null,null,null,null,null,null,null,null,null,null,null,null,null,null,null,null,null,null,null,null,null,null,null,null,null,null,null,null,null,null,null,null,null,null,null,null,null,null,null,null,null,null,null,null,null,null,null,null,null,null,8,"…/…/202.."]
[null,9,"…/…/202..",null,null,null,null,null,null,null,null,null,null,null,null,null,null,null,null,null,null,null,null,null,null,null,null,null,null,null,null,null,null,null,null,null,null,null,null,null,null,null,null,null,null,null,null,null,null,null,null,null,null,null,null,null,null,null,null,null,null,null,null,9,"…/…/202.."]
[null,10,"…/…/202..",null,null,null,null,null,null,null,null,null,null,null,null,null,null,null,null,null,null,null,null,null,null,null,null,null,null,null,null,null,null,null,null,null,null,null,null,null,null,null,null,null,null,null,null,null,null,null,null,null,null,null,null,null,null,null,null,null,null,null,null,10,"…/…/202.."]
[]
[]
[null,"Fetullah Bayır Fen Lisesi",null,null,null,null,null,null,null,null,null,null,null,null,null,null,null,null,null,null,null,null,null,"2022-2023",null,null,null,null,null,null,null,null,null,null,null,"ÖĞRENCİ DANIŞMANLIĞI / ÖĞRENCİ TAKİP FORMU",null,null,null,null,null,null,null,null,null,null,null,null,null,null,null,null,null,null,null,null,null,null,"Öğrencinin Hedefi :"]
[null,"No:",{"$f":"C99","v":1071},"Adı ve Soyadı",null,null,null,null,null,null,{"$f":"K99","v":"Oğuz Kağan BİLGE"},null,null,null,null,null,null,null,null,null,null,null,null,"Sınıf ",null,null,null,{"$f":"AB99","v":"12A"},null,null,null,"Grubu",null,null,null,"Danışman Öğretmen   :",null,null,null,null,null,null,null,null,null,null,null,{"$f":"VLOOKUP(C134,#REF!,16)","v":{"$error":"#REF!"}},null,null,null,null,null,null,null,null,null,null,{"$f":"BG99","v":{"$error":"#REF!"}}]
[null,"Ders",null,"AYT MATEMATİK",null,null,null,null,null,null,null,null,null,null,null,null,null,null,null,null,null,null,null,null,null,null,null,null,null,null,null,null,null,null,null,null,"AYT GEOMETRİ",null,null,null,null,null,null,null,null,null,null,null,null,null,null,null,null,null,null,null,null,null,null,null,null,null,null,{"$f":"BM100","v":{"$error":"#REF!"}}]
[null,null,null,1,2,3,4,5,6,7,8,9,10,11,12,13,14,15,16,17,18,19,20,21,22,23,24,25,26,27,28,29,30,31,null,null,1,2,3,4,5,6,7,8,9,10,11,12,13,14,15,16,17,18,19,20,21,22,23,24,25,26,27,"Kontrol Tarihi"]
[null,1,"…/…/202..",null,null,null,null,null,null,null,null,null,null,null,null,null,null,null,null,null,null,null,null,null,null,null,null,null,null,null,null,null,null,null,null,null,null,null,null,null,null,null,null,null,null,null,null,null,null,null,null,null,null,null,null,null,null,null,null,null,null,null,null,{"$f":"B137","v":1},{"$f":"C137","v":"…/…/202.."}]
[null,{"$f":"B137+1","v":2},{"$f":"C137","v":"…/…/202.."},null,null,null,null,null,null,null,null,null,null,null,null,null,null,null,null,null,null,null,null,null,null,null,null,null,null,null,null,null,null,null,null,null,null,null,null,null,null,null,null,null,null,null,null,null,null,null,null,null,null,null,null,null,null,null,null,null,null,null,null,{"$f":"B138","v":2},"…/…/202.."]
[null,{"$f":"B138+1","v":3},{"$f":"C138","v":"…/…/202.."},null,null,null,null,null,null,null,null,null,null,null,null,null,null,null,null,null,null,null,null,null,null,null,null,null,null,null,null,null,null,null,null,null,null,null,null,null,null,null,null,null,null,null,null,null,null,null,null,null,null,null,null,null,null,null,null,null,null,null,null,3,"…/…/202.."]
[null,4,"…/…/202..",null,null,null,null,null,null,null,null,null,null,null,null,null,null,null,null,null,null,null,null,null,null,null,null,null,null,null,null,null,null,null,null,null,null,null,null,null,null,null,null,null,null,null,null,null,null,null,null,null,null,null,null,null,null,null,null,null,null,null,null,4,"…/…/202.."]
[null,5,"…/…/202..",null,null,null,null,null,null,null,null,null,null,null,null,null,null,null,null,null,null,null,null,null,null,null,null,null,null,null,null,null,null,null,null,null,null,null,null,null,null,null,null,null,null,null,null,null,null,null,null,null,null,null,null,null,null,null,null,null,null,null,null,5,"…/…/202.."]
[null,6,"…/…/202..",null,null,null,null,null,null,null,null,null,null,null,null,null,null,null,null,null,null,null,null,null,null,null,null,null,null,null,null,null,null,null,null,null,null,null,null,null,null,null,null,null,null,null,null,null,null,null,null,null,null,null,null,null,null,null,null,null,null,null,null,6,"…/…/202.."]
[null,7,"…/…/202..",null,null,null,null,null,null,null,null,null,null,null,null,null,null,null,null,null,null,null,null,null,null,null,null,null,null,null,null,null,null,null,null,null,null,null,null,null,null,null,null,null,null,null,null,null,null,null,null,null,null,null,null,null,null,null,null,null,null,null,null,7,"…/…/202.."]
[null,8,"…/…/202..",null,null,null,null,null,null,null,null,null,null,null,null,null,null,null,null,null,null,null,null,null,null,null,null,null,null,null,null,null,null,null,null,null,null,null,null,null,null,null,null,null,null,null,null,null,null,null,null,null,null,null,null,null,null,null,null,null,null,null,null,8,"…/…/202.."]
[null,9,"…/…/202..",null,null,null,null,null,null,null,null,null,null,null,null,null,null,null,null,null,null,null,null,null,null,null,null,null,null,null,null,null,null,null,null,null,null,null,null,null,null,null,null,null,null,null,null,null,null,null,null,null,null,null,null,null,null,null,null,null,null,null,null,9,"…/…/202.."]
[null,10,"…/…/202..",null,null,null,null,null,null,null,null,null,null,null,null,null,null,null,null,null,null,null,null,null,null,null,null,null,null,null,null,null,null,null,null,null,null,null,null,null,null,null,null,null,null,null,null,null,null,null,null,null,null,null,null,null,null,null,null,null,null,null,null,10,"…/…/202.."]
[null,"Ders",null,"AYT FİZİK",null,null,null,null,null,null,null,null,null,null,null,null,null,null,null,null,null,null,null,null,"AYT KİMYA",null,null,null,null,null,null,null,null,null,null,null,null,null,null,null,null,null,"AYT BİYOLOJİ",null,null,null,null,null,null,null,null,null,null,null,null,null,null,null,null,null,null,null,null,"Ders"]
[null,"Kontrol Tarihi",null,null,null,null,null,null,null,null,null,null,null,null,null,null,null,null,null,null,null,null,null,null,null,null,null,null,null,null,null,null,null,null,null,null,null,null,null,null,null,null,null,null,null,null,null,null,null,null,null,null,null,null,null,null,null,null,null,null,null,null,null,"Kontrol Tarihi"]
[null,1,"…/…/202..",null,null,null,null,null,null,null,null,null,null,null,null,null,null,null,null,null,null,null,null,null,null,null,null,null,null,null,null,null,null,null,null,null,null,null,null,null,null,null,null,null,null,null,null,null,null,null,null,null,null,null,null,null,null,null,null,null,null,null,null,{"$f":"B149","v":1},{"$f":"C149","v":"…/…/202.."}]
[null,{"$f":"B149+1","v":2},{"$f":"C149","v":"…/…/202.."},null,null,null,null,null,null,null,null,null,null,null,null,null,null,null,null,null,null,null,null,null,null,null,null,null,null,null,null,null,null,null,null,null,null,null,null,null,null,null,null,null,null,null,null,null,null,null,null,null,null,null,null,null,null,null,null,null,null,null,null,{"$f":"B150","v":2},"…/…/202.."]
[null,{"$f":"B150+1","v":3},{"$f":"C150","v":"…/…/202.."},null,null,null,null,null,null,null,null,null,null,null,null,null,null,null,null,null,null,null,null,null,null,null,null,null,null,null,null,null,null,null,null,null,null,null,null,null,null,null,null,null,null,null,null,null,null,null,null,null,null,null,null,null,null,null,null,null,null,null,null,3,"…/…/202.."]
[null,4,"…/…/202..",null,null,null,null,null,null,null,null,null,null,null,null,null,null,null,null,null,null,null,null,null,null,null,null,null,null,null,null,null,null,null,null,null,null,null,null,null,null,null,null,null,null,null,null,null,null,null,null,null,null,null,null,null,null,null,null,null,null,null,null,4,"…/…/202.."]
[null,5,"…/…/202..",null,null,null,null,null,null,null,null,null,null,null,null,null,null,null,null,null,null,null,null,null,null,null,null,null,null,null,null,null,null,null,null,null,null,null,null,null,null,null,null,null,null,null,null,null,null,null,null,null,null,null,null,null,null,null,null,null,null,null,null,5,"…/…/202.."]
[null,6,"…/…/202..",null,null,null,null,null,null,null,null,null,null,null,null,null,null,null,null,null,null,null,null,null,null,null,null,null,null,null,null,null,null,null,null,null,null,null,null,null,null,null,null,null,null,null,null,null,null,null,null,null,null,null,null,null,null,null,null,null,null,null,null,6,"…/…/202.."]
[null,7,"…/…/202..",null,null,null,null,null,null,null,null,null,null,null,null,null,null,null,null,null,null,null,null,null,null,null,null,null,null,null,null,null,null,null,null,null,null,null,null,null,null,null,null,null,null,null,null,null,null,null,null,null,null,null,null,null,null,null,null,null,null,null,null,7,"…/…/202.."]
[null,8,"…/…/202..",null,null,null,null,null,null,null,null,null,null,null,null,null,null,null,null,null,null,null,null,null,null,null,null,null,null,null,null,null,null,null,null,null,null,null,null,null,null,null,null,null,null,null,null,null,null,null,null,null,null,null,null,null,null,null,null,null,null,null,null,8,"…/…/202.."]
[null,9,"…/…/202..",null,null,null,null,null,null,null,null,null,null,null,null,null,null,null,null,null,null,null,null,null,null,null,null,null,null,null,null,null,null,null,null,null,null,null,null,null,null,null,null,null,null,null,null,null,null,null,null,null,null,null,null,null,null,null,null,null,null,null,null,9,"…/…/202.."]
[null,10,"…/…/202..",null,null,null,null,null,null,null,null,null,null,null,null,null,null,null,null,null,null,null,null,null,null,null,null,null,null,null,null,null,null,null,null,null,null,null,null,null,null,null,null,null,null,null,null,null,null,null,null,null,null,null,null,null,null,null,null,null,null,null,null,10,"…/…/202.."]
[null,null,null,"Genel Görüşler",null,null,null,null,null,null,null,null,null,null,null,null,null,null,null,null,null,null,null,null,null,null,null,null,null,null,null,null,null,null,null,null,null,"Alınabilecek tedbirler/tavsiyeler"]
[null,"1.","…/…/202.."]
[null,"2.","…/…/202.."]
[null,"3.","…/…/202.."]
[null,"4.","…/…/202.."]
[null,"5.","…/…/202.."]
[null,"6.","…/…/202.."]
[null,"7.","…/…/202.."]
[null,"8.","…/…/202.."]
[null,"9.","…/…/202.."]
[null,"10.","…/…/202.."]

{"sheet":"Kültür Edb. Liste","index":17,"n_rows":53,"n_cols":6,"rows_kept":53,"cut":false,"hidden":true,"merged":[[0,0,0,13],[1,0,1,4],[2,5,2,13]]}
[{"$f":"'[2]Toplu Kulüp Listesi'!F1","v":"Kültür ve Edebiyat\n Kulübü"}]
[null,null,null,null,null,"Tarih"]
["S. No",{"$f":"#REF!","v":{"$error":"#REF!"}},"No","Adı","Soyadı","ÖĞRENCİ YOKLAMA ÇİZELGESİ"]
[1,{"$f":"#REF!","v":{"$error":"#REF!"}}]
[{"$f":"A4+1","v":2},{"$f":"#REF!","v":{"$error":"#REF!"}}]
[{"$f":"A5+1","v":3}]
[4]
[5]
[6]
[7]
[8]
[9]
[10]
[11]
[12]
[13]
[14]
[15]
[16]
[17]
[18]
[19]
[20]
[21]
[22]
[23]
[24]
[25]
[26]
[27]
[28]
[29]
[30]
[31]
[32]
[33]
[34]
[35]
[36]
[37]
[{"$f":"A40+1","v":38}]
[{"$f":"A41+1","v":39}]
[40]
[41]
[42]
[43]
[44]
[45]
[46]
[47]
[48]
[{"$f":"A51+1","v":49}]
[50]